Workbook

Sheet Contents
A1: Administrative Data Based Population and Households Estimates (2016-2022): Interactive Charts
A3: Disclaimer: These figures are statistical research and not the official statistics on Scotland's population. The official population estimates can be found at: https://www.nrscotland.gov.uk/statistics-and-data/population-migration-and-households/
A8: All graphs show 2016-2022, either as an option or as separate series
A9: Some graphs break down by sex either as an option or as separate series
A10: Some graphs breakdown by ages, either on the x-axis or as an option
A11: The 'by' variable is what is shown along the x-axis
A13: Population
A14: All graphs show a mixture the ABPE, MYE, rebased MYE, Census, or the difference between them
A16: Graph | B16: Sheet | C16: Dropdown Options
A18: Council Area
A19: Comparison of ABPE, MYE and Census by Age | B19: CA | C19: Council Area (inc Scotland), year
A20: Comparison of ABPE, MYE and Census by Age, males | B20: CA - M | C20: Council Area (inc Scotland), year
A21: Comparison of ABPE, MYE and Census by Age, females | B21: CA - F | C21: Council Area (inc Scotland), year
A22: Council Area Absolute Difference by 1-year age bands | B22: CA abs 1-yr | C22: Council Area (inc Scotland), year
A23: Council Area Absolute Difference by 1-year age bands, males | B23: CA abs 1-yr - M | C23: Council Area (inc Scotland), year
A24: Council Area Absolute Difference by 1-year age bands, females | B24: CA abs 1-yr - F | C24: Council Area (inc Scotland), year
A25: Council Area Absolute Difference by 5-year age bands | B25: CA abs 5-yr | C25: Council Area (inc Scotland), year
A26: Council Area Absolute Difference by 5-year age bands, males | B26: CA abs 5-yr - M | C26: Council Area (inc Scotland), year
A27: Council Area Absolute Difference by 5-year age bands, females | B27: CA abs 5-yr - F | C27: Council Area (inc Scotland), year
A28: Council Area Percentage Difference by 1-year age bands | B28: CA % 1-yr | C28: Council Area (inc Scotland), year
A29: Council Area Percentage Difference by 1-year age bands, males | B29: CA % 1-yr - M | C29: Council Area (inc Scotland), year
A30: Council Area Percentage Difference by 1-year age bands, females | B30: CA % 1-yr - F | C30: Council Area (inc Scotland), year
A31: Council Area Percentage Difference by 5-year age bands | B31: CA % 5-yr | C31: Council Area (inc Scotland), year
A32: Council Area Percentage Difference by 5-year age bands, males | B32: CA % 5-yr - M | C32: Council Area (inc Scotland), year
A33: Council Area Percentage Difference by 5-year age bands, females | B33: CA % 5-yr - F | C33: Council Area (inc Scotland), year
A35: Households
A36: Comparison of ABHE and HH-Estimates by Council Area by year | B36: HH | C36: Council Area (inc Scotland)
A37: Council Area Absolute Difference by year | B37: HH abs | C37: Council Area (inc Scotland)
A38: Council Area Percentage Difference by year | B38: HH % | C38: Council Area (inc Scotland)
A39: Total number of Households for ABHE and HH-Estimates by composition | B39: HH comp | C39: Year
A41: These figures are published in 'Administraitve Based Population Estimates, Household, and Ethnicity Estimates (2016-2022)', available from the National Records of Scotland website.
A42: ABPE = Administrative Data Based Population Estimates
A43: MYE = Mid-year estimates - the National Statistics for Scotland's population. Can be found at the Population Estimates section of the NRS website.
A45: Note: Scottish Household data for 2020 and 2021 are not directly comparable to SHS results for previous years (2019 and earlier) and are therefore not shown on the graphs. Typically SHS respondents are interviewed face-to-face. In March 2020 the fieldwork approach was altered as a response to the Covid pandemic. This resulted in the majority of the 2020 survey fieldwork, and all of the 2021 survey fieldwork, being carried out using telephone interviewing.

Sheet CA Comparison (hidden)
B1: Council area comparisons 2016-2022 for graphs
C4: UR | D4: =INDEX(D204:D236,D237) -> Scotland
C5: Year | D5: =INDEX(C204:C210,C237) -> 2022
B10: Data for total population graphs | O10: Data for absolute difference graphs | X10: Data for percentage difference graphs | AG10: 5 year age bands data | AU10: Absolute difference 5 year | BD10: Percentage difference 5 year
C11: =CONCATENATE("'ABPE LA ",$D$5,"'!$B$7:$Ah$98") -> 'ABPE LA 2022'!$B$7:$Ah$98 | D11: =CONCATENATE("'ABPE LA ",$D$5,"'!$ai$7:$bo$98") -> 'ABPE LA 2022'!$ai$7:$bo$98 | E11: =CONCATENATE("'MYE LA ",$D$5,"'!$B$7:$Ah$98") -> 'MYE LA 2022'!$B$7:$Ah$98 | F11: =CONCATENATE("'MYE LA ",$D$5,"'!$ai$7:$bo$98") -> 'MYE LA 2022'!$ai$7:$bo$98 | G11: =CONCATENATE("'oMYE LA ",$D$5,"'!$B$7:$Ah$98") -> 'oMYE LA 2022'!$B$7:$Ah$98 | H11: =CONCATENATE("'oMYE LA ",$D$5,"'!$ai$7:$bo$98") -> 'oMYE LA 2022'!$ai$7:$bo$98 | I11: =CONCATENATE("'Census LA ",$D$5,"'!$B$7:$Ah$98") -> 'Census LA 2022'!$B$7:$Ah$98 | J11: =CONCATENATE("'Census LA ",$D$5,"'!$ai$7:$bo$98") -> 'Census LA 2022'!$ai$7:$bo$98 | N11: =CONCATENATE("'Census LA ",$D$5,"'!$BP$7:$CV$98") -> 'Census LA 2022'!$BP$7:$CV$98 | O11: Absolute difference | X11: Percentage difference | AH11: Age range | AI11: ABPE - F | AJ11: ABPE - M | AK11: rMYE - F | AL11: rMYE - M | AM11: MYE - F | AN11: MYE - M | AO11: Census - F | AP11: Census - M | AQ11: ABPE | AR11: rMYE | AS11: MYE | AT11: census | AU11: rMYE - F | AV11: MYE - F | AW11: censusMYE - F | AX11: rMYE - M | AY11: MYE - M | AZ11: censusMYE - F | BA11: rMYE/Census | BB11: MYE | BC11: census | BD11: rMYE - F | BE11: MYE - F | BF11: censusMYE - F | BG11: rMYE - M | BH11: MYE - M | BI11: censusMYE - F | BJ11: rMYE/Census | BK11: MYE | BL11: census | BM11: Data for total households graphs | BS11: Data for absolute households graphs | BW11: Data for % households graphs | CB11: Data for household composition | CI11: absolute difference | CM11: percentage difference
A12: baseline | B12: Age | C12: ABPE - F | D12: ABPE - M | E12: rMYE - F | F12: rMYE - M | G12: MYE - F | H12: MYE - M | I12: Census - F | J12: Census - M | K12: ABPE | L12: rMYE\Census | M12: MYE | N12: Census | O12: rMYE - F | P12: MYE - F | Q12: censusMYE - F | R12: rMYE - M | S12: MYE - M | T12: censusMYE - M | U12: rMYE\Census | V12: MYE | W12: census | X12: rMYE - F | Y12: MYE - F | Z12: censusMYE - F | AA12: rMYE - M | AB12: MYE - M | AC12: censusMYE - M | AD12: rMYE\Census | AE12: MYE | AF12: census | AG12: 0 | AH12: =CONCATENATE(AG12," - ",AG12+4) -> 0 - 4 | AI12: =SUMIFS(C$13:C$103,$B$13:$B$103,">=" & $AG12,$B$13:$B$103,"<" & $AG13) -> 120265 | AJ12: =SUMIFS(D$13:D$103,$B$13:$B$103,">=" & $AG12,$B$13:$B$103,"<" & $AG13) -> 127114 | AK12: =SUMIFS(E$13:E$103,$B$13:$B$103,">=" & $AG12,$B$13:$B$103,"<" & $AG13) ->  | AL12: =SUMIFS(F$13:F$103,$B$13:$B$103,">=" & $AG12,$B$13:$B$103,"<" & $AG13) ->  | AM12: =SUMIFS(G$13:G$103,$B$13:$B$103,">=" & $AG12,$B$13:$B$103,"<" & $AG13) ->  | AN12: =SUMIFS(H$13:H$103,$B$13:$B$103,">=" & $AG12,$B$13:$B$103,"<" & $AG13) ->  | AO12: =SUMIFS(I$13:I$103,$B$13:$B$103,">=" & $AG12,$B$13:$B$103,"<" & $AG13) -> 120827 | AP12: =SUMIFS(J$13:J$103,$B$13:$B$103,">=" & $AG12,$B$13:$B$103,"<" & $AG13) -> 127586 | AQ12: =AI12+AJ12 -> 247379 | AR12: =AK12+AL12 ->  | AS12: =AM12+AN12 ->  | AT12: =AO12+AP12 -> 248413 | AU12: =AI12-AK12 ->  | AV12: =AI12-AM12 ->  | AW12: =AI12-AO12 -> -562 | AX12: =AJ12-AL12 ->  | AY12: =AJ12-AN12 ->  | AZ12: =AJ12-AP12 -> -472 | BA12: =AQ12-AR12 ->  | BB12: =AQ12-AS12 ->  | BC12: =AQ12-AT12 -> -1034 | BD12: =AU12/AI12 ->  | BE12: =AV12/AI12 ->  | BF12: =AW12/AI12 -> -0.004673013761 | BG12: =AX12/AJ12 ->  | BH12: =AY12/AJ12 ->  | BI12: =AZ12/AJ12 -> -0.003713202322 | BJ12: =BA12/AQ12 ->  | BK12: =BB12/AQ12 ->  | BL12: =BC12/AQ12 -> -0.004179821246 | BN12: =CONCATENATE("'HH MYE'!$B$7:$Ah$14") -> 'HH MYE'!$B$7:$Ah$14 | BO12: =CONCATENATE("'HH SIDD'!$B$7:$Ah$14") -> 'HH SIDD'!$B$7:$Ah$14 | BP12: =CONCATENATE("'HH CP'!$B$7:$Ah$14") -> 'HH CP'!$B$7:$Ah$14 | BQ12: =CONCATENATE("'HH ER'!$B$7:$Ah$14") -> 'HH ER'!$B$7:$Ah$14 | BR12: =CONCATENATE("'HH PC'!$B$7:$Ah$14") -> 'HH PC'!$B$7:$Ah$14 | CA12: scale | CB12: composition | CC12: shortened | CD12: =CONCATENATE("'HH MYE c'!$B$5:$F$16") -> 'HH MYE c'!$B$5:$F$16 | CH12: =CONCATENATE("'HH SIDD c'!$B$5:$H$16") -> 'HH SIDD c'!$B$5:$H$16 | CL12: SIDD | CP12: SIDD
A13: 0 | B13: 0 | C13: =HLOOKUP($D$4,INDIRECT(C$11),$B13+2,0) -> 23538 | D13: =HLOOKUP($D$4,INDIRECT(D$11),$B13+2,0) -> 24962 | E13: =HLOOKUP($D$4,INDIRECT(E$11),$B13+2,0) ->  | F13: =HLOOKUP($D$4,INDIRECT(F$11),$B13+2,0) ->  | G13: =HLOOKUP($D$4,INDIRECT(G$11),$B13+2,0) ->  | I13: 23163 | J13: =HLOOKUP($D$4,INDIRECT(J$11),$B13+2,0) -> 24581 | K13: =C13+D13 -> 48500 | L13: =E13+F13 ->  | M13: =G13+H13 ->  | N13: =HLOOKUP($D$4,INDIRECT(N$11),$B13+2,0) -> 47744 | O13: =C13-E13 ->  | P13: =C13-G13 ->  | Q13: =C13-I13 -> 375 | R13: =D13-F13 ->  | S13: =D13-H13 ->  | T13: =D13-J13 -> 381 | U13: =K13-L13 ->  | V13: =K13-M13 ->  | W13: =K13-N13 -> 756 | X13: =O13/C13 ->  | Y13: =P13/C13 ->  | Z13: =Q13/C13 -> 0.01593168493 | AA13: =R13/D13 ->  | AB13: =S13/D13 ->  | AC13: =T13/D13 -> 0.01526320006 | AD13: =U13/K13 ->  | AE13: =V13/K13 ->  | AF13: =W13/K13 -> 0.01558762887 | AG13: =AG12+5 -> 5 | AH13: =CONCATENATE(AG13," - ",AG13+4) -> 5 - 9 | AI13: 137659 | AJ13: 145252 | AO13: 137324 | AP13: 144893 | AQ13: =AI13+AJ13 -> 282911 | AR13: =AK13+AL13 ->  | AS13: =AM13+AN13 ->  | AT13: =AO13+AP13 -> 282217 | AW13: 335 | AZ13: 359 | BC13: 694 | BD13: =AU13/AI13 ->  | BE13: =AV13/AI13 ->  | BF13: =AW13/AI13 -> 0.002433549568 | BG13: =AX13/AJ13 ->  | BH13: =AY13/AJ13 ->  | BI13: =AZ13/AJ13 -> 0.002471566657 | BJ13: =BA13/AQ13 ->  | BK13: =BB13/AQ13 ->  | BL13: =BC13/AQ13 -> 0.002453068279 | BM13: Year | BN13: MYE | BO13: SIDD | BS13: SIDD | BW13: SIDD | CA13: 1 | CB13: ='HH MYE c'!A6 -> One person household | CC13: 1 person | CD13: =HLOOKUP($D$5,INDIRECT(CD$12),$CA13+1,0) -> 932000 | CH13: =HLOOKUP($D$5,INDIRECT(CH$12),$CA13+1,0) -> 861215 | CL13: =CH13-$CD13 -> -70785 | CP13: =CL13/$CD13 -> -0.07594957082
A14: 0 | B14: 1 | C14: =HLOOKUP($D$4,INDIRECT(C$11),$B14+2,0) -> 22392 | D14: 23611 | I14: 22829 | J14: 23873 | K14: =C14+D14 -> 46003 | L14: =E14+F14 ->  | M14: =G14+H14 ->  | N14: =HLOOKUP($D$4,INDIRECT(N$11),$B14+2,0) -> 46699 | O14: =C14-E14 ->  | Q14: -437 | T14: -262 | U14: =K14-L14 ->  | W14: =K14-N14 -> -696 | X14: =O14/C14 ->  | Z14: -0.01951589854 | AC14: -0.01109652281 | AF14: =W14/K14 -> -0.01512944808 | AG14: =AG13+5 -> 10 | AH14: 10 - 14 | AI14: 146825 | AJ14: 153143 | AO14: 147562 | AP14: 154265 | AQ14: 299968 | AT14: 301827 | AW14: -737 | AZ14: -1122 | BC14: -1859 | BF14: -0.005019581134 | BI14: -0.007326485703 | BL14: -0.006197327715 | BM14: 2016 | BN14: =HLOOKUP($D$4,INDIRECT(BN$12),$B13+2,0) -> 2430583 | BO14: =HLOOKUP($D$4,INDIRECT(BO$12),$B13+2,0) -> 2164462 | BS14: =$BO14-BN14 -> -266121 | BW14: =BS14/$BN14 -> -0.1094885466 | CA14: 2 | CB14: ='HH MYE c'!A7 -> 1 adult male | CC14: 1 adult male | CD14: 436000 | CH14: 382792 | CL14: -53208 | CP14: -0.1220366972
A15: 0 | B15: 2 | C15: 24026 | D15: 25214 | I15: 24590 | J15: 25946 | K15: 49240 | N15: 50536 | Q15: -564 | T15: -732 | W15: -1296 | Z15: -0.02347456922 | AC15: -0.02903149044 | AF15: -0.02632006499 | AG15: 15 | AH15: 15 - 19 | AI15: 145234 | AJ15: 147172 | AO15: 146960 | AP15: 152876 | AQ15: 292406 | AT15: 299836 | AW15: -1726 | AZ15: -5704 | BC15: -7430 | BF15: -0.01188426952 | BI15: -0.03875737233 | BL15: -0.02540987531 | BM15: ='HH MYE'!A9 -> 2017 | BN15: 2445399 | BO15: 2272890 | BS15: =$BO15-BN15 -> -172509 | BW15: =BS15/$BN15 -> -0.07054431608 | CA15: 3 | CB15: ='HH MYE c'!A8 -> 1 adult female | CC15: 1 adult female | CD15: 496000 | CH15: 461847 | CL15: -34153 | CP15: -0.06885685484
A16: 0 | B16: 3 | C16: 24791 | D16: 26340 | I16: 24706 | J16: 26243 | K16: 51131 | N16: 50949 | Q16: 85 | T16: 97 | W16: 182 | Z16: 0.003428663628 | AC16: 0.003682611997 | AF16: 0.003559484461 | AG16: 20 | AH16: 20 - 24 | AI16: 177708 | AJ16: 163508 | AO16: 172710 | AP16: 168737 | AQ16: 341216 | AT16: 341447 | AW16: 4998 | AZ16: -5229 | BC16: -231 | BF16: 0.02812478898 | BI16: -0.0319800866 | BL16: -0.000676990528 | BM16: ='HH MYE'!A10 -> 2018 | BN16: 2457998 | BO16: 2306952 | BS16: -151046 | BW16: -0.06145082299 | CA16: 4 | CB16: ='HH MYE c'!A9 -> Two person households | CL16: 0
A17: 0 | B17: 4 | C17: 25518 | D17: 26987 | I17: 25539 | J17: 26943 | K17: 52505 | N17: 52477 | Q17: -21 | T17: 44 | W17: 28 | Z17: -0.0008229485069 | AC17: 0.001630414644 | AF17: 0.0005332825445 | AG17: 25 | AH17: 25 - 29 | AI17: 175297 | AJ17: 163532 | AO17: 171779 | AP17: 165628 | AQ17: 338829 | AT17: 337407 | AW17: 3518 | AZ17: -2096 | BC17: 1422 | BF17: 0.02006879753 | BI17: -0.01281706333 | BL17: 0.004196807239 | BM17: ='HH MYE'!A11 -> 2019 | BN17: 2473364 | BO17: 2330139 | BS17: -143225 | BW17: -0.05790696396 | CA17: 5 | CB17: ='HH MYE c'!A10 -> 2 adults | CC17: 2 person | CD17: =HLOOKUP($D$5,INDIRECT(CD$12),$CA16+1,0) -> 845000 | CH17: 762682 | CL17: -82318 | CP17: -0.09741775148
A18: 0 | B18: 5 | C18: 26280 | D18: 27922 | I18: 26334 | J18: 27873 | K18: 54202 | N18: 54207 | Q18: -54 | T18: 49 | W18: -5 | Z18: -0.002054794521 | AC18: 0.001754888618 | AF18: -9.224751854e-05 | AG18: 30 | AH18: 30 - 34 | AI18: 183771 | AJ18: 172832 | AO18: 182974 | AP18: 173793 | AQ18: 356603 | AT18: 356767 | AW18: 797 | AZ18: -961 | BC18: -164 | BF18: 0.004336919318 | BI18: -0.005560312905 | BL18: -0.0004598951776 | BM18: ='HH MYE'!A12 -> 2020 | BN18: 2481692 | BO18: 2335798 | BS18: -145894 | BW18: -0.05878811714 | CA18: 6 | CB18: ='HH MYE c'!A11 -> 1 adult 1 child | CC18: 2 adults | CD18: 785000 | CH18: 675611 | CL18: -109389 | CP18: -0.1393490446
A19: 0 | B19: 6 | C19: 27204 | D19: 28882 | I19: 26940 | J19: 28709 | K19: 56086 | N19: 55649 | Q19: 264 | T19: 173 | W19: 437 | Z19: 0.009704455227 | AC19: 0.005989889897 | AF19: 0.007791605748 | AG19: 35 | AH19: 35 - 39 | AI19: 179580 | AJ19: 168821 | AO19: 178135 | AP19: 168438 | AQ19: 348401 | AT19: 346573 | AW19: 1445 | AZ19: 383 | BC19: 1828 | BF19: 0.008046553068 | BI19: 0.002268675106 | BL19: 0.00524682765 | BM19: ='HH MYE'!A13 -> 2021 | BN19: 2498127 | BO19: 2355934 | BS19: -142193 | BW19: -0.05691984435 | CA19: 7 | CB19: ='HH MYE c'!A12 -> Three or more person households | CC19: 1 adult 1 child | CD19: 60000 | CH19: 82259 | CL19: 22259 | CP19: 0.3709833333
A20: 0 | B20: 7 | C20: 27742 | D20: 29175 | I20: 27509 | J20: 28990 | K20: 56917 | N20: 56501 | Q20: 233 | T20: 185 | W20: 416 | Z20: 0.008398817677 | AC20: 0.006341045416 | AF20: 0.007308888381 | AG20: 40 | AH20: 40 - 44 | AI20: 172101 | AJ20: 164940 | AO20: 171395 | AP20: 162805 | AQ20: 337041 | AT20: 334200 | AW20: 706 | AZ20: 2135 | BC20: 2841 | BF20: 0.004102242288 | BI20: 0.01294410089 | BL20: 0.008429241546 | BM20: ='HH MYE'!A14 -> 2022 | BN20: 2515319 | BO20: 2375821 | BS20: -139498 | BW20: -0.05545936718 | CA20: 8 | CB20: ='HH MYE c'!A13 -> 1 adult 2 or more children | CL20: 0
A21: 0 | B21: 8 | C21: 27791 | D21: 29250 | I21: 27795 | J21: 29158 | K21: 57041 | N21: 56949 | Q21: -4 | T21: 92 | W21: 92 | Z21: -0.0001439314886 | AC21: 0.003145299145 | AF21: 0.00161287495 | AG21: 45 | AH21: 45 - 49 | AI21: 167450 | AJ21: 160379 | AO21: 168820 | AP21: 160175 | AQ21: 327829 | AT21: 328995 | AW21: -1370 | AZ21: 204 | BC21: -1166 | BF21: -0.00818154673 | BI21: 0.001271986981 | BL21: -0.003556732321 | CA21: 9 | CB21: ='HH MYE c'!A14 -> 2 or more adults 1 or more children | CC21: 3+ person | CD21: =HLOOKUP($D$5,INDIRECT(CD$12),$CA19+1,0) -> 738000 | CH21: 751107 | CL21: 13107 | CP21: 0.0177601626
A22: 0 | B22: 9 | C22: 28642 | D22: 30023 | I22: 28746 | J22: 30163 | K22: 58665 | N22: 58911 | Q22: -104 | T22: -140 | W22: -246 | Z22: -0.003631031353 | AC22: -0.00466309163 | AF22: -0.004193300946 | AG22: 50 | AH22: 50 - 54 | AI22: 200815 | AJ22: 192342 | AO22: 202204 | AP22: 188969 | AQ22: 393157 | AT22: 391173 | AW22: -1389 | AZ22: 3373 | BC22: 1984 | BF22: -0.006916813983 | BI22: 0.01753647149 | BL22: 0.005046330092 | CA22: 10 | CB22: ='HH MYE c'!A15 -> 3 or more adults | CC22: 1 adult 2+ children | CD22: 73000 | CH22: 58110 | CL22: -14890 | CP22: -0.2039726027
A23: 0 | B23: 10 | C23: =HLOOKUP($D$4,INDIRECT(C$11),$B23+2,0) -> 29191 | D23: 30797 | I23: 29264 | J23: 30993 | K23: 59988 | N23: 60259 | Q23: -73 | T23: -196 | W23: -271 | Z23: -0.002500770786 | AC23: -0.006364256259 | AF23: -0.004517570181 | AG23: 55 | AH23: 55 - 59 | AI23: 209105 | AJ23: 200283 | AO23: 210421 | AP23: 198258 | AQ23: 409388 | AT23: 408679 | AW23: -1316 | AZ23: 2025 | BC23: 709 | BF23: -0.006293488917 | BI23: 0.01011069337 | BL23: 0.001731853401 | CA23: 11 | CB23: ='HH MYE c'!A16 -> All households | CC23: 2+ adults 1+ children | CD23: 460000 | CH23: 428575 | CL23: -31425 | CP23: -0.06831521739
A24: 0 | B24: 11 | C24: 29225 | D24: 30446 | I24: 29470 | J24: 30654 | K24: 59671 | N24: 60125 | Q24: -245 | T24: -208 | W24: -454 | Z24: -0.008383233533 | AC24: -0.00683176772 | AF24: -0.007608385983 | AG24: 60 | AH24: 60 - 64 | AI24: 190567 | AJ24: 182455 | AO24: 191060 | AP24: 180659 | AQ24: 373022 | AT24: 371719 | AW24: -493 | AZ24: 1796 | BC24: 1303 | BF24: -0.00258701664 | BI24: 0.00984352306 | BL24: 0.00349309156 | CC24: 3+ adults | CD24: 206000 | CH24: 262892 | CL24: 56892 | CP24: 0.2761747573
A25: 0 | B25: 12 | C25: 29538 | D25: 30447 | I25: 29653 | J25: 30726 | K25: 59985 | N25: 60379 | Q25: -115 | T25: -279 | W25: -394 | Z25: -0.003893289999 | AC25: -0.009163464381 | AF25: -0.006568308744 | AG25: 65 | AH25: 65 - 69 | AI25: 161602 | AJ25: 152327 | AO25: 163219 | AP25: 151950 | AQ25: 313929 | AT25: 315169 | AW25: -1617 | AZ25: 377 | BC25: -1240 | BF25: -0.01000606428 | BI25: 0.002474938783 | BL25: -0.003949937725 | CD25: 2515000 | CH25: 2375821
A26: 0 | B26: 13 | C26: 29427 | D26: 30792 | I26: 29526 | J26: 30833 | K26: 60219 | N26: 60359 | Q26: -99 | T26: -41 | W26: -140 | Z26: -0.003364257315 | AC26: -0.001331514679 | AF26: -0.002324847639 | AG26: 70 | AH26: 70 - 74 | AI26: 147589 | AJ26: 134969 | AO26: 149329 | AP26: 135428 | AQ26: 282558 | AT26: 284757 | AW26: -1740 | AZ26: -459 | BC26: -2199 | BF26: -0.01178949651 | BI26: -0.00340078092 | BL26: -0.007782472979
A27: 0 | B27: 14 | C27: 29444 | D27: 30661 | I27: 29649 | J27: 31059 | K27: 60105 | N27: 60709 | Q27: -205 | T27: -398 | W27: -604 | Z27: -0.006962369243 | AC27: -0.01298065947 | AF27: -0.01004908078 | AG27: 75 | AH27: 75 - 79 | AI27: 116990 | AJ27: 98955 | AO27: 118437 | AP27: 99803 | AQ27: 215945 | AT27: 218240 | AW27: -1447 | AZ27: -848 | BC27: -2295 | BF27: -0.01236857851 | BI27: -0.008569551816 | BL27: -0.01062770613
A28: 0 | B28: 15 | C28: 28622 | D28: 29734 | I28: 28671 | J28: 30126 | K28: 58356 | N28: 58795 | Q28: -49 | T28: -392 | W28: -439 | Z28: -0.001711969813 | AC28: -0.01318356091 | AF28: -0.007522791144 | AG28: 80 | AH28: 80 - 84 | AI28: 81248 | AJ28: 59559 | AO28: 81844 | AP28: 60282 | AQ28: 140807 | AT28: 142126 | AW28: -596 | AZ28: -723 | BC28: -1319 | BF28: -0.007335565183 | BI28: -0.01213922329 | BL28: -0.009367432017
A29: 0 | B29: 16 | C29: 27739 | D29: 28965 | I29: 27953 | J29: 29499 | K29: 56704 | N29: 57452 | Q29: -214 | T29: -534 | W29: -748 | Z29: -0.007714769819 | AC29: -0.0184360435 | AF29: -0.01319130926 | AG29: 85 | AH29: 85 - 89 | AI29: 51932 | AJ29: 31943 | AO29: 0 | AP29: 0 | AQ29: 83875 | AT29: 0 | BF29: 0 | BI29: 0 | BL29: 0
A30: 0 | B30: 17 | C30: 27672 | D30: 28673 | I30: 27076 | J30: 28543 | K30: 56345 | N30: 55619 | Q30: 596 | T30: 130 | W30: 726 | Z30: 0.02153801677 | AC30: 0.004533882049 | AF30: 0.01288490549 | AG30: 90 | AH30: 90+ | AI30: 29597 | AJ30: 13175 | AO30: 0 | AP30: 0 | AQ30: 42772 | AT30: 0 | BF30: 0 | BI30: 0 | BL30: 0
A31: 0 | B31: 18 | C31: 29295 | D31: 29422 | I31: 30432 | J31: 31953 | K31: 58717 | N31: 62385 | Q31: -1137 | T31: -2531 | W31: -3668 | Z31: -0.03881208397 | AC31: -0.08602406363 | AF31: -0.0624691316 | AG31: 95
A32: 0 | B32: 19 | C32: 31906 | D32: 30378 | I32: 32828 | J32: 32755 | K32: 62284 | N32: 65583 | Q32: -922 | T32: -2377 | W32: -3299 | Z32: -0.02889738607 | AC32: -0.07824741589 | AF32: -0.05296705414 | AU32: dynamics Absolute difference | BD32: dynamics Absolute difference
A33: 0 | B33: 20 | C33: =HLOOKUP($D$4,INDIRECT(C$11),$B33+2,0) -> 33575 | D33: 31481 | I33: 33253 | J33: 32735 | K33: 65056 | N33: 65991 | Q33: 322 | T33: -1254 | W33: -935 | Z33: 0.009590469099 | AC33: -0.0398335504 | AF33: -0.01437223315 | AU33: rMYE - F | AV33: MYE - F | AW33: censusMYE - F | AX33: rMYE - M | AY33: MYE - M | AZ33: censusMYE - F | BA33: rMYE/Census | BB33: MYE | BC33: census | BD33: rMYE - F | BE33: MYE - F | BF33: censusMYE - F | BG33: rMYE - M | BH33: MYE - M | BI33: censusMYE - F | BJ33: rMYE/Census | BK33: MYE | BL33: census
A34: 0 | B34: 21 | C34: 35367 | D34: 32984 | I34: 34509 | J34: 34162 | K34: 68351 | N34: 68671 | Q34: 858 | T34: -1178 | W34: -320 | Z34: 0.0242599033 | AC34: -0.03571428571 | AF34: -0.004681716434 | AU34: =IFERROR(AU12,AW12) -> -562 | AV34: =IFERROR(AV12,AW12) -> -562 | AW34: =IFERROR(AW12,AU12) -> -562 | AX34: =IFERROR(AX12,AZ12) -> -472 | AY34: =IFERROR(AY12,AZ12) -> -472 | AZ34: =IFERROR(AZ12,AX12) -> -472 | BA34: =IFERROR(BA12,BC12) -> -1034 | BB34: =IFERROR(BB12,BC12) -> -1034 | BC34: =IFERROR(BC12,BA12) -> -1034 | BD34: =IFERROR(BD12,BF12) -> -0.004673013761 | BE34: =IFERROR(BE12,BF12) -> -0.004673013761 | BF34: =IFERROR(BF12,BD12) -> -0.004673013761 | BG34: =IFERROR(BG12,BI12) -> -0.003713202322 | BH34: =IFERROR(BH12,BI12) -> -0.003713202322 | BI34: =IFERROR(BI12,BG12) -> -0.003713202322 | BJ34: =IFERROR(BJ12,BL12) -> -0.004179821246 | BK34: =IFERROR(BK12,BL12) -> -0.004179821246 | BL34: =IFERROR(BL12,BJ12) -> -0.004179821246
A35: 0 | B35: 22 | C35: 37161 | D35: 33971 | I35: 36091 | J35: 35333 | K35: 71132 | N35: 71424 | Q35: 1070 | T35: -1362 | W35: -292 | Z35: 0.02879362773 | AC35: -0.04009302052 | AF35: -0.004105044143 | AU35: =IFERROR(AU13,AW13) -> 335 | AV35: =IFERROR(AV13,AW13) -> 335 | AW35: =IFERROR(AW13,AU13) -> 335 | AX35: =IFERROR(AX13,AZ13) -> 359 | AY35: =IFERROR(AY13,AZ13) -> 359 | AZ35: =IFERROR(AZ13,AX13) -> 359 | BA35: =IFERROR(BA13,BC13) -> 694 | BB35: =IFERROR(BB13,BC13) -> 694 | BC35: =IFERROR(BC13,BA13) -> 694 | BD35: =IFERROR(BD13,BF13) -> 0.002433549568 | BE35: =IFERROR(BE13,BF13) -> 0.002433549568 | BF35: =IFERROR(BF13,BD13) -> 0.002433549568 | BG35: =IFERROR(BG13,BI13) -> 0.002471566657 | BH35: =IFERROR(BH13,BI13) -> 0.002471566657 | BI35: =IFERROR(BI13,BG13) -> 0.002471566657 | BJ35: =IFERROR(BJ13,BL13) -> 0.002453068279 | BK35: =IFERROR(BK13,BL13) -> 0.002453068279 | BL35: =IFERROR(BL13,BJ13) -> 0.002453068279
A36: 0 | B36: 23 | C36: 35886 | D36: 32471 | I36: 34649 | J36: 33423 | K36: 68357 | N36: 68072 | Q36: 1237 | T36: -952 | W36: 285 | Z36: 0.03447026696 | AC36: -0.02931846879 | AF36: 0.00416928771 | AU36: -737 | AV36: -737 | AW36: -737 | AX36: -1122 | AY36: -1122 | AZ36: -1122 | BA36: -1859 | BB36: -1859 | BC36: -1859 | BD36: -0.005019581134 | BE36: -0.005019581134 | BF36: -0.005019581134 | BG36: -0.007326485703 | BH36: -0.007326485703 | BI36: -0.007326485703 | BJ36: -0.006197327715 | BK36: -0.006197327715 | BL36: -0.006197327715
A37: 0 | B37: 24 | C37: 35719 | D37: 32601 | I37: 34208 | J37: 33084 | K37: 68320 | N37: 67292 | Q37: 1511 | T37: -483 | W37: 1028 | Z37: 0.04230241608 | AC37: -0.01481549646 | AF37: 0.01504683841 | AU37: -1726 | AV37: -1726 | AW37: -1726 | AX37: -5704 | AY37: -5704 | AZ37: -5704 | BA37: -7430 | BB37: -7430 | BC37: -7430 | BD37: -0.01188426952 | BE37: -0.01188426952 | BF37: -0.01188426952 | BG37: -0.03875737233 | BH37: -0.03875737233 | BI37: -0.03875737233 | BJ37: -0.02540987531 | BK37: -0.02540987531 | BL37: -0.02540987531
A38: 0 | B38: 25 | C38: 34436 | D38: 32423 | I38: 33754 | J38: 32880 | K38: 66859 | N38: 66638 | Q38: 682 | T38: -457 | W38: 221 | Z38: 0.01980485538 | AC38: -0.01409493261 | AF38: 0.003305463737 | AU38: 4998 | AV38: 4998 | AW38: 4998 | AX38: -5229 | AY38: -5229 | AZ38: -5229 | BA38: -231 | BB38: -231 | BC38: -231 | BD38: 0.02812478898 | BE38: 0.02812478898 | BF38: 0.02812478898 | BG38: -0.0319800866 | BH38: -0.0319800866 | BI38: -0.0319800866 | BJ38: -0.000676990528 | BK38: -0.000676990528 | BL38: -0.000676990528
A39: 0 | B39: 26 | C39: 34307 | D39: 32250 | I39: 33682 | J39: 33071 | K39: 66557 | N39: 66753 | Q39: 625 | T39: -821 | W39: -196 | Z39: 0.01821785641 | AC39: -0.02545736434 | AF39: -0.002944844269 | AU39: 3518 | AV39: 3518 | AW39: 3518 | AX39: -2096 | AY39: -2096 | AZ39: -2096 | BA39: 1422 | BB39: 1422 | BC39: 1422 | BD39: 0.02006879753 | BE39: 0.02006879753 | BF39: 0.02006879753 | BG39: -0.01281706333 | BH39: -0.01281706333 | BI39: -0.01281706333 | BJ39: 0.004196807239 | BK39: 0.004196807239 | BL39: 0.004196807239
A40: 0 | B40: 27 | C40: 34917 | D40: 32233 | I40: 33965 | J40: 32681 | K40: 67150 | N40: 66646 | Q40: 952 | T40: -448 | W40: 504 | Z40: 0.02726465618 | AC40: -0.01389879937 | AF40: 0.007505584512 | AU40: 797 | AV40: 797 | AW40: 797 | AX40: -961 | AY40: -961 | AZ40: -961 | BA40: -164 | BB40: -164 | BC40: -164 | BD40: 0.004336919318 | BE40: 0.004336919318 | BF40: 0.004336919318 | BG40: -0.005560312905 | BH40: -0.005560312905 | BI40: -0.005560312905 | BJ40: -0.0004598951776 | BK40: -0.0004598951776 | BL40: -0.0004598951776
A41: 0 | B41: 28 | C41: 35371 | D41: 32921 | I41: 34847 | J41: 33135 | K41: 68292 | N41: 67982 | Q41: 524 | T41: -214 | W41: 310 | Z41: 0.01481439597 | AC41: -0.006500410073 | AF41: 0.004539331108 | AU41: 1445 | AV41: 1445 | AW41: 1445 | AX41: 383 | AY41: 383 | AZ41: 383 | BA41: 1828 | BB41: 1828 | BC41: 1828 | BD41: 0.008046553068 | BE41: 0.008046553068 | BF41: 0.008046553068 | BG41: 0.002268675106 | BH41: 0.002268675106 | BI41: 0.002268675106 | BJ41: 0.00524682765 | BK41: 0.00524682765 | BL41: 0.00524682765
A42: 0 | B42: 29 | C42: 36266 | D42: 33705 | I42: 35531 | J42: 33861 | K42: 69971 | N42: 69392 | Q42: 735 | T42: -156 | W42: 579 | Z42: 0.02026691667 | AC42: -0.004628393413 | AF42: 0.008274856726 | AU42: 706 | AV42: 706 | AW42: 706 | AX42: 2135 | AY42: 2135 | AZ42: 2135 | BA42: 2841 | BB42: 2841 | BC42: 2841 | BD42: 0.004102242288 | BE42: 0.004102242288 | BF42: 0.004102242288 | BG42: 0.01294410089 | BH42: 0.01294410089 | BI42: 0.01294410089 | BJ42: 0.008429241546 | BK42: 0.008429241546 | BL42: 0.008429241546
A43: 0 | B43: 30 | C43: =HLOOKUP($D$4,INDIRECT(C$11),$B43+2,0) -> 37073 | D43: 34707 | I43: 36715 | J43: 34692 | K43: 71780 | N43: 71407 | Q43: 358 | T43: 15 | W43: 373 | Z43: 0.009656623419 | AC43: 0.0004321894719 | AF43: 0.005196433547 | AU43: -1370 | AV43: -1370 | AW43: -1370 | AX43: 204 | AY43: 204 | AZ43: 204 | BA43: -1166 | BB43: -1166 | BC43: -1166 | BD43: -0.00818154673 | BE43: -0.00818154673 | BF43: -0.00818154673 | BG43: 0.001271986981 | BH43: 0.001271986981 | BI43: 0.001271986981 | BJ43: -0.003556732321 | BK43: -0.003556732321 | BL43: -0.003556732321
A44: 0 | B44: 31 | C44: 36892 | D44: 34907 | I44: 36768 | J44: 35283 | K44: 71799 | N44: 72051 | Q44: 124 | T44: -376 | W44: -252 | Z44: 0.003361162312 | AC44: -0.0107714785 | AF44: -0.003509798187 | AU44: -1389 | AV44: -1389 | AW44: -1389 | AX44: 3373 | AY44: 3373 | AZ44: 3373 | BA44: 1984 | BB44: 1984 | BC44: 1984 | BD44: -0.006916813983 | BE44: -0.006916813983 | BF44: -0.006916813983 | BG44: 0.01753647149 | BH44: 0.01753647149 | BI44: 0.01753647149 | BJ44: 0.005046330092 | BK44: 0.005046330092 | BL44: 0.005046330092
A45: 0 | B45: 32 | C45: 36155 | D45: 33732 | I45: 36036 | J45: 34023 | K45: 69887 | N45: 70062 | O45: =C45-E45 ->  | P45: =C45-G45 ->  | Q45: =C45-I45 -> 119 | R45: =D45-F45 ->  | S45: =D45-H45 ->  | T45: =D45-J45 -> -291 | U45: =K45-L45 ->  | V45: =K45-M45 ->  | W45: =K45-N45 -> -175 | X45: =O45/C45 ->  | Y45: =P45/C45 ->  | Z45: =Q45/C45 -> 0.003291384318 | AA45: =R45/D45 ->  | AB45: =S45/D45 ->  | AC45: =T45/D45 -> -0.008626823195 | AD45: =U45/K45 ->  | AE45: =V45/K45 ->  | AF45: =W45/K45 -> -0.00250404224 | AU45: -1316 | AV45: -1316 | AW45: -1316 | AX45: 2025 | AY45: 2025 | AZ45: 2025 | BA45: 709 | BB45: 709 | BC45: 709 | BD45: -0.006293488917 | BE45: -0.006293488917 | BF45: -0.006293488917 | BG45: 0.01011069337 | BH45: 0.01011069337 | BI45: 0.01011069337 | BJ45: 0.001731853401 | BK45: 0.001731853401 | BL45: 0.001731853401
A46: 0 | B46: 33 | C46: 36499 | D46: 34288 | I46: 36676 | J46: 34611 | K46: 70787 | N46: 71287 | Q46: -177 | T46: -323 | W46: -500 | Z46: -0.00484944793 | AC46: -0.00942020532 | AF46: -0.007063443853 | AU46: -493 | AV46: -493 | AW46: -493 | AX46: 1796 | AY46: 1796 | AZ46: 1796 | BA46: 1303 | BB46: 1303 | BC46: 1303 | BD46: -0.00258701664 | BE46: -0.00258701664 | BF46: -0.00258701664 | BG46: 0.00984352306 | BH46: 0.00984352306 | BI46: 0.00984352306 | BJ46: 0.00349309156 | BK46: 0.00349309156 | BL46: 0.00349309156
A47: 0 | B47: 34 | C47: 37152 | D47: 35198 | I47: 36779 | J47: 35184 | K47: 72350 | N47: 71963 | Q47: 373 | T47: 14 | W47: 387 | Z47: 0.01003983635 | AC47: 0.0003977498722 | AF47: 0.005348997927 | AU47: -1617 | AV47: -1617 | AW47: -1617 | AX47: 377 | AY47: 377 | AZ47: 377 | BA47: -1240 | BB47: -1240 | BC47: -1240 | BD47: -0.01000606428 | BE47: -0.01000606428 | BF47: -0.01000606428 | BG47: 0.002474938783 | BH47: 0.002474938783 | BI47: 0.002474938783 | BJ47: -0.003949937725 | BK47: -0.003949937725 | BL47: -0.003949937725
A48: 0 | B48: 35 | C48: 36188 | D48: 33987 | I48: 35625 | J48: 33822 | K48: 70175 | N48: 69454 | Q48: 563 | T48: 165 | W48: 721 | Z48: 0.01555764342 | AC48: 0.004854797423 | AF48: 0.01027431421 | AU48: -1740 | AV48: -1740 | AW48: -1740 | AX48: -459 | AY48: -459 | AZ48: -459 | BA48: -2199 | BB48: -2199 | BC48: -2199 | BD48: -0.01178949651 | BE48: -0.01178949651 | BF48: -0.01178949651 | BG48: -0.00340078092 | BH48: -0.00340078092 | BI48: -0.00340078092 | BJ48: -0.007782472979 | BK48: -0.007782472979 | BL48: -0.007782472979
A49: 0 | B49: 36 | C49: 36239 | D49: 34235 | I49: 35863 | J49: 34168 | K49: 70474 | N49: 70030 | Q49: 376 | T49: 67 | W49: 444 | Z49: 0.01037556224 | AC49: 0.001957061487 | AF49: 0.006300195817 | AU49: -1447 | AV49: -1447 | AW49: -1447 | AX49: -848 | AY49: -848 | AZ49: -848 | BA49: -2295 | BB49: -2295 | BC49: -2295 | BD49: -0.01236857851 | BE49: -0.01236857851 | BF49: -0.01236857851 | BG49: -0.008569551816 | BH49: -0.008569551816 | BI49: -0.008569551816 | BJ49: -0.01062770613 | BK49: -0.01062770613 | BL49: -0.01062770613
A50: 0 | B50: 37 | C50: 36256 | D50: 33517 | I50: 35988 | J50: 33693 | K50: 69773 | N50: 69681 | Q50: 268 | T50: -176 | W50: 92 | Z50: 0.007391879965 | AC50: -0.005251066623 | AF50: 0.001318561621 | AU50: -596 | AV50: -596 | AW50: -596 | AX50: -723 | AY50: -723 | AZ50: -723 | BA50: -1319 | BB50: -1319 | BC50: -1319 | BD50: -0.007335565183 | BE50: -0.007335565183 | BF50: -0.007335565183 | BG50: -0.01213922329 | BH50: -0.01213922329 | BI50: -0.01213922329 | BJ50: -0.009367432017 | BK50: -0.009367432017 | BL50: -0.009367432017
A51: 0 | B51: 38 | C51: 35293 | D51: 33596 | I51: 35047 | J51: 33411 | K51: 68889 | N51: 68458 | Q51: 246 | T51: 185 | W51: 431 | Z51: 0.006970220724 | AC51: 0.00550660793 | AF51: 0.006256441522 | AU51: 0 | AV51: 0 | AW51: 0 | AX51: 0 | AY51: 0 | AZ51: 0 | BA51: 0 | BB51: 0 | BC51: 0 | BD51: 0 | BE51: 0 | BF51: 0 | BG51: 0 | BH51: 0 | BI51: 0 | BJ51: 0 | BK51: 0 | BL51: 0
A52: 0 | B52: 39 | C52: 35604 | D52: 33486 | I52: 35612 | J52: 33344 | K52: 69090 | N52: 68956 | Q52: -8 | T52: 142 | W52: 134 | Z52: -0.0002246938546 | AC52: 0.004240578152 | AF52: 0.001939499204 | AU52: 0 | AV52: 0 | AW52: 0 | AX52: 0 | AY52: 0 | AZ52: 0 | BA52: 0 | BB52: 0 | BC52: 0 | BD52: 0 | BE52: 0 | BF52: 0 | BG52: 0 | BH52: 0 | BI52: 0 | BJ52: 0 | BK52: 0 | BL52: 0
A53: 0 | B53: 40 | C53: =HLOOKUP($D$4,INDIRECT(C$11),$B53+2,0) -> 36077 | D53: 34178 | I53: 35727 | J53: 33570 | K53: 70255 | N53: 69294 | Q53: 350 | T53: 608 | W53: 961 | Z53: 0.009701471852 | AC53: 0.01778922114 | AF53: 0.01367874173
A54: 0 | B54: 41 | C54: 36226 | D54: 34569 | I54: 35978 | J54: 34143 | K54: 70795 | N54: 70121 | Q54: 248 | T54: 426 | W54: 674 | Z54: 0.006845911776 | AC54: 0.01232317973 | AF54: 0.009520446359
A55: 0 | B55: 42 | C55: 35115 | D55: 34026 | I55: 34836 | J55: 33828 | K55: 69141 | N55: 68664 | Q55: 279 | T55: 198 | W55: 477 | Z55: 0.007945322512 | AC55: 0.005819079527 | AF55: 0.006898945633
A56: 0 | B56: 43 | C56: 33075 | D56: 32168 | I56: 33017 | J56: 31825 | K56: 65243 | N56: 64842 | Q56: 58 | T56: 343 | W56: 401 | Z56: 0.001753590325 | AC56: 0.01066277046 | AF56: 0.006146253238
A57: 0 | B57: 44 | C57: 31608 | D57: 29999 | I57: 31837 | J57: 29439 | K57: 61607 | N57: 61277 | Q57: -229 | T57: 560 | W57: 330 | Z57: -0.007245001266 | AC57: 0.01866728891 | AF57: 0.00535653416
A58: 0 | B58: 45 | C58: 31021 | D58: 30049 | I58: 31370 | J58: 29943 | K58: 61070 | N58: 61312 | Q58: -349 | T58: 106 | W58: -242 | Z58: -0.01125044325 | AC58: 0.003527571633 | AF58: -0.003962665793
A59: 0 | B59: 46 | C59: 32696 | D59: 31249 | I59: 32960 | J59: 31403 | K59: 63945 | N59: 64363 | Q59: -264 | T59: -154 | W59: -418 | Z59: -0.008074382187 | AC59: -0.004928157701 | AF59: -0.006536867621
A60: 0 | B60: 47 | C60: 33555 | D60: 31699 | I60: 33895 | J60: 31786 | K60: 65254 | N60: 65678 | Q60: -340 | T60: -87 | W60: -424 | Z60: -0.01013261809 | AC60: -0.002744566075 | AF60: -0.006497685966
A61: 0 | B61: 48 | C61: 33943 | D61: 32981 | I61: 34178 | J61: 32982 | K61: 66924 | N61: 67164 | Q61: -235 | T61: -1 | W61: -240 | Z61: -0.006923371535 | AC61: -3.032048755e-05 | AF61: -0.003586157432
A62: 0 | B62: 49 | C62: 36235 | D62: 34401 | I62: 36417 | J62: 34061 | K62: 70636 | N62: 70478 | Q62: -182 | T62: 340 | W62: 158 | Z62: -0.005022768042 | AC62: 0.009883433621 | AF62: 0.002236819752
A63: 0 | B63: 50 | C63: =HLOOKUP($D$4,INDIRECT(C$11),$B63+2,0) -> 39373 | D63: 37555 | I63: 39263 | J63: 36074 | K63: 76928 | N63: 75336 | Q63: 110 | T63: 1481 | W63: 1592 | Z63: 0.002793792701 | AC63: 0.03943549461 | AF63: 0.02069467554
A64: 0 | B64: 51 | C64: 39626 | D64: 37715 | I64: 40017 | J64: 37178 | K64: 77341 | N64: 77195 | Q64: -391 | T64: 537 | W64: 146 | Z64: -0.00986725887 | AC64: 0.0142383667 | AF64: 0.001887743887
A65: 0 | B65: 52 | C65: 39323 | D65: 37768 | I65: 39797 | J65: 37593 | K65: 77091 | N65: 77390 | Q65: -474 | T65: 175 | W65: -299 | Z65: -0.01205401419 | AC65: 0.004633552214 | AF65: -0.003878533162
A66: 0 | B66: 53 | C66: 41112 | D66: 39628 | I66: 41560 | J66: 39113 | K66: 80740 | N66: 80673 | Q66: -448 | T66: 515 | W66: 67 | Z66: -0.01089706169 | AC66: 0.01299586151 | AF66: 0.0008298241268
A67: 0 | B67: 54 | C67: 41381 | D67: 39676 | I67: 41567 | J67: 39011 | K67: 81057 | N67: 80579 | Q67: -186 | T67: 665 | W67: 478 | Z67: -0.004494816462 | AC67: 0.01676076217 | AF67: 0.005897084768
A68: 0 | B68: 55 | C68: 41268 | D68: 39910 | I68: 41340 | J68: 39359 | K68: 81178 | N68: 80696 | Q68: -72 | T68: 551 | W68: 482 | Z68: -0.001744693225 | AC68: 0.01380606364 | AF68: 0.005937569292
A69: 0 | B69: 56 | C69: 41493 | D69: 39381 | I69: 41839 | J69: 39354 | K69: 80874 | N69: 81192 | Q69: -346 | T69: 27 | W69: -318 | Z69: -0.008338755935 | AC69: 0.0006856098118 | AF69: -0.003932042436
A70: 0 | B70: 57 | C70: 42779 | D70: 41139 | I70: 43244 | J70: 40817 | K70: 83918 | N70: 84057 | Q70: -465 | T70: 322 | W70: -139 | Z70: -0.0108698193 | AC70: 0.007827122682 | AF70: -0.001656378846
A71: 0 | B71: 58 | C71: 41920 | D71: 39722 | I71: 42516 | J71: 39607 | K71: 81642 | N71: 82123 | Q71: -596 | T71: 115 | W71: -481 | Z71: -0.01421755725 | AC71: 0.002895121092 | AF71: -0.005891575415
A72: 0 | B72: 59 | C72: 41645 | D72: 40131 | I72: 41482 | J72: 39121 | K72: 81776 | N72: 80599 | Q72: 163 | T72: 1010 | W72: 1177 | Z72: 0.003914035298 | AC72: 0.02516757619 | AF72: 0.01439297593
A73: 0 | B73: 60 | C73: =HLOOKUP($D$4,INDIRECT(C$11),$B73+2,0) -> 40067 | D73: 38258 | I73: 39943 | J73: 37725 | K73: 78325 | N73: 77668 | Q73: 124 | T73: 533 | W73: 657 | Z73: 0.003094816183 | AC73: 0.0139317267 | AF73: 0.008388126396
A74: 0 | B74: 61 | C74: 39361 | D74: 37958 | I74: 39394 | J74: 37337 | K74: 77319 | N74: 76731 | Q74: -33 | T74: 621 | W74: 588 | Z74: -0.0008383933335 | AC74: 0.01636018758 | AF74: 0.007604857797
A75: 0 | B75: 62 | C75: 37341 | D75: 36163 | I75: 37445 | J75: 35650 | K75: 73504 | N75: 73095 | Q75: -104 | T75: 513 | W75: 409 | Z75: -0.002785142337 | AC75: 0.01418576999 | AF75: 0.00556432303
A76: 0 | B76: 63 | C76: 37555 | D76: 35663 | I76: 37616 | J76: 35623 | K76: 73218 | N76: 73235 | Q76: -61 | T76: 40 | W76: -17 | Z76: -0.001624284383 | AC76: 0.001121610633 | AF76: -0.0002321833429
A77: 0 | B77: 64 | C77: 36243 | D77: 34413 | I77: 36662 | J77: 34324 | K77: 70656 | N77: 70989 | O77: =C77-E77 ->  | P77: =C77-G77 ->  | Q77: =C77-I77 -> -419 | R77: =D77-F77 ->  | S77: =D77-H77 ->  | T77: =D77-J77 -> 89 | U77: =K77-L77 ->  | V77: =K77-M77 ->  | W77: =K77-N77 -> -333 | X77: =O77/C77 ->  | Y77: =P77/C77 ->  | Z77: =Q77/C77 -> -0.01156085313 | AA77: =R77/D77 ->  | AB77: =S77/D77 ->  | AC77: =T77/D77 -> 0.002586231947 | AD77: =U77/K77 ->  | AE77: =V77/K77 ->  | AF77: =W77/K77 -> -0.004712975543
A78: 0 | B78: 65 | C78: 34652 | D78: 33034 | I78: 34619 | J78: 32575 | K78: =C78+D78 -> 67686 | L78: =E78+F78 ->  | M78: =G78+H78 ->  | N78: =HLOOKUP($D$4,INDIRECT(N$11),$B78+2,0) -> 67194 | Q78: 33 | T78: 459 | W78: 492 | Z78: 0.0009523259841 | AC78: 0.01389477508 | AF78: 0.007268859144
A79: 0 | B79: 66 | C79: 33422 | D79: 31482 | I79: 33898 | J79: 31428 | K79: 64904 | N79: 65323 | Q79: -476 | T79: 54 | W79: -419 | Z79: -0.01424211597 | AC79: 0.001715265866 | AF79: -0.006455688401
A80: 0 | B80: 67 | C80: 32136 | D80: 30113 | I80: 32514 | J80: 30137 | K80: 62249 | N80: 62651 | Q80: -378 | T80: -24 | W80: -402 | Z80: -0.01176250934 | AC80: -0.0007969979743 | AF80: -0.006457935067
A81: 0 | B81: 68 | C81: 31156 | D81: 29625 | I81: 31524 | J81: 29580 | K81: 60781 | N81: 61104 | Q81: -368 | T81: 45 | W81: -323 | Z81: -0.01181152908 | AC81: 0.001518987342 | AF81: -0.005314160675
A82: 0 | B82: 69 | C82: 30236 | D82: 28073 | I82: 30664 | J82: 28230 | K82: 58309 | N82: 58894 | Q82: -428 | T82: -157 | W82: -585 | Z82: -0.01415531155 | AC82: -0.005592562248 | AF82: -0.01003275652
A83: 0 | B83: 70 | C83: =HLOOKUP($D$4,INDIRECT(C$11),$B83+2,0) -> 29290 | D83: 27339 | I83: 29497 | J83: 27399 | K83: 56629 | N83: 56896 | Q83: -207 | T83: -60 | W83: -267 | Z83: -0.00706725845 | AC83: -0.002194666959 | AF83: -0.004714898727
A84: 0 | B84: 71 | C84: 28803 | D84: 26822 | I84: 29164 | J84: 26951 | K84: 55625 | N84: 56117 | Q84: -361 | T84: -129 | W84: -492 | Z84: -0.01253341666 | AC84: -0.004809484751 | AF84: -0.00884494382
A85: 0 | B85: 72 | C85: 29171 | D85: 26273 | I85: 29643 | J85: 26370 | K85: 55444 | N85: 56013 | Q85: -472 | T85: -97 | W85: -569 | Z85: -0.01618045319 | AC85: -0.003692003197 | AF85: -0.01026260732
A86: 0 | B86: 73 | C86: 29257 | D86: 26743 | I86: 29576 | J86: 26940 | K86: 56000 | N86: 56516 | Q86: -319 | T86: -197 | W86: -516 | Z86: -0.01090337355 | AC86: -0.007366413641 | AF86: -0.009214285714
A87: 0 | B87: 74 | C87: 31068 | D87: 27792 | I87: 31449 | J87: 27768 | K87: 58860 | N87: 59217 | Q87: -381 | T87: 24 | W87: -357 | Z87: -0.01226342217 | AC87: 0.0008635578584 | AF87: -0.006065239551
A88: 0 | B88: 75 | C88: 30102 | D88: 26602 | I88: 30366 | J88: 26690 | K88: 56704 | N88: 57055 | Q88: -264 | T88: -88 | W88: -351 | Z88: -0.008770181383 | AC88: -0.003308021953 | AF88: -0.006190039503
A89: 0 | B89: 76 | C89: 21968 | D89: 19325 | I89: 22176 | J89: 19508 | K89: 41293 | N89: 41684 | Q89: -208 | T89: -183 | W89: -391 | Z89: -0.009468317553 | AC89: -0.009469598965 | AF89: -0.00946891725
A90: 0 | B90: 77 | C90: 22761 | D90: 19075 | I90: 23066 | J90: 19252 | K90: 41836 | N90: 42318 | Q90: -305 | T90: -177 | W90: -482 | Z90: -0.01340011423 | AC90: -0.009279161206 | AF90: -0.01152117793
A91: 0 | B91: 78 | C91: 21857 | D91: 17957 | I91: 22149 | J91: 18045 | K91: 39814 | N91: 40194 | Q91: -292 | T91: -88 | W91: -380 | Z91: -0.01335956444 | AC91: -0.004900595868 | AF91: -0.009544381373
A92: 0 | B92: 79 | C92: 20302 | D92: 15996 | I92: 20680 | J92: 16308 | K92: 36298 | N92: 36988 | Q92: -378 | T92: -312 | W92: -690 | Z92: -0.01861885529 | AC92: -0.01950487622 | AF92: -0.01900931181
A93: 0 | B93: 80 | C93: =HLOOKUP($D$4,INDIRECT(C$11),$B93+2,0) -> 18022 | D93: 13906 | I93: 18315 | J93: 14247 | K93: 31928 | N93: 32565 | Q93: -293 | T93: -341 | W93: -637 | Z93: -0.016257907 | AC93: -0.02452178916 | AF93: -0.01995114007
A94: 0 | B94: 81 | C94: 16965 | D94: 12473 | I94: 17096 | J94: 12614 | K94: 29438 | N94: 29710 | Q94: -131 | T94: -141 | W94: -272 | Z94: -0.007721780136 | AC94: -0.01130441754 | AF94: -0.009239758136
A95: 0 | B95: 82 | C95: 16479 | D95: 12024 | I95: 16664 | J95: 12196 | K95: 28503 | N95: 28860 | Q95: -185 | T95: -172 | W95: -357 | Z95: -0.01122640937 | AC95: -0.01430472389 | AF95: -0.01252499737
A96: 0 | B96: 83 | C96: 15598 | D96: 11016 | I96: 15661 | J96: 11021 | K96: 26614 | N96: 26685 | Q96: -63 | T96: -5 | W96: -71 | Z96: -0.004038979356 | AC96: -0.0004538852578 | AF96: -0.002667768843
A97: 0 | B97: 84 | C97: 14184 | D97: 10140 | I97: 14108 | J97: 10204 | K97: 24324 | N97: 24312 | Q97: 76 | T97: -64 | W97: 12 | Z97: 0.005358150028 | AA97: =R97/D97 ->  | AC97: -0.006311637081 | AF97: 0.0004933399112
A98: 0 | B98: 85 | C98: 13061 | D98: 8519 | I98: 0 | J98: 0 | K98: 21580 | N98: 0 | Q98: 13061 | T98: 8519 | W98: 21580 | Z98: 1 | AC98: 1 | AF98: 1
A99: 0 | B99: 86 | C99: 11734 | D99: 7338 | I99: 0 | J99: 0 | K99: 19072 | N99: 0
A100: 0 | B100: 87 | C100: 10363 | D100: 6314 | K100: 16677
A101: 0 | B101: 88 | C101: 8963 | D101: 5359 | K101: 14322
A102: 0 | B102: 89 | C102: 7811 | D102: 4413 | K102: 12224
A103: 0 | B103: 90 | C103: 29597 | D103: 13175 | K103: 42772
B104: dynamic for graphs | O104: Absolute difference dynamic | X104: Percentage difference dynamics
B105: Age | C105: ABPE - F | D105: ABPE - M | E105: rMYE - F | F105: rMYE - M | G105: MYE - F | H105: MYE - M | I105: Census - F | J105: Census - M | K105: ABPE | L105: rMYE\Census | M105: MYE | N105: Census | O105: rMYE - F | P105: MYE - F | Q105: censusMYE - F | R105: rMYE - M | S105: MYE - M | T105: censusMYE - M | U105: rMYE\Census | V105: MYE | W105: census | X105: rMYE - F | Y105: MYE - F | Z105: censusMYE - F | AA105: rMYE - M | AB105: MYE - M | AC105: censusMYE - M | AD105: rMYE\Census | AE105: MYE | AF105: census
B106: =B13 -> 0 | C106: 23538 | D106: 24962 | E106: =IFERROR(E13,I13) -> 23163 | F106: =IFERROR(F13,J13) -> 24581 | G106: =IFERROR(G13,I13) -> 23163 | H106: =IFERROR(H13,J13) -> 24581 | I106: =IFERROR(I13,E13) -> 23163 | J106: =IFERROR(J13,F13) -> 24581 | K106: =K13 -> 48500 | L106: =IFERROR(L13,N13) -> 47744 | M106: =IFERROR(M13,N13) -> 47744 | N106: =IFERROR(N13,L13) -> 47744 | O106: =IFERROR(O13,Q13) -> 375 | P106: =IFERROR(P13,Q13) -> 375 | Q106: =IFERROR(Q13,O13) -> 375 | R106: =IFERROR(R13,T13) -> 381 | S106: =IFERROR(S13,T13) -> 381 | T106: =IFERROR(T13,R13) -> 381 | U106: =IFERROR(U13,W13) -> 756 | V106: =IFERROR(V13,W13) -> 756 | W106: =IFERROR(W13,U13) -> 756 | X106: =IFERROR(X13,Z13) -> 0.01593168493 | Y106: =IFERROR(Y13,Z13) -> 0.01593168493 | Z106: =IFERROR(Z13,X13) -> 0.01593168493 | AA106: =IFERROR(AA13,AC13) -> 0.01526320006 | AB106: =IFERROR(AB13,AC13) -> 0.01526320006 | AC106: =IFERROR(AC13,AA13) -> 0.01526320006 | AD106: =IFERROR(AD13,AF13) -> 0.01558762887 | AE106: =IFERROR(AE13,AF13) -> 0.01558762887 | AF106: =IFERROR(AF13,AD13) -> 0.01558762887
B107: 1 | C107: 22392 | D107: 23611 | E107: 22829 | F107: 23873 | G107: 22829 | H107: 23873 | I107: 22829 | J107: 23873 | K107: =K14 -> 46003 | L107: 46699 | M107: 46699 | N107: 46699 | O107: -437 | P107: -437 | Q107: -437 | R107: -262 | S107: -262 | T107: -262 | U107: -696 | V107: -696 | W107: -696 | X107: -0.01951589854 | Y107: -0.01951589854 | Z107: -0.01951589854 | AA107: -0.01109652281 | AB107: -0.01109652281 | AC107: -0.01109652281 | AD107: -0.01512944808 | AE107: -0.01512944808 | AF107: -0.01512944808
B108: 2 | C108: 24026 | D108: 25214 | E108: 24590 | F108: 25946 | G108: 24590 | H108: 25946 | I108: 24590 | J108: 25946 | K108: 49240 | L108: 50536 | M108: 50536 | N108: 50536 | O108: -564 | P108: -564 | Q108: -564 | R108: -732 | S108: -732 | T108: -732 | U108: -1296 | V108: -1296 | W108: -1296 | X108: -0.02347456922 | Y108: -0.02347456922 | Z108: -0.02347456922 | AA108: -0.02903149044 | AB108: -0.02903149044 | AC108: -0.02903149044 | AD108: -0.02632006499 | AE108: -0.02632006499 | AF108: -0.02632006499
B109: 3 | C109: 24791 | D109: 26340 | E109: 24706 | F109: 26243 | G109: 24706 | H109: 26243 | I109: 24706 | J109: 26243 | K109: 51131 | L109: 50949 | M109: 50949 | N109: 50949 | O109: 85 | P109: 85 | Q109: 85 | R109: 97 | S109: 97 | T109: 97 | U109: 182 | V109: 182 | W109: 182 | X109: 0.003428663628 | Y109: 0.003428663628 | Z109: 0.003428663628 | AA109: 0.003682611997 | AB109: 0.003682611997 | AC109: 0.003682611997 | AD109: 0.003559484461 | AE109: 0.003559484461 | AF109: 0.003559484461
B110: 4 | C110: 25518 | D110: 26987 | E110: 25539 | F110: 26943 | G110: 25539 | H110: 26943 | I110: 25539 | J110: 26943 | K110: 52505 | L110: 52477 | M110: 52477 | N110: 52477 | O110: -21 | P110: -21 | Q110: -21 | R110: 44 | S110: 44 | T110: 44 | U110: 28 | V110: 28 | W110: 28 | X110: -0.0008229485069 | Y110: -0.0008229485069 | Z110: -0.0008229485069 | AA110: 0.001630414644 | AB110: 0.001630414644 | AC110: 0.001630414644 | AD110: 0.0005332825445 | AE110: 0.0005332825445 | AF110: 0.0005332825445
B111: 5 | C111: 26280 | D111: 27922 | E111: 26334 | F111: 27873 | G111: 26334 | H111: 27873 | I111: 26334 | J111: 27873 | K111: 54202 | L111: 54207 | M111: 54207 | N111: 54207 | O111: -54 | P111: -54 | Q111: -54 | R111: 49 | S111: 49 | T111: 49 | U111: -5 | V111: -5 | W111: -5 | X111: -0.002054794521 | Y111: -0.002054794521 | Z111: -0.002054794521 | AA111: 0.001754888618 | AB111: 0.001754888618 | AC111: 0.001754888618 | AD111: -9.224751854e-05 | AE111: -9.224751854e-05 | AF111: -9.224751854e-05
B112: 6 | C112: 27204 | D112: 28882 | E112: 26940 | F112: 28709 | G112: 26940 | H112: 28709 | I112: 26940 | J112: 28709 | K112: 56086 | L112: 55649 | M112: 55649 | N112: 55649 | O112: 264 | P112: 264 | Q112: 264 | R112: 173 | S112: 173 | T112: 173 | U112: 437 | V112: 437 | W112: 437 | X112: 0.009704455227 | Y112: 0.009704455227 | Z112: 0.009704455227 | AA112: 0.005989889897 | AB112: 0.005989889897 | AC112: 0.005989889897 | AD112: 0.007791605748 | AE112: 0.007791605748 | AF112: 0.007791605748
B113: 7 | C113: 27742 | D113: 29175 | E113: 27509 | F113: 28990 | G113: 27509 | H113: 28990 | I113: 27509 | J113: 28990 | K113: 56917 | L113: 56501 | M113: 56501 | N113: 56501 | O113: 233 | P113: 233 | Q113: 233 | R113: 185 | S113: 185 | T113: 185 | U113: 416 | V113: 416 | W113: 416 | X113: 0.008398817677 | Y113: 0.008398817677 | Z113: 0.008398817677 | AA113: 0.006341045416 | AB113: 0.006341045416 | AC113: 0.006341045416 | AD113: 0.007308888381 | AE113: 0.007308888381 | AF113: 0.007308888381
B114: 8 | C114: 27791 | D114: 29250 | E114: 27795 | F114: 29158 | G114: 27795 | H114: 29158 | I114: 27795 | J114: 29158 | K114: 57041 | L114: 56949 | M114: 56949 | N114: 56949 | O114: -4 | P114: -4 | Q114: -4 | R114: 92 | S114: 92 | T114: 92 | U114: 92 | V114: 92 | W114: 92 | X114: -0.0001439314886 | Y114: -0.0001439314886 | Z114: -0.0001439314886 | AA114: 0.003145299145 | AB114: 0.003145299145 | AC114: 0.003145299145 | AD114: 0.00161287495 | AE114: 0.00161287495 | AF114: 0.00161287495
B115: 9 | C115: 28642 | D115: 30023 | E115: 28746 | F115: 30163 | G115: 28746 | H115: 30163 | I115: 28746 | J115: 30163 | K115: 58665 | L115: 58911 | M115: 58911 | N115: 58911 | O115: -104 | P115: -104 | Q115: -104 | R115: -140 | S115: -140 | T115: -140 | U115: -246 | V115: -246 | W115: -246 | X115: -0.003631031353 | Y115: -0.003631031353 | Z115: -0.003631031353 | AA115: -0.00466309163 | AB115: -0.00466309163 | AC115: -0.00466309163 | AD115: -0.004193300946 | AE115: -0.004193300946 | AF115: -0.004193300946
B116: 10 | C116: 29191 | D116: 30797 | E116: 29264 | F116: 30993 | G116: 29264 | H116: 30993 | I116: 29264 | J116: 30993 | K116: 59988 | L116: 60259 | M116: 60259 | N116: 60259 | O116: -73 | P116: -73 | Q116: -73 | R116: -196 | S116: -196 | T116: -196 | U116: -271 | V116: -271 | W116: -271 | X116: -0.002500770786 | Y116: -0.002500770786 | Z116: -0.002500770786 | AA116: -0.006364256259 | AB116: -0.006364256259 | AC116: -0.006364256259 | AD116: -0.004517570181 | AE116: -0.004517570181 | AF116: -0.004517570181
B117: 11 | C117: 29225 | D117: 30446 | E117: 29470 | F117: 30654 | G117: 29470 | H117: 30654 | I117: 29470 | J117: 30654 | K117: 59671 | L117: 60125 | M117: 60125 | N117: 60125 | O117: -245 | P117: -245 | Q117: -245 | R117: -208 | S117: -208 | T117: -208 | U117: -454 | V117: -454 | W117: -454 | X117: -0.008383233533 | Y117: -0.008383233533 | Z117: -0.008383233533 | AA117: -0.00683176772 | AB117: -0.00683176772 | AC117: -0.00683176772 | AD117: -0.007608385983 | AE117: -0.007608385983 | AF117: -0.007608385983
B118: 12 | C118: 29538 | D118: 30447 | E118: 29653 | F118: 30726 | G118: 29653 | H118: 30726 | I118: 29653 | J118: 30726 | K118: 59985 | L118: 60379 | M118: 60379 | N118: 60379 | O118: -115 | P118: -115 | Q118: -115 | R118: -279 | S118: -279 | T118: -279 | U118: -394 | V118: -394 | W118: -394 | X118: -0.003893289999 | Y118: -0.003893289999 | Z118: -0.003893289999 | AA118: -0.009163464381 | AB118: -0.009163464381 | AC118: -0.009163464381 | AD118: -0.006568308744 | AE118: -0.006568308744 | AF118: -0.006568308744
B119: 13 | C119: 29427 | D119: 30792 | E119: 29526 | F119: 30833 | G119: 29526 | H119: 30833 | I119: 29526 | J119: 30833 | K119: 60219 | L119: 60359 | M119: 60359 | N119: 60359 | O119: -99 | P119: -99 | Q119: -99 | R119: -41 | S119: -41 | T119: -41 | U119: -140 | V119: -140 | W119: -140 | X119: -0.003364257315 | Y119: -0.003364257315 | Z119: -0.003364257315 | AA119: -0.001331514679 | AB119: -0.001331514679 | AC119: -0.001331514679 | AD119: -0.002324847639 | AE119: -0.002324847639 | AF119: -0.002324847639
B120: 14 | C120: 29444 | D120: 30661 | E120: 29649 | F120: 31059 | G120: 29649 | H120: 31059 | I120: 29649 | J120: 31059 | K120: 60105 | L120: 60709 | M120: 60709 | N120: 60709 | O120: -205 | P120: -205 | Q120: -205 | R120: -398 | S120: -398 | T120: -398 | U120: -604 | V120: -604 | W120: -604 | X120: -0.006962369243 | Y120: -0.006962369243 | Z120: -0.006962369243 | AA120: -0.01298065947 | AB120: -0.01298065947 | AC120: -0.01298065947 | AD120: -0.01004908078 | AE120: -0.01004908078 | AF120: -0.01004908078
B121: 15 | C121: 28622 | D121: 29734 | E121: 28671 | F121: 30126 | G121: 28671 | H121: 30126 | I121: 28671 | J121: 30126 | K121: 58356 | L121: 58795 | M121: 58795 | N121: 58795 | O121: -49 | P121: -49 | Q121: -49 | R121: -392 | S121: -392 | T121: -392 | U121: -439 | V121: -439 | W121: -439 | X121: -0.001711969813 | Y121: -0.001711969813 | Z121: -0.001711969813 | AA121: -0.01318356091 | AB121: -0.01318356091 | AC121: -0.01318356091 | AD121: -0.007522791144 | AE121: -0.007522791144 | AF121: -0.007522791144
B122: 16 | C122: 27739 | D122: 28965 | E122: 27953 | F122: 29499 | G122: 27953 | H122: 29499 | I122: 27953 | J122: 29499 | K122: 56704 | L122: 57452 | M122: 57452 | N122: 57452 | O122: -214 | P122: -214 | Q122: -214 | R122: -534 | S122: -534 | T122: -534 | U122: -748 | V122: -748 | W122: -748 | X122: -0.007714769819 | Y122: -0.007714769819 | Z122: -0.007714769819 | AA122: -0.0184360435 | AB122: -0.0184360435 | AC122: -0.0184360435 | AD122: -0.01319130926 | AE122: -0.01319130926 | AF122: -0.01319130926
B123: 17 | C123: 27672 | D123: 28673 | E123: 27076 | F123: 28543 | G123: 27076 | H123: 28543 | I123: 27076 | J123: 28543 | K123: 56345 | L123: 55619 | M123: 55619 | N123: 55619 | O123: 596 | P123: 596 | Q123: 596 | R123: 130 | S123: 130 | T123: 130 | U123: 726 | V123: 726 | W123: 726 | X123: 0.02153801677 | Y123: 0.02153801677 | Z123: 0.02153801677 | AA123: 0.004533882049 | AB123: 0.004533882049 | AC123: 0.004533882049 | AD123: 0.01288490549 | AE123: 0.01288490549 | AF123: 0.01288490549
B124: 18 | C124: 29295 | D124: 29422 | E124: 30432 | F124: 31953 | G124: 30432 | H124: 31953 | I124: 30432 | J124: 31953 | K124: 58717 | L124: 62385 | M124: 62385 | N124: 62385 | O124: -1137 | P124: -1137 | Q124: -1137 | R124: -2531 | S124: -2531 | T124: -2531 | U124: -3668 | V124: -3668 | W124: -3668 | X124: -0.03881208397 | Y124: -0.03881208397 | Z124: -0.03881208397 | AA124: -0.08602406363 | AB124: -0.08602406363 | AC124: -0.08602406363 | AD124: -0.0624691316 | AE124: -0.0624691316 | AF124: -0.0624691316
B125: 19 | C125: 31906 | D125: 30378 | E125: 32828 | F125: 32755 | G125: 32828 | H125: 32755 | I125: 32828 | J125: 32755 | K125: 62284 | L125: 65583 | M125: 65583 | N125: 65583 | O125: -922 | P125: -922 | Q125: -922 | R125: -2377 | S125: -2377 | T125: -2377 | U125: -3299 | V125: -3299 | W125: -3299 | X125: -0.02889738607 | Y125: -0.02889738607 | Z125: -0.02889738607 | AA125: -0.07824741589 | AB125: -0.07824741589 | AC125: -0.07824741589 | AD125: -0.05296705414 | AE125: -0.05296705414 | AF125: -0.05296705414
B126: =B33 -> 20 | C126: 33575 | D126: 31481 | E126: 33253 | F126: 32735 | G126: 33253 | H126: 32735 | I126: 33253 | J126: 32735 | K126: 65056 | L126: 65991 | M126: 65991 | N126: 65991 | O126: 322 | P126: 322 | Q126: 322 | R126: -1254 | S126: -1254 | T126: -1254 | U126: -935 | V126: -935 | W126: -935 | X126: 0.009590469099 | Y126: 0.009590469099 | Z126: 0.009590469099 | AA126: -0.0398335504 | AB126: -0.0398335504 | AC126: -0.0398335504 | AD126: -0.01437223315 | AE126: -0.01437223315 | AF126: -0.01437223315
B127: 21 | C127: 35367 | D127: 32984 | E127: 34509 | F127: 34162 | G127: 34509 | H127: 34162 | I127: 34509 | J127: 34162 | K127: 68351 | L127: 68671 | M127: 68671 | N127: 68671 | O127: 858 | P127: 858 | Q127: 858 | R127: -1178 | S127: -1178 | T127: -1178 | U127: -320 | V127: -320 | W127: -320 | X127: 0.0242599033 | Y127: 0.0242599033 | Z127: 0.0242599033 | AA127: -0.03571428571 | AB127: -0.03571428571 | AC127: -0.03571428571 | AD127: -0.004681716434 | AE127: -0.004681716434 | AF127: -0.004681716434
B128: 22 | C128: 37161 | D128: 33971 | E128: 36091 | F128: 35333 | G128: 36091 | H128: 35333 | I128: 36091 | J128: 35333 | K128: 71132 | L128: 71424 | M128: 71424 | N128: 71424 | O128: 1070 | P128: 1070 | Q128: 1070 | R128: -1362 | S128: -1362 | T128: -1362 | U128: -292 | V128: -292 | W128: -292 | X128: 0.02879362773 | Y128: 0.02879362773 | Z128: 0.02879362773 | AA128: -0.04009302052 | AB128: -0.04009302052 | AC128: -0.04009302052 | AD128: -0.004105044143 | AE128: -0.004105044143 | AF128: -0.004105044143
B129: 23 | C129: 35886 | D129: 32471 | E129: 34649 | F129: 33423 | G129: 34649 | H129: 33423 | I129: 34649 | J129: 33423 | K129: 68357 | L129: 68072 | M129: 68072 | N129: 68072 | O129: 1237 | P129: 1237 | Q129: 1237 | R129: -952 | S129: -952 | T129: -952 | U129: 285 | V129: 285 | W129: 285 | X129: 0.03447026696 | Y129: 0.03447026696 | Z129: 0.03447026696 | AA129: -0.02931846879 | AB129: -0.02931846879 | AC129: -0.02931846879 | AD129: 0.00416928771 | AE129: 0.00416928771 | AF129: 0.00416928771
B130: 24 | C130: 35719 | D130: 32601 | E130: 34208 | F130: 33084 | G130: 34208 | H130: 33084 | I130: 34208 | J130: 33084 | K130: 68320 | L130: 67292 | M130: 67292 | N130: 67292 | O130: 1511 | P130: 1511 | Q130: 1511 | R130: -483 | S130: -483 | T130: -483 | U130: 1028 | V130: 1028 | W130: 1028 | X130: 0.04230241608 | Y130: 0.04230241608 | Z130: 0.04230241608 | AA130: -0.01481549646 | AB130: -0.01481549646 | AC130: -0.01481549646 | AD130: 0.01504683841 | AE130: 0.01504683841 | AF130: 0.01504683841
B131: 25 | C131: 34436 | D131: 32423 | E131: 33754 | F131: 32880 | G131: 33754 | H131: 32880 | I131: 33754 | J131: 32880 | K131: 66859 | L131: 66638 | M131: 66638 | N131: 66638 | O131: 682 | P131: 682 | Q131: 682 | R131: -457 | S131: -457 | T131: -457 | U131: 221 | V131: 221 | W131: 221 | X131: 0.01980485538 | Y131: 0.01980485538 | Z131: 0.01980485538 | AA131: -0.01409493261 | AB131: -0.01409493261 | AC131: -0.01409493261 | AD131: 0.003305463737 | AE131: 0.003305463737 | AF131: 0.003305463737
B132: 26 | C132: 34307 | D132: 32250 | E132: 33682 | F132: 33071 | G132: 33682 | H132: 33071 | I132: 33682 | J132: 33071 | K132: 66557 | L132: 66753 | M132: 66753 | N132: 66753 | O132: 625 | P132: 625 | Q132: 625 | R132: -821 | S132: -821 | T132: -821 | U132: -196 | V132: -196 | W132: -196 | X132: 0.01821785641 | Y132: 0.01821785641 | Z132: 0.01821785641 | AA132: -0.02545736434 | AB132: -0.02545736434 | AC132: -0.02545736434 | AD132: -0.002944844269 | AE132: -0.002944844269 | AF132: -0.002944844269
B133: 27 | C133: 34917 | D133: 32233 | E133: 33965 | F133: 32681 | G133: 33965 | H133: 32681 | I133: 33965 | J133: 32681 | K133: 67150 | L133: 66646 | M133: 66646 | N133: 66646 | O133: 952 | P133: 952 | Q133: 952 | R133: -448 | S133: -448 | T133: -448 | U133: 504 | V133: 504 | W133: 504 | X133: 0.02726465618 | Y133: 0.02726465618 | Z133: 0.02726465618 | AA133: -0.01389879937 | AB133: -0.01389879937 | AC133: -0.01389879937 | AD133: 0.007505584512 | AE133: 0.007505584512 | AF133: 0.007505584512
B134: 28 | C134: 35371 | D134: 32921 | E134: 34847 | F134: 33135 | G134: 34847 | H134: 33135 | I134: 34847 | J134: 33135 | K134: 68292 | L134: 67982 | M134: 67982 | N134: 67982 | O134: 524 | P134: 524 | Q134: 524 | R134: -214 | S134: -214 | T134: -214 | U134: 310 | V134: 310 | W134: 310 | X134: 0.01481439597 | Y134: 0.01481439597 | Z134: 0.01481439597 | AA134: -0.006500410073 | AB134: -0.006500410073 | AC134: -0.006500410073 | AD134: 0.004539331108 | AE134: 0.004539331108 | AF134: 0.004539331108
B135: 29 | C135: 36266 | D135: 33705 | E135: 35531 | F135: 33861 | G135: 35531 | H135: 33861 | I135: 35531 | J135: 33861 | K135: 69971 | L135: 69392 | M135: 69392 | N135: 69392 | O135: 735 | P135: 735 | Q135: 735 | R135: -156 | S135: -156 | T135: -156 | U135: 579 | V135: 579 | W135: 579 | X135: 0.02026691667 | Y135: 0.02026691667 | Z135: 0.02026691667 | AA135: -0.004628393413 | AB135: -0.004628393413 | AC135: -0.004628393413 | AD135: 0.008274856726 | AE135: 0.008274856726 | AF135: 0.008274856726
B136: 30 | C136: 37073 | D136: 34707 | E136: 36715 | F136: 34692 | G136: 36715 | H136: 34692 | I136: 36715 | J136: 34692 | K136: 71780 | L136: 71407 | M136: 71407 | N136: 71407 | O136: 358 | P136: 358 | Q136: 358 | R136: 15 | S136: 15 | T136: 15 | U136: 373 | V136: 373 | W136: 373 | X136: 0.009656623419 | Y136: 0.009656623419 | Z136: 0.009656623419 | AA136: 0.0004321894719 | AB136: 0.0004321894719 | AC136: 0.0004321894719 | AD136: 0.005196433547 | AE136: 0.005196433547 | AF136: 0.005196433547
B137: 31 | C137: 36892 | D137: 34907 | E137: 36768 | F137: 35283 | G137: 36768 | H137: 35283 | I137: 36768 | J137: 35283 | K137: 71799 | L137: 72051 | M137: 72051 | N137: 72051 | O137: 124 | P137: 124 | Q137: 124 | R137: -376 | S137: -376 | T137: -376 | U137: -252 | V137: -252 | W137: -252 | X137: 0.003361162312 | Y137: 0.003361162312 | Z137: 0.003361162312 | AA137: -0.0107714785 | AB137: -0.0107714785 | AC137: -0.0107714785 | AD137: -0.003509798187 | AE137: -0.003509798187 | AF137: -0.003509798187
B138: 32 | C138: 36155 | D138: 33732 | E138: =IFERROR(E45,I45) -> 36036 | F138: =IFERROR(F45,J45) -> 34023 | G138: =IFERROR(G45,I45) -> 36036 | H138: =IFERROR(H45,J45) -> 34023 | I138: =IFERROR(I45,E45) -> 36036 | J138: =IFERROR(J45,F45) -> 34023 | K138: 69887 | L138: =IFERROR(L45,N45) -> 70062 | M138: =IFERROR(M45,N45) -> 70062 | N138: =IFERROR(N45,L45) -> 70062 | O138: =IFERROR(O45,Q45) -> 119 | P138: =IFERROR(P45,Q45) -> 119 | Q138: =IFERROR(Q45,O45) -> 119 | R138: =IFERROR(R45,T45) -> -291 | S138: =IFERROR(S45,T45) -> -291 | T138: =IFERROR(T45,R45) -> -291 | U138: =IFERROR(U45,W45) -> -175 | V138: =IFERROR(V45,W45) -> -175 | W138: =IFERROR(W45,U45) -> -175 | X138: =IFERROR(X45,Z45) -> 0.003291384318 | Y138: =IFERROR(Y45,Z45) -> 0.003291384318 | Z138: =IFERROR(Z45,X45) -> 0.003291384318 | AA138: =IFERROR(AA45,AC45) -> -0.008626823195 | AB138: =IFERROR(AB45,AC45) -> -0.008626823195 | AC138: =IFERROR(AC45,AA45) -> -0.008626823195 | AD138: =IFERROR(AD45,AF45) -> -0.00250404224 | AE138: =IFERROR(AE45,AF45) -> -0.00250404224 | AF138: =IFERROR(AF45,AD45) -> -0.00250404224
B139: 33 | C139: 36499 | D139: 34288 | E139: 36676 | F139: 34611 | G139: 36676 | H139: 34611 | I139: 36676 | J139: 34611 | K139: 70787 | L139: 71287 | M139: 71287 | N139: 71287 | O139: -177 | P139: -177 | Q139: -177 | R139: -323 | S139: -323 | T139: -323 | U139: -500 | V139: -500 | W139: -500 | X139: -0.00484944793 | Y139: -0.00484944793 | Z139: -0.00484944793 | AA139: -0.00942020532 | AB139: -0.00942020532 | AC139: -0.00942020532 | AD139: -0.007063443853 | AE139: -0.007063443853 | AF139: -0.007063443853
B140: 34 | C140: 37152 | D140: 35198 | E140: 36779 | F140: 35184 | G140: 36779 | H140: 35184 | I140: 36779 | J140: 35184 | K140: 72350 | L140: 71963 | M140: 71963 | N140: 71963 | O140: 373 | P140: 373 | Q140: 373 | R140: 14 | S140: 14 | T140: 14 | U140: 387 | V140: 387 | W140: 387 | X140: 0.01003983635 | Y140: 0.01003983635 | Z140: 0.01003983635 | AA140: 0.0003977498722 | AB140: 0.0003977498722 | AC140: 0.0003977498722 | AD140: 0.005348997927 | AE140: 0.005348997927 | AF140: 0.005348997927
B141: 35 | C141: 36188 | D141: 33987 | E141: 35625 | F141: 33822 | G141: 35625 | H141: 33822 | I141: 35625 | J141: 33822 | K141: 70175 | L141: 69454 | M141: 69454 | N141: 69454 | O141: 563 | P141: 563 | Q141: 563 | R141: 165 | S141: 165 | T141: 165 | U141: 721 | V141: 721 | W141: 721 | X141: 0.01555764342 | Y141: 0.01555764342 | Z141: 0.01555764342 | AA141: 0.004854797423 | AB141: 0.004854797423 | AC141: 0.004854797423 | AD141: 0.01027431421 | AE141: 0.01027431421 | AF141: 0.01027431421
B142: 36 | C142: 36239 | D142: 34235 | E142: 35863 | F142: 34168 | G142: 35863 | H142: 34168 | I142: 35863 | J142: 34168 | K142: 70474 | L142: 70030 | M142: 70030 | N142: 70030 | O142: 376 | P142: 376 | Q142: 376 | R142: 67 | S142: 67 | T142: 67 | U142: 444 | V142: 444 | W142: 444 | X142: 0.01037556224 | Y142: 0.01037556224 | Z142: 0.01037556224 | AA142: 0.001957061487 | AB142: 0.001957061487 | AC142: 0.001957061487 | AD142: 0.006300195817 | AE142: 0.006300195817 | AF142: 0.006300195817
B143: 37 | C143: 36256 | D143: 33517 | E143: 35988 | F143: 33693 | G143: 35988 | H143: 33693 | I143: 35988 | J143: 33693 | K143: 69773 | L143: 69681 | M143: 69681 | N143: 69681 | O143: 268 | P143: 268 | Q143: 268 | R143: -176 | S143: -176 | T143: -176 | U143: 92 | V143: 92 | W143: 92 | X143: 0.007391879965 | Y143: 0.007391879965 | Z143: 0.007391879965 | AA143: -0.005251066623 | AB143: -0.005251066623 | AC143: -0.005251066623 | AD143: 0.001318561621 | AE143: 0.001318561621 | AF143: 0.001318561621
B144: 38 | C144: 35293 | D144: 33596 | E144: 35047 | F144: 33411 | G144: 35047 | H144: 33411 | I144: 35047 | J144: 33411 | K144: 68889 | L144: 68458 | M144: 68458 | N144: 68458 | O144: 246 | P144: 246 | Q144: 246 | R144: 185 | S144: 185 | T144: 185 | U144: 431 | V144: 431 | W144: 431 | X144: 0.006970220724 | Y144: 0.006970220724 | Z144: 0.006970220724 | AA144: 0.00550660793 | AB144: 0.00550660793 | AC144: 0.00550660793 | AD144: 0.006256441522 | AE144: 0.006256441522 | AF144: 0.006256441522
B145: 39 | C145: 35604 | D145: 33486 | E145: 35612 | F145: 33344 | G145: 35612 | H145: 33344 | I145: 35612 | J145: 33344 | K145: 69090 | L145: 68956 | M145: 68956 | N145: 68956 | O145: -8 | P145: -8 | Q145: -8 | R145: 142 | S145: 142 | T145: 142 | U145: 134 | V145: 134 | W145: 134 | X145: -0.0002246938546 | Y145: -0.0002246938546 | Z145: -0.0002246938546 | AA145: 0.004240578152 | AB145: 0.004240578152 | AC145: 0.004240578152 | AD145: 0.001939499204 | AE145: 0.001939499204 | AF145: 0.001939499204
B146: =B53 -> 40 | C146: 36077 | D146: 34178 | E146: 35727 | F146: 33570 | G146: 35727 | H146: 33570 | I146: 35727 | J146: 33570 | K146: 70255 | L146: 69294 | M146: 69294 | N146: 69294 | O146: 350 | P146: 350 | Q146: 350 | R146: 608 | S146: 608 | T146: 608 | U146: 961 | V146: 961 | W146: 961 | X146: 0.009701471852 | Y146: 0.009701471852 | Z146: 0.009701471852 | AA146: 0.01778922114 | AB146: 0.01778922114 | AC146: 0.01778922114 | AD146: 0.01367874173 | AE146: 0.01367874173 | AF146: 0.01367874173
B147: 41 | C147: 36226 | D147: 34569 | E147: 35978 | F147: 34143 | G147: 35978 | H147: 34143 | I147: 35978 | J147: 34143 | K147: 70795 | L147: 70121 | M147: 70121 | N147: 70121 | O147: 248 | P147: 248 | Q147: 248 | R147: 426 | S147: 426 | T147: 426 | U147: 674 | V147: 674 | W147: 674 | X147: 0.006845911776 | Y147: 0.006845911776 | Z147: 0.006845911776 | AA147: 0.01232317973 | AB147: 0.01232317973 | AC147: 0.01232317973 | AD147: 0.009520446359 | AE147: 0.009520446359 | AF147: 0.009520446359
B148: 42 | C148: 35115 | D148: 34026 | E148: 34836 | F148: 33828 | G148: 34836 | H148: 33828 | I148: 34836 | J148: 33828 | K148: 69141 | L148: 68664 | M148: 68664 | N148: 68664 | O148: 279 | P148: 279 | Q148: 279 | R148: 198 | S148: 198 | T148: 198 | U148: 477 | V148: 477 | W148: 477 | X148: 0.007945322512 | Y148: 0.007945322512 | Z148: 0.007945322512 | AA148: 0.005819079527 | AB148: 0.005819079527 | AC148: 0.005819079527 | AD148: 0.006898945633 | AE148: 0.006898945633 | AF148: 0.006898945633
B149: 43 | C149: 33075 | D149: 32168 | E149: 33017 | F149: 31825 | G149: 33017 | H149: 31825 | I149: 33017 | J149: 31825 | K149: 65243 | L149: 64842 | M149: 64842 | N149: 64842 | O149: 58 | P149: 58 | Q149: 58 | R149: 343 | S149: 343 | T149: 343 | U149: 401 | V149: 401 | W149: 401 | X149: 0.001753590325 | Y149: 0.001753590325 | Z149: 0.001753590325 | AA149: 0.01066277046 | AB149: 0.01066277046 | AC149: 0.01066277046 | AD149: 0.006146253238 | AE149: 0.006146253238 | AF149: 0.006146253238
B150: 44 | C150: 31608 | D150: 29999 | E150: 31837 | F150: 29439 | G150: 31837 | H150: 29439 | I150: 31837 | J150: 29439 | K150: 61607 | L150: 61277 | M150: 61277 | N150: 61277 | O150: -229 | P150: -229 | Q150: -229 | R150: 560 | S150: 560 | T150: 560 | U150: 330 | V150: 330 | W150: 330 | X150: -0.007245001266 | Y150: -0.007245001266 | Z150: -0.007245001266 | AA150: 0.01866728891 | AB150: 0.01866728891 | AC150: 0.01866728891 | AD150: 0.00535653416 | AE150: 0.00535653416 | AF150: 0.00535653416
B151: 45 | C151: 31021 | D151: 30049 | E151: 31370 | F151: 29943 | G151: 31370 | H151: 29943 | I151: 31370 | J151: 29943 | K151: 61070 | L151: 61312 | M151: 61312 | N151: 61312 | O151: -349 | P151: -349 | Q151: -349 | R151: 106 | S151: 106 | T151: 106 | U151: -242 | V151: -242 | W151: -242 | X151: -0.01125044325 | Y151: -0.01125044325 | Z151: -0.01125044325 | AA151: 0.003527571633 | AB151: 0.003527571633 | AC151: 0.003527571633 | AD151: -0.003962665793 | AE151: -0.003962665793 | AF151: -0.003962665793
B152: 46 | C152: 32696 | D152: 31249 | E152: 32960 | F152: 31403 | G152: 32960 | H152: 31403 | I152: 32960 | J152: 31403 | K152: 63945 | L152: 64363 | M152: 64363 | N152: 64363 | O152: -264 | P152: -264 | Q152: -264 | R152: -154 | S152: -154 | T152: -154 | U152: -418 | V152: -418 | W152: -418 | X152: -0.008074382187 | Y152: -0.008074382187 | Z152: -0.008074382187 | AA152: -0.004928157701 | AB152: -0.004928157701 | AC152: -0.004928157701 | AD152: -0.006536867621 | AE152: -0.006536867621 | AF152: -0.006536867621
B153: 47 | C153: 33555 | D153: 31699 | E153: 33895 | F153: 31786 | G153: 33895 | H153: 31786 | I153: 33895 | J153: 31786 | K153: 65254 | L153: 65678 | M153: 65678 | N153: 65678 | O153: -340 | P153: -340 | Q153: -340 | R153: -87 | S153: -87 | T153: -87 | U153: -424 | V153: -424 | W153: -424 | X153: -0.01013261809 | Y153: -0.01013261809 | Z153: -0.01013261809 | AA153: -0.002744566075 | AB153: -0.002744566075 | AC153: -0.002744566075 | AD153: -0.006497685966 | AE153: -0.006497685966 | AF153: -0.006497685966
B154: 48 | C154: 33943 | D154: 32981 | E154: 34178 | F154: 32982 | G154: 34178 | H154: 32982 | I154: 34178 | J154: 32982 | K154: 66924 | L154: 67164 | M154: 67164 | N154: 67164 | O154: -235 | P154: -235 | Q154: -235 | R154: -1 | S154: -1 | T154: -1 | U154: -240 | V154: -240 | W154: -240 | X154: -0.006923371535 | Y154: -0.006923371535 | Z154: -0.006923371535 | AA154: -3.032048755e-05 | AB154: -3.032048755e-05 | AC154: -3.032048755e-05 | AD154: -0.003586157432 | AE154: -0.003586157432 | AF154: -0.003586157432
B155: 49 | C155: 36235 | D155: 34401 | E155: 36417 | F155: 34061 | G155: 36417 | H155: 34061 | I155: 36417 | J155: 34061 | K155: 70636 | L155: 70478 | M155: 70478 | N155: 70478 | O155: -182 | P155: -182 | Q155: -182 | R155: 340 | S155: 340 | T155: 340 | U155: 158 | V155: 158 | W155: 158 | X155: -0.005022768042 | Y155: -0.005022768042 | Z155: -0.005022768042 | AA155: 0.009883433621 | AB155: 0.009883433621 | AC155: 0.009883433621 | AD155: 0.002236819752 | AE155: 0.002236819752 | AF155: 0.002236819752
B156: 50 | C156: 39373 | D156: 37555 | E156: 39263 | F156: 36074 | G156: 39263 | H156: 36074 | I156: 39263 | J156: 36074 | K156: 76928 | L156: 75336 | M156: 75336 | N156: 75336 | O156: 110 | P156: 110 | Q156: 110 | R156: 1481 | S156: 1481 | T156: 1481 | U156: 1592 | V156: 1592 | W156: 1592 | X156: 0.002793792701 | Y156: 0.002793792701 | Z156: 0.002793792701 | AA156: 0.03943549461 | AB156: 0.03943549461 | AC156: 0.03943549461 | AD156: 0.02069467554 | AE156: 0.02069467554 | AF156: 0.02069467554
B157: 51 | C157: 39626 | D157: 37715 | E157: 40017 | F157: 37178 | G157: 40017 | H157: 37178 | I157: 40017 | J157: 37178 | K157: 77341 | L157: 77195 | M157: 77195 | N157: 77195 | O157: -391 | P157: -391 | Q157: -391 | R157: 537 | S157: 537 | T157: 537 | U157: 146 | V157: 146 | W157: 146 | X157: -0.00986725887 | Y157: -0.00986725887 | Z157: -0.00986725887 | AA157: 0.0142383667 | AB157: 0.0142383667 | AC157: 0.0142383667 | AD157: 0.001887743887 | AE157: 0.001887743887 | AF157: 0.001887743887
B158: 52 | C158: 39323 | D158: 37768 | E158: 39797 | F158: 37593 | G158: 39797 | H158: 37593 | I158: 39797 | J158: 37593 | K158: 77091 | L158: 77390 | M158: 77390 | N158: 77390 | O158: -474 | P158: -474 | Q158: -474 | R158: 175 | S158: 175 | T158: 175 | U158: -299 | V158: -299 | W158: -299 | X158: -0.01205401419 | Y158: -0.01205401419 | Z158: -0.01205401419 | AA158: 0.004633552214 | AB158: 0.004633552214 | AC158: 0.004633552214 | AD158: -0.003878533162 | AE158: -0.003878533162 | AF158: -0.003878533162
B159: 53 | C159: 41112 | D159: 39628 | E159: 41560 | F159: 39113 | G159: 41560 | H159: 39113 | I159: 41560 | J159: 39113 | K159: 80740 | L159: 80673 | M159: 80673 | N159: 80673 | O159: -448 | P159: -448 | Q159: -448 | R159: 515 | S159: 515 | T159: 515 | U159: 67 | V159: 67 | W159: 67 | X159: -0.01089706169 | Y159: -0.01089706169 | Z159: -0.01089706169 | AA159: 0.01299586151 | AB159: 0.01299586151 | AC159: 0.01299586151 | AD159: 0.0008298241268 | AE159: 0.0008298241268 | AF159: 0.0008298241268
B160: 54 | C160: 41381 | D160: 39676 | E160: 41567 | F160: 39011 | G160: 41567 | H160: 39011 | I160: 41567 | J160: 39011 | K160: 81057 | L160: 80579 | M160: 80579 | N160: 80579 | O160: -186 | P160: -186 | Q160: -186 | R160: 665 | S160: 665 | T160: 665 | U160: 478 | V160: 478 | W160: 478 | X160: -0.004494816462 | Y160: -0.004494816462 | Z160: -0.004494816462 | AA160: 0.01676076217 | AB160: 0.01676076217 | AC160: 0.01676076217 | AD160: 0.005897084768 | AE160: 0.005897084768 | AF160: 0.005897084768
B161: 55 | C161: 41268 | D161: 39910 | E161: 41340 | F161: 39359 | G161: 41340 | H161: 39359 | I161: 41340 | J161: 39359 | K161: 81178 | L161: 80696 | M161: 80696 | N161: 80696 | O161: -72 | P161: -72 | Q161: -72 | R161: 551 | S161: 551 | T161: 551 | U161: 482 | V161: 482 | W161: 482 | X161: -0.001744693225 | Y161: -0.001744693225 | Z161: -0.001744693225 | AA161: 0.01380606364 | AB161: 0.01380606364 | AC161: 0.01380606364 | AD161: 0.005937569292 | AE161: 0.005937569292 | AF161: 0.005937569292
B162: 56 | C162: 41493 | D162: 39381 | E162: 41839 | F162: 39354 | G162: 41839 | H162: 39354 | I162: 41839 | J162: 39354 | K162: 80874 | L162: 81192 | M162: 81192 | N162: 81192 | O162: -346 | P162: -346 | Q162: -346 | R162: 27 | S162: 27 | T162: 27 | U162: -318 | V162: -318 | W162: -318 | X162: -0.008338755935 | Y162: -0.008338755935 | Z162: -0.008338755935 | AA162: 0.0006856098118 | AB162: 0.0006856098118 | AC162: 0.0006856098118 | AD162: -0.003932042436 | AE162: -0.003932042436 | AF162: -0.003932042436
B163: 57 | C163: 42779 | D163: 41139 | E163: 43244 | F163: 40817 | G163: 43244 | H163: 40817 | I163: 43244 | J163: 40817 | K163: 83918 | L163: 84057 | M163: 84057 | N163: 84057 | O163: -465 | P163: -465 | Q163: -465 | R163: 322 | S163: 322 | T163: 322 | U163: -139 | V163: -139 | W163: -139 | X163: -0.0108698193 | Y163: -0.0108698193 | Z163: -0.0108698193 | AA163: 0.007827122682 | AB163: 0.007827122682 | AC163: 0.007827122682 | AD163: -0.001656378846 | AE163: -0.001656378846 | AF163: -0.001656378846
B164: 58 | C164: 41920 | D164: 39722 | E164: 42516 | F164: 39607 | G164: 42516 | H164: 39607 | I164: 42516 | J164: 39607 | K164: 81642 | L164: 82123 | M164: 82123 | N164: 82123 | O164: -596 | P164: -596 | Q164: -596 | R164: 115 | S164: 115 | T164: 115 | U164: -481 | V164: -481 | W164: -481 | X164: -0.01421755725 | Y164: -0.01421755725 | Z164: -0.01421755725 | AA164: 0.002895121092 | AB164: 0.002895121092 | AC164: 0.002895121092 | AD164: -0.005891575415 | AE164: -0.005891575415 | AF164: -0.005891575415
B165: 59 | C165: 41645 | D165: 40131 | E165: 41482 | F165: 39121 | G165: 41482 | H165: 39121 | I165: 41482 | J165: 39121 | K165: 81776 | L165: 80599 | M165: 80599 | N165: 80599 | O165: 163 | P165: 163 | Q165: 163 | R165: 1010 | S165: 1010 | T165: 1010 | U165: 1177 | V165: 1177 | W165: 1177 | X165: 0.003914035298 | Y165: 0.003914035298 | Z165: 0.003914035298 | AA165: 0.02516757619 | AB165: 0.02516757619 | AC165: 0.02516757619 | AD165: 0.01439297593 | AE165: 0.01439297593 | AF165: 0.01439297593
B166: =B73 -> 60 | C166: 40067 | D166: 38258 | E166: 39943 | F166: 37725 | G166: 39943 | H166: 37725 | I166: 39943 | J166: 37725 | K166: 78325 | L166: 77668 | M166: 77668 | N166: 77668 | O166: 124 | P166: 124 | Q166: 124 | R166: 533 | S166: 533 | T166: 533 | U166: 657 | V166: 657 | W166: 657 | X166: 0.003094816183 | Y166: 0.003094816183 | Z166: 0.003094816183 | AA166: 0.0139317267 | AB166: 0.0139317267 | AC166: 0.0139317267 | AD166: 0.008388126396 | AE166: 0.008388126396 | AF166: 0.008388126396
B167: 61 | C167: 39361 | D167: 37958 | E167: 39394 | F167: 37337 | G167: 39394 | H167: 37337 | I167: 39394 | J167: 37337 | K167: 77319 | L167: 76731 | M167: 76731 | N167: 76731 | O167: -33 | P167: -33 | Q167: -33 | R167: 621 | S167: 621 | T167: 621 | U167: 588 | V167: 588 | W167: 588 | X167: -0.0008383933335 | Y167: -0.0008383933335 | Z167: -0.0008383933335 | AA167: 0.01636018758 | AB167: 0.01636018758 | AC167: 0.01636018758 | AD167: 0.007604857797 | AE167: 0.007604857797 | AF167: 0.007604857797
B168: 62 | C168: 37341 | D168: 36163 | E168: 37445 | F168: 35650 | G168: 37445 | H168: 35650 | I168: 37445 | J168: 35650 | K168: 73504 | L168: 73095 | M168: 73095 | N168: 73095 | O168: -104 | P168: -104 | Q168: -104 | R168: 513 | S168: 513 | T168: 513 | U168: 409 | V168: 409 | W168: 409 | X168: -0.002785142337 | Y168: -0.002785142337 | Z168: -0.002785142337 | AA168: 0.01418576999 | AB168: 0.01418576999 | AC168: 0.01418576999 | AD168: 0.00556432303 | AE168: 0.00556432303 | AF168: 0.00556432303
B169: 63 | C169: 37555 | D169: 35663 | E169: 37616 | F169: 35623 | G169: 37616 | H169: 35623 | I169: 37616 | J169: 35623 | K169: 73218 | L169: 73235 | M169: 73235 | N169: 73235 | O169: -61 | P169: -61 | Q169: -61 | R169: 40 | S169: 40 | T169: 40 | U169: -17 | V169: -17 | W169: -17 | X169: -0.001624284383 | Y169: -0.001624284383 | Z169: -0.001624284383 | AA169: 0.001121610633 | AB169: 0.001121610633 | AC169: 0.001121610633 | AD169: -0.0002321833429 | AE169: -0.0002321833429 | AF169: -0.0002321833429
B170: 64 | C170: 36243 | D170: 34413 | E170: =IFERROR(E77,I77) -> 36662 | F170: =IFERROR(F77,J77) -> 34324 | G170: =IFERROR(G77,I77) -> 36662 | H170: =IFERROR(H77,J77) -> 34324 | I170: =IFERROR(I77,E77) -> 36662 | J170: =IFERROR(J77,F77) -> 34324 | K170: 70656 | L170: =IFERROR(L77,N77) -> 70989 | M170: =IFERROR(M77,N77) -> 70989 | N170: =IFERROR(N77,L77) -> 70989 | O170: =IFERROR(O77,Q77) -> -419 | P170: =IFERROR(P77,Q77) -> -419 | Q170: =IFERROR(Q77,O77) -> -419 | R170: =IFERROR(R77,T77) -> 89 | S170: =IFERROR(S77,T77) -> 89 | T170: =IFERROR(T77,R77) -> 89 | U170: =IFERROR(U77,W77) -> -333 | V170: =IFERROR(V77,W77) -> -333 | W170: =IFERROR(W77,U77) -> -333 | X170: =IFERROR(X77,Z77) -> -0.01156085313 | Y170: =IFERROR(Y77,Z77) -> -0.01156085313 | Z170: =IFERROR(Z77,X77) -> -0.01156085313 | AA170: =IFERROR(AA77,AC77) -> 0.002586231947 | AB170: =IFERROR(AB77,AC77) -> 0.002586231947 | AC170: =IFERROR(AC77,AA77) -> 0.002586231947 | AD170: =IFERROR(AD77,AF77) -> -0.004712975543 | AE170: =IFERROR(AE77,AF77) -> -0.004712975543 | AF170: =IFERROR(AF77,AD77) -> -0.004712975543
B171: 65 | C171: 34652 | D171: 33034 | E171: 34619 | F171: 32575 | G171: 34619 | H171: 32575 | I171: 34619 | J171: 32575 | K171: =K78 -> 67686 | L171: 67194 | M171: 67194 | N171: 67194 | O171: 33 | P171: 33 | Q171: 33 | R171: 459 | S171: 459 | T171: 459 | U171: 492 | V171: 492 | W171: 492 | X171: 0.0009523259841 | Y171: 0.0009523259841 | Z171: 0.0009523259841 | AA171: 0.01389477508 | AB171: 0.01389477508 | AC171: 0.01389477508 | AD171: 0.007268859144 | AE171: 0.007268859144 | AF171: 0.007268859144
B172: 66 | C172: 33422 | D172: 31482 | E172: 33898 | F172: 31428 | G172: 33898 | H172: 31428 | I172: 33898 | J172: 31428 | K172: 64904 | L172: 65323 | M172: 65323 | N172: 65323 | O172: -476 | P172: -476 | Q172: -476 | R172: 54 | S172: 54 | T172: 54 | U172: -419 | V172: -419 | W172: -419 | X172: -0.01424211597 | Y172: -0.01424211597 | Z172: -0.01424211597 | AA172: 0.001715265866 | AB172: 0.001715265866 | AC172: 0.001715265866 | AD172: -0.006455688401 | AE172: -0.006455688401 | AF172: -0.006455688401
B173: 67 | C173: 32136 | D173: 30113 | E173: 32514 | F173: 30137 | G173: 32514 | H173: 30137 | I173: 32514 | J173: 30137 | K173: 62249 | L173: 62651 | M173: 62651 | N173: 62651 | O173: -378 | P173: -378 | Q173: -378 | R173: -24 | S173: -24 | T173: -24 | U173: -402 | V173: -402 | W173: -402 | X173: -0.01176250934 | Y173: -0.01176250934 | Z173: -0.01176250934 | AA173: -0.0007969979743 | AB173: -0.0007969979743 | AC173: -0.0007969979743 | AD173: -0.006457935067 | AE173: -0.006457935067 | AF173: -0.006457935067
B174: 68 | C174: 31156 | D174: 29625 | E174: 31524 | F174: 29580 | G174: 31524 | H174: 29580 | I174: 31524 | J174: 29580 | K174: 60781 | L174: 61104 | M174: 61104 | N174: 61104 | O174: -368 | P174: -368 | Q174: -368 | R174: 45 | S174: 45 | T174: 45 | U174: -323 | V174: -323 | W174: -323 | X174: -0.01181152908 | Y174: -0.01181152908 | Z174: -0.01181152908 | AA174: 0.001518987342 | AB174: 0.001518987342 | AC174: 0.001518987342 | AD174: -0.005314160675 | AE174: -0.005314160675 | AF174: -0.005314160675
B175: 69 | C175: 30236 | D175: 28073 | E175: 30664 | F175: 28230 | G175: 30664 | H175: 28230 | I175: 30664 | J175: 28230 | K175: 58309 | L175: 58894 | M175: 58894 | N175: 58894 | O175: -428 | P175: -428 | Q175: -428 | R175: -157 | S175: -157 | T175: -157 | U175: -585 | V175: -585 | W175: -585 | X175: -0.01415531155 | Y175: -0.01415531155 | Z175: -0.01415531155 | AA175: -0.005592562248 | AB175: -0.005592562248 | AC175: -0.005592562248 | AD175: -0.01003275652 | AE175: -0.01003275652 | AF175: -0.01003275652
B176: 70 | C176: 29290 | D176: 27339 | E176: 29497 | F176: 27399 | G176: 29497 | H176: 27399 | I176: 29497 | J176: 27399 | K176: 56629 | L176: 56896 | M176: 56896 | N176: 56896 | O176: -207 | P176: -207 | Q176: -207 | R176: -60 | S176: -60 | T176: -60 | U176: -267 | V176: -267 | W176: -267 | X176: -0.00706725845 | Y176: -0.00706725845 | Z176: -0.00706725845 | AA176: -0.002194666959 | AB176: -0.002194666959 | AC176: -0.002194666959 | AD176: -0.004714898727 | AE176: -0.004714898727 | AF176: -0.004714898727
B177: 71 | C177: 28803 | D177: 26822 | E177: 29164 | F177: 26951 | G177: 29164 | H177: 26951 | I177: 29164 | J177: 26951 | K177: 55625 | L177: 56117 | M177: 56117 | N177: 56117 | O177: -361 | P177: -361 | Q177: -361 | R177: -129 | S177: -129 | T177: -129 | U177: -492 | V177: -492 | W177: -492 | X177: -0.01253341666 | Y177: -0.01253341666 | Z177: -0.01253341666 | AA177: -0.004809484751 | AB177: -0.004809484751 | AC177: -0.004809484751 | AD177: -0.00884494382 | AE177: -0.00884494382 | AF177: -0.00884494382
B178: 72 | C178: 29171 | D178: 26273 | E178: 29643 | F178: 26370 | G178: 29643 | H178: 26370 | I178: 29643 | J178: 26370 | K178: 55444 | L178: 56013 | M178: 56013 | N178: 56013 | O178: -472 | P178: -472 | Q178: -472 | R178: -97 | S178: -97 | T178: -97 | U178: -569 | V178: -569 | W178: -569 | X178: -0.01618045319 | Y178: -0.01618045319 | Z178: -0.01618045319 | AA178: -0.003692003197 | AB178: -0.003692003197 | AC178: -0.003692003197 | AD178: -0.01026260732 | AE178: -0.01026260732 | AF178: -0.01026260732
B179: 73 | C179: 29257 | D179: 26743 | E179: 29576 | F179: 26940 | G179: 29576 | H179: 26940 | I179: 29576 | J179: 26940 | K179: 56000 | L179: 56516 | M179: 56516 | N179: 56516 | O179: -319 | P179: -319 | Q179: -319 | R179: -197 | S179: -197 | T179: -197 | U179: -516 | V179: -516 | W179: -516 | X179: -0.01090337355 | Y179: -0.01090337355 | Z179: -0.01090337355 | AA179: -0.007366413641 | AB179: -0.007366413641 | AC179: -0.007366413641 | AD179: -0.009214285714 | AE179: -0.009214285714 | AF179: -0.009214285714
B180: 74 | C180: 31068 | D180: 27792 | E180: 31449 | F180: 27768 | G180: 31449 | H180: 27768 | I180: 31449 | J180: 27768 | K180: 58860 | L180: 59217 | M180: 59217 | N180: 59217 | O180: -381 | P180: -381 | Q180: -381 | R180: 24 | S180: 24 | T180: 24 | U180: -357 | V180: -357 | W180: -357 | X180: -0.01226342217 | Y180: -0.01226342217 | Z180: -0.01226342217 | AA180: 0.0008635578584 | AB180: 0.0008635578584 | AC180: 0.0008635578584 | AD180: -0.006065239551 | AE180: -0.006065239551 | AF180: -0.006065239551
B181: 75 | C181: 30102 | D181: 26602 | E181: 30366 | F181: 26690 | G181: 30366 | H181: 26690 | I181: 30366 | J181: 26690 | K181: 56704 | L181: 57055 | M181: 57055 | N181: 57055 | O181: -264 | P181: -264 | Q181: -264 | R181: -88 | S181: -88 | T181: -88 | U181: -351 | V181: -351 | W181: -351 | X181: -0.008770181383 | Y181: -0.008770181383 | Z181: -0.008770181383 | AA181: -0.003308021953 | AB181: -0.003308021953 | AC181: -0.003308021953 | AD181: -0.006190039503 | AE181: -0.006190039503 | AF181: -0.006190039503
B182: 76 | C182: 21968 | D182: 19325 | E182: 22176 | F182: 19508 | G182: 22176 | H182: 19508 | I182: 22176 | J182: 19508 | K182: 41293 | L182: 41684 | M182: 41684 | N182: 41684 | O182: -208 | P182: -208 | Q182: -208 | R182: -183 | S182: -183 | T182: -183 | U182: -391 | V182: -391 | W182: -391 | X182: -0.009468317553 | Y182: -0.009468317553 | Z182: -0.009468317553 | AA182: -0.009469598965 | AB182: -0.009469598965 | AC182: -0.009469598965 | AD182: -0.00946891725 | AE182: -0.00946891725 | AF182: -0.00946891725
B183: 77 | C183: 22761 | D183: 19075 | E183: 23066 | F183: 19252 | G183: 23066 | H183: 19252 | I183: 23066 | J183: 19252 | K183: 41836 | L183: 42318 | M183: 42318 | N183: 42318 | O183: -305 | P183: -305 | Q183: -305 | R183: -177 | S183: -177 | T183: -177 | U183: -482 | V183: -482 | W183: -482 | X183: -0.01340011423 | Y183: -0.01340011423 | Z183: -0.01340011423 | AA183: -0.009279161206 | AB183: -0.009279161206 | AC183: -0.009279161206 | AD183: -0.01152117793 | AE183: -0.01152117793 | AF183: -0.01152117793
B184: 78 | C184: 21857 | D184: 17957 | E184: 22149 | F184: 18045 | G184: 22149 | H184: 18045 | I184: 22149 | J184: 18045 | K184: 39814 | L184: 40194 | M184: 40194 | N184: 40194 | O184: -292 | P184: -292 | Q184: -292 | R184: -88 | S184: -88 | T184: -88 | U184: -380 | V184: -380 | W184: -380 | X184: -0.01335956444 | Y184: -0.01335956444 | Z184: -0.01335956444 | AA184: -0.004900595868 | AB184: -0.004900595868 | AC184: -0.004900595868 | AD184: -0.009544381373 | AE184: -0.009544381373 | AF184: -0.009544381373
B185: 79 | C185: 20302 | D185: 15996 | E185: 20680 | F185: 16308 | G185: 20680 | H185: 16308 | I185: 20680 | J185: 16308 | K185: 36298 | L185: 36988 | M185: 36988 | N185: 36988 | O185: -378 | P185: -378 | Q185: -378 | R185: -312 | S185: -312 | T185: -312 | U185: -690 | V185: -690 | W185: -690 | X185: -0.01861885529 | Y185: -0.01861885529 | Z185: -0.01861885529 | AA185: -0.01950487622 | AB185: -0.01950487622 | AC185: -0.01950487622 | AD185: -0.01900931181 | AE185: -0.01900931181 | AF185: -0.01900931181
B186: =B93 -> 80 | C186: 18022 | D186: 13906 | E186: 18315 | F186: 14247 | G186: 18315 | H186: 14247 | I186: 18315 | J186: 14247 | K186: 31928 | L186: 32565 | M186: 32565 | N186: 32565 | O186: -293 | P186: -293 | Q186: -293 | R186: -341 | S186: -341 | T186: -341 | U186: -637 | V186: -637 | W186: -637 | X186: -0.016257907 | Y186: -0.016257907 | Z186: -0.016257907 | AA186: -0.02452178916 | AB186: -0.02452178916 | AC186: -0.02452178916 | AD186: -0.01995114007 | AE186: -0.01995114007 | AF186: -0.01995114007
B187: 81 | C187: 16965 | D187: 12473 | E187: 17096 | F187: 12614 | G187: 17096 | H187: 12614 | I187: 17096 | J187: 12614 | K187: 29438 | L187: 29710 | M187: 29710 | N187: 29710 | O187: -131 | P187: -131 | Q187: -131 | R187: -141 | S187: -141 | T187: -141 | U187: -272 | V187: -272 | W187: -272 | X187: -0.007721780136 | Y187: -0.007721780136 | Z187: -0.007721780136 | AA187: -0.01130441754 | AB187: -0.01130441754 | AC187: -0.01130441754 | AD187: -0.009239758136 | AE187: -0.009239758136 | AF187: -0.009239758136
B188: 82 | C188: 16479 | D188: 12024 | E188: 16664 | F188: 12196 | G188: 16664 | H188: 12196 | I188: 16664 | J188: 12196 | K188: 28503 | L188: 28860 | M188: 28860 | N188: 28860 | O188: -185 | P188: -185 | Q188: -185 | R188: -172 | S188: -172 | T188: -172 | U188: -357 | V188: -357 | W188: -357 | X188: -0.01122640937 | Y188: -0.01122640937 | Z188: -0.01122640937 | AA188: -0.01430472389 | AB188: -0.01430472389 | AC188: -0.01430472389 | AD188: -0.01252499737 | AE188: -0.01252499737 | AF188: -0.01252499737
B189: 83 | C189: 15598 | D189: 11016 | E189: 15661 | F189: 11021 | G189: 15661 | H189: 11021 | I189: 15661 | J189: 11021 | K189: 26614 | L189: 26685 | M189: 26685 | N189: 26685 | O189: -63 | P189: -63 | Q189: -63 | R189: -5 | S189: -5 | T189: -5 | U189: -71 | V189: -71 | W189: -71 | X189: -0.004038979356 | Y189: -0.004038979356 | Z189: -0.004038979356 | AA189: -0.0004538852578 | AB189: -0.0004538852578 | AC189: -0.0004538852578 | AD189: -0.002667768843 | AE189: -0.002667768843 | AF189: -0.002667768843
B190: 84 | C190: 14184 | D190: 10140 | E190: 14108 | F190: 10204 | G190: 14108 | H190: 10204 | I190: 14108 | J190: 10204 | K190: 24324 | L190: 24312 | M190: 24312 | N190: 24312 | O190: 76 | P190: 76 | Q190: 76 | R190: -64 | S190: -64 | T190: -64 | U190: 12 | V190: 12 | W190: 12 | X190: 0.005358150028 | Y190: 0.005358150028 | Z190: 0.005358150028 | AA190: -0.006311637081 | AB190: -0.006311637081 | AC190: -0.006311637081 | AD190: 0.0004933399112 | AE190: 0.0004933399112 | AF190: 0.0004933399112
B191: 85 | C191: 13061 | D191: 8519 | E191: 0 | F191: 0 | G191: 0 | H191: 0 | I191: 0 | J191: 0 | K191: 21580 | L191: 0 | M191: 0 | N191: 0 | O191: 13061 | P191: 13061 | Q191: 13061 | R191: 8519 | S191: 8519 | T191: 8519 | U191: 21580 | V191: 21580 | W191: 21580 | X191: 1 | Y191: 1 | Z191: 1 | AA191: 1 | AB191: 1 | AC191: 1 | AD191: 1 | AE191: 1 | AF191: 1
B192: 86 | C192: 11734 | D192: 7338 | E192: 0 | F192: 0 | G192: 0 | H192: 0 | I192: 0 | J192: 0 | K192: 19072 | L192: 0 | M192: 0 | N192: 0 | O192: 0 | P192: 0 | Q192: 0 | R192: 0 | S192: 0 | T192: 0 | U192: 0 | V192: 0 | W192: 0 | X192: 0 | Y192: 0 | Z192: 0 | AA192: 0 | AB192: 0 | AC192: 0 | AD192: 0 | AE192: 0 | AF192: 0
B193: 87 | C193: 10363 | D193: 6314 | E193: 0 | F193: 0 | G193: 0 | H193: 0 | I193: 0 | J193: 0 | K193: 16677 | L193: 0 | M193: 0 | N193: 0 | O193: 0 | P193: 0 | Q193: 0 | R193: 0 | S193: 0 | T193: 0 | U193: 0 | V193: 0 | W193: 0 | X193: 0 | Y193: 0 | Z193: 0 | AA193: 0 | AB193: 0 | AC193: 0 | AD193: 0 | AE193: 0 | AF193: 0
B194: 88 | C194: 8963 | D194: 5359 | E194: 0 | F194: 0 | G194: 0 | H194: 0 | I194: 0 | J194: 0 | K194: 14322 | L194: 0 | M194: 0 | N194: 0 | O194: 0 | P194: 0 | Q194: 0 | R194: 0 | S194: 0 | T194: 0 | U194: 0 | V194: 0 | W194: 0 | X194: 0 | Y194: 0 | Z194: 0 | AA194: 0 | AB194: 0 | AC194: 0 | AD194: 0 | AE194: 0 | AF194: 0
B195: 89 | C195: 7811 | D195: 4413 | E195: 0 | F195: 0 | G195: 0 | H195: 0 | I195: 0 | J195: 0 | K195: 12224 | L195: 0 | M195: 0 | N195: 0 | O195: 0 | P195: 0 | Q195: 0 | R195: 0 | S195: 0 | T195: 0 | U195: 0 | V195: 0 | W195: 0 | X195: 0 | Y195: 0 | Z195: 0 | AA195: 0 | AB195: 0 | AC195: 0 | AD195: 0 | AE195: 0 | AF195: 0
B196: 90 | C196: 29597 | D196: 13175 | E196: 0 | F196: 0 | G196: 0 | H196: 0 | I196: 0 | J196: 0 | K196: 42772 | L196: 0 | M196: 0 | N196: 0 | O196: 0 | P196: 0 | Q196: 0 | R196: 0 | S196: 0 | T196: 0 | U196: 0 | V196: 0 | W196: 0 | X196: 0 | Y196: 0 | Z196: 0 | AA196: 0 | AB196: 0 | AC196: 0 | AD196: 0 | AE196: 0 | AF196: 0
C203: Years | D203: Council Area | F203: Graph | G203: Title
C204: 2016 | D204: Aberdeen City | F204: CA | G204: =CONCATENATE("Total population for ABPE, MYE, rebased MYE and Census for ",D4," by age ",D5) -> Total population for ABPE, MYE, rebased MYE and Census for Scotland by age 2022
C205: 2017 | D205: Aberdeenshire | F205: CA - M | G205: =CONCATENATE("Male population for ABPE, MYE, rebased MYE and Census for ",D4," by age ",D5) -> Male population for ABPE, MYE, rebased MYE and Census for Scotland by age 2022
C206: 2018 | D206: Angus | F206: CA - F | G206: =CONCATENATE("Female population for ABPE, MYE, rebased MYE and Census for ",D4," by age ",D5) -> Female population for ABPE, MYE, rebased MYE and Census for Scotland by age 2022
C207: 2019 | D207: Argyll and Bute | F207: CA abs 1-yr | G207: =CONCATENATE("Absolute difference between ABPE and MYE for ",D4," by age ",D5) -> Absolute difference between ABPE and MYE for Scotland by age 2022
C208: 2020 | D208: City of Edinburgh | F208: CA abs 1-yr - M | G208: =CONCATENATE("Male Absolute difference between ABPE and MYE for ",D4," by age ",D5) -> Male Absolute difference between ABPE and MYE for Scotland by age 2022
C209: 2021 | D209: Clackmannanshire | F209: CA abs 1-yr - F | G209: =CONCATENATE("Female Absolute difference between ABPE and MYE for ",D4," by age ",D5) -> Female Absolute difference between ABPE and MYE for Scotland by age 2022
C210: 2022 | D210: Dumfries and Galloway | F210: CA abs 5-yr | G210: =CONCATENATE("Absolute difference between ABPE and MYE by 5-year age band for ",D4," by age ",D5) -> Absolute difference between ABPE and MYE by 5-year age band for Scotland by age 2022
D211: Dundee City | F211: CA abs 5-yr - M | G211: =CONCATENATE("Male absolute difference between ABPE and MYE by 5-year age band for ",D4," by age ",D5) -> Male absolute difference between ABPE and MYE by 5-year age band for Scotland by age 2022
D212: East Ayrshire | F212: CA abs 5-yr - F | G212: =CONCATENATE("Female absolute difference between ABPE and MYE by 5-year age band for ",D4," by age ",D5) -> Female absolute difference between ABPE and MYE by 5-year age band for Scotland by age 2022
... 25 more rows

Sheet ABPE LA 2016 (hidden)
A1: This is our final population estimate by local authority, sex and age, 2016
A2: This worksheet contains one table.
B3: Total
B4: =SUM(B8:BO98)/2 -> 5365050
B6: F | AI6: M
B7: Aberdeen City | C7: Aberdeenshire | D7: Angus | E7: Argyll and Bute | F7: City of Edinburgh | G7: Clackmannanshire | H7: Dumfries and Galloway | I7: Dundee City | J7: East Ayrshire | K7: East Dunbartonshire | L7: East Lothian | M7: East Renfrewshire | N7: Falkirk | O7: Fife | P7: Glasgow City | Q7: Highland | R7: Inverclyde | S7: Midlothian | T7: Moray | U7: Na h-Eileanan Siar | V7: North Ayrshire | W7: North Lanarkshire | X7: Orkney Islands | Y7: Perth and Kinross | Z7: Renfrewshire | AA7: Scottish Borders | AB7: Shetland Islands | AC7: South Ayrshire | AD7: South Lanarkshire | AE7: Stirling | AF7: West Dunbartonshire | AG7: West Lothian | AH7: Scotland | AI7: Aberdeen City | AJ7: Aberdeenshire | AK7: Angus | AL7: Argyll and Bute | AM7: City of Edinburgh | AN7: Clackmannanshire | AO7: Dumfries and Galloway | AP7: Dundee City | AQ7: East Ayrshire | AR7: East Dunbartonshire | AS7: East Lothian | AT7: East Renfrewshire | AU7: Falkirk | AV7: Fife | AW7: Glasgow City | AX7: Highland | AY7: Inverclyde | AZ7: Midlothian | BA7: Moray | BB7: Na h-Eileanan Siar | BC7: North Ayrshire | BD7: North Lanarkshire | BE7: Orkney Islands | BF7: Perth and Kinross | BG7: Renfrewshire | BH7: Scottish Borders | BI7: Shetland Islands | BJ7: South Ayrshire | BK7: South Lanarkshire | BL7: Stirling | BM7: West Dunbartonshire | BN7: West Lothian | BO7: Scotland | BQ7: Total
A8: 0 | B8: 1203 | C8: 1414 | D8: 489 | E8: 349 | F8: 2462 | G8: 242 | H8: 637 | I8: 715 | J8: 620 | K8: 466 | L8: 534 | M8: 460 | N8: 720 | O8: 1831 | P8: 3422 | Q8: 1070 | R8: 322 | S8: 519 | T8: 447 | U8: 103 | V8: 605 | W8: 1778 | X8: 87 | Y8: 647 | Z8: 866 | AA8: 515 | AB8: 127 | AC8: 496 | AD8: 1512 | AE8: 407 | AF8: 483 | AG8: 947 | AH8: 26495 | AI8: 1269 | AJ8: 1496 | AK8: 554 | AL8: 356 | AM8: 2717 | AN8: 293 | AO8: 662 | AP8: 788 | AQ8: 686 | AR8: 520 | AS8: 559 | AT8: 444 | AU8: 879 | AV8: 1878 | AW8: 3526 | AX8: 1161 | AY8: 362 | AZ8: 563 | BA8: 510 | BB8: 123 | BC8: 703 | BD8: 1915 | BE8: 77 | BF8: 697 | BG8: 901 | BH8: 528 | BI8: 127 | BJ8: 516 | BK8: 1690 | BL8: 430 | BM8: 486 | BN8: 1019 | BO8: 28435 | BQ8: =AH8+BO8 -> 54930
A9: 1 | B9: 1119 | C9: 1411 | D9: 510 | E9: 359 | F9: 2481 | G9: 256 | H9: 635 | I9: 768 | J9: 618 | K9: 531 | L9: 535 | M9: 411 | N9: 809 | O9: 1920 | P9: 3358 | Q9: 1121 | R9: 364 | S9: 520 | T9: 420 | U9: 112 | V9: 615 | W9: 1794 | X9: 89 | Y9: 683 | Z9: 827 | AA9: 492 | AB9: 122 | AC9: 527 | AD9: 1647 | AE9: 397 | AF9: 435 | AG9: 915 | AH9: 26801 | AI9: 1204 | AJ9: 1436 | AK9: 615 | AL9: 366 | AM9: 2681 | AN9: 291 | AO9: 665 | AP9: 773 | AQ9: 696 | AR9: 498 | AS9: 517 | AT9: 498 | AU9: 871 | AV9: 1941 | AW9: 3549 | AX9: 1155 | AY9: 372 | AZ9: 564 | BA9: 456 | BB9: 103 | BC9: 671 | BD9: 1865 | BE9: 109 | BF9: 727 | BG9: 891 | BH9: 444 | BI9: 107 | BJ9: 503 | BK9: 1736 | BL9: 417 | BM9: 462 | BN9: 1071 | BO9: 28254 | BQ9: =AH9+BO9 -> 55055
A10: 2 | B10: 1112 | C10: 1472 | D10: 568 | E10: 399 | F10: 2562 | G10: 243 | H10: 613 | I10: 732 | J10: 604 | K10: 559 | L10: 546 | M10: 505 | N10: 837 | O10: 1826 | P10: 3305 | Q10: 1070 | R10: 358 | S10: 552 | T10: 476 | U10: 126 | V10: 663 | W10: 1789 | X10: 78 | Y10: 597 | Z10: 873 | AA10: 537 | AB10: 116 | AC10: 470 | AD10: 1617 | AE10: 417 | AF10: 462 | AG10: 1016 | AH10: 27100 | AI10: 1187 | AJ10: 1494 | AK10: 618 | AL10: 377 | AM10: 2677 | AN10: 281 | AO10: 708 | AP10: 770 | AQ10: 620 | AR10: 554 | AS10: 571 | AT10: 536 | AU10: 840 | AV10: 2015 | AW10: 3439 | AX10: 1172 | AY10: 401 | AZ10: 554 | BA10: 470 | BB10: 134 | BC10: 679 | BD10: 1883 | BE10: 102 | BF10: 737 | BG10: 930 | BH10: 558 | BI10: 126 | BJ10: 521 | BK10: 1709 | BL10: 456 | BM10: 477 | BN10: 1084 | BO10: 28680 | BQ10: 55780
A11: 3 | B11: 1067 | C11: 1453 | D11: 625 | E11: 365 | F11: 2453 | G11: 278 | H11: 680 | I11: 775 | J11: 658 | K11: 569 | L11: 548 | M11: 542 | N11: 822 | O11: 1928 | P11: 3296 | Q11: 1168 | R11: 393 | S11: 594 | T11: 465 | U11: 126 | V11: 636 | W11: 1826 | X11: 86 | Y11: 714 | Z11: 909 | AA11: 557 | AB11: 148 | AC11: 471 | AD11: 1678 | AE11: 413 | AF11: 511 | AG11: 1096 | AH11: 27850 | AI11: 1122 | AJ11: 1543 | AK11: 612 | AL11: 397 | AM11: 2654 | AN11: 319 | AO11: 709 | AP11: 814 | AQ11: 661 | AR11: 550 | AS11: 599 | AT11: 539 | AU11: 888 | AV11: 2056 | AW11: 3406 | AX11: 1130 | AY11: 384 | AZ11: 512 | BA11: 533 | BB11: 123 | BC11: 691 | BD11: 1959 | BE11: 119 | BF11: 710 | BG11: 999 | BH11: 562 | BI11: 143 | BJ11: 564 | BK11: 1766 | BL11: 462 | BM11: 504 | BN11: 1051 | BO11: 29081 | BQ11: 56931
A12: 4 | B12: 1126 | C12: 1511 | D12: 613 | E12: 437 | F12: 2533 | G12: 297 | H12: 699 | I12: 816 | J12: 668 | K12: 547 | L12: 631 | M12: 561 | N12: 895 | O12: 1949 | P12: 3325 | Q12: 1189 | R12: 344 | S12: 560 | T12: 483 | U12: 111 | V12: 747 | W12: 1876 | X12: 92 | Y12: 746 | Z12: 939 | AA12: 549 | AB12: 122 | AC12: 547 | AD12: 1672 | AE12: 483 | AF12: 485 | AG12: 1020 | AH12: 28573 | AI12: 1138 | AJ12: 1585 | AK12: 605 | AL12: 404 | AM12: 2640 | AN12: 328 | AO12: 721 | AP12: 848 | AQ12: 743 | AR12: 584 | AS12: 633 | AT12: 610 | AU12: 957 | AV12: 2088 | AW12: 3453 | AX12: 1282 | AY12: 416 | AZ12: 601 | BA12: 477 | BB12: 148 | BC12: 756 | BD12: 2063 | BE12: 122 | BF12: 777 | BG12: 988 | BH12: 550 | BI12: 139 | BJ12: 514 | BK12: 1896 | BL12: 463 | BM12: 543 | BN12: 1143 | BO12: 30215 | BQ12: 58788
A13: 5 | B13: 1084 | C13: 1487 | D13: 570 | E13: 397 | F13: 2484 | G13: 280 | H13: 723 | I13: 774 | J13: 662 | K13: 601 | L13: 621 | M13: 567 | N13: 846 | O13: 2129 | P13: 3222 | Q13: 1165 | R13: 377 | S13: 573 | T13: 495 | U13: 112 | V13: 763 | W13: 1930 | X13: 111 | Y13: 749 | Z13: 967 | AA13: 519 | AB13: 139 | AC13: 551 | AD13: 1786 | AE13: 433 | AF13: 493 | AG13: 1097 | AH13: 28707 | AI13: 1164 | AJ13: 1612 | AK13: 598 | AL13: 434 | AM13: 2590 | AN13: 283 | AO13: 757 | AP13: 866 | AQ13: 685 | AR13: 639 | AS13: 639 | AT13: 625 | AU13: 960 | AV13: 2204 | AW13: 3381 | AX13: 1242 | AY13: 413 | AZ13: 528 | BA13: 540 | BB13: 135 | BC13: 746 | BD13: 1991 | BE13: 102 | BF13: 806 | BG13: 916 | BH13: 623 | BI13: 144 | BJ13: 598 | BK13: 1830 | BL13: 456 | BM13: 523 | BN13: 1185 | BO13: 30215 | BQ13: 58922
A14: 6 | B14: 1080 | C14: 1611 | D14: 672 | E14: 442 | F14: 2461 | G14: 321 | H14: 764 | I14: 772 | J14: 647 | K14: 564 | L14: 607 | M14: 589 | N14: 947 | O14: 2047 | P14: 3328 | Q14: 1200 | R14: 398 | S14: 548 | T14: 501 | U14: 116 | V14: 705 | W14: 2003 | X14: 113 | Y14: 753 | Z14: 936 | AA14: 584 | AB14: 118 | AC14: 572 | AD14: 1748 | AE14: 464 | AF14: 489 | AG14: 1089 | AH14: 29189 | AI14: 1143 | AJ14: 1660 | AK14: 593 | AL14: 427 | AM14: 2474 | AN14: 269 | AO14: 806 | AP14: 815 | AQ14: 685 | AR14: 592 | AS14: 616 | AT14: 620 | AU14: 943 | AV14: 2241 | AW14: 3401 | AX14: 1265 | AY14: 422 | AZ14: 572 | BA14: 510 | BB14: 139 | BC14: 731 | BD14: 2039 | BE14: 115 | BF14: 800 | BG14: 981 | BH14: 578 | BI14: 156 | BJ14: 595 | BK14: 1810 | BL14: 511 | BM14: 521 | BN14: 1137 | BO14: 30167 | BQ14: 59356
A15: 7 | B15: 1058 | C15: 1577 | D15: 611 | E15: 428 | F15: 2486 | G15: 287 | H15: 750 | I15: 778 | J15: 694 | K15: 564 | L15: 594 | M15: 573 | N15: 972 | O15: 2132 | P15: 3211 | Q15: 1193 | R15: 369 | S15: 508 | T15: 491 | U15: 118 | V15: 721 | W15: 2070 | X15: 101 | Y15: 795 | Z15: 883 | AA15: 588 | AB15: 142 | AC15: 551 | AD15: 1788 | AE15: 480 | AF15: 516 | AG15: 1109 | AH15: 29138 | AI15: 1104 | AJ15: 1599 | AK15: 618 | AL15: 424 | AM15: 2557 | AN15: 329 | AO15: 742 | AP15: 871 | AQ15: 704 | AR15: 634 | AS15: 648 | AT15: 566 | AU15: 936 | AV15: 2190 | AW15: 3327 | AX15: 1380 | AY15: 434 | AZ15: 567 | BA15: 540 | BB15: 142 | BC15: 794 | BD15: 2063 | BE15: 128 | BF15: 819 | BG15: 973 | BH15: 619 | BI15: 137 | BJ15: 601 | BK15: 1822 | BL15: 495 | BM15: 520 | BN15: 1210 | BO15: 30493 | BQ15: 59631
A16: 8 | B16: 1068 | C16: 1474 | D16: 651 | E16: 425 | F16: 2460 | G16: 321 | H16: 782 | I16: 796 | J16: 614 | K16: 585 | L16: 641 | M16: 575 | N16: 988 | O16: 2089 | P16: 3151 | Q16: 1219 | R16: 383 | S16: 554 | T16: 537 | U16: 123 | V16: 755 | W16: 1969 | X16: 119 | Y16: 786 | Z16: 1011 | AA16: 630 | AB16: 106 | AC16: 565 | AD16: 1795 | AE16: 478 | AF16: 562 | AG16: 1143 | AH16: 29355 | AI16: 1043 | AJ16: 1637 | AK16: 646 | AL16: 417 | AM16: 2513 | AN16: 325 | AO16: 777 | AP16: 795 | AQ16: 704 | AR16: 618 | AS16: 670 | AT16: 597 | AU16: 927 | AV16: 2217 | AW16: 3232 | AX16: 1332 | AY16: 456 | AZ16: 485 | BA16: 565 | BB16: 161 | BC16: 752 | BD16: 2158 | BE16: 100 | BF16: 797 | BG16: 971 | BH16: 599 | BI16: 127 | BJ16: 615 | BK16: 1878 | BL16: 501 | BM16: 540 | BN16: 1182 | BO16: 30337 | BQ16: 59692
A17: 9 | B17: 1048 | C17: 1446 | D17: 608 | E17: 390 | F17: 2234 | G17: 290 | H17: 756 | I17: 731 | J17: 645 | K17: 574 | L17: 622 | M17: 553 | N17: 909 | O17: 2002 | P17: 3017 | Q17: 1190 | R17: 391 | S17: 484 | T17: 506 | U17: 146 | V17: 757 | W17: 1928 | X17: 105 | Y17: 764 | Z17: 915 | AA17: 616 | AB17: 124 | AC17: 552 | AD17: 1744 | AE17: 510 | AF17: 515 | AG17: 1098 | AH17: 28170 | AI17: 1016 | AJ17: 1595 | AK17: 627 | AL17: 437 | AM17: 2333 | AN17: 299 | AO17: 850 | AP17: 752 | AQ17: 692 | AR17: 552 | AS17: 628 | AT17: 592 | AU17: 958 | AV17: 2084 | AW17: 3132 | AX17: 1268 | AY17: 445 | AZ17: 535 | BA17: 551 | BB17: 152 | BC17: 816 | BD17: 2094 | BE17: 121 | BF17: 809 | BG17: 927 | BH17: 610 | BI17: 142 | BJ17: 574 | BK17: 1863 | BL17: 517 | BM17: 542 | BN17: 1158 | BO17: 29671 | BQ17: 57841
A18: 10 | B18: 949 | C18: 1478 | D18: 592 | E18: 400 | F18: 2037 | G18: 280 | H18: 767 | I18: 685 | J18: 628 | K18: 557 | L18: 598 | M18: 571 | N18: 868 | O18: 2026 | P18: 2833 | Q18: 1199 | R18: 403 | S18: 515 | T18: 433 | U18: 133 | V18: 718 | W18: 1898 | X18: 120 | Y18: 710 | Z18: 933 | AA18: 579 | AB18: 152 | AC18: 554 | AD18: 1797 | AE18: 472 | AF18: 495 | AG18: 1070 | AH18: 27450 | AI18: 969 | AJ18: 1561 | AK18: 615 | AL18: 432 | AM18: 2230 | AN18: 306 | AO18: 786 | AP18: 720 | AQ18: 680 | AR18: 613 | AS18: 663 | AT18: 575 | AU18: 883 | AV18: 2038 | AW18: 3075 | AX18: 1270 | AY18: 405 | AZ18: 519 | BA18: 475 | BB18: 130 | BC18: 768 | BD18: 1987 | BE18: 115 | BF18: 703 | BG18: 949 | BH18: 650 | BI18: 129 | BJ18: 537 | BK18: 1779 | BL18: 475 | BM18: 493 | BN18: 1120 | BO18: 28650 | BQ18: 56100
A19: 11 | B19: 894 | C19: 1409 | D19: 617 | E19: 380 | F19: 1952 | G19: 264 | H19: 756 | I19: 739 | J19: 632 | K19: 559 | L19: 553 | M19: 600 | N19: 856 | O19: 1901 | P19: 2756 | Q19: 1176 | R19: 411 | S19: 465 | T19: 496 | U19: 117 | V19: 686 | W19: 1903 | X19: 119 | Y19: 744 | Z19: 908 | AA19: 604 | AB19: 111 | AC19: 597 | AD19: 1708 | AE19: 500 | AF19: 469 | AG19: 1035 | AH19: 26917 | AI19: 940 | AJ19: 1474 | AK19: 630 | AL19: 443 | AM19: 2146 | AN19: 297 | AO19: 801 | AP19: 779 | AQ19: 662 | AR19: 606 | AS19: 650 | AT19: 606 | AU19: 904 | AV19: 2028 | AW19: 3009 | AX19: 1254 | AY19: 456 | AZ19: 498 | BA19: 463 | BB19: 135 | BC19: 772 | BD19: 2006 | BE19: 100 | BF19: 839 | BG19: 918 | BH19: 639 | BI19: 140 | BJ19: 559 | BK19: 1747 | BL19: 525 | BM19: 516 | BN19: 1139 | BO19: 28681 | BQ19: 55598
A20: 12 | B20: 868 | C20: 1386 | D20: 609 | E20: 410 | F20: 1957 | G20: 286 | H20: 723 | I20: 655 | J20: 636 | K20: 542 | L20: 595 | M20: 591 | N20: 811 | O20: 1891 | P20: 2722 | Q20: 1196 | R20: 405 | S20: 455 | T20: 474 | U20: 143 | V20: 720 | W20: 1935 | X20: 92 | Y20: 756 | Z20: 897 | AA20: 592 | AB20: 102 | AC20: 537 | AD20: 1722 | AE20: 503 | AF20: 470 | AG20: 1050 | AH20: 26731 | AI20: 860 | AJ20: 1485 | AK20: 640 | AL20: 453 | AM20: 2112 | AN20: 291 | AO20: 739 | AP20: 734 | AQ20: 691 | AR20: 635 | AS20: 609 | AT20: 620 | AU20: 872 | AV20: 2041 | AW20: 2831 | AX20: 1206 | AY20: 418 | AZ20: 508 | BA20: 479 | BB20: 134 | BC20: 735 | BD20: 2071 | BE20: 116 | BF20: 778 | BG20: 914 | BH20: 629 | BI20: 130 | BJ20: 557 | BK20: 1786 | BL20: 574 | BM20: 487 | BN20: 1072 | BO20: 28207 | BQ20: 54938
A21: 13 | B21: 815 | C21: 1390 | D21: 623 | E21: 392 | F21: 1904 | G21: 258 | H21: 736 | I21: 654 | J21: 627 | K21: 561 | L21: 524 | M21: 579 | N21: 835 | O21: 1834 | P21: 2686 | Q21: 1175 | R21: 386 | S21: 445 | T21: 447 | U21: 137 | V21: 703 | W21: 1860 | X21: 105 | Y21: 748 | Z21: 878 | AA21: 555 | AB21: 122 | AC21: 521 | AD21: 1637 | AE21: 494 | AF21: 468 | AG21: 999 | AH21: 26098 | AI21: 875 | AJ21: 1460 | AK21: 602 | AL21: 421 | AM21: 2085 | AN21: 269 | AO21: 754 | AP21: 720 | AQ21: 631 | AR21: 591 | AS21: 523 | AT21: 563 | AU21: 870 | AV21: 1960 | AW21: 2740 | AX21: 1171 | AY21: 415 | AZ21: 500 | BA21: 474 | BB21: 140 | BC21: 763 | BD21: 1920 | BE21: 103 | BF21: 808 | BG21: 882 | BH21: 613 | BI21: 132 | BJ21: 543 | BK21: 1635 | BL21: 524 | BM21: 478 | BN21: 991 | BO21: 27156 | BQ21: 53254
A22: 14 | B22: 839 | C22: 1360 | D22: 594 | E22: 404 | F22: 1960 | G22: 267 | H22: 662 | I22: 670 | J22: 654 | K22: 570 | L22: 549 | M22: 559 | N22: 729 | O22: 1811 | P22: 2643 | Q22: 1134 | R22: 377 | S22: 416 | T22: 437 | U22: 128 | V22: 697 | W22: 1842 | X22: 114 | Y22: 740 | Z22: 872 | AA22: 573 | AB22: 113 | AC22: 511 | AD22: 1684 | AE22: 460 | AF22: 474 | AG22: 1091 | AH22: 25934 | AI22: 897 | AJ22: 1399 | AK22: 604 | AL22: 442 | AM22: 2054 | AN22: 321 | AO22: 730 | AP22: 692 | AQ22: 593 | AR22: 581 | AS22: 593 | AT22: 579 | AU22: 825 | AV22: 1881 | AW22: 2704 | AX22: 1193 | AY22: 375 | AZ22: 480 | BA22: 493 | BB22: 115 | BC22: 720 | BD22: 1920 | BE22: 95 | BF22: 792 | BG22: 895 | BH22: 591 | BI22: 128 | BJ22: 568 | BK22: 1721 | BL22: 513 | BM22: 445 | BN22: 1002 | BO22: 26941 | BQ22: 52875
A23: 15 | B23: 866 | C23: 1380 | D23: 615 | E23: 433 | F23: 1969 | G23: 301 | H23: 694 | I23: 620 | J23: 627 | K23: 574 | L23: 577 | M23: 558 | N23: 814 | O23: 1851 | P23: 2822 | Q23: 1209 | R23: 413 | S23: 492 | T23: 476 | U23: 145 | V23: 747 | W23: 1914 | X23: 92 | Y23: 818 | Z23: 940 | AA23: 582 | AB23: 118 | AC23: 539 | AD23: 1706 | AE23: 533 | AF23: 463 | AG23: 995 | AH23: 26883 | AI23: 908 | AJ23: 1444 | AK23: 655 | AL23: 430 | AM23: 1989 | AN23: 287 | AO23: 757 | AP23: 688 | AQ23: 654 | AR23: 627 | AS23: 536 | AT23: 605 | AU23: 830 | AV23: 2001 | AW23: 2863 | AX23: 1284 | AY23: 427 | AZ23: 500 | BA23: 534 | BB23: 112 | BC23: 763 | BD23: 1966 | BE23: 98 | BF23: 853 | BG23: 959 | BH23: 611 | BI23: 116 | BJ23: 586 | BK23: 1713 | BL23: 518 | BM23: 458 | BN23: 1072 | BO23: 27844 | BQ23: 54727
A24: 16 | B24: 912 | C24: 1367 | D24: 607 | E24: 413 | F24: 1994 | G24: 286 | H24: 713 | I24: 695 | J24: 657 | K24: 528 | L24: 598 | M24: 563 | N24: 804 | O24: 1819 | P24: 2807 | Q24: 1178 | R24: 422 | S24: 514 | T24: 509 | U24: 128 | V24: 718 | W24: 1899 | X24: 111 | Y24: 805 | Z24: 949 | AA24: 625 | AB24: 139 | AC24: 557 | AD24: 1754 | AE24: 527 | AF24: 520 | AG24: 1023 | AH24: 27141 | AI24: 946 | AJ24: 1610 | AK24: 677 | AL24: 454 | AM24: 2138 | AN24: 313 | AO24: 767 | AP24: 719 | AQ24: 671 | AR24: 640 | AS24: 590 | AT24: 602 | AU24: 875 | AV24: 1986 | AW24: 2961 | AX24: 1249 | AY24: 428 | AZ24: 511 | BA24: 560 | BB24: 131 | BC24: 743 | BD24: 1986 | BE24: 93 | BF24: 854 | BG24: 963 | BH24: 628 | BI24: 143 | BJ24: 614 | BK24: 1849 | BL24: 514 | BM24: 479 | BN24: 1017 | BO24: 28711 | BQ24: 55852
A25: 17 | B25: 926 | C25: 1499 | D25: 608 | E25: 506 | F25: 2107 | G25: 276 | H25: 748 | I25: 704 | J25: 664 | K25: 631 | L25: 572 | M25: 558 | N25: 887 | O25: 1923 | P25: 2889 | Q25: 1227 | R25: 460 | S25: 558 | T25: 538 | U25: 138 | V25: 752 | W25: 1970 | X25: 102 | Y25: 846 | Z25: 974 | AA25: 589 | AB25: 132 | AC25: 614 | AD25: 1813 | AE25: 528 | AF25: 499 | AG25: 1045 | AH25: 28283 | AI25: 989 | AJ25: 1515 | AK25: 652 | AL25: 501 | AM25: 2168 | AN25: 322 | AO25: 808 | AP25: 701 | AQ25: 645 | AR25: 653 | AS25: 589 | AT25: 623 | AU25: 862 | AV25: 2090 | AW25: 2985 | AX25: 1381 | AY25: 451 | AZ25: 481 | BA25: 546 | BB25: 150 | BC25: 740 | BD25: 2182 | BE25: 127 | BF25: 889 | BG25: 977 | BH25: 625 | BI25: 127 | BJ25: 625 | BK25: 1818 | BL25: 557 | BM25: 495 | BN25: 1144 | BO25: 29418 | BQ25: 57701
A26: 18 | B26: 1511 | C26: 1375 | D26: 659 | E26: 425 | F26: 2924 | G26: 302 | H26: 832 | I26: 1185 | J26: 754 | K26: 618 | L26: 628 | M26: 591 | N26: 846 | O26: 2205 | P26: 4242 | Q26: 1225 | R26: 428 | S26: 482 | T26: 487 | U26: 122 | V26: 793 | W26: 2251 | X26: 89 | Y26: 791 | Z26: 1062 | AA26: 596 | AB26: 129 | AC26: 657 | AD26: 1852 | AE26: 719 | AF26: 575 | AG26: 1035 | AH26: 32390 | AI26: 1329 | AJ26: 1581 | AK26: 782 | AL26: 535 | AM26: 2964 | AN26: 325 | AO26: 908 | AP26: 1115 | AQ26: 830 | AR26: 752 | AS26: 597 | AT26: 663 | AU26: 1007 | AV26: 2158 | AW26: 4341 | AX26: 1462 | AY26: 544 | AZ26: 549 | BA26: 589 | BB26: 128 | BC26: 875 | BD26: 2292 | BE26: 112 | BF26: 916 | BG26: 1140 | BH26: 590 | BI26: 162 | BJ26: 724 | BK26: 2068 | BL26: 677 | BM26: 605 | BN26: 1113 | BO26: 34433 | BQ26: 66823
A27: 19 | B27: 2270 | C27: 1153 | D27: 573 | E27: 354 | F27: 4467 | G27: 274 | H27: 703 | I27: 1571 | J27: 639 | K27: 551 | L27: 563 | M27: 535 | N27: 811 | O27: 2394 | P27: 5333 | Q27: 1054 | R27: 472 | S27: 476 | T27: 425 | U27: 99 | V27: 797 | W27: 2176 | X27: 72 | Y27: 677 | Z27: 1016 | AA27: 527 | AB27: 110 | AC27: 596 | AD27: 1832 | AE27: 935 | AF27: 507 | AG27: 1061 | AH27: 35023 | AI27: 1910 | AJ27: 1397 | AK27: 735 | AL27: 481 | AM27: 4254 | AN27: 295 | AO27: 766 | AP27: 1356 | AQ27: 790 | AR27: 614 | AS27: 592 | AT27: 562 | AU27: 997 | AV27: 2361 | AW27: 5077 | AX27: 1273 | AY27: 503 | AZ27: 467 | BA27: 541 | BB27: 150 | BC27: 879 | BD27: 2336 | BE27: 126 | BF27: 735 | BG27: 1207 | BH27: 563 | BI27: 135 | BJ27: 609 | BK27: 2043 | BL27: 803 | BM27: 587 | BN27: 1058 | BO27: 36202 | BQ27: 71225
A28: 20 | B28: 2433 | C28: 1104 | D28: 573 | E28: 372 | F28: 5407 | G28: 270 | H28: 627 | I28: 1565 | J28: 628 | K28: 530 | L28: 520 | M28: 465 | N28: 750 | O28: 2628 | P28: 5879 | Q28: 991 | R28: 461 | S28: 432 | T28: 421 | U28: 121 | V28: 719 | W28: 1999 | X28: 67 | Y28: 634 | Z28: 1051 | AA28: 540 | AB28: 93 | AC28: 564 | AD28: 1671 | AE28: 923 | AF28: 511 | AG28: 904 | AH28: 35853 | AI28: 2042 | AJ28: 1314 | AK28: 613 | AL28: 435 | AM28: 4625 | AN28: 301 | AO28: 769 | AP28: 1387 | AQ28: 700 | AR28: 616 | AS28: 567 | AT28: 518 | AU28: 896 | AV28: 2446 | AW28: 5343 | AX28: 1182 | AY28: 460 | AZ28: 458 | BA28: 488 | BB28: 145 | BC28: 768 | BD28: 2147 | BE28: 104 | BF28: 681 | BG28: 1092 | BH28: 518 | BI28: 129 | BJ28: 564 | BK28: 1879 | BL28: 788 | BM28: 573 | BN28: 1051 | BO28: 35599 | BQ28: 71452
A29: 21 | B29: 2738 | C29: 1171 | D29: 558 | E29: 353 | F29: 5729 | G29: 267 | H29: 696 | I29: 1603 | J29: 611 | K29: 504 | L29: 517 | M29: 471 | N29: 866 | O29: 2581 | P29: 6189 | Q29: 1017 | R29: 449 | S29: 460 | T29: 388 | U29: 100 | V29: 757 | W29: 1918 | X29: 97 | Y29: 619 | Z29: 1081 | AA29: 584 | AB29: 105 | AC29: 562 | AD29: 1775 | AE29: 991 | AF29: 574 | AG29: 927 | AH29: 37258 | AI29: 2048 | AJ29: 1326 | AK29: 591 | AL29: 463 | AM29: 4823 | AN29: 308 | AO29: 776 | AP29: 1477 | AQ29: 740 | AR29: 592 | AS29: 523 | AT29: 569 | AU29: 922 | AV29: 2424 | AW29: 5836 | AX29: 1191 | AY29: 464 | AZ29: 501 | BA29: 500 | BB29: 130 | BC29: 816 | BD29: 2046 | BE29: 119 | BF29: 702 | BG29: 1101 | BH29: 550 | BI29: 131 | BJ29: 573 | BK29: 1804 | BL29: 857 | BM29: 582 | BN29: 1050 | BO29: 36535 | BQ29: 73793
A30: 22 | B30: 2647 | C30: 1230 | D30: 592 | E30: 393 | F30: 5821 | G30: 289 | H30: 752 | I30: 1658 | J30: 702 | K30: 580 | L30: 561 | M30: 466 | N30: 821 | O30: 2516 | P30: 6293 | Q30: 1104 | R30: 470 | S30: 503 | T30: 465 | U30: 117 | V30: 826 | W30: 1973 | X30: 89 | Y30: 666 | Z30: 1152 | AA30: 539 | AB30: 101 | AC30: 593 | AD30: 1891 | AE30: 878 | AF30: 551 | AG30: 1005 | AH30: 38244 | AI30: 2272 | AJ30: 1363 | AK30: 646 | AL30: 468 | AM30: 4749 | AN30: 297 | AO30: 778 | AP30: 1540 | AQ30: 727 | AR30: 649 | AS30: 584 | AT30: 541 | AU30: 879 | AV30: 2390 | AW30: 5801 | AX30: 1221 | AY30: 456 | AZ30: 487 | BA30: 504 | BB30: 133 | BC30: 817 | BD30: 2156 | BE30: 93 | BF30: 760 | BG30: 1202 | BH30: 524 | BI30: 143 | BJ30: 610 | BK30: 1939 | BL30: 808 | BM30: 601 | BN30: 1026 | BO30: 37164 | BQ30: 75408
A31: 23 | B31: 2306 | C31: 1315 | D31: 585 | E31: 418 | F31: 5053 | G31: 302 | H31: 788 | I31: 1421 | J31: 710 | K31: 552 | L31: 550 | M31: 491 | N31: 900 | O31: 2232 | P31: 6203 | Q31: 1142 | R31: 430 | S31: 485 | T31: 462 | U31: 101 | V31: 765 | W31: 1979 | X31: 100 | Y31: 769 | Z31: 1096 | AA31: 580 | AB31: 129 | AC31: 583 | AD31: 1839 | AE31: 691 | AF31: 611 | AG31: 1041 | AH31: 36629 | AI31: 1932 | AJ31: 1404 | AK31: 618 | AL31: 450 | AM31: 3893 | AN31: 321 | AO31: 795 | AP31: 1324 | AQ31: 743 | AR31: 653 | AS31: 545 | AT31: 501 | AU31: 914 | AV31: 2130 | AW31: 5406 | AX31: 1147 | AY31: 474 | AZ31: 479 | BA31: 471 | BB31: 116 | BC31: 816 | BD31: 2046 | BE31: 82 | BF31: 743 | BG31: 1026 | BH31: 560 | BI31: 137 | BJ31: 617 | BK31: 1891 | BL31: 674 | BM31: 565 | BN31: 1090 | BO31: 34563 | BQ31: 71192
A32: 24 | B32: 2233 | C32: 1436 | D32: 614 | E32: 390 | F32: 5035 | G32: 323 | H32: 771 | I32: 1360 | J32: 758 | K32: 642 | L32: 570 | M32: 447 | N32: 965 | O32: 2126 | P32: 6181 | Q32: 1185 | R32: 475 | S32: 551 | T32: 523 | U32: 98 | V32: 788 | W32: 2153 | X32: 106 | Y32: 736 | Z32: 1162 | AA32: 542 | AB32: 108 | AC32: 609 | AD32: 1971 | AE32: 662 | AF32: 615 | AG32: 1083 | AH32: 37218 | AI32: 2002 | AJ32: 1364 | AK32: 608 | AL32: 496 | AM32: 4016 | AN32: 312 | AO32: 777 | AP32: 1214 | AQ32: 750 | AR32: 653 | AS32: 565 | AT32: 544 | AU32: 921 | AV32: 2170 | AW32: 5648 | AX32: 1279 | AY32: 498 | AZ32: 560 | BA32: 538 | BB32: 139 | BC32: 828 | BD32: 2167 | BE32: 108 | BF32: 842 | BG32: 1093 | BH32: 580 | BI32: 155 | BJ32: 626 | BK32: 1941 | BL32: 689 | BM32: 630 | BN32: 1064 | BO32: 35777 | BQ32: 72995
A33: 25 | B33: 2243 | C33: 1342 | D33: 582 | E33: 415 | F33: 4906 | G33: 309 | H33: 814 | I33: 1335 | J33: 754 | K33: 555 | L33: 589 | M33: 465 | N33: 943 | O33: 2172 | P33: 6052 | Q33: 1200 | R33: 458 | S33: 570 | T33: 465 | U33: 117 | V33: 793 | W33: 2140 | X33: 97 | Y33: 767 | Z33: 1121 | AA33: 538 | AB33: 123 | AC33: 580 | AD33: 1931 | AE33: 593 | AF33: 582 | AG33: 1091 | AH33: 36642 | AI33: 2004 | AJ33: 1437 | AK33: 701 | AL33: 487 | AM33: 4091 | AN33: 313 | AO33: 769 | AP33: 1208 | AQ33: 719 | AR33: 639 | AS33: 527 | AT33: 477 | AU33: 989 | AV33: 2169 | AW33: 5533 | AX33: 1258 | AY33: 513 | AZ33: 561 | BA33: 554 | BB33: 111 | BC33: 853 | BD33: 2139 | BE33: 96 | BF33: 817 | BG33: 1123 | BH33: 570 | BI33: 124 | BJ33: 596 | BK33: 1902 | BL33: 605 | BM33: 565 | BN33: 1094 | BO33: 35544 | BQ33: 72186
A34: 26 | B34: 2151 | C34: 1370 | D34: 542 | E34: 442 | F34: 4806 | G34: 299 | H34: 758 | I34: 1235 | J34: 708 | K34: 519 | L34: 510 | M34: 431 | N34: 922 | O34: 2112 | P34: 5904 | Q34: 1187 | R34: 495 | S34: 548 | T34: 492 | U34: 109 | V34: 749 | W34: 2051 | X34: 105 | Y34: 720 | Z34: 1084 | AA34: 550 | AB34: 122 | AC34: 606 | AD34: 1848 | AE34: 526 | AF34: 611 | AG34: 1081 | AH34: 35593 | AI34: 1983 | AJ34: 1434 | AK34: 625 | AL34: 449 | AM34: 3984 | AN34: 301 | AO34: 814 | AP34: 1162 | AQ34: 748 | AR34: 612 | AS34: 560 | AT34: 480 | AU34: 869 | AV34: 2177 | AW34: 5458 | AX34: 1219 | AY34: 466 | AZ34: 504 | BA34: 491 | BB34: 118 | BC34: 750 | BD34: 2027 | BE34: 132 | BF34: 669 | BG34: 1082 | BH34: 528 | BI34: 136 | BJ34: 607 | BK34: 1814 | BL34: 595 | BM34: 599 | BN34: 1031 | BO34: 34424 | BQ34: 70017
A35: 27 | B35: 2073 | C35: 1305 | D35: 587 | E35: 411 | F35: 4692 | G35: 262 | H35: 731 | I35: 1175 | J35: 740 | K35: 531 | L35: 536 | M35: 466 | N35: 924 | O35: 2151 | P35: 5814 | Q35: 1167 | R35: 454 | S35: 542 | T35: 492 | U35: 119 | V35: 772 | W35: 2156 | X35: 81 | Y35: 756 | Z35: 1078 | AA35: 503 | AB35: 121 | AC35: 561 | AD35: 1822 | AE35: 486 | AF35: 608 | AG35: 1093 | AH35: 35209 | AI35: 2061 | AJ35: 1377 | AK35: 555 | AL35: 480 | AM35: 4177 | AN35: 268 | AO35: 762 | AP35: 1179 | AQ35: 775 | AR35: 606 | AS35: 492 | AT35: 499 | AU35: 891 | AV35: 2051 | AW35: 5452 | AX35: 1233 | AY35: 466 | AZ35: 529 | BA35: 511 | BB35: 132 | BC35: 794 | BD35: 1982 | BE35: 101 | BF35: 729 | BG35: 1070 | BH35: 522 | BI35: 122 | BJ35: 597 | BK35: 1786 | BL35: 519 | BM35: 552 | BN35: 1087 | BO35: 34357 | BQ35: 69566
A36: 28 | B36: 2121 | C36: 1411 | D36: 632 | E36: 379 | F36: 4564 | G36: 318 | H36: 819 | I36: 1240 | J36: 728 | K36: 542 | L36: 524 | M36: 472 | N36: 1001 | O36: 2203 | P36: 5824 | Q36: 1220 | R36: 476 | S36: 572 | T36: 496 | U36: 128 | V36: 827 | W36: 2125 | X36: 108 | Y36: 792 | Z36: 1171 | AA36: 511 | AB36: 115 | AC36: 608 | AD36: 1949 | AE36: 475 | AF36: 618 | AG36: 1145 | AH36: 36114 | AI36: 1923 | AJ36: 1424 | AK36: 606 | AL36: 450 | AM36: 4121 | AN36: 325 | AO36: 804 | AP36: 1159 | AQ36: 763 | AR36: 564 | AS36: 528 | AT36: 467 | AU36: 951 | AV36: 2183 | AW36: 5659 | AX36: 1253 | AY36: 489 | AZ36: 527 | BA36: 519 | BB36: 130 | BC36: 800 | BD36: 2190 | BE36: 109 | BF36: 763 | BG36: 1140 | BH36: 594 | BI36: 146 | BJ36: 585 | BK36: 1954 | BL36: 471 | BM36: 613 | BN36: 1094 | BO36: 35304 | BQ36: 71418
A37: 29 | B37: 1989 | C37: 1467 | D37: 620 | E37: 387 | F37: 4679 | G37: 308 | H37: 785 | I37: 1156 | J37: 767 | K37: 529 | L37: 552 | M37: 406 | N37: 909 | O37: 2258 | P37: 5707 | Q37: 1239 | R37: 470 | S37: 569 | T37: 531 | U37: 103 | V37: 779 | W37: 2219 | X37: 117 | Y37: 744 | Z37: 1175 | AA37: 523 | AB37: 136 | AC37: 607 | AD37: 1865 | AE37: 495 | AF37: 546 | AG37: 1228 | AH37: 35865 | AI37: 2044 | AJ37: 1428 | AK37: 603 | AL37: 431 | AM37: 4219 | AN37: 316 | AO37: 776 | AP37: 1192 | AQ37: 707 | AR37: 537 | AS37: 562 | AT37: 438 | AU37: 926 | AV37: 2112 | AW37: 5564 | AX37: 1262 | AY37: 499 | AZ37: 488 | BA37: 509 | BB37: 132 | BC37: 776 | BD37: 2034 | BE37: 92 | BF37: 761 | BG37: 1123 | BH37: 496 | BI37: 167 | BJ37: 597 | BK37: 1837 | BL37: 513 | BM37: 653 | BN37: 1160 | BO37: 34954 | BQ37: 70819
A38: 30 | B38: 1984 | C38: 1548 | D38: 639 | E38: 369 | F38: 4428 | G38: 281 | H38: 709 | I38: 1125 | J38: 750 | K38: 547 | L38: 574 | M38: 466 | N38: 968 | O38: 2186 | P38: 5524 | Q38: 1218 | R38: 492 | S38: 575 | T38: 548 | U38: 106 | V38: 793 | W38: 2211 | X38: 101 | Y38: 818 | Z38: 1096 | AA38: 525 | AB38: 117 | AC38: 598 | AD38: 1993 | AE38: 474 | AF38: 633 | AG38: 1159 | AH38: 35555 | AI38: 1991 | AJ38: 1462 | AK38: 647 | AL38: 444 | AM38: 4044 | AN38: 337 | AO38: 759 | AP38: 1118 | AQ38: 746 | AR38: 594 | AS38: 536 | AT38: 397 | AU38: 923 | AV38: 2236 | AW38: 5639 | AX38: 1293 | AY38: 503 | AZ38: 557 | BA38: 486 | BB38: 113 | BC38: 741 | BD38: 2098 | BE38: 83 | BF38: 743 | BG38: 1102 | BH38: 519 | BI38: 136 | BJ38: 574 | BK38: 1884 | BL38: 440 | BM38: 593 | BN38: 1149 | BO38: 34887 | BQ38: 70442
A39: 31 | B39: 1864 | C39: 1601 | D39: 610 | E39: 408 | F39: 4511 | G39: 324 | H39: 739 | I39: 1178 | J39: 747 | K39: 572 | L39: 525 | M39: 438 | N39: 1014 | O39: 2189 | P39: 5483 | Q39: 1286 | R39: 463 | S39: 591 | T39: 543 | U39: 112 | V39: 782 | W39: 2289 | X39: 123 | Y39: 853 | Z39: 1133 | AA39: 537 | AB39: 121 | AC39: 590 | AD39: 1965 | AE39: 514 | AF39: 630 | AG39: 1197 | AH39: 35932 | AI39: 1964 | AJ39: 1486 | AK39: 607 | AL39: 405 | AM39: 4102 | AN39: 280 | AO39: 810 | AP39: 1134 | AQ39: 690 | AR39: 590 | AS39: 540 | AT39: 438 | AU39: 927 | AV39: 2119 | AW39: 5552 | AX39: 1259 | AY39: 456 | AZ39: 516 | BA39: 487 | BB39: 112 | BC39: 731 | BD39: 2046 | BE39: 104 | BF39: 760 | BG39: 1111 | BH39: 497 | BI39: 119 | BJ39: 569 | BK39: 1964 | BL39: 421 | BM39: 617 | BN39: 1092 | BO39: 34505 | BQ39: 70437
A40: 32 | B40: 1720 | C40: 1615 | D40: 661 | E40: 379 | F40: 4390 | G40: 289 | H40: 767 | I40: 1097 | J40: 702 | K40: 572 | L40: 551 | M40: 495 | N40: 947 | O40: 2146 | P40: 5193 | Q40: 1313 | R40: 459 | S40: 565 | T40: 516 | U40: 126 | V40: 731 | W40: 2213 | X40: 95 | Y40: 831 | Z40: 1071 | AA40: 526 | AB40: 121 | AC40: 598 | AD40: 2036 | AE40: 476 | AF40: 587 | AG40: 1100 | AH40: 34888 | AI40: 1858 | AJ40: 1494 | AK40: 646 | AL40: 446 | AM40: 4009 | AN40: 310 | AO40: 696 | AP40: 1050 | AQ40: 685 | AR40: 506 | AS40: 469 | AT40: 446 | AU40: 945 | AV40: 2062 | AW40: 5225 | AX40: 1303 | AY40: 458 | AZ40: 523 | BA40: 505 | BB40: 116 | BC40: 711 | BD40: 2133 | BE40: 74 | BF40: 789 | BG40: 1084 | BH40: 541 | BI40: 118 | BJ40: 604 | BK40: 1910 | BL40: 502 | BM40: 560 | BN40: 1128 | BO40: 33906 | BQ40: 68794
A41: 33 | B41: 1807 | C41: 1612 | D41: 624 | E41: 455 | F41: 4275 | G41: 291 | H41: 747 | I41: 1007 | J41: 696 | K41: 610 | L41: 588 | M41: 519 | N41: 1057 | O41: 2261 | P41: 5149 | Q41: 1310 | R41: 480 | S41: 563 | T41: 492 | U41: 118 | V41: 744 | W41: 2244 | X41: 121 | Y41: 801 | Z41: 1206 | AA41: 585 | AB41: 134 | AC41: 572 | AD41: 2022 | AE41: 496 | AF41: 634 | AG41: 1266 | AH41: 35486 | AI41: 1837 | AJ41: 1580 | AK41: 640 | AL41: 416 | AM41: 4146 | AN41: 318 | AO41: 719 | AP41: 1029 | AQ41: 716 | AR41: 573 | AS41: 536 | AT41: 457 | AU41: 926 | AV41: 2067 | AW41: 5367 | AX41: 1229 | AY41: 443 | AZ41: 546 | BA41: 481 | BB41: 115 | BC41: 771 | BD41: 2210 | BE41: 103 | BF41: 806 | BG41: 1120 | BH41: 552 | BI41: 120 | BJ41: 557 | BK41: 1906 | BL41: 450 | BM41: 587 | BN41: 1137 | BO41: 34460 | BQ41: 69946
A42: 34 | B42: 1691 | C42: 1689 | D42: 698 | E42: 408 | F42: 4232 | G42: 320 | H42: 806 | I42: 1013 | J42: 731 | K42: 588 | L42: 608 | M42: 544 | N42: 1082 | O42: 2257 | P42: 4859 | Q42: 1367 | R42: 463 | S42: 631 | T42: 520 | U42: 142 | V42: 823 | W42: 2295 | X42: 105 | Y42: 829 | Z42: 1153 | AA42: 585 | AB42: 116 | AC42: 637 | AD42: 2107 | AE42: 508 | AF42: 638 | AG42: 1234 | AH42: 35679 | AI42: 1854 | AJ42: 1627 | AK42: 676 | AL42: 425 | AM42: 4073 | AN42: 307 | AO42: 715 | AP42: 970 | AQ42: 711 | AR42: 643 | AS42: 534 | AT42: 489 | AU42: 1030 | AV42: 2275 | AW42: 5109 | AX42: 1263 | AY42: 457 | AZ42: 543 | BA42: 503 | BB42: 124 | BC42: 776 | BD42: 2264 | BE42: 97 | BF42: 820 | BG42: 1096 | BH42: 528 | BI42: 121 | BJ42: 640 | BK42: 1970 | BL42: 460 | BM42: 564 | BN42: 1151 | BO42: 34815 | BQ42: 70494
A43: 35 | B43: 1604 | C43: 1706 | D43: 685 | E43: 446 | F43: 3954 | G43: 323 | H43: 758 | I43: 997 | J43: 727 | K43: 657 | L43: 640 | M43: 572 | N43: 1052 | O43: 2327 | P43: 4659 | Q43: 1408 | R43: 466 | S43: 603 | T43: 530 | U43: 141 | V43: 827 | W43: 2401 | X43: 107 | Y43: 829 | Z43: 1153 | AA43: 571 | AB43: 137 | AC43: 623 | AD43: 2196 | AE43: 471 | AF43: 641 | AG43: 1284 | AH43: 35495 | AI43: 1769 | AJ43: 1670 | AK43: 626 | AL43: 442 | AM43: 3732 | AN43: 323 | AO43: 725 | AP43: 1023 | AQ43: 719 | AR43: 645 | AS43: 550 | AT43: 522 | AU43: 976 | AV43: 2177 | AW43: 4987 | AX43: 1372 | AY43: 460 | AZ43: 514 | BA43: 478 | BB43: 126 | BC43: 792 | BD43: 2259 | BE43: 86 | BF43: 866 | BG43: 1215 | BH43: 542 | BI43: 127 | BJ43: 630 | BK43: 2120 | BL43: 465 | BM43: 615 | BN43: 1236 | BO43: 34789 | BQ43: 70284
A44: 36 | B44: 1577 | C44: 1731 | D44: 632 | E44: 426 | F44: 3892 | G44: 321 | H44: 783 | I44: 912 | J44: 758 | K44: 669 | L44: 598 | M44: 585 | N44: 1010 | O44: 2309 | P44: 4575 | Q44: 1384 | R44: 508 | S44: 581 | T44: 518 | U44: 132 | V44: 785 | W44: 2327 | X44: 97 | Y44: 832 | Z44: 1100 | AA44: 575 | AB44: 137 | AC44: 585 | AD44: 2114 | AE44: 512 | AF44: 564 | AG44: 1179 | AH44: 34708 | AI44: 1716 | AJ44: 1649 | AK44: 631 | AL44: 470 | AM44: 3944 | AN44: 310 | AO44: 718 | AP44: 951 | AQ44: 702 | AR44: 574 | AS44: 547 | AT44: 531 | AU44: 1007 | AV44: 2182 | AW44: 4900 | AX44: 1306 | AY44: 467 | AZ44: 545 | BA44: 494 | BB44: 119 | BC44: 724 | BD44: 2319 | BE44: 106 | BF44: 765 | BG44: 1069 | BH44: 561 | BI44: 127 | BJ44: 618 | BK44: 2062 | BL44: 451 | BM44: 559 | BN44: 1200 | BO44: 34324 | BQ44: 69032
A45: 37 | B45: 1459 | C45: 1693 | D45: 605 | E45: 400 | F45: 3593 | G45: 304 | H45: 755 | I45: 887 | J45: 697 | K45: 659 | L45: 621 | M45: 612 | N45: 1035 | O45: 2228 | P45: 4273 | Q45: 1342 | R45: 465 | S45: 578 | T45: 509 | U45: 157 | V45: 759 | W45: 2168 | X45: 122 | Y45: 755 | Z45: 1090 | AA45: 570 | AB45: 128 | AC45: 583 | AD45: 1978 | AE45: 516 | AF45: 548 | AG45: 1167 | AH45: 33256 | AI45: 1664 | AJ45: 1629 | AK45: 630 | AL45: 389 | AM45: 3723 | AN45: 295 | AO45: 679 | AP45: 918 | AQ45: 689 | AR45: 612 | AS45: 576 | AT45: 501 | AU45: 981 | AV45: 2114 | AW45: 4547 | AX45: 1291 | AY45: 474 | AZ45: 537 | BA45: 517 | BB45: 143 | BC45: 783 | BD45: 2232 | BE45: 100 | BF45: 841 | BG45: 994 | BH45: 563 | BI45: 142 | BJ45: 593 | BK45: 1964 | BL45: 528 | BM45: 539 | BN45: 1181 | BO45: 33369 | BQ45: 66625
A46: 38 | B46: 1337 | C46: 1639 | D46: 640 | E46: 395 | F46: 3391 | G46: 324 | H46: 690 | I46: 780 | J46: 667 | K46: 622 | L46: 602 | M46: 581 | N46: 955 | O46: 2032 | P46: 3856 | Q46: 1237 | R46: 428 | S46: 519 | T46: 504 | U46: 129 | V46: 730 | W46: 2138 | X46: 108 | Y46: 741 | Z46: 1027 | AA46: 534 | AB46: 116 | AC46: 589 | AD46: 2001 | AE46: 532 | AF46: 496 | AG46: 1110 | AH46: 31450 | AI46: 1479 | AJ46: 1531 | AK46: 585 | AL46: 429 | AM46: 3317 | AN46: 287 | AO46: 652 | AP46: 833 | AQ46: 651 | AR46: 539 | AS46: 528 | AT46: 531 | AU46: 941 | AV46: 1970 | AW46: 4121 | AX46: 1171 | AY46: 408 | AZ46: 509 | BA46: 456 | BB46: 118 | BC46: 698 | BD46: 2064 | BE46: 95 | BF46: 741 | BG46: 943 | BH46: 481 | BI46: 123 | BJ46: 498 | BK46: 1787 | BL46: 464 | BM46: 486 | BN46: 1063 | BO46: 30499 | BQ46: 61949
A47: 39 | B47: 1247 | C47: 1622 | D47: 637 | E47: 422 | F47: 3221 | G47: 279 | H47: 618 | I47: 755 | J47: 611 | K47: 604 | L47: 623 | M47: 575 | N47: 944 | O47: 1993 | P47: 3561 | Q47: 1223 | R47: 413 | S47: 515 | T47: 484 | U47: 144 | V47: 719 | W47: 1966 | X47: 88 | Y47: 744 | Z47: 955 | AA47: 550 | AB47: 168 | AC47: 562 | AD47: 1812 | AE47: 510 | AF47: 506 | AG47: 1032 | AH47: 30103 | AI47: 1426 | AJ47: 1564 | AK47: 536 | AL47: 377 | AM47: 3363 | AN47: 255 | AO47: 635 | AP47: 798 | AQ47: 598 | AR47: 587 | AS47: 520 | AT47: 507 | AU47: 982 | AV47: 2000 | AW47: 3928 | AX47: 1157 | AY47: 439 | AZ47: 493 | BA47: 441 | BB47: 136 | BC47: 670 | BD47: 1932 | BE47: 86 | BF47: 749 | BG47: 929 | BH47: 531 | BI47: 142 | BJ47: 517 | BK47: 1781 | BL47: 467 | BM47: 521 | BN47: 1103 | BO47: 30170 | BQ47: 60273
A48: 40 | B48: 1303 | C48: 1636 | D48: 664 | E48: 450 | F48: 3192 | G48: 319 | H48: 756 | I48: 816 | J48: 727 | K48: 644 | L48: 639 | M48: 564 | N48: 1035 | O48: 2169 | P48: 3786 | Q48: 1330 | R48: 419 | S48: 557 | T48: 549 | U48: 166 | V48: 841 | W48: 2229 | X48: 103 | Y48: 778 | Z48: 957 | AA48: 604 | AB48: 122 | AC48: 614 | AD48: 1970 | AE48: 523 | AF48: 562 | AG48: 1165 | AH48: 32189 | AI48: 1448 | AJ48: 1612 | AK48: 649 | AL48: 396 | AM48: 3255 | AN48: 286 | AO48: 731 | AP48: 811 | AQ48: 695 | AR48: 587 | AS48: 573 | AT48: 524 | AU48: 969 | AV48: 2126 | AW48: 3954 | AX48: 1303 | AY48: 424 | AZ48: 487 | BA48: 502 | BB48: 148 | BC48: 779 | BD48: 2177 | BE48: 99 | BF48: 749 | BG48: 1020 | BH48: 558 | BI48: 137 | BJ48: 563 | BK48: 1895 | BL48: 514 | BM48: 514 | BN48: 1180 | BO48: 31665 | BQ48: 63854
A49: 41 | B49: 1264 | C49: 1668 | D49: 659 | E49: 481 | F49: 3086 | G49: 315 | H49: 805 | I49: 823 | J49: 759 | K49: 654 | L49: 647 | M49: 597 | N49: 1067 | O49: 2223 | P49: 3597 | Q49: 1345 | R49: 488 | S49: 565 | T49: 570 | U49: 151 | V49: 874 | W49: 2206 | X49: 130 | Y49: 842 | Z49: 1064 | AA49: 680 | AB49: 132 | AC49: 661 | AD49: 2043 | AE49: 564 | AF49: 507 | AG49: 1211 | AH49: 32678 | AI49: 1370 | AJ49: 1571 | AK49: 642 | AL49: 452 | AM49: 3275 | AN49: 339 | AO49: 704 | AP49: 797 | AQ49: 727 | AR49: 589 | AS49: 605 | AT49: 523 | AU49: 1043 | AV49: 2061 | AW49: 3860 | AX49: 1304 | AY49: 426 | AZ49: 531 | BA49: 484 | BB49: 132 | BC49: 703 | BD49: 2212 | BE49: 96 | BF49: 800 | BG49: 1032 | BH49: 614 | BI49: 135 | BJ49: 604 | BK49: 1938 | BL49: 509 | BM49: 487 | BN49: 1181 | BO49: 31746 | BQ49: 64424
A50: 42 | B50: 1257 | C50: 1800 | D50: 718 | E50: 460 | F50: 3032 | G50: 323 | H50: 813 | I50: 796 | J50: 759 | K50: 643 | L50: 676 | M50: 605 | N50: 1101 | O50: 2182 | P50: 3556 | Q50: 1382 | R50: 456 | S50: 560 | T50: 550 | U50: 137 | V50: 825 | W50: 2216 | X50: 119 | Y50: 951 | Z50: 1104 | AA50: 713 | AB50: 139 | AC50: 632 | AD50: 2051 | AE50: 549 | AF50: 541 | AG50: 1249 | AH50: 32895 | AI50: 1350 | AJ50: 1696 | AK50: 622 | AL50: 450 | AM50: 3195 | AN50: 302 | AO50: 814 | AP50: 779 | AQ50: 713 | AR50: 620 | AS50: 648 | AT50: 578 | AU50: 1074 | AV50: 2207 | AW50: 3842 | AX50: 1256 | AY50: 448 | AZ50: 544 | BA50: 532 | BB50: 144 | BC50: 859 | BD50: 2199 | BE50: 101 | BF50: 821 | BG50: 1066 | BH50: 594 | BI50: 127 | BJ50: 640 | BK50: 1926 | BL50: 524 | BM50: 535 | BN50: 1255 | BO50: 32461 | BQ50: 65356
A51: 43 | B51: 1324 | C51: 1864 | D51: 784 | E51: 545 | F51: 3010 | G51: 381 | H51: 892 | I51: 809 | J51: 831 | K51: 711 | L51: 719 | M51: 657 | N51: 1153 | O51: 2398 | P51: 3706 | Q51: 1499 | R51: 526 | S51: 579 | T51: 611 | U51: 159 | V51: 884 | W51: 2370 | X51: 129 | Y51: 932 | Z51: 1157 | AA51: 749 | AB51: 151 | AC51: 699 | AD51: 2162 | AE51: 657 | AF51: 573 | AG51: 1388 | AH51: 35009 | AI51: 1450 | AJ51: 1824 | AK51: 741 | AL51: 503 | AM51: 3220 | AN51: 341 | AO51: 810 | AP51: 825 | AQ51: 845 | AR51: 679 | AS51: 710 | AT51: 602 | AU51: 1084 | AV51: 2271 | AW51: 4017 | AX51: 1387 | AY51: 498 | AZ51: 536 | BA51: 553 | BB51: 166 | BC51: 840 | BD51: 2347 | BE51: 118 | BF51: 861 | BG51: 1101 | BH51: 679 | BI51: 155 | BJ51: 675 | BK51: 2066 | BL51: 543 | BM51: 587 | BN51: 1251 | BO51: 34285 | BQ51: 69294
A52: 44 | B52: 1386 | C52: 1928 | D52: 804 | E52: 591 | F52: 3215 | G52: 379 | H52: 946 | I52: 857 | J52: 911 | K52: 764 | L52: 761 | M52: 660 | N52: 1223 | O52: 2505 | P52: 3927 | Q52: 1632 | R52: 521 | S52: 644 | T52: 675 | U52: 172 | V52: 984 | W52: 2631 | X52: 126 | Y52: 1066 | Z52: 1273 | AA52: 836 | AB52: 162 | AC52: 774 | AD52: 2368 | AE52: 672 | AF52: 581 | AG52: 1420 | AH52: 37394 | AI52: 1403 | AJ52: 1789 | AK52: 772 | AL52: 521 | AM52: 3291 | AN52: 384 | AO52: 941 | AP52: 907 | AQ52: 844 | AR52: 733 | AS52: 719 | AT52: 654 | AU52: 1142 | AV52: 2421 | AW52: 4196 | AX52: 1449 | AY52: 543 | AZ52: 564 | BA52: 614 | BB52: 192 | BC52: 889 | BD52: 2412 | BE52: 114 | BF52: 991 | BG52: 1132 | BH52: 771 | BI52: 157 | BJ52: 699 | BK52: 2241 | BL52: 585 | BM52: 606 | BN52: 1382 | BO52: 36058 | BQ52: 73452
A53: 45 | B53: 1380 | C53: 2112 | D53: 832 | E53: 592 | F53: 3301 | G53: 372 | H53: 1032 | I53: 927 | J53: 937 | K53: 825 | L53: 835 | M53: 715 | N53: 1217 | O53: 2734 | P53: 4134 | Q53: 1648 | R53: 575 | S53: 690 | T53: 724 | U53: 163 | V53: 1049 | W53: 2619 | X53: 155 | Y53: 1075 | Z53: 1317 | AA53: 876 | AB53: 164 | AC53: 793 | AD53: 2481 | AE53: 713 | AF53: 659 | AG53: 1434 | AH53: 39080 | AI53: 1507 | AJ53: 1907 | AK53: 759 | AL53: 566 | AM53: 3394 | AN53: 389 | AO53: 994 | AP53: 952 | AQ53: 894 | AR53: 739 | AS53: 731 | AT53: 632 | AU53: 1224 | AV53: 2518 | AW53: 4265 | AX53: 1575 | AY53: 539 | AZ53: 637 | BA53: 653 | BB53: 193 | BC53: 953 | BD53: 2554 | BE53: 104 | BF53: 992 | BG53: 1220 | BH53: 784 | BI53: 152 | BJ53: 743 | BK53: 2445 | BL53: 634 | BM53: 647 | BN53: 1426 | BO53: 37722 | BQ53: 76802
A54: 46 | B54: 1384 | C54: 1957 | D54: 802 | E54: 665 | F54: 3034 | G54: 404 | H54: 1001 | I54: 901 | J54: 911 | K54: 812 | L54: 801 | M54: 675 | N54: 1188 | O54: 2629 | P54: 4103 | Q54: 1710 | R54: 584 | S54: 660 | T54: 657 | U54: 183 | V54: 1029 | W54: 2682 | X54: 140 | Y54: 1047 | Z54: 1394 | AA54: 835 | AB54: 154 | AC54: 834 | AD54: 2454 | AE54: 749 | AF54: 682 | AG54: 1503 | AH54: 38564 | AI54: 1365 | AJ54: 1941 | AK54: 816 | AL54: 558 | AM54: 3198 | AN54: 368 | AO54: 1033 | AP54: 903 | AQ54: 897 | AR54: 736 | AS54: 731 | AT54: 626 | AU54: 1225 | AV54: 2565 | AW54: 4240 | AX54: 1550 | AY54: 514 | AZ54: 661 | BA54: 630 | BB54: 193 | BC54: 964 | BD54: 2633 | BE54: 144 | BF54: 972 | BG54: 1245 | BH54: 800 | BI54: 163 | BJ54: 753 | BK54: 2370 | BL54: 636 | BM54: 612 | BN54: 1334 | BO54: 37376 | BQ54: 75940
A55: 47 | B55: 1420 | C55: 2069 | D55: 899 | E55: 610 | F55: 3191 | G55: 434 | H55: 1158 | I55: 937 | J55: 984 | K55: 831 | L55: 834 | M55: 716 | N55: 1252 | O55: 2780 | P55: 4272 | Q55: 1706 | R55: 625 | S55: 689 | T55: 729 | U55: 207 | V55: 1012 | W55: 2718 | X55: 133 | Y55: 1118 | Z55: 1338 | AA55: 914 | AB55: 161 | AC55: 804 | AD55: 2509 | AE55: 698 | AF55: 725 | AG55: 1476 | AH55: 39949 | AI55: 1419 | AJ55: 1943 | AK55: 849 | AL55: 614 | AM55: 3289 | AN55: 432 | AO55: 1031 | AP55: 971 | AQ55: 987 | AR55: 765 | AS55: 738 | AT55: 657 | AU55: 1196 | AV55: 2761 | AW55: 4357 | AX55: 1541 | AY55: 552 | AZ55: 605 | BA55: 696 | BB55: 207 | BC55: 1023 | BD55: 2703 | BE55: 121 | BF55: 998 | BG55: 1316 | BH55: 833 | BI55: 158 | BJ55: 765 | BK55: 2490 | BL55: 649 | BM55: 676 | BN55: 1498 | BO55: 38840 | BQ55: 78789
A56: 48 | B56: 1325 | C56: 1983 | D56: 857 | E56: 667 | F56: 3302 | G56: 411 | H56: 1125 | I56: 970 | J56: 993 | K56: 800 | L56: 864 | M56: 755 | N56: 1317 | O56: 2836 | P56: 4342 | Q56: 1825 | R56: 660 | S56: 718 | T56: 671 | U56: 206 | V56: 1044 | W56: 2816 | X56: 158 | Y56: 1188 | Z56: 1440 | AA56: 929 | AB56: 172 | AC56: 868 | AD56: 2580 | AE56: 725 | AF56: 729 | AG56: 1522 | AH56: 40798 | AI56: 1417 | AJ56: 1928 | AK56: 817 | AL56: 684 | AM56: 3267 | AN56: 393 | AO56: 1026 | AP56: 954 | AQ56: 930 | AR56: 753 | AS56: 771 | AT56: 651 | AU56: 1211 | AV56: 2729 | AW56: 4317 | AX56: 1733 | AY56: 612 | AZ56: 645 | BA56: 696 | BB56: 221 | BC56: 995 | BD56: 2699 | BE56: 144 | BF56: 1064 | BG56: 1368 | BH56: 903 | BI56: 163 | BJ56: 796 | BK56: 2518 | BL56: 693 | BM56: 667 | BN56: 1518 | BO56: 39283 | BQ56: 80081
A57: 49 | B57: 1345 | C57: 2045 | D57: 883 | E57: 639 | F57: 3274 | G57: 461 | H57: 1176 | I57: 974 | J57: 1014 | K57: 905 | L57: 886 | M57: 765 | N57: 1296 | O57: 2710 | P57: 4152 | Q57: 1779 | R57: 642 | S57: 657 | T57: 712 | U57: 197 | V57: 1106 | W57: 2759 | X57: 166 | Y57: 1184 | Z57: 1420 | AA57: 969 | AB57: 161 | AC57: 865 | AD57: 2555 | AE57: 708 | AF57: 756 | AG57: 1519 | AH57: 40680 | AI57: 1465 | AJ57: 2022 | AK57: 862 | AL57: 690 | AM57: 3310 | AN57: 439 | AO57: 1099 | AP57: 951 | AQ57: 954 | AR57: 800 | AS57: 778 | AT57: 691 | AU57: 1265 | AV57: 2812 | AW57: 4310 | AX57: 1755 | AY57: 646 | AZ57: 646 | BA57: 699 | BB57: 217 | BC57: 1031 | BD57: 2721 | BE57: 160 | BF57: 1093 | BG57: 1321 | BH57: 891 | BI57: 175 | BJ57: 830 | BK57: 2511 | BL57: 643 | BM57: 717 | BN57: 1433 | BO57: 39937 | BQ57: 80617
A58: 50 | B58: 1419 | C58: 2030 | D58: 888 | E58: 679 | F58: 3349 | G58: 419 | H58: 1147 | I58: 1022 | J58: 1003 | K58: 902 | L58: 777 | M58: 768 | N58: 1312 | O58: 2831 | P58: 4417 | Q58: 1873 | R58: 698 | S58: 688 | T58: 734 | U58: 208 | V58: 1128 | W58: 2729 | X58: 177 | Y58: 1145 | Z58: 1469 | AA58: 963 | AB58: 162 | AC58: 853 | AD58: 2548 | AE58: 752 | AF58: 790 | AG58: 1445 | AH58: 41325 | AI58: 1490 | AJ58: 2014 | AK58: 889 | AL58: 678 | AM58: 3447 | AN58: 413 | AO58: 1194 | AP58: 1034 | AQ58: 993 | AR58: 826 | AS58: 811 | AT58: 730 | AU58: 1243 | AV58: 2783 | AW58: 4810 | AX58: 1877 | AY58: 679 | AZ58: 624 | BA58: 697 | BB58: 195 | BC58: 1062 | BD58: 2801 | BE58: 174 | BF58: 1174 | BG58: 1455 | BH58: 924 | BI58: 192 | BJ58: 853 | BK58: 2519 | BL58: 708 | BM58: 746 | BN58: 1429 | BO58: 41464 | BQ58: 82789
A59: 51 | B59: 1479 | C59: 2064 | D59: 933 | E59: 759 | F59: 3297 | G59: 417 | H59: 1222 | I59: 1084 | J59: 1039 | K59: 876 | L59: 857 | M59: 765 | N59: 1246 | O59: 2965 | P59: 4477 | Q59: 1948 | R59: 665 | S59: 700 | T59: 727 | U59: 200 | V59: 1137 | W59: 2763 | X59: 176 | Y59: 1228 | Z59: 1484 | AA59: 943 | AB59: 152 | AC59: 896 | AD59: 2591 | AE59: 746 | AF59: 761 | AG59: 1496 | AH59: 42093 | AI59: 1457 | AJ59: 1996 | AK59: 893 | AL59: 668 | AM59: 3388 | AN59: 435 | AO59: 1220 | AP59: 1005 | AQ59: 1000 | AR59: 877 | AS59: 897 | AT59: 642 | AU59: 1285 | AV59: 2774 | AW59: 4454 | AX59: 1788 | AY59: 661 | AZ59: 639 | BA59: 680 | BB59: 196 | BC59: 1046 | BD59: 2704 | BE59: 162 | BF59: 1151 | BG59: 1426 | BH59: 913 | BI59: 177 | BJ59: 876 | BK59: 2438 | BL59: 746 | BM59: 749 | BN59: 1447 | BO59: 40790 | BQ59: 82883
A60: 52 | B60: 1490 | C60: 2070 | D60: 873 | E60: 728 | F60: 3376 | G60: 425 | H60: 1271 | I60: 1024 | J60: 971 | K60: 951 | L60: 878 | M60: 825 | N60: 1249 | O60: 2886 | P60: 4702 | Q60: 2011 | R60: 700 | S60: 669 | T60: 691 | U60: 188 | V60: 1146 | W60: 2654 | X60: 168 | Y60: 1197 | Z60: 1467 | AA60: 959 | AB60: 188 | AC60: 907 | AD60: 2790 | AE60: 731 | AF60: 802 | AG60: 1408 | AH60: 42395 | AI60: 1510 | AJ60: 2091 | AK60: 936 | AL60: 704 | AM60: 3361 | AN60: 442 | AO60: 1181 | AP60: 1073 | AQ60: 980 | AR60: 859 | AS60: 778 | AT60: 733 | AU60: 1273 | AV60: 2837 | AW60: 4719 | AX60: 1832 | AY60: 680 | AZ60: 672 | BA60: 719 | BB60: 206 | BC60: 1139 | BD60: 2768 | BE60: 155 | BF60: 1227 | BG60: 1403 | BH60: 889 | BI60: 185 | BJ60: 906 | BK60: 2597 | BL60: 691 | BM60: 762 | BN60: 1435 | BO60: 41743 | BQ60: 84138
A61: 53 | B61: 1437 | C61: 2061 | D61: 921 | E61: 730 | F61: 3347 | G61: 416 | H61: 1224 | I61: 1085 | J61: 979 | K61: 923 | L61: 851 | M61: 734 | N61: 1222 | O61: 2872 | P61: 4297 | Q61: 1832 | R61: 701 | S61: 735 | T61: 746 | U61: 205 | V61: 1153 | W61: 2746 | X61: 155 | Y61: 1190 | Z61: 1372 | AA61: 983 | AB61: 160 | AC61: 940 | AD61: 2620 | AE61: 736 | AF61: 774 | AG61: 1371 | AH61: 41518 | AI61: 1492 | AJ61: 2019 | AK61: 872 | AL61: 700 | AM61: 3298 | AN61: 402 | AO61: 1167 | AP61: 1046 | AQ61: 919 | AR61: 852 | AS61: 829 | AT61: 709 | AU61: 1200 | AV61: 2619 | AW61: 4417 | AX61: 1810 | AY61: 684 | AZ61: 649 | BA61: 700 | BB61: 196 | BC61: 979 | BD61: 2467 | BE61: 164 | BF61: 1159 | BG61: 1356 | BH61: 934 | BI61: 184 | BJ61: 782 | BK61: 2518 | BL61: 689 | BM61: 729 | BN61: 1418 | BO61: 39959 | BQ61: 81477
A62: 54 | B62: 1493 | C62: 1928 | D62: 930 | E62: 672 | F62: 3181 | G62: 409 | H62: 1234 | I62: 1061 | J62: 921 | K62: 928 | L62: 792 | M62: 761 | N62: 1243 | O62: 2807 | P62: 4474 | Q62: 1765 | R62: 683 | S62: 700 | T62: 693 | U62: 220 | V62: 1062 | W62: 2593 | X62: 143 | Y62: 1157 | Z62: 1445 | AA62: 899 | AB62: 167 | AC62: 877 | AD62: 2586 | AE62: 704 | AF62: 703 | AG62: 1375 | AH62: 40606 | AI62: 1497 | AJ62: 2018 | AK62: 931 | AL62: 690 | AM62: 3180 | AN62: 416 | AO62: 1190 | AP62: 1030 | AQ62: 929 | AR62: 874 | AS62: 817 | AT62: 704 | AU62: 1216 | AV62: 2735 | AW62: 4630 | AX62: 1822 | AY62: 705 | AZ62: 650 | BA62: 699 | BB62: 231 | BC62: 1105 | BD62: 2702 | BE62: 175 | BF62: 1098 | BG62: 1394 | BH62: 913 | BI62: 158 | BJ62: 881 | BK62: 2526 | BL62: 644 | BM62: 704 | BN62: 1358 | BO62: 40622 | BQ62: 81228
A63: 55 | B63: 1387 | C63: 1884 | D63: 900 | E63: 683 | F63: 3126 | G63: 403 | H63: 1205 | I63: 1086 | J63: 929 | K63: 879 | L63: 814 | M63: 687 | N63: 1161 | O63: 2669 | P63: 4319 | Q63: 1838 | R63: 642 | S63: 657 | T63: 683 | U63: 199 | V63: 1011 | W63: 2464 | X63: 154 | Y63: 1138 | Z63: 1495 | AA63: 888 | AB63: 170 | AC63: 929 | AD63: 2482 | AE63: 692 | AF63: 738 | AG63: 1269 | AH63: 39581 | AI63: 1353 | AJ63: 1905 | AK63: 788 | AL63: 710 | AM63: 3124 | AN63: 393 | AO63: 1122 | AP63: 997 | AQ63: 880 | AR63: 792 | AS63: 781 | AT63: 665 | AU63: 1139 | AV63: 2631 | AW63: 4200 | AX63: 1766 | AY63: 672 | AZ63: 591 | BA63: 666 | BB63: 198 | BC63: 951 | BD63: 2464 | BE63: 149 | BF63: 1098 | BG63: 1338 | BH63: 850 | BI63: 172 | BJ63: 842 | BK63: 2424 | BL63: 643 | BM63: 701 | BN63: 1306 | BO63: 38311 | BQ63: 77892
A64: 56 | B64: 1431 | C64: 1826 | D64: 910 | E64: 712 | F64: 3035 | G64: 375 | H64: 1182 | I64: 1012 | J64: 925 | K64: 828 | L64: 808 | M64: 723 | N64: 1107 | O64: 2681 | P64: 4036 | Q64: 1730 | R64: 678 | S64: 636 | T64: 652 | U64: 200 | V64: 1030 | W64: 2420 | X64: 153 | Y64: 1019 | Z64: 1302 | AA64: 917 | AB64: 152 | AC64: 851 | AD64: 2456 | AE64: 644 | AF64: 707 | AG64: 1207 | AH64: 38345 | AI64: 1457 | AJ64: 1869 | AK64: 899 | AL64: 691 | AM64: 3041 | AN64: 359 | AO64: 1107 | AP64: 998 | AQ64: 834 | AR64: 804 | AS64: 736 | AT64: 661 | AU64: 1125 | AV64: 2744 | AW64: 4246 | AX64: 1776 | AY64: 610 | AZ64: 634 | BA64: 666 | BB64: 197 | BC64: 983 | BD64: 2320 | BE64: 163 | BF64: 1023 | BG64: 1316 | BH64: 867 | BI64: 162 | BJ64: 816 | BK64: 2485 | BL64: 672 | BM64: 707 | BN64: 1256 | BO64: 38224 | BQ64: 76569
A65: 57 | B65: 1411 | C65: 1848 | D65: 855 | E65: 692 | F65: 2949 | G65: 375 | H65: 1160 | I65: 952 | J65: 859 | K65: 885 | L65: 758 | M65: 686 | N65: 1092 | O65: 2683 | P65: 4045 | Q65: 1784 | R65: 660 | S65: 628 | T65: 650 | U65: 186 | V65: 1061 | W65: 2366 | X65: 154 | Y65: 1107 | Z65: 1292 | AA65: 921 | AB65: 134 | AC65: 886 | AD65: 2533 | AE65: 602 | AF65: 709 | AG65: 1244 | AH65: 38167 | AI65: 1377 | AJ65: 1781 | AK65: 820 | AL65: 633 | AM65: 2890 | AN65: 391 | AO65: 1099 | AP65: 953 | AQ65: 886 | AR65: 841 | AS65: 729 | AT65: 682 | AU65: 1045 | AV65: 2521 | AW65: 4123 | AX65: 1725 | AY65: 616 | AZ65: 578 | BA65: 604 | BB65: 219 | BC65: 999 | BD65: 2267 | BE65: 151 | BF65: 1091 | BG65: 1312 | BH65: 868 | BI65: 172 | BJ65: 862 | BK65: 2309 | BL65: 616 | BM65: 652 | BN65: 1172 | BO65: 36984 | BQ65: 75151
A66: 58 | B66: 1357 | C66: 1771 | D66: 815 | E66: 679 | F66: 2851 | G66: 369 | H66: 1145 | I66: 970 | J66: 874 | K66: 824 | L66: 725 | M66: 671 | N66: 1043 | O66: 2635 | P66: 3788 | Q66: 1773 | R66: 561 | S66: 641 | T66: 631 | U66: 173 | V66: 1069 | W66: 2398 | X66: 137 | Y66: 1083 | Z66: 1291 | AA66: 889 | AB66: 154 | AC66: 918 | AD66: 2296 | AE66: 616 | AF66: 718 | AG66: 1196 | AH66: 37061 | AI66: 1406 | AJ66: 1894 | AK66: 795 | AL66: 617 | AM66: 2784 | AN66: 302 | AO66: 1094 | AP66: 948 | AQ66: 840 | AR66: 749 | AS66: 705 | AT66: 629 | AU66: 1053 | AV66: 2479 | AW66: 3717 | AX66: 1642 | AY66: 543 | AZ66: 590 | BA66: 672 | BB66: 186 | BC66: 962 | BD66: 2198 | BE66: 157 | BF66: 1072 | BG66: 1238 | BH66: 824 | BI66: 149 | BJ66: 799 | BK66: 2264 | BL66: 612 | BM66: 681 | BN66: 1151 | BO66: 35752 | BQ66: 72813
A67: 59 | B67: 1277 | C67: 1760 | D67: 833 | E67: 693 | F67: 2815 | G67: 350 | H67: 1096 | I67: 913 | J67: 841 | K67: 841 | L67: 744 | M67: 661 | N67: 1031 | O67: 2433 | P67: 3622 | Q67: 1684 | R67: 606 | S67: 637 | T67: 662 | U67: 187 | V67: 983 | W67: 2261 | X67: 163 | Y67: 1056 | Z67: 1157 | AA67: 867 | AB67: 152 | AC67: 850 | AD67: 2339 | AE67: 581 | AF67: 666 | AG67: 1095 | AH67: 35856 | AI67: 1335 | AJ67: 1739 | AK67: 772 | AL67: 664 | AM67: 2719 | AN67: 346 | AO67: 1051 | AP67: 951 | AQ67: 833 | AR67: 735 | AS67: 721 | AT67: 634 | AU67: 1005 | AV67: 2434 | AW67: 3758 | AX67: 1724 | AY67: 572 | AZ67: 563 | BA67: 605 | BB67: 193 | BC67: 938 | BD67: 2208 | BE67: 160 | BF67: 984 | BG67: 1171 | BH67: 821 | BI67: 137 | BJ67: 794 | BK67: 2193 | BL67: 588 | BM67: 611 | BN67: 1079 | BO67: 35038 | BQ67: 70894
A68: 60 | B68: 1266 | C68: 1752 | D68: 789 | E68: 641 | F68: 2530 | G68: 341 | H68: 1147 | I68: 824 | J68: 775 | K68: 767 | L68: 687 | M68: 652 | N68: 1044 | O68: 2443 | P68: 3548 | Q68: 1666 | R68: 537 | S68: 531 | T68: 648 | U68: 189 | V68: 984 | W68: 2147 | X68: 153 | Y68: 1027 | Z68: 1142 | AA68: 824 | AB68: 151 | AC68: 826 | AD68: 2193 | AE68: 560 | AF68: 642 | AG68: 1042 | AH68: 34468 | AI68: 1294 | AJ68: 1768 | AK68: 769 | AL68: 691 | AM68: 2614 | AN68: 305 | AO68: 1045 | AP68: 837 | AQ68: 765 | AR68: 732 | AS68: 689 | AT68: 631 | AU68: 925 | AV68: 2295 | AW68: 3468 | AX68: 1631 | AY68: 522 | AZ68: 546 | BA68: 642 | BB68: 177 | BC68: 929 | BD68: 2010 | BE68: 133 | BF68: 961 | BG68: 1093 | BH68: 788 | BI68: 157 | BJ68: 784 | BK68: 2121 | BL68: 541 | BM68: 650 | BN68: 1029 | BO68: 33542 | BQ68: 68010
A69: 61 | B69: 1225 | C69: 1676 | D69: 761 | E69: 625 | F69: 2488 | G69: 336 | H69: 1092 | I69: 788 | J69: 785 | K69: 734 | L69: 684 | M69: 616 | N69: 968 | O69: 2343 | P69: 3278 | Q69: 1666 | R69: 514 | S69: 561 | T69: 606 | U69: 195 | V69: 916 | W69: 2105 | X69: 143 | Y69: 1007 | Z69: 1090 | AA69: 828 | AB69: 162 | AC69: 829 | AD69: 2192 | AE69: 542 | AF69: 652 | AG69: 975 | AH69: 33382 | AI69: 1246 | AJ69: 1699 | AK69: 727 | AL69: 635 | AM69: 2437 | AN69: 326 | AO69: 1042 | AP69: 833 | AQ69: 747 | AR69: 738 | AS69: 612 | AT69: 575 | AU69: 879 | AV69: 2229 | AW69: 3364 | AX69: 1604 | AY69: 533 | AZ69: 502 | BA69: 565 | BB69: 195 | BC69: 876 | BD69: 1913 | BE69: 146 | BF69: 962 | BG69: 1047 | BH69: 833 | BI69: 167 | BJ69: 752 | BK69: 1986 | BL69: 519 | BM69: 570 | BN69: 963 | BO69: 32222 | BQ69: 65604
A70: 62 | B70: 1129 | C70: 1722 | D70: 785 | E70: 634 | F70: 2420 | G70: 345 | H70: 1061 | I70: 748 | J70: 746 | K70: 747 | L70: 620 | M70: 598 | N70: 935 | O70: 2327 | P70: 3102 | Q70: 1596 | R70: 527 | S70: 531 | T70: 591 | U70: 175 | V70: 964 | W70: 2023 | X70: 122 | Y70: 995 | Z70: 1123 | AA70: 807 | AB70: 137 | AC70: 826 | AD70: 2100 | AE70: 575 | AF70: 603 | AG70: 1023 | AH70: 32637 | AI70: 1241 | AJ70: 1694 | AK70: 729 | AL70: 622 | AM70: 2411 | AN70: 311 | AO70: 1064 | AP70: 785 | AQ70: 712 | AR70: 659 | AS70: 637 | AT70: 517 | AU70: 868 | AV70: 2249 | AW70: 3023 | AX70: 1642 | AY70: 462 | AZ70: 537 | BA70: 581 | BB70: 180 | BC70: 838 | BD70: 1905 | BE70: 144 | BF70: 954 | BG70: 1009 | BH70: 790 | BI70: 146 | BJ70: 783 | BK70: 2022 | BL70: 517 | BM70: 533 | BN70: 925 | BO70: 31490 | BQ70: 64127
A71: 63 | B71: 1062 | C71: 1602 | D71: 811 | E71: 646 | F71: 2373 | G71: 307 | H71: 1107 | I71: 824 | J71: 795 | K71: 735 | L71: 635 | M71: 580 | N71: 932 | O71: 2268 | P71: 2796 | Q71: 1664 | R71: 504 | S71: 552 | T71: 606 | U71: 167 | V71: 951 | W71: 1995 | X71: 149 | Y71: 1040 | Z71: 1028 | AA71: 799 | AB71: 135 | AC71: 798 | AD71: 1992 | AE71: 544 | AF71: 539 | AG71: 1031 | AH71: 31967 | AI71: 1135 | AJ71: 1548 | AK71: 801 | AL71: 603 | AM71: 2257 | AN71: 325 | AO71: 1026 | AP71: 747 | AQ71: 772 | AR71: 699 | AS71: 574 | AT71: 535 | AU71: 884 | AV71: 2146 | AW71: 3007 | AX71: 1575 | AY71: 471 | AZ71: 497 | BA71: 589 | BB71: 208 | BC71: 841 | BD71: 1898 | BE71: 168 | BF71: 1033 | BG71: 981 | BH71: 777 | BI71: 124 | BJ71: 779 | BK71: 1981 | BL71: 531 | BM71: 539 | BN71: 918 | BO71: 30969 | BQ71: 62936
A72: 64 | B72: 1074 | C72: 1528 | D72: 733 | E72: 665 | F72: 2318 | G72: 299 | H72: 1078 | I72: 734 | J72: 744 | K72: 678 | L72: 622 | M72: 552 | N72: 887 | O72: 2225 | P72: 2683 | Q72: 1600 | R72: 486 | S72: 504 | T72: 554 | U72: 203 | V72: 897 | W72: 1842 | X72: 133 | Y72: 973 | Z72: 966 | AA72: 779 | AB72: 131 | AC72: 807 | AD72: 1977 | AE72: 506 | AF72: 545 | AG72: 949 | AH72: 30672 | AI72: 1073 | AJ72: 1571 | AK72: 694 | AL72: 602 | AM72: 2278 | AN72: 313 | AO72: 1030 | AP72: 707 | AQ72: 703 | AR72: 577 | AS72: 550 | AT72: 519 | AU72: 833 | AV72: 2071 | AW72: 2726 | AX72: 1581 | AY72: 457 | AZ72: 483 | BA72: 548 | BB72: 182 | BC72: 846 | BD72: 1715 | BE72: 128 | BF72: 928 | BG72: 920 | BH72: 774 | BI72: 139 | BJ72: 738 | BK72: 1836 | BL72: 509 | BM72: 511 | BN72: 885 | BO72: 29427 | BQ72: 60099
A73: 65 | B73: 1072 | C73: 1557 | D73: 787 | E73: 683 | F73: 2361 | G73: 354 | H73: 1065 | I73: 730 | J73: 737 | K73: 662 | L73: 648 | M73: 526 | N73: 981 | O73: 2274 | P73: 2614 | Q73: 1540 | R73: 520 | S73: 554 | T73: 616 | U73: 183 | V73: 894 | W73: 1801 | X73: 140 | Y73: 1006 | Z73: 1121 | AA73: 811 | AB73: 145 | AC73: 806 | AD73: 1885 | AE73: 527 | AF73: 546 | AG73: 969 | AH73: 31115 | AI73: 1082 | AJ73: 1564 | AK73: 782 | AL73: 654 | AM73: 2195 | AN73: 294 | AO73: 1054 | AP73: 734 | AQ73: 715 | AR73: 655 | AS73: 538 | AT73: 462 | AU73: 848 | AV73: 2141 | AW73: 2648 | AX73: 1525 | AY73: 488 | AZ73: 488 | BA73: 544 | BB73: 173 | BC73: 843 | BD73: 1733 | BE73: 145 | BF73: 918 | BG73: 985 | BH73: 787 | BI73: 141 | BJ73: 725 | BK73: 1800 | BL73: 506 | BM73: 516 | BN73: 912 | BO73: 29595 | BQ73: =AH73+BO73 -> 60710
A74: 66 | B74: 1045 | C74: 1541 | D74: 742 | E74: 644 | F74: 2383 | G74: 333 | H74: 1114 | I74: 809 | J74: 747 | K74: 726 | L74: 621 | M74: 520 | N74: 933 | O74: 2300 | P74: 2572 | Q74: 1523 | R74: 488 | S74: 520 | T74: 601 | U74: 188 | V74: 878 | W74: 1864 | X74: 132 | Y74: 1017 | Z74: 1007 | AA74: 844 | AB74: 142 | AC74: 780 | AD74: 1875 | AE74: 502 | AF74: 525 | AG74: 916 | AH74: 30832 | AI74: 1069 | AJ74: 1527 | AK74: 797 | AL74: 619 | AM74: 2163 | AN74: 319 | AO74: 1085 | AP74: 698 | AQ74: 735 | AR74: 634 | AS74: 559 | AT74: 487 | AU74: 900 | AV74: 2098 | AW74: 2455 | AX74: 1534 | AY74: 470 | AZ74: 524 | BA74: 579 | BB74: 201 | BC74: 831 | BD74: 1760 | BE74: 115 | BF74: 960 | BG74: 917 | BH74: 785 | BI74: 148 | BJ74: 728 | BK74: 1763 | BL74: 503 | BM74: 486 | BN74: 927 | BO74: 29376 | BQ74: 60208
A75: 67 | B75: 1155 | C75: 1560 | D75: 844 | E75: 653 | F75: 2389 | G75: 332 | H75: 1089 | I75: 762 | J75: 746 | K75: 718 | L75: 619 | M75: 568 | N75: 962 | O75: 2410 | P75: 2585 | Q75: 1548 | R75: 495 | S75: 582 | T75: 583 | U75: 188 | V75: 987 | W75: 1880 | X75: 132 | Y75: 1015 | Z75: 1064 | AA75: 851 | AB75: 132 | AC75: 827 | AD75: 1901 | AE75: 518 | AF75: 531 | AG75: 982 | AH75: 31608 | AI75: 1093 | AJ75: 1675 | AK75: 753 | AL75: 703 | AM75: 2254 | AN75: 334 | AO75: 1131 | AP75: 752 | AQ75: 740 | AR75: 637 | AS75: 544 | AT75: 483 | AU75: 883 | AV75: 2220 | AW75: 2421 | AX75: 1578 | AY75: 437 | AZ75: 529 | BA75: 578 | BB75: 205 | BC75: 870 | BD75: 1767 | BE75: 152 | BF75: 976 | BG75: 913 | BH75: 816 | BI75: 141 | BJ75: 798 | BK75: 1797 | BL75: 519 | BM75: 486 | BN75: 903 | BO75: 30088 | BQ75: 61696
A76: 68 | B76: 1089 | C76: 1617 | D76: 879 | E76: 700 | F76: 2376 | G76: 339 | H76: 1124 | I76: 852 | J76: 846 | K76: 712 | L76: 701 | M76: 595 | N76: 963 | O76: 2525 | P76: 2627 | Q76: 1660 | R76: 510 | S76: 580 | T76: 594 | U76: 165 | V76: 978 | W76: 1930 | X76: 147 | Y76: 1031 | Z76: 1052 | AA76: 871 | AB76: 127 | AC76: 828 | AD76: 2019 | AE76: 546 | AF76: 595 | AG76: 1030 | AH76: 32608 | AI76: 1064 | AJ76: 1628 | AK76: 842 | AL76: 658 | AM76: 2176 | AN76: 338 | AO76: 1123 | AP76: 733 | AQ76: 744 | AR76: 657 | AS76: 633 | AT76: 519 | AU76: 900 | AV76: 2284 | AW76: 2495 | AX76: 1652 | AY76: 436 | AZ76: 498 | BA76: 616 | BB76: 210 | BC76: 929 | BD76: 1737 | BE76: 126 | BF76: 1023 | BG76: 944 | BH76: 877 | BI76: 162 | BJ76: 784 | BK76: 1778 | BL76: 520 | BM76: 511 | BN76: 943 | BO76: 30540 | BQ76: 63148
A77: 69 | B77: 1251 | C77: 1735 | D77: 999 | E77: 809 | F77: 2681 | G77: 385 | H77: 1261 | I77: 909 | J77: 920 | K77: 792 | L77: 673 | M77: 619 | N77: 1018 | O77: 2694 | P77: 2736 | Q77: 1678 | R77: 525 | S77: 639 | T77: 717 | U77: 220 | V77: 1101 | W77: 1967 | X77: 150 | Y77: 1200 | Z77: 1162 | AA77: 1030 | AB77: 133 | AC77: 973 | AD77: 2095 | AE77: 657 | AF77: 561 | AG77: 1064 | AH77: 35354 | AI77: 1148 | AJ77: 1711 | AK77: 874 | AL77: 735 | AM77: 2467 | AN77: 340 | AO77: 1186 | AP77: 861 | AQ77: 818 | AR77: 729 | AS77: 652 | AT77: 535 | AU77: 1041 | AV77: 2548 | AW77: 2538 | AX77: 1593 | AY77: 476 | AZ77: 556 | BA77: 604 | BB77: 221 | BC77: 965 | BD77: 1859 | BE77: 167 | BF77: 1103 | BG77: 1107 | BH77: 982 | BI77: 170 | BJ77: 868 | BK77: 1914 | BL77: 605 | BM77: 502 | BN77: 969 | BO77: 32844 | BQ77: 68198
A78: 70 | B78: 907 | C78: 1321 | D78: 679 | E78: 568 | F78: 1981 | G78: 254 | H78: 970 | I78: 662 | J78: 639 | K78: 611 | L78: 532 | M78: 429 | N78: 765 | O78: 1991 | P78: 2146 | Q78: 1293 | R78: 419 | S78: 491 | T78: 504 | U78: 161 | V78: 790 | W78: 1497 | X78: 108 | Y78: 865 | Z78: 868 | AA78: 742 | AB78: 103 | AC78: 748 | AD78: 1592 | AE78: 459 | AF78: 424 | AG78: 822 | AH78: 26341 | AI78: 817 | AJ78: 1272 | AK78: 647 | AL78: 549 | AM78: 1659 | AN78: 257 | AO78: 918 | AP78: 610 | AQ78: 588 | AR78: 516 | AS78: 505 | AT78: 419 | AU78: 668 | AV78: 1861 | AW78: 1913 | AX78: 1259 | AY78: 404 | AZ78: 439 | BA78: 467 | BB78: 158 | BC78: 729 | BD78: 1389 | BE78: 110 | BF78: 862 | BG78: 760 | BH78: 700 | BI78: 111 | BJ78: 651 | BK78: 1428 | BL78: 424 | BM78: 444 | BN78: 721 | BO78: 24255 | BQ78: 50596
A79: 71 | B79: 784 | C79: 1186 | D79: 665 | E79: 549 | F79: 1799 | G79: 288 | H79: 968 | I79: 658 | J79: 638 | K79: 583 | L79: 495 | M79: 469 | N79: 729 | O79: 1921 | P79: 2100 | Q79: 1168 | R79: 397 | S79: 426 | T79: 525 | U79: 136 | V79: 761 | W79: 1493 | X79: 127 | Y79: 842 | Z79: 850 | AA79: 688 | AB79: 130 | AC79: 730 | AD79: 1467 | AE79: 429 | AF79: 406 | AG79: 764 | AH79: 25171 | AI79: 664 | AJ79: 1112 | AK79: 619 | AL79: 528 | AM79: 1673 | AN79: 238 | AO79: 855 | AP79: 542 | AQ79: 592 | AR79: 525 | AS79: 469 | AT79: 357 | AU79: 698 | AV79: 1773 | AW79: 1758 | AX79: 1196 | AY79: 346 | AZ79: 417 | BA79: 420 | BB79: 130 | BC79: 673 | BD79: 1225 | BE79: 99 | BF79: 730 | BG79: 738 | BH79: 632 | BI79: 92 | BJ79: 628 | BK79: 1401 | BL79: 359 | BM79: 376 | BN79: 703 | BO79: 22568 | BQ79: 47739
A80: 72 | B80: 779 | C80: 1146 | D80: 664 | E80: 549 | F80: 1781 | G80: 285 | H80: 943 | I80: 564 | J80: 630 | K80: 609 | L80: 573 | M80: 485 | N80: 776 | O80: 2003 | P80: 2039 | Q80: 1275 | R80: 434 | S80: 458 | T80: 495 | U80: 145 | V80: 775 | W80: 1533 | X80: 111 | Y80: 792 | Z80: 867 | AA80: 717 | AB80: 96 | AC80: 710 | AD80: 1557 | AE80: 465 | AF80: 401 | AG80: 752 | AH80: 25409 | AI80: 692 | AJ80: 1135 | AK80: 628 | AL80: 538 | AM80: 1595 | AN80: 248 | AO80: 899 | AP80: 573 | AQ80: 578 | AR80: 519 | AS80: 485 | AT80: 386 | AU80: 643 | AV80: 1715 | AW80: 1761 | AX80: 1209 | AY80: 386 | AZ80: 390 | BA80: 465 | BB80: 144 | BC80: 725 | BD80: 1276 | BE80: 131 | BF80: 768 | BG80: 752 | BH80: 667 | BI80: 115 | BJ80: 651 | BK80: 1359 | BL80: 409 | BM80: 385 | BN80: 663 | BO80: 22890 | BQ80: 48299
A81: 73 | B81: 787 | C81: 1135 | D81: 637 | E81: 491 | F81: 1759 | G81: 270 | H81: 956 | I81: 582 | J81: 592 | K81: 603 | L81: 485 | M81: 483 | N81: 710 | O81: 1831 | P81: 2043 | Q81: 1269 | R81: 433 | S81: 408 | T81: 497 | U81: 174 | V81: 769 | W81: 1541 | X81: 130 | Y81: 857 | Z81: 770 | AA81: 694 | AB81: 123 | AC81: 684 | AD81: 1533 | AE81: 439 | AF81: 430 | AG81: 763 | AH81: 24878 | AI81: 686 | AJ81: 1064 | AK81: 557 | AL81: 487 | AM81: 1456 | AN81: 213 | AO81: 815 | AP81: 509 | AQ81: 536 | AR81: 478 | AS81: 436 | AT81: 355 | AU81: 649 | AV81: 1593 | AW81: 1647 | AX81: 1114 | AY81: 329 | AZ81: 359 | BA81: 420 | BB81: 128 | BC81: 659 | BD81: 1199 | BE81: 106 | BF81: 692 | BG81: 686 | BH81: 635 | BI81: 117 | BJ81: 633 | BK81: 1314 | BL81: 383 | BM81: 324 | BN81: 627 | BO81: 21206 | BQ81: 46084
A82: 74 | B82: 806 | C82: 1088 | D82: 582 | E82: 471 | F82: 1599 | G82: 230 | H82: 865 | I82: 579 | J82: 568 | K82: 488 | L82: 480 | M82: 405 | N82: 701 | O82: 1645 | P82: 1805 | Q82: 1109 | R82: 351 | S82: 351 | T82: 430 | U82: 122 | V82: 718 | W82: 1334 | X82: 126 | Y82: 797 | Z82: 748 | AA82: 575 | AB82: 119 | AC82: 649 | AD82: 1416 | AE82: 409 | AF82: 379 | AG82: 684 | AH82: 22629 | AI82: 645 | AJ82: 954 | AK82: 518 | AL82: 434 | AM82: 1330 | AN82: 199 | AO82: 777 | AP82: 443 | AQ82: 429 | AR82: 430 | AS82: 406 | AT82: 310 | AU82: 519 | AV82: 1503 | AW82: 1524 | AX82: 1011 | AY82: 294 | AZ82: 311 | BA82: 392 | BB82: 132 | BC82: 536 | BD82: 1061 | BE82: 101 | BF82: 661 | BG82: 612 | BH82: 517 | BI82: 98 | BJ82: 518 | BK82: 1166 | BL82: 346 | BM82: 307 | BN82: 575 | BO82: 19059 | BQ82: 41688
A83: 75 | B83: 743 | C83: 964 | D83: 501 | E83: 458 | F83: 1545 | G83: 215 | H83: 809 | I83: 558 | J83: 505 | K83: 506 | L83: 451 | M83: 402 | N83: 605 | O83: 1430 | P83: 1845 | Q83: 1033 | R83: 340 | S83: 345 | T83: 402 | U83: 154 | V83: 657 | W83: 1248 | X83: 87 | Y83: 659 | Z83: 705 | AA83: 563 | AB83: 88 | AC83: 549 | AD83: 1374 | AE83: 374 | AF83: 364 | AG83: 623 | AH83: 21102 | AI83: 550 | AJ83: 823 | AK83: 476 | AL83: 379 | AM83: 1205 | AN83: 174 | AO83: 705 | AP83: 435 | AQ83: 448 | AR83: 397 | AS83: 372 | AT83: 329 | AU83: 494 | AV83: 1257 | AW83: 1336 | AX83: 819 | AY83: 295 | AZ83: 294 | BA83: 364 | BB83: 116 | BC83: 508 | BD83: 980 | BE83: 81 | BF83: 561 | BG83: 589 | BH83: 470 | BI83: 82 | BJ83: 477 | BK83: 1038 | BL83: 309 | BM83: 255 | BN83: 530 | BO83: 17148 | BQ83: 38250
A84: 76 | B84: 769 | C84: 1000 | D84: 539 | E84: 469 | F84: 1536 | G84: 189 | H84: 753 | I84: 539 | J84: 530 | K84: 509 | L84: 443 | M84: 387 | N84: 608 | O84: 1549 | P84: 1882 | Q84: 1035 | R84: 326 | S84: 345 | T84: 411 | U84: 147 | V84: 662 | W84: 1271 | X84: 118 | Y84: 667 | Z84: 681 | AA84: 569 | AB84: 87 | AC84: 596 | AD84: 1349 | AE84: 367 | AF84: 356 | AG84: 580 | AH84: 21269 | AI84: 568 | AJ84: 891 | AK84: 479 | AL84: 400 | AM84: 1226 | AN84: 153 | AO84: 699 | AP84: 460 | AQ84: 410 | AR84: 429 | AS84: 353 | AT84: 287 | AU84: 491 | AV84: 1220 | AW84: 1332 | AX84: 839 | AY84: 231 | AZ84: 259 | BA84: 350 | BB84: 106 | BC84: 537 | BD84: 984 | BE84: 109 | BF84: 628 | BG84: 535 | BH84: 492 | BI84: 93 | BJ84: 466 | BK84: 979 | BL84: 317 | BM84: 258 | BN84: 498 | BO84: 17079 | BQ84: 38348
A85: 77 | B85: 740 | C85: 904 | D85: 519 | E85: 448 | F85: 1527 | G85: 198 | H85: 739 | I85: 540 | J85: 446 | K85: 538 | L85: 408 | M85: 357 | N85: 655 | O85: 1470 | P85: 1864 | Q85: 985 | R85: 352 | S85: 326 | T85: 365 | U85: 126 | V85: 570 | W85: 1252 | X85: 87 | Y85: 712 | Z85: 703 | AA85: 601 | AB85: 77 | AC85: 526 | AD85: 1235 | AE85: 382 | AF85: 364 | AG85: 583 | AH85: 20599 | AI85: 524 | AJ85: 821 | AK85: 397 | AL85: 345 | AM85: 1189 | AN85: 148 | AO85: 621 | AP85: 452 | AQ85: 449 | AR85: 372 | AS85: 319 | AT85: 300 | AU85: 479 | AV85: 1228 | AW85: 1291 | AX85: 791 | AY85: 255 | AZ85: 284 | BA85: 336 | BB85: 122 | BC85: 510 | BD85: 936 | BE85: 94 | BF85: 594 | BG85: 554 | BH85: 484 | BI85: 79 | BJ85: 443 | BK85: 940 | BL85: 300 | BM85: 263 | BN85: 491 | BO85: 16411 | BQ85: 37010
A86: 78 | B86: 713 | C86: 847 | D86: 512 | E86: 405 | F86: 1604 | G86: 170 | H86: 653 | I86: 590 | J86: 465 | K86: 497 | L86: 446 | M86: 377 | N86: 610 | O86: 1398 | P86: 1786 | Q86: 955 | R86: 328 | S86: 328 | T86: 385 | U86: 135 | V86: 608 | W86: 1197 | X86: 88 | Y86: 627 | Z86: 676 | AA86: 502 | AB86: 84 | AC86: 569 | AD86: 1212 | AE86: 329 | AF86: 304 | AG86: 569 | AH86: 19969 | AI86: 576 | AJ86: 759 | AK86: 405 | AL86: 357 | AM86: 1121 | AN86: 164 | AO86: 626 | AP86: 429 | AQ86: 402 | AR86: 386 | AS86: 355 | AT86: 305 | AU86: 455 | AV86: 1140 | AW86: 1233 | AX86: 738 | AY86: 245 | AZ86: 271 | BA86: 286 | BB86: 103 | BC86: 432 | BD86: 919 | BE86: 84 | BF86: 524 | BG86: 512 | BH86: 467 | BI86: 70 | BJ86: 441 | BK86: 959 | BL86: 243 | BM86: 233 | BN86: 456 | BO86: 15696 | BQ86: 35665
A87: 79 | B87: 690 | C87: 802 | D87: 466 | E87: 413 | F87: 1468 | G87: 197 | H87: 684 | I87: 497 | J87: 463 | K87: 490 | L87: 354 | M87: 355 | N87: 556 | O87: 1392 | P87: 1696 | Q87: 839 | R87: 337 | S87: 286 | T87: 330 | U87: 122 | V87: 511 | W87: 1091 | X87: 87 | Y87: 619 | Z87: 655 | AA87: 530 | AB87: 76 | AC87: 503 | AD87: 1125 | AE87: 355 | AF87: 328 | AG87: 495 | AH87: 18812 | AI87: 507 | AJ87: 675 | AK87: 401 | AL87: 303 | AM87: 1072 | AN87: 145 | AO87: 603 | AP87: 345 | AQ87: 358 | AR87: 387 | AS87: 275 | AT87: 283 | AU87: 420 | AV87: 1024 | AW87: 1098 | AX87: 682 | AY87: 203 | AZ87: 216 | BA87: 300 | BB87: 81 | BC87: 397 | BD87: 689 | BE87: 68 | BF87: 485 | BG87: 456 | BH87: 372 | BI87: 70 | BJ87: 423 | BK87: 861 | BL87: 257 | BM87: 206 | BN87: 399 | BO87: 14061 | BQ87: 32873
A88: 80 | B88: 690 | C88: 753 | D88: 436 | E88: 369 | F88: 1412 | G88: 180 | H88: 643 | I88: 509 | J88: 414 | K88: 413 | L88: 376 | M88: 369 | N88: 497 | O88: 1302 | P88: 1620 | Q88: 832 | R88: 312 | S88: 292 | T88: 315 | U88: 109 | V88: 494 | W88: 1060 | X88: 70 | Y88: 594 | Z88: 620 | AA88: 423 | AB88: 64 | AC88: 479 | AD88: 1135 | AE88: 323 | AF88: 299 | AG88: 483 | AH88: 17887 | AI88: 434 | AJ88: 664 | AK88: 369 | AL88: 262 | AM88: 1022 | AN88: 117 | AO88: 536 | AP88: 382 | AQ88: 302 | AR88: 325 | AS88: 269 | AT88: 261 | AU88: 396 | AV88: 974 | AW88: 1033 | AX88: 601 | AY88: 207 | AZ88: 219 | BA88: 237 | BB88: 80 | BC88: 379 | BD88: 701 | BE88: 53 | BF88: 437 | BG88: 414 | BH88: 414 | BI88: 62 | BJ88: 382 | BK88: 817 | BL88: 227 | BM88: 205 | BN88: 366 | BO88: 13147 | BQ88: 31034
A89: 81 | B89: 618 | C89: 680 | D89: 437 | E89: 358 | F89: 1297 | G89: 149 | H89: 582 | I89: 473 | J89: 387 | K89: 408 | L89: 318 | M89: 345 | N89: 475 | O89: 1145 | P89: 1676 | Q89: 766 | R89: 252 | S89: 284 | T89: 373 | U89: 95 | V89: 451 | W89: 962 | X89: 72 | Y89: 571 | Z89: 579 | AA89: 438 | AB89: 74 | AC89: 429 | AD89: 983 | AE89: 290 | AF89: 277 | AG89: 416 | AH89: 16660 | AI89: 431 | AJ89: 593 | AK89: 318 | AL89: 253 | AM89: 966 | AN89: 109 | AO89: 448 | AP89: 310 | AQ89: 298 | AR89: 327 | AS89: 234 | AT89: 238 | AU89: 368 | AV89: 881 | AW89: 971 | AX89: 580 | AY89: 186 | AZ89: 187 | BA89: 245 | BB89: 78 | BC89: 338 | BD89: 609 | BE89: 69 | BF89: 457 | BG89: 418 | BH89: 313 | BI89: 50 | BJ89: 342 | BK89: 667 | BL89: 245 | BM89: 183 | BN89: 328 | BO89: 12040 | BQ89: 28700
A90: 82 | B90: 584 | C90: 664 | D90: 377 | E90: 299 | F90: 1219 | G90: 107 | H90: 590 | I90: 498 | J90: 353 | K90: 401 | L90: 313 | M90: 333 | N90: 411 | O90: 1092 | P90: 1475 | Q90: 704 | R90: 248 | S90: 233 | T90: 286 | U90: 97 | V90: 454 | W90: 856 | X90: 72 | Y90: 486 | Z90: 556 | AA90: 404 | AB90: 61 | AC90: 430 | AD90: 940 | AE90: 252 | AF90: 244 | AG90: 370 | AH90: 15409 | AI90: 411 | AJ90: 489 | AK90: 295 | AL90: 196 | AM90: 888 | AN90: 99 | AO90: 430 | AP90: 307 | AQ90: 255 | AR90: 296 | AS90: 240 | AT90: 187 | AU90: 329 | AV90: 756 | AW90: 821 | AX90: 579 | AY90: 158 | AZ90: 171 | BA90: 217 | BB90: 76 | BC90: 295 | BD90: 532 | BE90: 49 | BF90: 414 | BG90: 339 | BH90: 298 | BI90: 48 | BJ90: 286 | BK90: 617 | BL90: 178 | BM90: 164 | BN90: 280 | BO90: 10700 | BQ90: 26109
A91: 83 | B91: 527 | C91: 615 | D91: 350 | E91: 282 | F91: 1194 | G91: 109 | H91: 513 | I91: 409 | J91: 335 | K91: 359 | L91: 298 | M91: 271 | N91: 395 | O91: 975 | P91: 1358 | Q91: 667 | R91: 268 | S91: 207 | T91: 274 | U91: 110 | V91: 413 | W91: 779 | X91: 51 | Y91: 447 | Z91: 457 | AA91: 369 | AB91: 51 | AC91: 407 | AD91: 919 | AE91: 234 | AF91: 254 | AG91: 315 | AH91: 14212 | AI91: 357 | AJ91: 463 | AK91: 249 | AL91: 221 | AM91: 807 | AN91: 72 | AO91: 430 | AP91: 278 | AQ91: 228 | AR91: 250 | AS91: 203 | AT91: 196 | AU91: 282 | AV91: 712 | AW91: 785 | AX91: 478 | AY91: 135 | AZ91: 134 | BA91: 193 | BB91: 50 | BC91: 280 | BD91: 541 | BE91: 42 | BF91: 355 | BG91: 266 | BH91: 253 | BI91: 31 | BJ91: 274 | BK91: 576 | BL91: 189 | BM91: 153 | BN91: 212 | BO91: 9695 | BQ91: 23907
A92: 84 | B92: 592 | C92: 570 | D92: 360 | E92: 272 | F92: 1139 | G92: 110 | H92: 478 | I92: 421 | J92: 280 | K92: 345 | L92: 269 | M92: 299 | N92: 377 | O92: 877 | P92: 1322 | Q92: 623 | R92: 259 | S92: 198 | T92: 278 | U92: 104 | V92: 385 | W92: 699 | X92: 53 | Y92: 443 | Z92: 422 | AA92: 338 | AB92: 53 | AC92: 363 | AD92: 819 | AE92: 227 | AF92: 234 | AG92: 354 | AH92: 13563 | AI92: 345 | AJ92: 385 | AK92: 240 | AL92: 190 | AM92: 688 | AN92: 82 | AO92: 351 | AP92: 229 | AQ92: 182 | AR92: 248 | AS92: 201 | AT92: 182 | AU92: 232 | AV92: 620 | AW92: 691 | AX92: 445 | AY92: 140 | AZ92: 130 | BA92: 147 | BB92: 51 | BC92: 283 | BD92: 457 | BE92: 39 | BF92: 366 | BG92: 268 | BH92: 243 | BI92: 31 | BJ92: 242 | BK92: 503 | BL92: 169 | BM92: 150 | BN92: 226 | BO92: 8756 | BQ92: 22319
A93: 85 | B93: 466 | C93: 546 | D93: 331 | E93: 254 | F93: 1131 | G93: 90 | H93: 420 | I93: 357 | J93: 264 | K93: 283 | L93: 247 | M93: 262 | N93: 312 | O93: 848 | P93: 1168 | Q93: 584 | R93: 231 | S93: 191 | T93: 256 | U93: 70 | V93: 318 | W93: 623 | X93: 53 | Y93: 421 | Z93: 428 | AA93: 307 | AB93: 38 | AC93: 342 | AD93: 754 | AE93: 187 | AF93: 204 | AG93: 310 | AH93: 12296 | AI93: 295 | AJ93: 384 | AK93: 241 | AL93: 145 | AM93: 670 | AN93: 63 | AO93: 295 | AP93: 237 | AQ93: 174 | AR93: 187 | AS93: 152 | AT93: 155 | AU93: 196 | AV93: 482 | AW93: 614 | AX93: 390 | AY93: 114 | AZ93: 131 | BA93: 142 | BB93: 39 | BC93: 217 | BD93: 372 | BE93: 27 | BF93: 328 | BG93: 248 | BH93: 234 | BI93: 37 | BJ93: 237 | BK93: 452 | BL93: 140 | BM93: 100 | BN93: 162 | BO93: 7660 | BQ93: 19956
A94: 86 | B94: 468 | C94: 459 | D94: 288 | E94: 240 | F94: 979 | G94: 110 | H94: 389 | I94: 339 | J94: 232 | K94: 272 | L94: 241 | M94: 232 | N94: 309 | O94: 782 | P94: 1017 | Q94: 483 | R94: 201 | S94: 160 | T94: 181 | U94: 72 | V94: 283 | W94: 548 | X94: 59 | Y94: 371 | Z94: 359 | AA94: 285 | AB94: 34 | AC94: 305 | AD94: 676 | AE94: 183 | AF94: 201 | AG94: 223 | AH94: 10981 | AI94: 225 | AJ94: 318 | AK94: 211 | AL94: 135 | AM94: 528 | AN94: 60 | AO94: 253 | AP94: 181 | AQ94: 142 | AR94: 179 | AS94: 121 | AT94: 135 | AU94: 164 | AV94: 444 | AW94: 469 | AX94: 344 | AY94: 98 | AZ94: 110 | BA94: 132 | BB94: 36 | BC94: 157 | BD94: 297 | BE94: 34 | BF94: 252 | BG94: 211 | BH94: 202 | BI94: 22 | BJ94: 166 | BK94: 361 | BL94: 125 | BM94: 88 | BN94: 148 | BO94: 6348 | BQ94: 17329
A95: 87 | B95: 414 | C95: 402 | D95: 264 | E95: 187 | F95: 858 | G95: 87 | H95: 365 | I95: 298 | J95: 185 | K95: 233 | L95: 191 | M95: 215 | N95: 251 | O95: 654 | P95: 884 | Q95: 475 | R95: 171 | S95: 131 | T95: 162 | U95: 70 | V95: 262 | W95: 498 | X95: 44 | Y95: 328 | Z95: 302 | AA95: 246 | AB95: 37 | AC95: 263 | AD95: 607 | AE95: 163 | AF95: 183 | AG95: 195 | AH95: 9625 | AI95: 202 | AJ95: 282 | AK95: 142 | AL95: 115 | AM95: 492 | AN95: 39 | AO95: 198 | AP95: 175 | AQ95: 111 | AR95: 150 | AS95: 128 | AT95: 103 | AU95: 143 | AV95: 389 | AW95: 389 | AX95: 291 | AY95: 96 | AZ95: 78 | BA95: 125 | BB95: 44 | BC95: 148 | BD95: 225 | BE95: 32 | BF95: 196 | BG95: 176 | BH95: 177 | BI95: 26 | BJ95: 151 | BK95: 292 | BL95: 98 | BM95: 81 | BN95: 127 | BO95: 5421 | BQ95: 15046
A96: 88 | B96: 337 | C96: 382 | D96: 218 | E96: 184 | F96: 763 | G96: 64 | H96: 290 | I96: 253 | J96: 185 | K96: 202 | L96: 168 | M96: 170 | N96: 219 | O96: 576 | P96: 785 | Q96: 418 | R96: 127 | S96: 119 | T96: 156 | U96: 58 | V96: 228 | W96: 377 | X96: 30 | Y96: 312 | Z96: 217 | AA96: 225 | AB96: 41 | AC96: 218 | AD96: 491 | AE96: 151 | AF96: 139 | AG96: 150 | AH96: 8253 | AI96: 153 | AJ96: 216 | AK96: 126 | AL96: 89 | AM96: 390 | AN96: 44 | AO96: 160 | AP96: 122 | AQ96: 102 | AR96: 120 | AS96: 109 | AT96: 80 | AU96: 106 | AV96: 335 | AW96: 303 | AX96: 200 | AY96: 61 | AZ96: 62 | BA96: 106 | BB96: 34 | BC96: 123 | BD96: 205 | BE96: 22 | BF96: 171 | BG96: 153 | BH96: 156 | BI96: 14 | BJ96: 110 | BK96: 236 | BL96: 76 | BM96: 65 | BN96: 92 | BO96: 4341 | BQ96: 12594
A97: 89 | B97: 288 | C97: 328 | D97: 203 | E97: 132 | F97: 715 | G97: 54 | H97: 237 | I97: 206 | J97: 152 | K97: 203 | L97: 161 | M97: 165 | N97: 180 | O97: 518 | P97: 673 | Q97: 367 | R97: 132 | S97: 83 | T97: 141 | U97: 43 | V97: 182 | W97: 336 | X97: 25 | Y97: 304 | Z97: 212 | AA97: 189 | AB97: 30 | AC97: 191 | AD97: 419 | AE97: 110 | AF97: 124 | AG97: 139 | AH97: 7242 | AI97: 163 | AJ97: 169 | AK97: 78 | AL97: 70 | AM97: 306 | AN97: 32 | AO97: 159 | AP97: 109 | AQ97: 70 | AR97: 96 | AS97: 84 | AT97: 74 | AU97: 110 | AV97: 293 | AW97: 269 | AX97: 160 | AY97: 35 | AZ97: 62 | BA97: 62 | BB97: 24 | BC97: 90 | BD97: 164 | BE97: 18 | BF97: 146 | BG97: 94 | BH97: 95 | BI97: 16 | BJ97: 110 | BK97: 209 | BL97: 63 | BM97: 44 | BN97: 100 | BO97: 3574 | BQ97: 10816
A98: 90 | B98: 1058 | C98: 1220 | D98: 784 | E98: 616 | F98: 2666 | G98: 243 | H98: 985 | I98: 849 | J98: 574 | K98: 668 | L98: 570 | M98: 607 | N98: 738 | O98: 2039 | P98: 2489 | Q98: 1326 | R98: 476 | S98: 362 | T98: 482 | U98: 219 | V98: 720 | W98: 1135 | X98: 106 | Y98: 1074 | Z98: 829 | AA98: 743 | AB98: 114 | AC98: 808 | AD98: 1515 | AE98: 481 | AF98: 444 | AG98: 541 | AH98: 27481 | AI98: 424 | AJ98: 574 | AK98: 315 | AL98: 227 | AM98: 1069 | AN98: 85 | AO98: 428 | AP98: 325 | AQ98: 241 | AR98: 315 | AS98: 249 | AT98: 249 | AU98: 281 | AV98: 805 | AW98: 820 | AX98: 541 | AY98: 177 | AZ98: 151 | BA98: 218 | BB98: 59 | BC98: 272 | BD98: 441 | BE98: 53 | BF98: 437 | BG98: 314 | BH98: 326 | BI98: 48 | BJ98: 327 | BK98: 560 | BL98: 187 | BM98: 147 | BN98: 222 | BO98: 10887 | BQ98: 38368
B99: 113736 | C99: 129866 | D99: 59032 | E99: 43617 | F99: 255720 | G99: 26339 | H99: 75846 | I99: 76714 | J99: 61985 | K99: 55753 | L99: 52990 | M99: 48241 | N99: 80128 | O99: 188290 | P99: 315512 | Q99: 116339 | R99: 40741 | S99: 45771 | T99: 46123 | U99: 12952 | V99: 70755 | W99: 173100 | X99: 10075 | Y99: 74705 | Z99: 90207 | AA99: 58303 | AB99: 11024 | AC99: 58045 | AD99: 165039 | AE99: 47330 | AF99: 47376 | AG99: 90365 | AH99: 2742019 | AI99: 109564 | AJ99: 128133 | AK99: 56671 | AL99: 42417 | AM99: 239657 | AN99: 25645 | AO99: 72741 | AP99: 73007 | AQ99: 59928 | AR99: 52896 | AS99: 49572 | AT99: 44859 | AU99: 76981 | AV99: 179226 | AW99: 306142 | AX99: 112816 | AY99: 38648 | AZ99: 42752 | BA99: 44476 | BB99: 12766 | BC99: 66768 | BD99: 166242 | BE99: 9806 | BF99: 71493 | BG99: 85237 | BH99: 55153 | BI99: 11372 | BJ99: 54471 | BK99: 156660 | BL99: 44408 | BM99: 44560 | BN99: 87964 | BO99: 2623031

Sheet oMYE LA 2016 (hidden)
A1: Mid-Year Estimates by sex, single year of age group and council area, mid-2016
A2: This worksheet contains one table.
B3: Total | C3: Females | D3: Males
B4: =SUM(B8:BO98)/2 -> 5404700 | C4: =SUM(B8:AG98) -> 2777197 | D4: =SUM(AI8:BN98) -> 2627503
B6: F | AI6: M
B7: Aberdeen City | C7: Aberdeenshire | D7: Angus | E7: Argyll and Bute | F7: City of Edinburgh | G7: Clackmannanshire | H7: Dumfries and Galloway | I7: Dundee City | J7: East Ayrshire | K7: East Dunbartonshire | L7: East Lothian | M7: East Renfrewshire | N7: Falkirk | O7: Fife | P7: Glasgow City | Q7: Highland | R7: Inverclyde | S7: Midlothian | T7: Moray | U7: Na h-Eileanan Siar | V7: North Ayrshire | W7: North Lanarkshire | X7: Orkney Islands | Y7: Perth and Kinross | Z7: Renfrewshire | AA7: Scottish Borders | AB7: Shetland Islands | AC7: South Ayrshire | AD7: South Lanarkshire | AE7: Stirling | AF7: West Dunbartonshire | AG7: West Lothian | AH7: Scotland | AI7: Aberdeen City | AJ7: Aberdeenshire | AK7: Angus | AL7: Argyll and Bute | AM7: City of Edinburgh | AN7: Clackmannanshire | AO7: Dumfries and Galloway | AP7: Dundee City | AQ7: East Ayrshire | AR7: East Dunbartonshire | AS7: East Lothian | AT7: East Renfrewshire | AU7: Falkirk | AV7: Fife | AW7: Glasgow City | AX7: Highland | AY7: Inverclyde | AZ7: Midlothian | BA7: Moray | BB7: Na h-Eileanan Siar | BC7: North Ayrshire | BD7: North Lanarkshire | BE7: Orkney Islands | BF7: Perth and Kinross | BG7: Renfrewshire | BH7: Scottish Borders | BI7: Shetland Islands | BJ7: South Ayrshire | BK7: South Lanarkshire | BL7: Stirling | BM7: West Dunbartonshire | BN7: West Lothian | BO7: Scotland
A8: 0 | B8: 1238 | C8: 1425 | D8: 500 | E8: 358 | F8: 2510 | G8: 246 | H8: 636 | I8: 729 | J8: 628 | K8: 485 | L8: 533 | M8: 474 | N8: 717 | O8: 1844 | P8: 3452 | Q8: 1075 | R8: 327 | S8: 525 | T8: 449 | U8: 105 | V8: 609 | W8: 1787 | X8: 89 | Y8: 650 | Z8: 869 | AA8: 535 | AB8: 127 | AC8: 502 | AD8: 1540 | AE8: 417 | AF8: 487 | AG8: 951 | AH8: 26819 | AI8: 1295 | AJ8: 1524 | AK8: 555 | AL8: 355 | AM8: 2731 | AN8: 294 | AO8: 663 | AP8: 799 | AQ8: 684 | AR8: 523 | AS8: 572 | AT8: 454 | AU8: 889 | AV8: 1893 | AW8: 3535 | AX8: 1183 | AY8: 370 | AZ8: 581 | BA8: 510 | BB8: 124 | BC8: 699 | BD8: 1937 | BE8: 80 | BF8: 702 | BG8: 905 | BH8: 542 | BI8: 130 | BJ8: 525 | BK8: 1696 | BL8: 433 | BM8: 486 | BN8: 1028 | BO8: 28697
A9: 1 | B9: 1200 | C9: 1428 | D9: 500 | E9: 379 | F9: 2552 | G9: 268 | H9: 644 | I9: 807 | J9: 628 | K9: 547 | L9: 560 | M9: 439 | N9: 803 | O9: 1966 | P9: 3432 | Q9: 1155 | R9: 369 | S9: 538 | T9: 431 | U9: 113 | V9: 626 | W9: 1850 | X9: 92 | Y9: 694 | Z9: 841 | AA9: 552 | AB9: 125 | AC9: 532 | AD9: 1663 | AE9: 420 | AF9: 450 | AG9: 963 | AH9: 27567 | AI9: 1254 | AJ9: 1481 | AK9: 619 | AL9: 370 | AM9: 2754 | AN9: 297 | AO9: 662 | AP9: 799 | AQ9: 710 | AR9: 515 | AS9: 535 | AT9: 510 | AU9: 894 | AV9: 1996 | AW9: 3627 | AX9: 1182 | AY9: 384 | AZ9: 589 | BA9: 472 | BB9: 107 | BC9: 687 | BD9: 1905 | BE9: 112 | BF9: 757 | BG9: 911 | BH9: 501 | BI9: 112 | BJ9: 526 | BK9: 1748 | BL9: 421 | BM9: 476 | BN9: 1104 | BO9: 29017
A10: 2 | B10: 1163 | C10: 1496 | D10: 585 | E10: 394 | F10: 2654 | G10: 245 | H10: 629 | I10: 731 | J10: 612 | K10: 578 | L10: 551 | M10: 509 | N10: 854 | O10: 1881 | P10: 3387 | Q10: 1087 | R10: 368 | S10: 578 | T10: 463 | U10: 125 | V10: 676 | W10: 1823 | X10: 81 | Y10: 628 | Z10: 914 | AA10: 585 | AB10: 120 | AC10: 473 | AD10: 1624 | AE10: 444 | AF10: 487 | AG10: 1043 | AH10: 27788 | AI10: 1245 | AJ10: 1516 | AK10: 631 | AL10: 384 | AM10: 2716 | AN10: 277 | AO10: 722 | AP10: 765 | AQ10: 634 | AR10: 569 | AS10: 589 | AT10: 560 | AU10: 873 | AV10: 2063 | AW10: 3562 | AX10: 1185 | AY10: 413 | AZ10: 569 | BA10: 489 | BB10: 138 | BC10: 686 | BD10: 1916 | BE10: 104 | BF10: 766 | BG10: 949 | BH10: 613 | BI10: 123 | BJ10: 534 | BK10: 1722 | BL10: 456 | BM10: 479 | BN10: 1129 | BO10: 29377
A11: 3 | B11: 1178 | C11: 1450 | D11: 615 | E11: 362 | F11: 2569 | G11: 283 | H11: 688 | I11: 798 | J11: 655 | K11: 581 | L11: 552 | M11: 585 | N11: 828 | O11: 1963 | P11: 3392 | Q11: 1184 | R11: 400 | S11: 576 | T11: 476 | U11: 132 | V11: 649 | W11: 1864 | X11: 85 | Y11: 731 | Z11: 934 | AA11: 605 | AB11: 145 | AC11: 476 | AD11: 1686 | AE11: 427 | AF11: 517 | AG11: 1118 | AH11: 28504 | AI11: 1208 | AJ11: 1551 | AK11: 587 | AL11: 400 | AM11: 2765 | AN11: 324 | AO11: 714 | AP11: 839 | AQ11: 691 | AR11: 558 | AS11: 584 | AT11: 555 | AU11: 909 | AV11: 2079 | AW11: 3499 | AX11: 1179 | AY11: 390 | AZ11: 527 | BA11: 532 | BB11: 121 | BC11: 677 | BD11: 1991 | BE11: 122 | BF11: 738 | BG11: 1014 | BH11: 626 | BI11: 143 | BJ11: 575 | BK11: 1792 | BL11: 463 | BM11: 519 | BN11: 1056 | BO11: 29728
A12: 4 | B12: 1201 | C12: 1509 | D12: 603 | E12: 447 | F12: 2589 | G12: 298 | H12: 703 | I12: 854 | J12: 699 | K12: 533 | L12: 622 | M12: 576 | N12: 918 | O12: 1995 | P12: 3425 | Q12: 1189 | R12: 363 | S12: 569 | T12: 484 | U12: 114 | V12: 722 | W12: 1890 | X12: 92 | Y12: 731 | Z12: 964 | AA12: 602 | AB12: 123 | AC12: 558 | AD12: 1657 | AE12: 482 | AF12: 493 | AG12: 1028 | AH12: 29033 | AI12: 1224 | AJ12: 1586 | AK12: 597 | AL12: 399 | AM12: 2670 | AN12: 323 | AO12: 719 | AP12: 870 | AQ12: 763 | AR12: 574 | AS12: 639 | AT12: 622 | AU12: 978 | AV12: 2126 | AW12: 3566 | AX12: 1283 | AY12: 426 | AZ12: 605 | BA12: 475 | BB12: 152 | BC12: 754 | BD12: 2068 | BE12: 127 | BF12: 784 | BG12: 993 | BH12: 609 | BI12: 142 | BJ12: 513 | BK12: 1912 | BL12: 475 | BM12: 555 | BN12: 1179 | BO12: 30708
A13: 5 | B13: 1155 | C13: 1589 | D13: 604 | E13: 407 | F13: 2799 | G13: 288 | H13: 776 | I13: 768 | J13: 706 | K13: 633 | L13: 646 | M13: 619 | N13: 873 | O13: 2147 | P13: 3415 | Q13: 1233 | R13: 390 | S13: 586 | T13: 504 | U13: 121 | V13: 776 | W13: 2032 | X13: 122 | Y13: 767 | Z13: 1020 | AA13: 551 | AB13: 133 | AC13: 569 | AD13: 1811 | AE13: 464 | AF13: 517 | AG13: 1141 | AH13: 30162 | AI13: 1210 | AJ13: 1710 | AK13: 612 | AL13: 441 | AM13: 2844 | AN13: 277 | AO13: 780 | AP13: 857 | AQ13: 724 | AR13: 673 | AS13: 673 | AT13: 675 | AU13: 977 | AV13: 2274 | AW13: 3518 | AX13: 1305 | AY13: 446 | AZ13: 525 | BA13: 572 | BB13: 138 | BC13: 766 | BD13: 2074 | BE13: 113 | BF13: 822 | BG13: 950 | BH13: 662 | BI13: 158 | BJ13: 622 | BK13: 1841 | BL13: 481 | BM13: 559 | BN13: 1254 | BO13: 31533
A14: 6 | B14: 1121 | C14: 1670 | D14: 660 | E14: 441 | F14: 2484 | G14: 304 | H14: 754 | I14: 713 | J14: 649 | K14: 572 | L14: 607 | M14: 612 | N14: 937 | O14: 2021 | P14: 3079 | Q14: 1219 | R14: 405 | S14: 554 | T14: 521 | U14: 115 | V14: 690 | W14: 2023 | X14: 110 | Y14: 724 | Z14: 893 | AA14: 564 | AB14: 123 | AC14: 548 | AD14: 1686 | AE14: 449 | AF14: 497 | AG14: 1110 | AH14: 28855 | AI14: 1158 | AJ14: 1717 | AK14: 586 | AL14: 424 | AM14: 2517 | AN14: 241 | AO14: 791 | AP14: 765 | AQ14: 682 | AR14: 602 | AS14: 617 | AT14: 632 | AU14: 959 | AV14: 2253 | AW14: 3146 | AX14: 1245 | AY14: 449 | AZ14: 557 | BA14: 548 | BB14: 148 | BC14: 717 | BD14: 2037 | BE14: 113 | BF14: 803 | BG14: 972 | BH14: 583 | BI14: 159 | BJ14: 604 | BK14: 1739 | BL14: 490 | BM14: 542 | BN14: 1150 | BO14: 29946
A15: 7 | B15: 1087 | C15: 1671 | D15: 597 | E15: 431 | F15: 2630 | G15: 258 | H15: 775 | I15: 754 | J15: 698 | K15: 577 | L15: 625 | M15: 599 | N15: 1001 | O15: 2163 | P15: 3063 | Q15: 1239 | R15: 397 | S15: 515 | T15: 533 | U15: 127 | V15: 753 | W15: 2126 | X15: 108 | Y15: 795 | Z15: 913 | AA15: 596 | AB15: 136 | AC15: 574 | AD15: 1773 | AE15: 489 | AF15: 508 | AG15: 1172 | AH15: 29683 | AI15: 1127 | AJ15: 1713 | AK15: 632 | AL15: 435 | AM15: 2638 | AN15: 298 | AO15: 775 | AP15: 828 | AQ15: 692 | AR15: 643 | AS15: 655 | AT15: 590 | AU15: 945 | AV15: 2154 | AW15: 3160 | AX15: 1440 | AY15: 406 | AZ15: 569 | BA15: 553 | BB15: 149 | BC15: 800 | BD15: 2083 | BE15: 138 | BF15: 833 | BG15: 984 | BH15: 625 | BI15: 140 | BJ15: 568 | BK15: 1777 | BL15: 499 | BM15: 544 | BN15: 1260 | BO15: 30653
A16: 8 | B16: 1108 | C16: 1512 | D16: 653 | E16: 427 | F16: 2521 | G16: 312 | H16: 804 | I16: 771 | J16: 647 | K16: 599 | L16: 657 | M16: 589 | N16: 953 | O16: 2087 | P16: 2991 | Q16: 1305 | R16: 415 | S16: 561 | T16: 600 | U16: 131 | V16: 737 | W16: 1995 | X16: 133 | Y16: 768 | Z16: 1010 | AA16: 655 | AB16: 106 | AC16: 582 | AD16: 1789 | AE16: 475 | AF16: 527 | AG16: 1178 | AH16: 29598 | AI16: 1079 | AJ16: 1740 | AK16: 656 | AL16: 447 | AM16: 2612 | AN16: 322 | AO16: 749 | AP16: 735 | AQ16: 716 | AR16: 620 | AS16: 675 | AT16: 636 | AU16: 925 | AV16: 2178 | AW16: 3131 | AX16: 1379 | AY16: 453 | AZ16: 494 | BA16: 614 | BB16: 166 | BC16: 752 | BD16: 2206 | BE16: 110 | BF16: 802 | BG16: 979 | BH16: 586 | BI16: 129 | BJ16: 595 | BK16: 1819 | BL16: 505 | BM16: 527 | BN16: 1249 | BO16: 30586
A17: 9 | B17: 1012 | C17: 1515 | D17: 590 | E17: 401 | F17: 2275 | G17: 280 | H17: 771 | I17: 723 | J17: 640 | K17: 571 | L17: 611 | M17: 598 | N17: 906 | O17: 1984 | P17: 2869 | Q17: 1272 | R17: 388 | S17: 478 | T17: 535 | U17: 150 | V17: 766 | W17: 1967 | X17: 115 | Y17: 764 | Z17: 919 | AA17: 621 | AB17: 135 | AC17: 554 | AD17: 1728 | AE17: 513 | AF17: 497 | AG17: 1124 | AH17: 28272 | AI17: 1038 | AJ17: 1613 | AK17: 603 | AL17: 422 | AM17: 2422 | AN17: 287 | AO17: 830 | AP17: 733 | AQ17: 693 | AR17: 575 | AS17: 633 | AT17: 636 | AU17: 976 | AV17: 2047 | AW17: 2911 | AX17: 1321 | AY17: 440 | AZ17: 527 | BA17: 565 | BB17: 155 | BC17: 790 | BD17: 2133 | BE17: 134 | BF17: 821 | BG17: 945 | BH17: 599 | BI17: 144 | BJ17: 594 | BK17: 1799 | BL17: 491 | BM17: 513 | BN17: 1184 | BO17: 29574
A18: 10 | B18: 966 | C18: 1528 | D18: 588 | E18: 417 | F18: 2207 | G18: 264 | H18: 753 | I18: 678 | J18: 639 | K18: 599 | L18: 581 | M18: 604 | N18: 891 | O18: 2024 | P18: 2647 | Q18: 1256 | R18: 416 | S18: 511 | T18: 486 | U18: 143 | V18: 716 | W18: 1931 | X18: 122 | Y18: 737 | Z18: 967 | AA18: 583 | AB18: 160 | AC18: 558 | AD18: 1747 | AE18: 490 | AF18: 470 | AG18: 1117 | AH18: 27796 | AI18: 979 | AJ18: 1587 | AK18: 622 | AL18: 452 | AM18: 2284 | AN18: 288 | AO18: 805 | AP18: 710 | AQ18: 651 | AR18: 647 | AS18: 677 | AT18: 601 | AU18: 893 | AV18: 2036 | AW18: 2890 | AX18: 1328 | AY18: 392 | AZ18: 529 | BA18: 535 | BB18: 151 | BC18: 775 | BD18: 2066 | BE18: 117 | BF18: 702 | BG18: 936 | BH18: 640 | BI18: 135 | BJ18: 551 | BK18: 1728 | BL18: 492 | BM18: 488 | BN18: 1151 | BO18: 28838
A19: 11 | B19: 920 | C19: 1440 | D19: 615 | E19: 401 | F19: 2013 | G19: 267 | H19: 772 | I19: 713 | J19: 627 | K19: 577 | L19: 530 | M19: 617 | N19: 858 | O19: 1895 | P19: 2636 | Q19: 1248 | R19: 400 | S19: 486 | T19: 530 | U19: 127 | V19: 723 | W19: 1963 | X19: 129 | Y19: 774 | Z19: 941 | AA19: 607 | AB19: 117 | AC19: 598 | AD19: 1667 | AE19: 501 | AF19: 483 | AG19: 1082 | AH19: 27257 | AI19: 969 | AJ19: 1503 | AK19: 635 | AL19: 454 | AM19: 2263 | AN19: 273 | AO19: 797 | AP19: 755 | AQ19: 659 | AR19: 656 | AS19: 638 | AT19: 631 | AU19: 938 | AV19: 2047 | AW19: 2804 | AX19: 1327 | AY19: 447 | AZ19: 514 | BA19: 490 | BB19: 145 | BC19: 772 | BD19: 2060 | BE19: 108 | BF19: 832 | BG19: 939 | BH19: 618 | BI19: 150 | BJ19: 576 | BK19: 1686 | BL19: 543 | BM19: 496 | BN19: 1160 | BO19: 28885
A20: 12 | B20: 885 | C20: 1399 | D20: 618 | E20: 427 | F20: 1969 | G20: 269 | H20: 726 | I20: 646 | J20: 648 | K20: 567 | L20: 583 | M20: 607 | N20: 823 | O20: 1881 | P20: 2555 | Q20: 1281 | R20: 394 | S20: 465 | T20: 506 | U20: 156 | V20: 718 | W20: 1946 | X20: 93 | Y20: 758 | Z20: 881 | AA20: 607 | AB20: 111 | AC20: 560 | AD20: 1649 | AE20: 516 | AF20: 452 | AG20: 1043 | AH20: 26739 | AI20: 895 | AJ20: 1515 | AK20: 645 | AL20: 456 | AM20: 2132 | AN20: 281 | AO20: 766 | AP20: 702 | AQ20: 697 | AR20: 657 | AS20: 596 | AT20: 615 | AU20: 868 | AV20: 2031 | AW20: 2736 | AX20: 1259 | AY20: 441 | AZ20: 518 | BA20: 506 | BB20: 147 | BC20: 717 | BD20: 2082 | BE20: 119 | BF20: 785 | BG20: 937 | BH20: 629 | BI20: 143 | BJ20: 551 | BK20: 1730 | BL20: 596 | BM20: 495 | BN20: 1097 | BO20: 28344
A21: 13 | B21: 837 | C21: 1419 | D21: 611 | E21: 394 | F21: 1915 | G21: 257 | H21: 722 | I21: 631 | J21: 626 | K21: 552 | L21: 530 | M21: 602 | N21: 833 | O21: 1849 | P21: 2582 | Q21: 1248 | R21: 383 | S21: 445 | T21: 500 | U21: 142 | V21: 712 | W21: 1902 | X21: 108 | Y21: 747 | Z21: 872 | AA21: 539 | AB21: 127 | AC21: 535 | AD21: 1585 | AE21: 497 | AF21: 454 | AG21: 1011 | AH21: 26167 | AI21: 896 | AJ21: 1464 | AK21: 621 | AL21: 415 | AM21: 2108 | AN21: 264 | AO21: 765 | AP21: 704 | AQ21: 605 | AR21: 591 | AS21: 505 | AT21: 564 | AU21: 869 | AV21: 1946 | AW21: 2650 | AX21: 1252 | AY21: 401 | AZ21: 483 | BA21: 531 | BB21: 145 | BC21: 749 | BD21: 1966 | BE21: 108 | BF21: 815 | BG21: 890 | BH21: 607 | BI21: 139 | BJ21: 552 | BK21: 1598 | BL21: 519 | BM21: 460 | BN21: 1049 | BO21: 27231
A22: 14 | B22: 835 | C22: 1372 | D22: 589 | E22: 408 | F22: 1992 | G22: 258 | H22: 676 | I22: 642 | J22: 665 | K22: 592 | L22: 516 | M22: 586 | N22: 767 | O22: 1752 | P22: 2528 | Q22: 1233 | R22: 377 | S22: 417 | T22: 477 | U22: 136 | V22: 697 | W22: 1894 | X22: 119 | Y22: 757 | Z22: 883 | AA22: 596 | AB22: 114 | AC22: 526 | AD22: 1627 | AE22: 462 | AF22: 460 | AG22: 1085 | AH22: 26038 | AI22: 910 | AJ22: 1421 | AK22: 605 | AL22: 432 | AM22: 2153 | AN22: 304 | AO22: 746 | AP22: 682 | AQ22: 604 | AR22: 605 | AS22: 572 | AT22: 583 | AU22: 844 | AV22: 1888 | AW22: 2623 | AX22: 1280 | AY22: 371 | AZ22: 487 | BA22: 555 | BB22: 117 | BC22: 709 | BD22: 1893 | BE22: 103 | BF22: 801 | BG22: 904 | BH22: 585 | BI22: 134 | BJ22: 576 | BK22: 1666 | BL22: 510 | BM22: 429 | BN22: 991 | BO22: 27083
A23: 15 | B23: 892 | C23: 1357 | D23: 628 | E23: 431 | F23: 2005 | G23: 306 | H23: 727 | I23: 640 | J23: 638 | K23: 585 | L23: 579 | M23: 565 | N23: 823 | O23: 1870 | P23: 2798 | Q23: 1252 | R23: 409 | S23: 502 | T23: 516 | U23: 150 | V23: 746 | W23: 1936 | X23: 101 | Y23: 850 | Z23: 959 | AA23: 579 | AB23: 130 | AC23: 551 | AD23: 1691 | AE23: 545 | AF23: 457 | AG23: 1025 | AH23: 27243 | AI23: 902 | AJ23: 1450 | AK23: 683 | AL23: 427 | AM23: 2071 | AN23: 271 | AO23: 774 | AP23: 708 | AQ23: 649 | AR23: 654 | AS23: 546 | AT23: 617 | AU23: 837 | AV23: 2039 | AW23: 2878 | AX23: 1348 | AY23: 421 | AZ23: 504 | BA23: 569 | BB23: 117 | BC23: 762 | BD23: 1953 | BE23: 109 | BF23: 876 | BG23: 966 | BH23: 600 | BI23: 120 | BJ23: 602 | BK23: 1700 | BL23: 528 | BM23: 440 | BN23: 1075 | BO23: 28196
A24: 16 | B24: 929 | C24: 1403 | D24: 585 | E24: 434 | F24: 2060 | G24: 295 | H24: 726 | I24: 712 | J24: 662 | K24: 566 | L24: 600 | M24: 575 | N24: 819 | O24: 1816 | P24: 2800 | Q24: 1218 | R24: 428 | S24: 515 | T24: 534 | U24: 128 | V24: 732 | W24: 1923 | X24: 119 | Y24: 865 | Z24: 937 | AA24: 637 | AB24: 136 | AC24: 559 | AD24: 1749 | AE24: 564 | AF24: 496 | AG24: 1041 | AH24: 27563 | AI24: 964 | AJ24: 1610 | AK24: 716 | AL24: 450 | AM24: 2225 | AN24: 317 | AO24: 789 | AP24: 720 | AQ24: 675 | AR24: 672 | AS24: 592 | AT24: 642 | AU24: 896 | AV24: 1978 | AW24: 3023 | AX24: 1327 | AY24: 428 | AZ24: 511 | BA24: 586 | BB24: 136 | BC24: 757 | BD24: 1960 | BE24: 101 | BF24: 933 | BG24: 996 | BH24: 626 | BI24: 156 | BJ24: 641 | BK24: 1837 | BL24: 550 | BM24: 473 | BN24: 1013 | BO24: 29300
A25: 17 | B25: 935 | C25: 1477 | D25: 616 | E25: 497 | F25: 2179 | G25: 283 | H25: 748 | I25: 727 | J25: 671 | K25: 638 | L25: 557 | M25: 584 | N25: 879 | O25: 1995 | P25: 2876 | Q25: 1301 | R25: 461 | S25: 555 | T25: 584 | U25: 147 | V25: 766 | W25: 2007 | X25: 109 | Y25: 861 | Z25: 984 | AA25: 593 | AB25: 146 | AC25: 608 | AD25: 1797 | AE25: 570 | AF25: 485 | AG25: 1066 | AH25: 28702 | AI25: 986 | AJ25: 1547 | AK25: 672 | AL25: 522 | AM25: 2279 | AN25: 339 | AO25: 830 | AP25: 721 | AQ25: 663 | AR25: 667 | AS25: 591 | AT25: 636 | AU25: 893 | AV25: 2165 | AW25: 3053 | AX25: 1466 | AY25: 470 | AZ25: 493 | BA25: 609 | BB25: 160 | BC25: 774 | BD25: 2204 | BE25: 139 | BF25: 909 | BG25: 994 | BH25: 649 | BI25: 130 | BJ25: 628 | BK25: 1838 | BL25: 607 | BM25: 498 | BN25: 1147 | BO25: 30279
A26: 18 | B26: 1304 | C26: 1289 | D26: 614 | E26: 429 | F26: 2598 | G26: 288 | H26: 797 | I26: 1068 | J26: 681 | K26: 587 | L26: 592 | M26: 579 | N26: 800 | O26: 2176 | P26: 3526 | Q26: 1209 | R26: 382 | S26: 456 | T26: 484 | U26: 125 | V26: 768 | W26: 2047 | X26: 85 | Y26: 789 | Z26: 982 | AA26: 585 | AB26: 127 | AC26: 615 | AD26: 1627 | AE26: 690 | AF26: 474 | AG26: 1016 | AH26: 29789 | AI26: 1132 | AJ26: 1543 | AK26: 679 | AL26: 556 | AM26: 2611 | AN26: 299 | AO26: 851 | AP26: 930 | AQ26: 755 | AR26: 707 | AS26: 553 | AT26: 612 | AU26: 970 | AV26: 2066 | AW26: 3521 | AX26: 1368 | AY26: 472 | AZ26: 491 | BA26: 596 | BB26: 118 | BC26: 842 | BD26: 2022 | BE26: 122 | BF26: 901 | BG26: 1014 | BH26: 601 | BI26: 145 | BJ26: 651 | BK26: 1834 | BL26: 658 | BM26: 521 | BN26: 1021 | BO26: 31162
A27: 19 | B27: 1964 | C27: 1148 | D27: 605 | E27: 395 | F27: 3644 | G27: 254 | H27: 736 | I27: 1439 | J27: 618 | K27: 528 | L27: 571 | M27: 531 | N27: 785 | O27: 2546 | P27: 4460 | Q27: 1029 | R27: 444 | S27: 487 | T27: 449 | U27: 106 | V27: 770 | W27: 2078 | X27: 82 | Y27: 647 | Z27: 955 | AA27: 579 | AB27: 117 | AC27: 605 | AD27: 1736 | AE27: 934 | AF27: 492 | AG27: 1015 | AH27: 32749 | AI27: 1536 | AJ27: 1423 | AK27: 695 | AL27: 611 | AM27: 3417 | AN27: 297 | AO27: 751 | AP27: 1153 | AQ27: 735 | AR27: 577 | AS27: 573 | AT27: 585 | AU27: 988 | AV27: 2439 | AW27: 4194 | AX27: 1296 | AY27: 478 | AZ27: 466 | BA27: 572 | BB27: 142 | BC27: 872 | BD27: 2215 | BE27: 132 | BF27: 819 | BG27: 1114 | BH27: 602 | BI27: 118 | BJ27: 603 | BK27: 1858 | BL27: 843 | BM27: 524 | BN27: 1049 | BO27: 33677
A28: 20 | B28: 2051 | C28: 1140 | D28: 595 | E28: 412 | F28: 4351 | G28: 264 | H28: 680 | I28: 1490 | J28: 650 | K28: 557 | L28: 558 | M28: 507 | N28: 798 | O28: 2634 | P28: 4930 | Q28: 1035 | R28: 471 | S28: 416 | T28: 460 | U28: 119 | V28: 776 | W28: 1969 | X28: 75 | Y28: 689 | Z28: 993 | AA28: 546 | AB28: 107 | AC28: 597 | AD28: 1654 | AE28: 911 | AF28: 497 | AG28: 939 | AH28: 33871 | AI28: 1688 | AJ28: 1413 | AK28: 641 | AL28: 598 | AM28: 3705 | AN28: 307 | AO28: 830 | AP28: 1227 | AQ28: 683 | AR28: 653 | AS28: 612 | AT28: 582 | AU28: 1024 | AV28: 2554 | AW28: 4526 | AX28: 1219 | AY28: 484 | AZ28: 480 | BA28: 616 | BB28: 146 | BC28: 811 | BD28: 2151 | BE28: 129 | BF28: 815 | BG28: 1030 | BH28: 597 | BI28: 131 | BJ28: 590 | BK28: 1854 | BL28: 882 | BM28: 550 | BN28: 1125 | BO28: 34653
A29: 21 | B29: 2213 | C29: 1265 | D29: 593 | E29: 390 | F29: 4562 | G29: 288 | H29: 765 | I29: 1440 | J29: 685 | K29: 519 | L29: 562 | M29: 492 | N29: 904 | O29: 2608 | P29: 5050 | Q29: 1100 | R29: 468 | S29: 486 | T29: 460 | U29: 99 | V29: 820 | W29: 1915 | X29: 109 | Y29: 705 | Z29: 1010 | AA29: 561 | AB29: 114 | AC29: 591 | AD29: 1711 | AE29: 906 | AF29: 551 | AG29: 981 | AH29: 34923 | AI29: 1729 | AJ29: 1464 | AK29: 638 | AL29: 597 | AM29: 3831 | AN29: 324 | AO29: 852 | AP29: 1222 | AQ29: 794 | AR29: 684 | AS29: 593 | AT29: 565 | AU29: 984 | AV29: 2471 | AW29: 4775 | AX29: 1285 | AY29: 479 | AZ29: 511 | BA29: 634 | BB29: 122 | BC29: 875 | BD29: 2149 | BE29: 116 | BF29: 798 | BG29: 1024 | BH29: 583 | BI29: 138 | BJ29: 610 | BK29: 1787 | BL29: 872 | BM29: 570 | BN29: 1099 | BO29: 35175
A30: 22 | B30: 2075 | C30: 1299 | D30: 619 | E30: 396 | F30: 5126 | G30: 278 | H30: 808 | I30: 1409 | J30: 728 | K30: 585 | L30: 600 | M30: 459 | N30: 881 | O30: 2508 | P30: 5397 | Q30: 1190 | R30: 486 | S30: 507 | T30: 553 | U30: 133 | V30: 842 | W30: 1943 | X30: 109 | Y30: 778 | Z30: 1069 | AA30: 528 | AB30: 109 | AC30: 630 | AD30: 1888 | AE30: 793 | AF30: 528 | AG30: 1060 | AH30: 36314 | AI30: 1886 | AJ30: 1553 | AK30: 721 | AL30: 622 | AM30: 4071 | AN30: 330 | AO30: 811 | AP30: 1358 | AQ30: 773 | AR30: 670 | AS30: 615 | AT30: 597 | AU30: 859 | AV30: 2437 | AW30: 5021 | AX30: 1269 | AY30: 458 | AZ30: 520 | BA30: 591 | BB30: 150 | BC30: 854 | BD30: 2168 | BE30: 105 | BF30: 941 | BG30: 1142 | BH30: 568 | BI30: 154 | BJ30: 619 | BK30: 1932 | BL30: 754 | BM30: 597 | BN30: 1115 | BO30: 36261
A31: 23 | B31: 2283 | C31: 1316 | D31: 621 | E31: 369 | F31: 5094 | G31: 288 | H31: 803 | I31: 1452 | J31: 722 | K31: 561 | L31: 701 | M31: 554 | N31: 924 | O31: 2330 | P31: 6412 | Q31: 1160 | R31: 447 | S31: 515 | T31: 525 | U31: 110 | V31: 763 | W31: 2045 | X31: 124 | Y31: 885 | Z31: 1153 | AA31: 590 | AB31: 120 | AC31: 564 | AD31: 1835 | AE31: 708 | AF31: 636 | AG31: 1021 | AH31: 37631 | AI31: 2134 | AJ31: 1435 | AK31: 665 | AL31: 569 | AM31: 4396 | AN31: 339 | AO31: 753 | AP31: 1417 | AQ31: 721 | AR31: 687 | AS31: 586 | AT31: 523 | AU31: 932 | AV31: 2244 | AW31: 5870 | AX31: 1172 | AY31: 473 | AZ31: 500 | BA31: 581 | BB31: 93 | BC31: 841 | BD31: 2128 | BE31: 120 | BF31: 937 | BG31: 1112 | BH31: 546 | BI31: 137 | BJ31: 597 | BK31: 1911 | BL31: 687 | BM31: 561 | BN31: 1124 | BO31: 36791
A32: 24 | B32: 2564 | C32: 1333 | D32: 595 | E32: 330 | F32: 5658 | G32: 293 | H32: 741 | I32: 1596 | J32: 731 | K32: 625 | L32: 723 | M32: 479 | N32: 958 | O32: 2288 | P32: 7109 | Q32: 1156 | R32: 511 | S32: 552 | T32: 522 | U32: 98 | V32: 766 | W32: 2195 | X32: 117 | Y32: 797 | Z32: 1229 | AA32: 532 | AB32: 112 | AC32: 584 | AD32: 1960 | AE32: 711 | AF32: 615 | AG32: 1060 | AH32: 39540 | AI32: 2618 | AJ32: 1321 | AK32: 632 | AL32: 569 | AM32: 4796 | AN32: 291 | AO32: 750 | AP32: 1626 | AQ32: 718 | AR32: 641 | AS32: 584 | AT32: 548 | AU32: 871 | AV32: 2314 | AW32: 6910 | AX32: 1233 | AY32: 518 | AZ32: 497 | BA32: 596 | BB32: 139 | BC32: 767 | BD32: 2165 | BE32: 107 | BF32: 939 | BG32: 1156 | BH32: 515 | BI32: 160 | BJ32: 594 | BK32: 1898 | BL32: 708 | BM32: 598 | BN32: 1029 | BO32: 38808
A33: 25 | B33: 2581 | C33: 1270 | D33: 567 | E33: 368 | F33: 5868 | G33: 284 | H33: 784 | I33: 1581 | J33: 764 | K33: 559 | L33: 599 | M33: 435 | N33: 926 | O33: 2279 | P33: 6998 | Q33: 1204 | R33: 491 | S33: 545 | T33: 460 | U33: 98 | V33: 775 | W33: 2101 | X33: 116 | Y33: 785 | Z33: 1127 | AA33: 490 | AB33: 137 | AC33: 563 | AD33: 1864 | AE33: 717 | AF33: 585 | AG33: 1061 | AH33: 38982 | AI33: 2744 | AJ33: 1487 | AK33: 655 | AL33: 576 | AM33: 5408 | AN33: 258 | AO33: 761 | AP33: 1557 | AQ33: 703 | AR33: 634 | AS33: 535 | AT33: 481 | AU33: 968 | AV33: 2190 | AW33: 6676 | AX33: 1212 | AY33: 536 | AZ33: 513 | BA33: 599 | BB33: 87 | BC33: 821 | BD33: 2150 | BE33: 114 | BF33: 952 | BG33: 1154 | BH33: 450 | BI33: 112 | BJ33: 559 | BK33: 1832 | BL33: 668 | BM33: 603 | BN33: 1078 | BO33: 39073
A34: 26 | B34: 2420 | C34: 1283 | D34: 509 | E34: 408 | F34: 5714 | G34: 301 | H34: 749 | I34: 1528 | J34: 708 | K34: 464 | L34: 556 | M34: 417 | N34: 871 | O34: 2247 | P34: 6643 | Q34: 1176 | R34: 478 | S34: 482 | T34: 520 | U34: 111 | V34: 724 | W34: 2025 | X34: 114 | Y34: 710 | Z34: 1085 | AA34: 535 | AB34: 132 | AC34: 556 | AD34: 1740 | AE34: 692 | AF34: 576 | AG34: 1024 | AH34: 37498 | AI34: 2637 | AJ34: 1389 | AK34: 616 | AL34: 469 | AM34: 5242 | AN34: 254 | AO34: 748 | AP34: 1460 | AQ34: 717 | AR34: 613 | AS34: 503 | AT34: 494 | AU34: 941 | AV34: 2166 | AW34: 6428 | AX34: 1207 | AY34: 465 | AZ34: 489 | BA34: 530 | BB34: 116 | BC34: 646 | BD34: 2043 | BE34: 146 | BF34: 720 | BG34: 1186 | BH34: 534 | BI34: 136 | BJ34: 569 | BK34: 1700 | BL34: 682 | BM34: 584 | BN34: 1015 | BO34: 37445
A35: 27 | B35: 2338 | C35: 1265 | D35: 556 | E35: 382 | F35: 5651 | G35: 255 | H35: 701 | I35: 1281 | J35: 735 | K35: 488 | L35: 576 | M35: 509 | N35: 869 | O35: 2237 | P35: 6554 | Q35: 1202 | R35: 441 | S35: 528 | T35: 549 | U35: 130 | V35: 737 | W35: 2127 | X35: 105 | Y35: 779 | Z35: 1051 | AA35: 481 | AB35: 133 | AC35: 542 | AD35: 1774 | AE35: 705 | AF35: 604 | AG35: 1033 | AH35: 37318 | AI35: 2749 | AJ35: 1364 | AK35: 585 | AL35: 533 | AM35: 5415 | AN35: 223 | AO35: 719 | AP35: 1417 | AQ35: 721 | AR35: 556 | AS35: 459 | AT35: 458 | AU35: 853 | AV35: 2106 | AW35: 6424 | AX35: 1223 | AY35: 425 | AZ35: 493 | BA35: 569 | BB35: 137 | BC35: 739 | BD35: 1949 | BE35: 104 | BF35: 734 | BG35: 1104 | BH35: 477 | BI35: 134 | BJ35: 551 | BK35: 1718 | BL35: 621 | BM35: 505 | BN35: 1037 | BO35: 37102
A36: 28 | B36: 2228 | C36: 1442 | D36: 632 | E36: 333 | F36: 5285 | G36: 296 | H36: 832 | I36: 1300 | J36: 726 | K36: 516 | L36: 519 | M36: 494 | N36: 1026 | O36: 2211 | P36: 6310 | Q36: 1272 | R36: 464 | S36: 562 | T36: 518 | U36: 136 | V36: 832 | W36: 2142 | X36: 131 | Y36: 813 | Z36: 1187 | AA36: 474 | AB36: 134 | AC36: 584 | AD36: 1795 | AE36: 601 | AF36: 599 | AG36: 1162 | AH36: 37556 | AI36: 2486 | AJ36: 1409 | AK36: 592 | AL36: 484 | AM36: 5049 | AN36: 308 | AO36: 740 | AP36: 1289 | AQ36: 697 | AR36: 543 | AS36: 529 | AT36: 431 | AU36: 887 | AV36: 2069 | AW36: 6345 | AX36: 1262 | AY36: 442 | AZ36: 502 | BA36: 598 | BB36: 124 | BC36: 704 | BD36: 2173 | BE36: 119 | BF36: 841 | BG36: 1100 | BH36: 536 | BI36: 159 | BJ36: 542 | BK36: 1784 | BL36: 518 | BM36: 551 | BN36: 1144 | BO36: 36957
A37: 29 | B37: 2079 | C37: 1506 | D37: 655 | E37: 389 | F37: 4968 | G37: 272 | H37: 780 | I37: 1194 | J37: 773 | K37: 442 | L37: 546 | M37: 393 | N37: 949 | O37: 2172 | P37: 6098 | Q37: 1296 | R37: 423 | S37: 536 | T37: 560 | U37: 136 | V37: 755 | W37: 2212 | X37: 129 | Y37: 803 | Z37: 1174 | AA37: 503 | AB37: 158 | AC37: 619 | AD37: 1794 | AE37: 537 | AF37: 531 | AG37: 1239 | AH37: 36621 | AI37: 2468 | AJ37: 1420 | AK37: 560 | AL37: 424 | AM37: 4839 | AN37: 283 | AO37: 704 | AP37: 1292 | AQ37: 714 | AR37: 477 | AS37: 525 | AT37: 371 | AU37: 889 | AV37: 1935 | AW37: 5955 | AX37: 1272 | AY37: 454 | AZ37: 463 | BA37: 593 | BB37: 149 | BC37: 654 | BD37: 1882 | BE37: 122 | BF37: 794 | BG37: 1175 | BH37: 468 | BI37: 166 | BJ37: 578 | BK37: 1686 | BL37: 505 | BM37: 625 | BN37: 1130 | BO37: 35572
A38: 30 | B38: 2097 | C38: 1555 | D38: 665 | E38: 348 | F38: 4780 | G38: 289 | H38: 686 | I38: 1070 | J38: 774 | K38: 455 | L38: 607 | M38: 414 | N38: 983 | O38: 2170 | P38: 5733 | Q38: 1286 | R38: 476 | S38: 562 | T38: 607 | U38: 116 | V38: 764 | W38: 2227 | X38: 118 | Y38: 841 | Z38: 993 | AA38: 522 | AB38: 122 | AC38: 578 | AD38: 1958 | AE38: 507 | AF38: 619 | AG38: 1177 | AH38: 36099 | AI38: 2324 | AJ38: 1427 | AK38: 617 | AL38: 415 | AM38: 4636 | AN38: 313 | AO38: 721 | AP38: 1087 | AQ38: 737 | AR38: 502 | AS38: 491 | AT38: 367 | AU38: 918 | AV38: 2076 | AW38: 6053 | AX38: 1341 | AY38: 496 | AZ38: 536 | BA38: 567 | BB38: 121 | BC38: 651 | BD38: 2045 | BE38: 99 | BF38: 815 | BG38: 1107 | BH38: 495 | BI38: 151 | BJ38: 510 | BK38: 1716 | BL38: 453 | BM38: 598 | BN38: 1082 | BO38: 35467
A39: 31 | B39: 2083 | C39: 1591 | D39: 602 | E39: 394 | F39: 4815 | G39: 317 | H39: 727 | I39: 1152 | J39: 733 | K39: 437 | L39: 538 | M39: 375 | N39: 1032 | O39: 2160 | P39: 5640 | Q39: 1351 | R39: 445 | S39: 562 | T39: 618 | U39: 120 | V39: 736 | W39: 2295 | X39: 128 | Y39: 902 | Z39: 1096 | AA39: 539 | AB39: 132 | AC39: 569 | AD39: 1890 | AE39: 518 | AF39: 594 | AG39: 1221 | AH39: 36312 | AI39: 2172 | AJ39: 1532 | AK39: 603 | AL39: 413 | AM39: 4707 | AN39: 279 | AO39: 755 | AP39: 1172 | AQ39: 623 | AR39: 492 | AS39: 513 | AT39: 368 | AU39: 945 | AV39: 1976 | AW39: 5796 | AX39: 1280 | AY39: 405 | AZ39: 460 | BA39: 585 | BB39: 120 | BC39: 633 | BD39: 1983 | BE39: 131 | BF39: 805 | BG39: 1083 | BH39: 470 | BI39: 118 | BJ39: 491 | BK39: 1815 | BL39: 408 | BM39: 566 | BN39: 1075 | BO39: 34774
A40: 32 | B40: 1814 | C40: 1623 | D40: 640 | E40: 360 | F40: 4545 | G40: 278 | H40: 778 | I40: 1092 | J40: 708 | K40: 512 | L40: 579 | M40: 464 | N40: 1006 | O40: 2089 | P40: 5140 | Q40: 1356 | R40: 426 | S40: 551 | T40: 575 | U40: 134 | V40: 707 | W40: 2234 | X40: 113 | Y40: 895 | Z40: 1066 | AA40: 558 | AB40: 122 | AC40: 564 | AD40: 1993 | AE40: 461 | AF40: 562 | AG40: 1144 | AH40: 35089 | AI40: 2036 | AJ40: 1470 | AK40: 559 | AL40: 433 | AM40: 4339 | AN40: 250 | AO40: 691 | AP40: 1064 | AQ40: 640 | AR40: 417 | AS40: 474 | AT40: 368 | AU40: 922 | AV40: 1945 | AW40: 5430 | AX40: 1344 | AY40: 439 | AZ40: 508 | BA40: 602 | BB40: 122 | BC40: 636 | BD40: 2035 | BE40: 89 | BF40: 873 | BG40: 1052 | BH40: 496 | BI40: 120 | BJ40: 507 | BK40: 1745 | BL40: 513 | BM40: 479 | BN40: 1188 | BO40: 33786
A41: 33 | B41: 1934 | C41: 1668 | D41: 626 | E41: 436 | F41: 4361 | G41: 272 | H41: 750 | I41: 1006 | J41: 689 | K41: 505 | L41: 607 | M41: 443 | N41: 1064 | O41: 2211 | P41: 5242 | Q41: 1388 | R41: 447 | S41: 581 | T41: 539 | U41: 129 | V41: 713 | W41: 2281 | X41: 126 | Y41: 865 | Z41: 1198 | AA41: 613 | AB41: 131 | AC41: 538 | AD41: 1969 | AE41: 508 | AF41: 604 | AG41: 1279 | AH41: 35723 | AI41: 2029 | AJ41: 1595 | AK41: 646 | AL41: 359 | AM41: 4538 | AN41: 279 | AO41: 682 | AP41: 989 | AQ41: 691 | AR41: 484 | AS41: 518 | AT41: 351 | AU41: 899 | AV41: 1997 | AW41: 5481 | AX41: 1222 | AY41: 422 | AZ41: 514 | BA41: 503 | BB41: 121 | BC41: 618 | BD41: 2122 | BE41: 115 | BF41: 860 | BG41: 1103 | BH41: 465 | BI41: 128 | BJ41: 464 | BK41: 1727 | BL41: 444 | BM41: 522 | BN41: 1144 | BO41: 34032
A42: 34 | B42: 1784 | C42: 1794 | D42: 705 | E42: 382 | F42: 4495 | G42: 306 | H42: 812 | I42: 1041 | J42: 718 | K42: 528 | L42: 638 | M42: 500 | N42: 1129 | O42: 2250 | P42: 4953 | Q42: 1454 | R42: 436 | S42: 622 | T42: 595 | U42: 165 | V42: 756 | W42: 2307 | X42: 109 | Y42: 882 | Z42: 1124 | AA42: 596 | AB42: 134 | AC42: 627 | AD42: 2121 | AE42: 540 | AF42: 594 | AG42: 1288 | AH42: 36385 | AI42: 1972 | AJ42: 1639 | AK42: 673 | AL42: 373 | AM42: 4229 | AN42: 258 | AO42: 670 | AP42: 963 | AQ42: 667 | AR42: 535 | AS42: 534 | AT42: 438 | AU42: 973 | AV42: 2203 | AW42: 5144 | AX42: 1277 | AY42: 465 | AZ42: 500 | BA42: 557 | BB42: 134 | BC42: 686 | BD42: 2172 | BE42: 106 | BF42: 833 | BG42: 1073 | BH42: 512 | BI42: 138 | BJ42: 543 | BK42: 1854 | BL42: 489 | BM42: 515 | BN42: 1121 | BO42: 34246
A43: 35 | B43: 1684 | C43: 1746 | D43: 683 | E43: 464 | F43: 3991 | G43: 303 | H43: 748 | I43: 1023 | J43: 753 | K43: 608 | L43: 655 | M43: 535 | N43: 1053 | O43: 2319 | P43: 4766 | Q43: 1444 | R43: 466 | S43: 618 | T43: 517 | U43: 146 | V43: 788 | W43: 2422 | X43: 119 | Y43: 873 | Z43: 1143 | AA43: 568 | AB43: 150 | AC43: 639 | AD43: 2141 | AE43: 458 | AF43: 626 | AG43: 1304 | AH43: 35753 | AI43: 1950 | AJ43: 1730 | AK43: 593 | AL43: 377 | AM43: 4014 | AN43: 299 | AO43: 683 | AP43: 900 | AQ43: 663 | AR43: 518 | AS43: 538 | AT43: 453 | AU43: 1007 | AV43: 2140 | AW43: 5099 | AX43: 1442 | AY43: 415 | AZ43: 513 | BA43: 515 | BB43: 132 | BC43: 617 | BD43: 2187 | BE43: 104 | BF43: 917 | BG43: 1196 | BH43: 528 | BI43: 135 | BJ43: 553 | BK43: 1993 | BL43: 430 | BM43: 553 | BN43: 1153 | BO43: 34347
A44: 36 | B44: 1694 | C44: 1758 | D44: 674 | E44: 402 | F44: 3970 | G44: 306 | H44: 764 | I44: 884 | J44: 791 | K44: 633 | L44: 607 | M44: 575 | N44: 1042 | O44: 2335 | P44: 4610 | Q44: 1373 | R44: 501 | S44: 610 | T44: 533 | U44: 140 | V44: 735 | W44: 2361 | X44: 109 | Y44: 819 | Z44: 1131 | AA44: 598 | AB44: 132 | AC44: 604 | AD44: 2058 | AE44: 507 | AF44: 547 | AG44: 1192 | AH44: 34995 | AI44: 1775 | AJ44: 1710 | AK44: 623 | AL44: 463 | AM44: 4020 | AN44: 313 | AO44: 694 | AP44: 837 | AQ44: 695 | AR44: 482 | AS44: 513 | AT44: 490 | AU44: 1023 | AV44: 2084 | AW44: 4811 | AX44: 1311 | AY44: 409 | AZ44: 566 | BA44: 553 | BB44: 130 | BC44: 667 | BD44: 2201 | BE44: 114 | BF44: 831 | BG44: 984 | BH44: 576 | BI44: 143 | BJ44: 561 | BK44: 2036 | BL44: 466 | BM44: 459 | BN44: 1161 | BO44: 33701
A45: 37 | B45: 1465 | C45: 1699 | D45: 617 | E45: 409 | F45: 3688 | G45: 310 | H45: 746 | I45: 877 | J45: 701 | K45: 617 | L45: 663 | M45: 608 | N45: 1066 | O45: 2247 | P45: 4268 | Q45: 1348 | R45: 452 | S45: 606 | T45: 509 | U45: 166 | V45: 732 | W45: 2165 | X45: 150 | Y45: 779 | Z45: 1077 | AA45: 555 | AB45: 130 | AC45: 579 | AD45: 1986 | AE45: 550 | AF45: 534 | AG45: 1172 | AH45: 33471 | AI45: 1746 | AJ45: 1656 | AK45: 656 | AL45: 369 | AM45: 3940 | AN45: 262 | AO45: 618 | AP45: 774 | AQ45: 676 | AR45: 554 | AS45: 582 | AT45: 441 | AU45: 1009 | AV45: 2082 | AW45: 4511 | AX45: 1302 | AY45: 420 | AZ45: 536 | BA45: 565 | BB45: 142 | BC45: 670 | BD45: 2162 | BE45: 109 | BF45: 882 | BG45: 994 | BH45: 525 | BI45: 162 | BJ45: 576 | BK45: 1807 | BL45: 532 | BM45: 494 | BN45: 1172 | BO45: 32926
A46: 38 | B46: 1416 | C46: 1651 | D46: 653 | E46: 376 | F46: 3413 | G46: 308 | H46: 696 | I46: 772 | J46: 670 | K46: 588 | L46: 589 | M46: 608 | N46: 984 | O46: 2084 | P46: 3873 | Q46: 1258 | R46: 417 | S46: 530 | T46: 499 | U46: 132 | V46: 713 | W46: 2152 | X46: 107 | Y46: 755 | Z46: 1011 | AA46: 531 | AB46: 124 | AC46: 582 | AD46: 1980 | AE46: 569 | AF46: 496 | AG46: 1126 | AH46: 31663 | AI46: 1528 | AJ46: 1570 | AK46: 576 | AL46: 456 | AM46: 3500 | AN46: 296 | AO46: 647 | AP46: 754 | AQ46: 626 | AR46: 460 | AS46: 523 | AT46: 505 | AU46: 989 | AV46: 1947 | AW46: 4035 | AX46: 1226 | AY46: 375 | AZ46: 505 | BA46: 482 | BB46: 135 | BC46: 613 | BD46: 1961 | BE46: 113 | BF46: 773 | BG46: 885 | BH46: 481 | BI46: 121 | BJ46: 463 | BK46: 1720 | BL46: 441 | BM46: 423 | BN46: 996 | BO46: 30125
A47: 39 | B47: 1324 | C47: 1648 | D47: 649 | E47: 432 | F47: 3337 | G47: 277 | H47: 658 | I47: 772 | J47: 632 | K47: 598 | L47: 657 | M47: 576 | N47: 966 | O47: 1988 | P47: 3526 | Q47: 1253 | R47: 413 | S47: 529 | T47: 509 | U47: 162 | V47: 711 | W47: 1988 | X47: 102 | Y47: 780 | Z47: 956 | AA47: 553 | AB47: 164 | AC47: 563 | AD47: 1810 | AE47: 542 | AF47: 477 | AG47: 1051 | AH47: 30603 | AI47: 1519 | AJ47: 1688 | AK47: 542 | AL47: 446 | AM47: 3451 | AN47: 263 | AO47: 610 | AP47: 743 | AQ47: 586 | AR47: 552 | AS47: 557 | AT47: 507 | AU47: 966 | AV47: 2027 | AW47: 3726 | AX47: 1200 | AY47: 391 | AZ47: 494 | BA47: 528 | BB47: 148 | BC47: 590 | BD47: 1869 | BE47: 96 | BF47: 782 | BG47: 883 | BH47: 497 | BI47: 151 | BJ47: 504 | BK47: 1781 | BL47: 465 | BM47: 474 | BN47: 1133 | BO47: 30169
A48: 40 | B48: 1385 | C48: 1714 | D48: 664 | E48: 441 | F48: 3263 | G48: 312 | H48: 760 | I48: 798 | J48: 718 | K48: 616 | L48: 636 | M48: 612 | N48: 1075 | O48: 2212 | P48: 3768 | Q48: 1375 | R48: 427 | S48: 561 | T48: 573 | U48: 164 | V48: 840 | W48: 2233 | X48: 114 | Y48: 813 | Z48: 987 | AA48: 616 | AB48: 123 | AC48: 617 | AD48: 1947 | AE48: 508 | AF48: 568 | AG48: 1182 | AH48: 32622 | AI48: 1499 | AJ48: 1733 | AK48: 630 | AL48: 443 | AM48: 3375 | AN48: 305 | AO48: 724 | AP48: 765 | AQ48: 652 | AR48: 569 | AS48: 615 | AT48: 513 | AU48: 979 | AV48: 2096 | AW48: 3751 | AX48: 1300 | AY48: 387 | AZ48: 528 | BA48: 536 | BB48: 143 | BC48: 670 | BD48: 2205 | BE48: 122 | BF48: 786 | BG48: 957 | BH48: 572 | BI48: 140 | BJ48: 535 | BK48: 1857 | BL48: 522 | BM48: 431 | BN48: 1164 | BO48: 31504
A49: 41 | B49: 1316 | C49: 1702 | D49: 672 | E49: 486 | F49: 3223 | G49: 318 | H49: 816 | I49: 775 | J49: 757 | K49: 635 | L49: 647 | M49: 595 | N49: 1111 | O49: 2288 | P49: 3583 | Q49: 1416 | R49: 518 | S49: 567 | T49: 599 | U49: 161 | V49: 869 | W49: 2188 | X49: 134 | Y49: 825 | Z49: 1104 | AA49: 691 | AB49: 137 | AC49: 679 | AD49: 2040 | AE49: 550 | AF49: 522 | AG49: 1236 | AH49: 33160 | AI49: 1446 | AJ49: 1687 | AK49: 617 | AL49: 465 | AM49: 3335 | AN49: 328 | AO49: 678 | AP49: 709 | AQ49: 711 | AR49: 545 | AS49: 624 | AT49: 512 | AU49: 1050 | AV49: 2072 | AW49: 3677 | AX49: 1325 | AY49: 400 | AZ49: 524 | BA49: 548 | BB49: 162 | BC49: 646 | BD49: 2130 | BE49: 119 | BF49: 762 | BG49: 968 | BH49: 606 | BI49: 159 | BJ49: 564 | BK49: 1888 | BL49: 505 | BM49: 448 | BN49: 1188 | BO49: 31398
A50: 42 | B50: 1261 | C50: 1829 | D50: 742 | E50: 470 | F50: 3147 | G50: 320 | H50: 820 | I50: 745 | J50: 783 | K50: 652 | L50: 673 | M50: 609 | N50: 1115 | O50: 2233 | P50: 3537 | Q50: 1415 | R50: 478 | S50: 557 | T50: 610 | U50: 158 | V50: 821 | W50: 2240 | X50: 139 | Y50: 927 | Z50: 1107 | AA50: 726 | AB50: 151 | AC50: 627 | AD50: 2025 | AE50: 544 | AF50: 552 | AG50: 1259 | AH50: 33272 | AI50: 1431 | AJ50: 1806 | AK50: 640 | AL50: 476 | AM50: 3318 | AN50: 285 | AO50: 765 | AP50: 686 | AQ50: 701 | AR50: 572 | AS50: 658 | AT50: 561 | AU50: 1063 | AV50: 2244 | AW50: 3668 | AX50: 1254 | AY50: 403 | AZ50: 558 | BA50: 578 | BB50: 159 | BC50: 784 | BD50: 2114 | BE50: 108 | BF50: 791 | BG50: 1010 | BH50: 619 | BI50: 150 | BJ50: 618 | BK50: 1978 | BL50: 526 | BM50: 463 | BN50: 1227 | BO50: 32214
A51: 43 | B51: 1396 | C51: 1884 | D51: 778 | E51: 532 | F51: 3114 | G51: 395 | H51: 898 | I51: 792 | J51: 821 | K51: 726 | L51: 721 | M51: 679 | N51: 1204 | O51: 2435 | P51: 3729 | Q51: 1547 | R51: 524 | S51: 560 | T51: 656 | U51: 167 | V51: 906 | W51: 2341 | X51: 154 | Y51: 958 | Z51: 1185 | AA51: 763 | AB51: 149 | AC51: 699 | AD51: 2185 | AE51: 674 | AF51: 571 | AG51: 1389 | AH51: 35532 | AI51: 1512 | AJ51: 1939 | AK51: 741 | AL51: 515 | AM51: 3333 | AN51: 323 | AO51: 796 | AP51: 736 | AQ51: 818 | AR51: 662 | AS51: 758 | AT51: 629 | AU51: 1118 | AV51: 2337 | AW51: 3703 | AX51: 1359 | AY51: 449 | AZ51: 558 | BA51: 629 | BB51: 169 | BC51: 779 | BD51: 2238 | BE51: 136 | BF51: 851 | BG51: 1014 | BH51: 693 | BI51: 183 | BJ51: 651 | BK51: 2083 | BL51: 528 | BM51: 551 | BN51: 1263 | BO51: 34054
A52: 44 | B52: 1466 | C52: 1945 | D52: 806 | E52: 602 | F52: 3330 | G52: 391 | H52: 961 | I52: 847 | J52: 923 | K52: 786 | L52: 780 | M52: 687 | N52: 1293 | O52: 2627 | P52: 3928 | Q52: 1699 | R52: 527 | S52: 635 | T52: 690 | U52: 176 | V52: 969 | W52: 2653 | X52: 138 | Y52: 1075 | Z52: 1324 | AA52: 861 | AB52: 161 | AC52: 792 | AD52: 2340 | AE52: 688 | AF52: 587 | AG52: 1436 | AH52: 38123 | AI52: 1420 | AJ52: 1958 | AK52: 761 | AL52: 540 | AM52: 3405 | AN52: 372 | AO52: 931 | AP52: 789 | AQ52: 832 | AR52: 713 | AS52: 727 | AT52: 641 | AU52: 1188 | AV52: 2441 | AW52: 3918 | AX52: 1476 | AY52: 479 | AZ52: 549 | BA52: 689 | BB52: 183 | BC52: 821 | BD52: 2335 | BE52: 137 | BF52: 997 | BG52: 1081 | BH52: 783 | BI52: 168 | BJ52: 676 | BK52: 2251 | BL52: 582 | BM52: 541 | BN52: 1375 | BO52: 35759
A53: 45 | B53: 1459 | C53: 2180 | D53: 837 | E53: 581 | F53: 3358 | G53: 378 | H53: 1065 | I53: 910 | J53: 977 | K53: 865 | L53: 856 | M53: 744 | N53: 1246 | O53: 2810 | P53: 4113 | Q53: 1735 | R53: 632 | S53: 727 | T53: 745 | U53: 171 | V53: 1060 | W53: 2639 | X53: 166 | Y53: 1068 | Z53: 1384 | AA53: 893 | AB53: 183 | AC53: 810 | AD53: 2480 | AE53: 722 | AF53: 679 | AG53: 1432 | AH53: 39905 | AI53: 1514 | AJ53: 1957 | AK53: 729 | AL53: 534 | AM53: 3366 | AN53: 391 | AO53: 964 | AP53: 935 | AQ53: 844 | AR53: 709 | AS53: 744 | AT53: 621 | AU53: 1265 | AV53: 2544 | AW53: 3928 | AX53: 1572 | AY53: 474 | AZ53: 613 | BA53: 726 | BB53: 211 | BC53: 879 | BD53: 2428 | BE53: 126 | BF53: 979 | BG53: 1172 | BH53: 768 | BI53: 149 | BJ53: 725 | BK53: 2368 | BL53: 612 | BM53: 600 | BN53: 1437 | BO53: 36884
A54: 46 | B54: 1395 | C54: 2013 | D54: 802 | E54: 676 | F54: 3067 | G54: 391 | H54: 1040 | I54: 879 | J54: 936 | K54: 836 | L54: 815 | M54: 704 | N54: 1192 | O54: 2649 | P54: 4165 | Q54: 1758 | R54: 589 | S54: 682 | T54: 702 | U54: 194 | V54: 1055 | W54: 2635 | X54: 153 | Y54: 1088 | Z54: 1448 | AA54: 857 | AB54: 167 | AC54: 836 | AD54: 2496 | AE54: 789 | AF54: 685 | AG54: 1528 | AH54: 39222 | AI54: 1302 | AJ54: 1990 | AK54: 812 | AL54: 533 | AM54: 3154 | AN54: 369 | AO54: 1003 | AP54: 857 | AQ54: 877 | AR54: 706 | AS54: 756 | AT54: 598 | AU54: 1270 | AV54: 2540 | AW54: 3921 | AX54: 1546 | AY54: 510 | AZ54: 618 | BA54: 683 | BB54: 199 | BC54: 868 | BD54: 2476 | BE54: 168 | BF54: 992 | BG54: 1222 | BH54: 808 | BI54: 161 | BJ54: 719 | BK54: 2306 | BL54: 649 | BM54: 570 | BN54: 1298 | BO54: 36481
A55: 47 | B55: 1413 | C55: 2194 | D55: 897 | E55: 613 | F55: 3178 | G55: 445 | H55: 1189 | I55: 916 | J55: 988 | K55: 840 | L55: 850 | M55: 786 | N55: 1293 | O55: 2840 | P55: 4353 | Q55: 1780 | R55: 638 | S55: 710 | T55: 736 | U55: 209 | V55: 1054 | W55: 2755 | X55: 157 | Y55: 1151 | Z55: 1402 | AA55: 929 | AB55: 168 | AC55: 837 | AD55: 2510 | AE55: 698 | AF55: 770 | AG55: 1502 | AH55: 40801 | AI55: 1446 | AJ55: 1987 | AK55: 840 | AL55: 607 | AM55: 3221 | AN55: 433 | AO55: 1000 | AP55: 936 | AQ55: 947 | AR55: 741 | AS55: 696 | AT55: 664 | AU55: 1237 | AV55: 2712 | AW55: 4024 | AX55: 1555 | AY55: 510 | AZ55: 590 | BA55: 745 | BB55: 213 | BC55: 978 | BD55: 2551 | BE55: 153 | BF55: 1031 | BG55: 1278 | BH55: 858 | BI55: 153 | BJ55: 713 | BK55: 2433 | BL55: 685 | BM55: 626 | BN55: 1422 | BO55: 37985
A56: 48 | B56: 1389 | C56: 1996 | D56: 853 | E56: 644 | F56: 3266 | G56: 418 | H56: 1182 | I56: 954 | J56: 1038 | K56: 834 | L56: 927 | M56: 798 | N56: 1363 | O56: 2898 | P56: 4415 | Q56: 1888 | R56: 700 | S56: 718 | T56: 690 | U56: 218 | V56: 1070 | W56: 2831 | X56: 178 | Y56: 1243 | Z56: 1467 | AA56: 920 | AB56: 172 | AC56: 888 | AD56: 2596 | AE56: 741 | AF56: 746 | AG56: 1502 | AH56: 41543 | AI56: 1516 | AJ56: 1956 | AK56: 793 | AL56: 674 | AM56: 3272 | AN56: 408 | AO56: 1012 | AP56: 899 | AQ56: 896 | AR56: 741 | AS56: 758 | AT56: 617 | AU56: 1236 | AV56: 2727 | AW56: 4042 | AX56: 1734 | AY56: 582 | AZ56: 654 | BA56: 769 | BB56: 211 | BC56: 953 | BD56: 2582 | BE56: 164 | BF56: 1073 | BG56: 1356 | BH56: 905 | BI56: 173 | BJ56: 798 | BK56: 2408 | BL56: 686 | BM56: 629 | BN56: 1444 | BO56: 38668
A57: 49 | B57: 1403 | C57: 2118 | D57: 899 | E57: 654 | F57: 3246 | G57: 474 | H57: 1237 | I57: 926 | J57: 1060 | K57: 925 | L57: 913 | M57: 796 | N57: 1301 | O57: 2775 | P57: 4158 | Q57: 1802 | R57: 686 | S57: 674 | T57: 735 | U57: 202 | V57: 1152 | W57: 2745 | X57: 171 | Y57: 1213 | Z57: 1510 | AA57: 992 | AB57: 159 | AC57: 876 | AD57: 2588 | AE57: 680 | AF57: 770 | AG57: 1518 | AH57: 41358 | AI57: 1503 | AJ57: 2057 | AK57: 844 | AL57: 661 | AM57: 3290 | AN57: 455 | AO57: 1082 | AP57: 887 | AQ57: 902 | AR57: 807 | AS57: 787 | AT57: 708 | AU57: 1271 | AV57: 2885 | AW57: 4033 | AX57: 1777 | AY57: 618 | AZ57: 653 | BA57: 759 | BB57: 228 | BC57: 967 | BD57: 2653 | BE57: 184 | BF57: 1109 | BG57: 1284 | BH57: 892 | BI57: 178 | BJ57: 800 | BK57: 2449 | BL57: 649 | BM57: 645 | BN57: 1387 | BO57: 39404
A58: 50 | B58: 1480 | C58: 2129 | D58: 889 | E58: 676 | F58: 3196 | G58: 411 | H58: 1146 | I58: 991 | J58: 1018 | K58: 884 | L58: 784 | M58: 751 | N58: 1323 | O58: 2875 | P58: 4342 | Q58: 1905 | R58: 686 | S58: 695 | T58: 763 | U58: 215 | V58: 1136 | W58: 2705 | X58: 191 | Y58: 1176 | Z58: 1489 | AA58: 959 | AB58: 166 | AC58: 885 | AD58: 2533 | AE58: 750 | AF58: 778 | AG58: 1464 | AH58: 41391 | AI58: 1359 | AJ58: 1983 | AK58: 890 | AL58: 631 | AM58: 3242 | AN58: 391 | AO58: 1140 | AP58: 925 | AQ58: 949 | AR58: 772 | AS58: 781 | AT58: 732 | AU58: 1213 | AV58: 2608 | AW58: 3967 | AX58: 1845 | AY58: 625 | AZ58: 609 | BA58: 712 | BB58: 181 | BC58: 963 | BD58: 2622 | BE58: 182 | BF58: 1184 | BG58: 1346 | BH58: 916 | BI58: 198 | BJ58: 765 | BK58: 2325 | BL58: 694 | BM58: 687 | BN58: 1358 | BO58: 38795
A59: 51 | B59: 1511 | C59: 2156 | D59: 933 | E59: 765 | F59: 3221 | G59: 415 | H59: 1287 | I59: 1092 | J59: 1075 | K59: 873 | L59: 865 | M59: 766 | N59: 1267 | O59: 2944 | P59: 4479 | Q59: 2021 | R59: 672 | S59: 696 | T59: 753 | U59: 212 | V59: 1167 | W59: 2849 | X59: 195 | Y59: 1263 | Z59: 1499 | AA59: 958 | AB59: 161 | AC59: 925 | AD59: 2591 | AE59: 768 | AF59: 751 | AG59: 1516 | AH59: 42646 | AI59: 1497 | AJ59: 2077 | AK59: 894 | AL59: 656 | AM59: 3336 | AN59: 400 | AO59: 1225 | AP59: 937 | AQ59: 1001 | AR59: 899 | AS59: 889 | AT59: 641 | AU59: 1312 | AV59: 2750 | AW59: 3933 | AX59: 1836 | AY59: 641 | AZ59: 658 | BA59: 709 | BB59: 201 | BC59: 1016 | BD59: 2670 | BE59: 181 | BF59: 1213 | BG59: 1431 | BH59: 952 | BI59: 189 | BJ59: 855 | BK59: 2451 | BL59: 761 | BM59: 754 | BN59: 1456 | BO59: 40421
A60: 52 | B60: 1507 | C60: 2109 | D60: 858 | E60: 726 | F60: 3273 | G60: 430 | H60: 1275 | I60: 1016 | J60: 983 | K60: 943 | L60: 859 | M60: 834 | N60: 1255 | O60: 2931 | P60: 4540 | Q60: 2045 | R60: 699 | S60: 663 | T60: 719 | U60: 191 | V60: 1159 | W60: 2699 | X60: 172 | Y60: 1209 | Z60: 1493 | AA60: 968 | AB60: 198 | AC60: 927 | AD60: 2813 | AE60: 741 | AF60: 794 | AG60: 1412 | AH60: 42441 | AI60: 1392 | AJ60: 2083 | AK60: 939 | AL60: 682 | AM60: 3181 | AN60: 430 | AO60: 1187 | AP60: 922 | AQ60: 940 | AR60: 823 | AS60: 759 | AT60: 716 | AU60: 1261 | AV60: 2710 | AW60: 3969 | AX60: 1794 | AY60: 629 | AZ60: 636 | BA60: 740 | BB60: 215 | BC60: 1061 | BD60: 2582 | BE60: 171 | BF60: 1231 | BG60: 1331 | BH60: 900 | BI60: 186 | BJ60: 891 | BK60: 2419 | BL60: 702 | BM60: 693 | BN60: 1372 | BO60: 39547
A61: 53 | B61: 1515 | C61: 2131 | D61: 931 | E61: 743 | F61: 3288 | G61: 434 | H61: 1283 | I61: 1066 | J61: 1009 | K61: 916 | L61: 859 | M61: 754 | N61: 1212 | O61: 2886 | P61: 4357 | Q61: 1825 | R61: 705 | S61: 728 | T61: 764 | U61: 211 | V61: 1177 | W61: 2779 | X61: 173 | Y61: 1230 | Z61: 1391 | AA61: 990 | AB61: 179 | AC61: 982 | AD61: 2593 | AE61: 758 | AF61: 782 | AG61: 1409 | AH61: 42060 | AI61: 1527 | AJ61: 2023 | AK61: 903 | AL61: 705 | AM61: 3320 | AN61: 404 | AO61: 1177 | AP61: 968 | AQ61: 893 | AR61: 821 | AS61: 842 | AT61: 697 | AU61: 1227 | AV61: 2622 | AW61: 4063 | AX61: 1799 | AY61: 677 | AZ61: 649 | BA61: 724 | BB61: 201 | BC61: 981 | BD61: 2387 | BE61: 201 | BF61: 1201 | BG61: 1344 | BH61: 961 | BI61: 194 | BJ61: 802 | BK61: 2509 | BL61: 678 | BM61: 705 | BN61: 1383 | BO61: 39588
A62: 54 | B62: 1501 | C62: 1963 | D62: 950 | E62: 696 | F62: 3108 | G62: 409 | H62: 1256 | I62: 1057 | J62: 931 | K62: 925 | L62: 809 | M62: 765 | N62: 1251 | O62: 2825 | P62: 4374 | Q62: 1798 | R62: 676 | S62: 686 | T62: 704 | U62: 226 | V62: 1055 | W62: 2636 | X62: 153 | Y62: 1154 | Z62: 1460 | AA62: 898 | AB62: 166 | AC62: 914 | AD62: 2559 | AE62: 700 | AF62: 722 | AG62: 1397 | AH62: 40724 | AI62: 1509 | AJ62: 1960 | AK62: 944 | AL62: 683 | AM62: 3098 | AN62: 396 | AO62: 1155 | AP62: 941 | AQ62: 902 | AR62: 845 | AS62: 819 | AT62: 687 | AU62: 1173 | AV62: 2637 | AW62: 4044 | AX62: 1781 | AY62: 684 | AZ62: 634 | BA62: 732 | BB62: 237 | BC62: 1048 | BD62: 2597 | BE62: 173 | BF62: 1111 | BG62: 1362 | BH62: 928 | BI62: 161 | BJ62: 842 | BK62: 2368 | BL62: 635 | BM62: 673 | BN62: 1319 | BO62: 39078
A63: 55 | B63: 1410 | C63: 1914 | D63: 902 | E63: 694 | F63: 3112 | G63: 394 | H63: 1226 | I63: 1098 | J63: 945 | K63: 902 | L63: 829 | M63: 698 | N63: 1148 | O63: 2661 | P63: 4246 | Q63: 1892 | R63: 661 | S63: 673 | T63: 687 | U63: 201 | V63: 1032 | W63: 2504 | X63: 166 | Y63: 1141 | Z63: 1498 | AA63: 907 | AB63: 173 | AC63: 939 | AD63: 2527 | AE63: 707 | AF63: 735 | AG63: 1317 | AH63: 39939 | AI63: 1328 | AJ63: 1932 | AK63: 780 | AL63: 708 | AM63: 3101 | AN63: 405 | AO63: 1153 | AP63: 939 | AQ63: 890 | AR63: 802 | AS63: 797 | AT63: 663 | AU63: 1150 | AV63: 2626 | AW63: 3774 | AX63: 1796 | AY63: 673 | AZ63: 586 | BA63: 681 | BB63: 200 | BC63: 957 | BD63: 2409 | BE63: 182 | BF63: 1112 | BG63: 1349 | BH63: 891 | BI63: 185 | BJ63: 874 | BK63: 2435 | BL63: 632 | BM63: 695 | BN63: 1326 | BO63: 38031
A64: 56 | B64: 1413 | C64: 1810 | D64: 919 | E64: 704 | F64: 3047 | G64: 376 | H64: 1161 | I64: 1008 | J64: 916 | K64: 849 | L64: 835 | M64: 713 | N64: 1122 | O64: 2691 | P64: 3941 | Q64: 1741 | R64: 681 | S64: 637 | T64: 665 | U64: 203 | V64: 1031 | W64: 2465 | X64: 162 | Y64: 1029 | Z64: 1312 | AA64: 916 | AB64: 154 | AC64: 876 | AD64: 2482 | AE64: 661 | AF64: 692 | AG64: 1215 | AH64: 38427 | AI64: 1378 | AJ64: 1843 | AK64: 864 | AL64: 666 | AM64: 2883 | AN64: 359 | AO64: 1106 | AP64: 934 | AQ64: 841 | AR64: 763 | AS64: 734 | AT64: 642 | AU64: 1105 | AV64: 2710 | AW64: 3599 | AX64: 1784 | AY64: 605 | AZ64: 622 | BA64: 668 | BB64: 204 | BC64: 980 | BD64: 2262 | BE64: 186 | BF64: 1020 | BG64: 1286 | BH64: 885 | BI64: 159 | BJ64: 795 | BK64: 2396 | BL64: 684 | BM64: 640 | BN64: 1259 | BO64: 36862
A65: 57 | B65: 1389 | C65: 1812 | D65: 863 | E65: 685 | F65: 2979 | G65: 373 | H65: 1178 | I65: 945 | J65: 878 | K65: 887 | L65: 792 | M65: 685 | N65: 1128 | O65: 2722 | P65: 3931 | Q65: 1797 | R65: 680 | S65: 632 | T65: 661 | U65: 195 | V65: 1087 | W65: 2382 | X65: 160 | Y65: 1133 | Z65: 1315 | AA65: 939 | AB65: 137 | AC65: 905 | AD65: 2528 | AE65: 611 | AF65: 711 | AG65: 1277 | AH65: 38397 | AI65: 1392 | AJ65: 1767 | AK65: 822 | AL65: 610 | AM65: 2827 | AN65: 406 | AO65: 1121 | AP65: 910 | AQ65: 905 | AR65: 832 | AS65: 748 | AT65: 682 | AU65: 1079 | AV65: 2525 | AW65: 3532 | AX65: 1736 | AY65: 607 | AZ65: 587 | BA65: 628 | BB65: 222 | BC65: 999 | BD65: 2196 | BE65: 170 | BF65: 1069 | BG65: 1300 | BH65: 879 | BI65: 177 | BJ65: 829 | BK65: 2221 | BL65: 595 | BM65: 638 | BN65: 1206 | BO65: 36217
A66: 58 | B66: 1338 | C66: 1781 | D66: 825 | E66: 678 | F66: 2891 | G66: 368 | H66: 1153 | I66: 958 | J66: 876 | K66: 831 | L66: 726 | M66: 679 | N66: 1064 | O66: 2650 | P66: 3769 | Q66: 1808 | R66: 574 | S66: 630 | T66: 654 | U66: 183 | V66: 1069 | W66: 2393 | X66: 143 | Y66: 1085 | Z66: 1333 | AA66: 899 | AB66: 155 | AC66: 924 | AD66: 2296 | AE66: 634 | AF66: 714 | AG66: 1182 | AH66: 37263 | AI66: 1362 | AJ66: 1871 | AK66: 791 | AL66: 621 | AM66: 2757 | AN66: 305 | AO66: 1117 | AP66: 929 | AQ66: 815 | AR66: 752 | AS66: 723 | AT66: 627 | AU66: 1076 | AV66: 2475 | AW66: 3366 | AX66: 1658 | AY66: 537 | AZ66: 579 | BA66: 665 | BB66: 196 | BC66: 934 | BD66: 2146 | BE66: 162 | BF66: 1078 | BG66: 1241 | BH66: 840 | BI66: 162 | BJ66: 821 | BK66: 2210 | BL66: 610 | BM66: 654 | BN66: 1130 | BO66: 35210
A67: 59 | B67: 1290 | C67: 1741 | D67: 839 | E67: 682 | F67: 2846 | G67: 353 | H67: 1095 | I67: 940 | J67: 869 | K67: 863 | L67: 733 | M67: 661 | N67: 1041 | O67: 2431 | P67: 3534 | Q67: 1692 | R67: 615 | S67: 645 | T67: 673 | U67: 190 | V67: 989 | W67: 2267 | X67: 174 | Y67: 1093 | Z67: 1172 | AA67: 880 | AB67: 157 | AC67: 892 | AD67: 2341 | AE67: 591 | AF67: 666 | AG67: 1103 | AH67: 36058 | AI67: 1337 | AJ67: 1726 | AK67: 775 | AL67: 641 | AM67: 2708 | AN67: 353 | AO67: 1055 | AP67: 920 | AQ67: 832 | AR67: 727 | AS67: 742 | AT67: 619 | AU67: 1011 | AV67: 2443 | AW67: 3309 | AX67: 1742 | AY67: 543 | AZ67: 568 | BA67: 619 | BB67: 196 | BC67: 920 | BD67: 2090 | BE67: 176 | BF67: 1009 | BG67: 1174 | BH67: 846 | BI67: 143 | BJ67: 781 | BK67: 2152 | BL67: 615 | BM67: 581 | BN67: 1064 | BO67: 34417
A68: 60 | B68: 1294 | C68: 1775 | D68: 798 | E68: 662 | F68: 2571 | G68: 350 | H68: 1179 | I68: 831 | J68: 784 | K68: 768 | L68: 680 | M68: 665 | N68: 1043 | O68: 2456 | P68: 3515 | Q68: 1709 | R68: 542 | S68: 541 | T68: 652 | U68: 193 | V68: 1000 | W68: 2192 | X68: 165 | Y68: 1051 | Z68: 1185 | AA68: 838 | AB68: 164 | AC68: 825 | AD68: 2242 | AE68: 561 | AF68: 657 | AG68: 1053 | AH68: 34941 | AI68: 1315 | AJ68: 1747 | AK68: 761 | AL68: 660 | AM68: 2610 | AN68: 305 | AO68: 1043 | AP68: 801 | AQ68: 762 | AR68: 737 | AS68: 683 | AT68: 645 | AU68: 938 | AV68: 2282 | AW68: 3222 | AX68: 1633 | AY68: 545 | AZ68: 558 | BA68: 661 | BB68: 185 | BC68: 923 | BD68: 2007 | BE68: 142 | BF68: 970 | BG68: 1082 | BH68: 831 | BI68: 163 | BJ68: 776 | BK68: 2098 | BL68: 551 | BM68: 642 | BN68: 1033 | BO68: 33311
A69: 61 | B69: 1220 | C69: 1686 | D69: 778 | E69: 617 | F69: 2475 | G69: 340 | H69: 1142 | I69: 791 | J69: 802 | K69: 730 | L69: 707 | M69: 613 | N69: 980 | O69: 2357 | P69: 3186 | Q69: 1636 | R69: 537 | S69: 567 | T69: 634 | U69: 203 | V69: 940 | W69: 2125 | X69: 154 | Y69: 1030 | Z69: 1112 | AA69: 841 | AB69: 170 | AC69: 848 | AD69: 2216 | AE69: 559 | AF69: 631 | AG69: 979 | AH69: 33606 | AI69: 1233 | AJ69: 1676 | AK69: 737 | AL69: 640 | AM69: 2435 | AN69: 312 | AO69: 1042 | AP69: 782 | AQ69: 745 | AR69: 732 | AS69: 609 | AT69: 574 | AU69: 868 | AV69: 2241 | AW69: 3053 | AX69: 1621 | AY69: 509 | AZ69: 500 | BA69: 563 | BB69: 210 | BC69: 880 | BD69: 1883 | BE69: 152 | BF69: 983 | BG69: 1052 | BH69: 830 | BI69: 168 | BJ69: 747 | BK69: 1905 | BL69: 533 | BM69: 570 | BN69: 941 | BO69: 31726
A70: 62 | B70: 1118 | C70: 1721 | D70: 795 | E70: 625 | F70: 2468 | G70: 360 | H70: 1103 | I70: 739 | J70: 768 | K70: 737 | L70: 637 | M70: 591 | N70: 937 | O70: 2361 | P70: 3044 | Q70: 1659 | R70: 532 | S70: 533 | T70: 603 | U70: 190 | V70: 988 | W70: 2057 | X70: 131 | Y70: 990 | Z70: 1138 | AA70: 819 | AB70: 142 | AC70: 846 | AD70: 2126 | AE70: 576 | AF70: 601 | AG70: 1067 | AH70: 33002 | AI70: 1255 | AJ70: 1676 | AK70: 734 | AL70: 603 | AM70: 2444 | AN70: 315 | AO70: 1078 | AP70: 737 | AQ70: 739 | AR70: 659 | AS70: 625 | AT70: 515 | AU70: 872 | AV70: 2250 | AW70: 2811 | AX70: 1621 | AY70: 453 | AZ70: 539 | BA70: 588 | BB70: 189 | BC70: 828 | BD70: 1912 | BE70: 162 | BF70: 981 | BG70: 1012 | BH70: 811 | BI70: 153 | BJ70: 777 | BK70: 2039 | BL70: 504 | BM70: 540 | BN70: 941 | BO70: 31363
A71: 63 | B71: 1079 | C71: 1623 | D71: 837 | E71: 641 | F71: 2410 | G71: 309 | H71: 1119 | I71: 815 | J71: 817 | K71: 732 | L71: 636 | M71: 575 | N71: 958 | O71: 2317 | P71: 2752 | Q71: 1691 | R71: 521 | S71: 545 | T71: 633 | U71: 179 | V71: 979 | W71: 2046 | X71: 152 | Y71: 1055 | Z71: 1051 | AA71: 827 | AB71: 138 | AC71: 834 | AD71: 1995 | AE71: 541 | AF71: 540 | AG71: 1048 | AH71: 32395 | AI71: 1131 | AJ71: 1534 | AK71: 798 | AL71: 596 | AM71: 2303 | AN71: 323 | AO71: 1047 | AP71: 710 | AQ71: 774 | AR71: 680 | AS71: 554 | AT71: 529 | AU71: 896 | AV71: 2118 | AW71: 2752 | AX71: 1542 | AY71: 465 | AZ71: 515 | BA71: 589 | BB71: 214 | BC71: 839 | BD71: 1857 | BE71: 174 | BF71: 1060 | BG71: 975 | BH71: 786 | BI71: 128 | BJ71: 777 | BK71: 1963 | BL71: 536 | BM71: 519 | BN71: 897 | BO71: 30581
A72: 64 | B72: 1109 | C72: 1539 | D72: 758 | E72: 676 | F72: 2375 | G72: 296 | H72: 1101 | I72: 728 | J72: 777 | K72: 689 | L72: 650 | M72: 555 | N72: 907 | O72: 2255 | P72: 2659 | Q72: 1624 | R72: 489 | S72: 516 | T72: 576 | U72: 214 | V72: 903 | W72: 1928 | X72: 148 | Y72: 996 | Z72: 984 | AA72: 792 | AB72: 128 | AC72: 830 | AD72: 1990 | AE72: 505 | AF72: 533 | AG72: 972 | AH72: 31202 | AI72: 1093 | AJ72: 1551 | AK72: 693 | AL72: 598 | AM72: 2296 | AN72: 324 | AO72: 1051 | AP72: 705 | AQ72: 711 | AR72: 579 | AS72: 563 | AT72: 528 | AU72: 857 | AV72: 2065 | AW72: 2595 | AX72: 1563 | AY72: 453 | AZ72: 497 | BA72: 565 | BB72: 189 | BC72: 834 | BD72: 1718 | BE72: 136 | BF72: 960 | BG72: 942 | BH72: 782 | BI72: 160 | BJ72: 745 | BK72: 1805 | BL72: 506 | BM72: 488 | BN72: 873 | BO72: 29425
A73: 65 | B73: 1074 | C73: 1575 | D73: 792 | E73: 686 | F73: 2341 | G73: 355 | H73: 1070 | I73: 732 | J73: 740 | K73: 659 | L73: 660 | M73: 544 | N73: 1008 | O73: 2306 | P73: 2625 | Q73: 1585 | R73: 521 | S73: 566 | T73: 634 | U73: 199 | V73: 910 | W73: 1868 | X73: 162 | Y73: 1019 | Z73: 1110 | AA73: 824 | AB73: 146 | AC73: 823 | AD73: 1890 | AE73: 538 | AF73: 566 | AG73: 979 | AH73: 31507 | AI73: 1052 | AJ73: 1569 | AK73: 787 | AL73: 655 | AM73: 2159 | AN73: 293 | AO73: 1074 | AP73: 699 | AQ73: 729 | AR73: 666 | AS73: 561 | AT73: 459 | AU73: 871 | AV73: 2179 | AW73: 2598 | AX73: 1554 | AY73: 501 | AZ73: 490 | BA73: 558 | BB73: 170 | BC73: 859 | BD73: 1697 | BE73: 156 | BF73: 925 | BG73: 969 | BH73: 784 | BI73: 145 | BJ73: 739 | BK73: 1776 | BL73: 507 | BM73: 485 | BN73: 903 | BO73: 29569
A74: 66 | B74: 1041 | C74: 1587 | D74: 760 | E74: 649 | F74: 2424 | G74: 356 | H74: 1109 | I74: 809 | J74: 762 | K74: 736 | L74: 635 | M74: 526 | N74: 955 | O74: 2348 | P74: 2621 | Q74: 1575 | R74: 516 | S74: 528 | T74: 626 | U74: 198 | V74: 893 | W74: 1907 | X74: 146 | Y74: 1026 | Z74: 1019 | AA74: 845 | AB74: 143 | AC74: 801 | AD74: 1895 | AE74: 505 | AF74: 535 | AG74: 938 | AH74: 31414 | AI74: 1070 | AJ74: 1542 | AK74: 817 | AL74: 602 | AM74: 2177 | AN74: 327 | AO74: 1098 | AP74: 684 | AQ74: 735 | AR74: 632 | AS74: 571 | AT74: 491 | AU74: 925 | AV74: 2149 | AW74: 2435 | AX74: 1553 | AY74: 472 | AZ74: 531 | BA74: 583 | BB74: 229 | BC74: 844 | BD74: 1802 | BE74: 132 | BF74: 974 | BG74: 919 | BH74: 811 | BI74: 148 | BJ74: 760 | BK74: 1753 | BL74: 517 | BM74: 485 | BN74: 900 | BO74: 29668
A75: 67 | B75: 1145 | C75: 1579 | D75: 865 | E75: 664 | F75: 2395 | G75: 337 | H75: 1082 | I75: 767 | J75: 757 | K75: 739 | L75: 622 | M75: 578 | N75: 975 | O75: 2459 | P75: 2621 | Q75: 1615 | R75: 510 | S75: 581 | T75: 604 | U75: 208 | V75: 1005 | W75: 1950 | X75: 144 | Y75: 1029 | Z75: 1096 | AA75: 860 | AB75: 134 | AC75: 840 | AD75: 1914 | AE75: 513 | AF75: 538 | AG75: 1001 | AH75: 32127 | AI75: 1112 | AJ75: 1678 | AK75: 779 | AL75: 709 | AM75: 2230 | AN75: 335 | AO75: 1146 | AP75: 729 | AQ75: 746 | AR75: 634 | AS75: 553 | AT75: 487 | AU75: 907 | AV75: 2244 | AW75: 2405 | AX75: 1588 | AY75: 459 | AZ75: 521 | BA75: 563 | BB75: 207 | BC75: 862 | BD75: 1765 | BE75: 166 | BF75: 972 | BG75: 919 | BH75: 830 | BI75: 143 | BJ75: 832 | BK75: 1760 | BL75: 523 | BM75: 469 | BN75: 920 | BO75: 30193
A76: 68 | B76: 1099 | C76: 1600 | D76: 890 | E76: 717 | F76: 2410 | G76: 345 | H76: 1139 | I76: 869 | J76: 849 | K76: 704 | L76: 722 | M76: 601 | N76: 973 | O76: 2558 | P76: 2638 | Q76: 1700 | R76: 540 | S76: 573 | T76: 620 | U76: 177 | V76: 1003 | W76: 1961 | X76: 160 | Y76: 1047 | Z76: 1068 | AA76: 892 | AB76: 126 | AC76: 843 | AD76: 2036 | AE76: 568 | AF76: 607 | AG76: 1068 | AH76: 33103 | AI76: 1052 | AJ76: 1677 | AK76: 871 | AL76: 650 | AM76: 2180 | AN76: 347 | AO76: 1152 | AP76: 735 | AQ76: 732 | AR76: 665 | AS76: 643 | AT76: 507 | AU76: 921 | AV76: 2315 | AW76: 2469 | AX76: 1686 | AY76: 440 | AZ76: 496 | BA76: 631 | BB76: 222 | BC76: 958 | BD76: 1776 | BE76: 139 | BF76: 1029 | BG76: 929 | BH76: 914 | BI76: 162 | BJ76: 805 | BK76: 1818 | BL76: 520 | BM76: 515 | BN76: 960 | BO76: 30916
A77: 69 | B77: 1263 | C77: 1752 | D77: 999 | E77: 816 | F77: 2707 | G77: 394 | H77: 1265 | I77: 930 | J77: 923 | K77: 784 | L77: 711 | M77: 627 | N77: 1032 | O77: 2747 | P77: 2783 | Q77: 1750 | R77: 552 | S77: 648 | T77: 738 | U77: 220 | V77: 1117 | W77: 2020 | X77: 167 | Y77: 1199 | Z77: 1181 | AA77: 1026 | AB77: 134 | AC77: 990 | AD77: 2124 | AE77: 662 | AF77: 578 | AG77: 1067 | AH77: 35906 | AI77: 1150 | AJ77: 1765 | AK77: 885 | AL77: 735 | AM77: 2445 | AN77: 335 | AO77: 1193 | AP77: 856 | AQ77: 845 | AR77: 724 | AS77: 673 | AT77: 534 | AU77: 1058 | AV77: 2630 | AW77: 2566 | AX77: 1628 | AY77: 489 | AZ77: 564 | BA77: 608 | BB77: 222 | BC77: 955 | BD77: 1838 | BE77: 177 | BF77: 1118 | BG77: 1080 | BH77: 1005 | BI77: 176 | BJ77: 879 | BK77: 1913 | BL77: 607 | BM77: 484 | BN77: 984 | BO77: 33121
A78: 70 | B78: 912 | C78: 1324 | D78: 692 | E78: 600 | F78: 2030 | G78: 262 | H78: 985 | I78: 667 | J78: 645 | K78: 616 | L78: 554 | M78: 445 | N78: 784 | O78: 2018 | P78: 2160 | Q78: 1361 | R78: 434 | S78: 489 | T78: 538 | U78: 185 | V78: 806 | W78: 1572 | X78: 127 | Y78: 902 | Z78: 882 | AA78: 734 | AB78: 104 | AC78: 781 | AD78: 1637 | AE78: 475 | AF78: 425 | AG78: 828 | AH78: 26974 | AI78: 840 | AJ78: 1270 | AK78: 643 | AL78: 555 | AM78: 1681 | AN78: 259 | AO78: 951 | AP78: 613 | AQ78: 602 | AR78: 510 | AS78: 514 | AT78: 426 | AU78: 696 | AV78: 1922 | AW78: 1943 | AX78: 1320 | AY78: 415 | AZ78: 436 | BA78: 483 | BB78: 175 | BC78: 735 | BD78: 1435 | BE78: 124 | BF78: 880 | BG78: 776 | BH78: 716 | BI78: 114 | BJ78: 664 | BK78: 1459 | BL78: 432 | BM78: 444 | BN78: 764 | BO78: 24797
A79: 71 | B79: 781 | C79: 1213 | D79: 680 | E79: 564 | F79: 1840 | G79: 298 | H79: 992 | I79: 656 | J79: 657 | K79: 596 | L79: 509 | M79: 487 | N79: 737 | O79: 1971 | P79: 2106 | Q79: 1204 | R79: 398 | S79: 421 | T79: 564 | U79: 143 | V79: 775 | W79: 1544 | X79: 129 | Y79: 860 | Z79: 876 | AA79: 706 | AB79: 127 | AC79: 745 | AD79: 1473 | AE79: 437 | AF79: 409 | AG79: 789 | AH79: 25687 | AI79: 672 | AJ79: 1116 | AK79: 615 | AL79: 537 | AM79: 1637 | AN79: 244 | AO79: 873 | AP79: 539 | AQ79: 599 | AR79: 531 | AS79: 463 | AT79: 377 | AU79: 716 | AV79: 1799 | AW79: 1778 | AX79: 1208 | AY79: 347 | AZ79: 422 | BA79: 446 | BB79: 138 | BC79: 695 | BD79: 1267 | BE79: 112 | BF79: 746 | BG79: 767 | BH79: 635 | BI79: 99 | BJ79: 637 | BK79: 1391 | BL79: 354 | BM79: 375 | BN79: 728 | BO79: 22863
A80: 72 | B80: 800 | C80: 1139 | D80: 682 | E80: 572 | F80: 1818 | G80: 282 | H80: 964 | I80: 586 | J80: 635 | K80: 611 | L80: 585 | M80: 500 | N80: 772 | O80: 2030 | P80: 2086 | Q80: 1337 | R80: 447 | S80: 466 | T80: 512 | U80: 157 | V80: 799 | W80: 1568 | X80: 123 | Y80: 812 | Z80: 886 | AA80: 730 | AB80: 98 | AC80: 727 | AD80: 1575 | AE80: 481 | AF80: 412 | AG80: 778 | AH80: 25970 | AI80: 689 | AJ80: 1121 | AK80: 626 | AL80: 549 | AM80: 1597 | AN80: 256 | AO80: 917 | AP80: 556 | AQ80: 591 | AR80: 533 | AS80: 488 | AT80: 390 | AU80: 653 | AV80: 1744 | AW80: 1778 | AX80: 1275 | AY80: 398 | AZ80: 393 | BA80: 481 | BB80: 156 | BC80: 741 | BD80: 1326 | BE80: 142 | BF80: 774 | BG80: 780 | BH80: 670 | BI80: 113 | BJ80: 673 | BK80: 1409 | BL80: 418 | BM80: 385 | BN80: 686 | BO80: 23308
A81: 73 | B81: 813 | C81: 1142 | D81: 652 | E81: 520 | F81: 1796 | G81: 272 | H81: 973 | I81: 591 | J81: 596 | K81: 613 | L81: 488 | M81: 487 | N81: 715 | O81: 1850 | P81: 2019 | Q81: 1316 | R81: 441 | S81: 423 | T81: 512 | U81: 188 | V81: 781 | W81: 1575 | X81: 140 | Y81: 883 | Z81: 772 | AA81: 696 | AB81: 125 | AC81: 687 | AD81: 1534 | AE81: 452 | AF81: 433 | AG81: 780 | AH81: 25265 | AI81: 692 | AJ81: 1066 | AK81: 562 | AL81: 512 | AM81: 1465 | AN81: 226 | AO81: 819 | AP81: 493 | AQ81: 549 | AR81: 467 | AS81: 435 | AT81: 342 | AU81: 671 | AV81: 1638 | AW81: 1695 | AX81: 1131 | AY81: 340 | AZ81: 371 | BA81: 446 | BB81: 134 | BC81: 665 | BD81: 1229 | BE81: 114 | BF81: 707 | BG81: 694 | BH81: 637 | BI81: 116 | BJ81: 655 | BK81: 1319 | BL81: 381 | BM81: 311 | BN81: 646 | BO81: 21528
A82: 74 | B82: 823 | C82: 1110 | D82: 607 | E82: 483 | F82: 1668 | G82: 232 | H82: 887 | I82: 599 | J82: 577 | K82: 499 | L82: 491 | M82: 411 | N82: 705 | O82: 1678 | P82: 1889 | Q82: 1136 | R82: 356 | S82: 352 | T82: 446 | U82: 121 | V82: 740 | W82: 1379 | X82: 147 | Y82: 815 | Z82: 785 | AA82: 600 | AB82: 123 | AC82: 653 | AD82: 1424 | AE82: 419 | AF82: 375 | AG82: 724 | AH82: 23254 | AI82: 658 | AJ82: 956 | AK82: 522 | AL82: 446 | AM82: 1312 | AN82: 200 | AO82: 773 | AP82: 449 | AQ82: 432 | AR82: 431 | AS82: 405 | AT82: 309 | AU82: 530 | AV82: 1530 | AW82: 1566 | AX82: 1060 | AY82: 295 | AZ82: 317 | BA82: 402 | BB82: 138 | BC82: 555 | BD82: 1085 | BE82: 119 | BF82: 659 | BG82: 615 | BH82: 536 | BI82: 96 | BJ82: 535 | BK82: 1189 | BL82: 342 | BM82: 309 | BN82: 602 | BO82: 19373
A83: 75 | B83: 743 | C83: 977 | D83: 536 | E83: 467 | F83: 1597 | G83: 221 | H83: 807 | I83: 560 | J83: 521 | K83: 520 | L83: 461 | M83: 435 | N83: 617 | O83: 1474 | P83: 1898 | Q83: 1082 | R83: 355 | S83: 356 | T83: 420 | U83: 160 | V83: 673 | W83: 1255 | X83: 91 | Y83: 673 | Z83: 720 | AA83: 568 | AB83: 91 | AC83: 567 | AD83: 1397 | AE83: 388 | AF83: 372 | AG83: 634 | AH83: 21636 | AI83: 555 | AJ83: 828 | AK83: 484 | AL83: 397 | AM83: 1211 | AN83: 183 | AO83: 729 | AP83: 429 | AQ83: 450 | AR83: 395 | AS83: 378 | AT83: 317 | AU83: 510 | AV83: 1281 | AW83: 1376 | AX83: 858 | AY83: 296 | AZ83: 291 | BA83: 375 | BB83: 120 | BC83: 509 | BD83: 1014 | BE83: 86 | BF83: 587 | BG83: 608 | BH83: 483 | BI83: 81 | BJ83: 487 | BK83: 1045 | BL83: 318 | BM83: 256 | BN83: 559 | BO83: 17496
A84: 76 | B84: 771 | C84: 1005 | D84: 562 | E84: 474 | F84: 1577 | G84: 186 | H84: 790 | I84: 544 | J84: 535 | K84: 519 | L84: 447 | M84: 399 | N84: 641 | O84: 1577 | P84: 1980 | Q84: 1063 | R84: 339 | S84: 353 | T84: 421 | U84: 160 | V84: 680 | W84: 1302 | X84: 126 | Y84: 699 | Z84: 701 | AA84: 578 | AB84: 91 | AC84: 605 | AD84: 1347 | AE84: 382 | AF84: 375 | AG84: 604 | AH84: 21833 | AI84: 582 | AJ84: 903 | AK84: 490 | AL84: 411 | AM84: 1253 | AN84: 152 | AO84: 708 | AP84: 480 | AQ84: 419 | AR84: 435 | AS84: 347 | AT84: 287 | AU84: 507 | AV84: 1260 | AW84: 1373 | AX84: 893 | AY84: 248 | AZ84: 261 | BA84: 374 | BB84: 117 | BC84: 575 | BD84: 1038 | BE84: 118 | BF84: 655 | BG84: 543 | BH84: 494 | BI84: 93 | BJ84: 488 | BK84: 995 | BL84: 336 | BM84: 264 | BN84: 504 | BO84: 17603
A85: 77 | B85: 758 | C85: 924 | D85: 521 | E85: 465 | F85: 1557 | G85: 207 | H85: 740 | I85: 551 | J85: 449 | K85: 555 | L85: 427 | M85: 370 | N85: 672 | O85: 1485 | P85: 1970 | Q85: 1021 | R85: 354 | S85: 327 | T85: 382 | U85: 124 | V85: 567 | W85: 1312 | X85: 90 | Y85: 724 | Z85: 719 | AA85: 599 | AB85: 75 | AC85: 545 | AD85: 1240 | AE85: 386 | AF85: 386 | AG85: 616 | AH85: 21118 | AI85: 530 | AJ85: 814 | AK85: 412 | AL85: 358 | AM85: 1202 | AN85: 148 | AO85: 643 | AP85: 459 | AQ85: 459 | AR85: 386 | AS85: 313 | AT85: 319 | AU85: 499 | AV85: 1267 | AW85: 1314 | AX85: 827 | AY85: 261 | AZ85: 275 | BA85: 358 | BB85: 140 | BC85: 520 | BD85: 984 | BE85: 100 | BF85: 618 | BG85: 572 | BH85: 488 | BI85: 81 | BJ85: 458 | BK85: 950 | BL85: 316 | BM85: 278 | BN85: 520 | BO85: 16869
A86: 78 | B86: 719 | C86: 858 | D86: 535 | E86: 406 | F86: 1629 | G86: 171 | H86: 641 | I86: 599 | J86: 467 | K86: 494 | L86: 450 | M86: 379 | N86: 604 | O86: 1410 | P86: 1903 | Q86: 964 | R86: 347 | S86: 319 | T86: 400 | U86: 141 | V86: 600 | W86: 1222 | X86: 101 | Y86: 663 | Z86: 691 | AA86: 514 | AB86: 85 | AC86: 575 | AD86: 1208 | AE86: 347 | AF86: 327 | AG86: 579 | AH86: 20348 | AI86: 565 | AJ86: 763 | AK86: 418 | AL86: 369 | AM86: 1131 | AN86: 178 | AO86: 641 | AP86: 424 | AQ86: 401 | AR86: 400 | AS86: 369 | AT86: 305 | AU86: 467 | AV86: 1183 | AW86: 1267 | AX86: 792 | AY86: 263 | AZ86: 273 | BA86: 315 | BB86: 112 | BC86: 458 | BD86: 940 | BE86: 92 | BF86: 541 | BG86: 527 | BH86: 469 | BI86: 68 | BJ86: 446 | BK86: 973 | BL86: 262 | BM86: 232 | BN86: 471 | BO86: 16115
A87: 79 | B87: 704 | C87: 822 | D87: 488 | E87: 433 | F87: 1507 | G87: 198 | H87: 682 | I87: 512 | J87: 477 | K87: 509 | L87: 363 | M87: 365 | N87: 575 | O87: 1424 | P87: 1779 | Q87: 858 | R87: 351 | S87: 298 | T87: 350 | U87: 128 | V87: 542 | W87: 1142 | X87: 90 | Y87: 639 | Z87: 678 | AA87: 541 | AB87: 77 | AC87: 513 | AD87: 1153 | AE87: 364 | AF87: 330 | AG87: 504 | AH87: 19396 | AI87: 502 | AJ87: 671 | AK87: 414 | AL87: 306 | AM87: 1084 | AN87: 149 | AO87: 618 | AP87: 365 | AQ87: 357 | AR87: 397 | AS87: 283 | AT87: 291 | AU87: 425 | AV87: 1069 | AW87: 1173 | AX87: 686 | AY87: 225 | AZ87: 221 | BA87: 322 | BB87: 91 | BC87: 399 | BD87: 703 | BE87: 71 | BF87: 500 | BG87: 475 | BH87: 376 | BI87: 68 | BJ87: 433 | BK87: 864 | BL87: 276 | BM87: 207 | BN87: 411 | BO87: 14432
A88: 80 | B88: 695 | C88: 764 | D88: 452 | E88: 370 | F88: 1468 | G88: 182 | H88: 663 | I88: 514 | J88: 413 | K88: 422 | L88: 385 | M88: 384 | N88: 519 | O88: 1324 | P88: 1706 | Q88: 888 | R88: 329 | S88: 302 | T88: 331 | U88: 115 | V88: 519 | W88: 1102 | X88: 73 | Y88: 617 | Z88: 632 | AA88: 426 | AB88: 65 | AC88: 505 | AD88: 1159 | AE88: 337 | AF88: 300 | AG88: 492 | AH88: 18453 | AI88: 451 | AJ88: 684 | AK88: 366 | AL88: 276 | AM88: 1057 | AN88: 112 | AO88: 567 | AP88: 377 | AQ88: 315 | AR88: 335 | AS88: 293 | AT88: 272 | AU88: 405 | AV88: 1004 | AW88: 1066 | AX88: 627 | AY88: 209 | AZ88: 215 | BA88: 245 | BB88: 87 | BC88: 388 | BD88: 723 | BE88: 63 | BF88: 449 | BG88: 451 | BH88: 399 | BI88: 63 | BJ88: 385 | BK88: 836 | BL88: 234 | BM88: 216 | BN88: 376 | BO88: 13546
A89: 81 | B89: 636 | C89: 691 | D89: 448 | E89: 372 | F89: 1349 | G89: 149 | H89: 598 | I89: 501 | J89: 392 | K89: 419 | L89: 321 | M89: 355 | N89: 482 | O89: 1170 | P89: 1777 | Q89: 802 | R89: 261 | S89: 288 | T89: 389 | U89: 107 | V89: 463 | W89: 1010 | X89: 74 | Y89: 582 | Z89: 595 | AA89: 441 | AB89: 76 | AC89: 454 | AD89: 1014 | AE89: 292 | AF89: 281 | AG89: 425 | AH89: 17214 | AI89: 447 | AJ89: 598 | AK89: 319 | AL89: 266 | AM89: 980 | AN89: 116 | AO89: 459 | AP89: 329 | AQ89: 309 | AR89: 336 | AS89: 237 | AT89: 240 | AU89: 394 | AV89: 916 | AW89: 1026 | AX89: 612 | AY89: 204 | AZ89: 193 | BA89: 259 | BB89: 82 | BC89: 343 | BD89: 629 | BE89: 75 | BF89: 464 | BG89: 435 | BH89: 332 | BI89: 53 | BJ89: 367 | BK89: 675 | BL89: 247 | BM89: 180 | BN89: 347 | BO89: 12469
A90: 82 | B90: 585 | C90: 696 | D90: 396 | E90: 316 | F90: 1243 | G90: 105 | H90: 595 | I90: 529 | J90: 366 | K90: 407 | L90: 336 | M90: 345 | N90: 424 | O90: 1107 | P90: 1574 | Q90: 742 | R90: 254 | S90: 237 | T90: 300 | U90: 110 | V90: 462 | W90: 880 | X90: 74 | Y90: 506 | Z90: 584 | AA90: 413 | AB90: 63 | AC90: 430 | AD90: 971 | AE90: 274 | AF90: 247 | AG90: 394 | AH90: 15965 | AI90: 412 | AJ90: 515 | AK90: 305 | AL90: 218 | AM90: 909 | AN90: 107 | AO90: 435 | AP90: 318 | AQ90: 278 | AR90: 313 | AS90: 257 | AT90: 205 | AU90: 350 | AV90: 789 | AW90: 844 | AX90: 608 | AY90: 154 | AZ90: 178 | BA90: 239 | BB90: 77 | BC90: 301 | BD90: 563 | BE90: 56 | BF90: 418 | BG90: 335 | BH90: 302 | BI90: 48 | BJ90: 287 | BK90: 649 | BL90: 177 | BM90: 174 | BN90: 299 | BO90: 11120
A91: 83 | B91: 534 | C91: 620 | D91: 360 | E91: 282 | F91: 1206 | G91: 111 | H91: 529 | I91: 410 | J91: 336 | K91: 361 | L91: 309 | M91: 289 | N91: 395 | O91: 1000 | P91: 1438 | Q91: 698 | R91: 257 | S91: 209 | T91: 284 | U91: 114 | V91: 421 | W91: 807 | X91: 56 | Y91: 455 | Z91: 475 | AA91: 372 | AB91: 54 | AC91: 416 | AD91: 927 | AE91: 239 | AF91: 259 | AG91: 321 | AH91: 14544 | AI91: 359 | AJ91: 473 | AK91: 260 | AL91: 205 | AM91: 830 | AN91: 74 | AO91: 432 | AP91: 274 | AQ91: 236 | AR91: 262 | AS91: 197 | AT91: 200 | AU91: 287 | AV91: 751 | AW91: 806 | AX91: 500 | AY91: 135 | AZ91: 139 | BA91: 207 | BB91: 60 | BC91: 293 | BD91: 582 | BE91: 42 | BF91: 372 | BG91: 281 | BH91: 263 | BI91: 34 | BJ91: 278 | BK91: 573 | BL91: 188 | BM91: 152 | BN91: 230 | BO91: 9975
A92: 84 | B92: 583 | C92: 584 | D92: 378 | E92: 292 | F92: 1188 | G92: 115 | H92: 485 | I92: 425 | J92: 297 | K92: 342 | L92: 284 | M92: 312 | N92: 376 | O92: 894 | P92: 1358 | Q92: 664 | R92: 281 | S92: 202 | T92: 289 | U92: 107 | V92: 408 | W92: 749 | X92: 50 | Y92: 473 | Z92: 446 | AA92: 348 | AB92: 53 | AC92: 364 | AD92: 824 | AE92: 250 | AF92: 235 | AG92: 385 | AH92: 14041 | AI92: 347 | AJ92: 395 | AK92: 255 | AL92: 206 | AM92: 714 | AN92: 77 | AO92: 357 | AP92: 236 | AQ92: 191 | AR92: 249 | AS92: 204 | AT92: 185 | AU92: 247 | AV92: 645 | AW92: 746 | AX92: 471 | AY92: 145 | AZ92: 137 | BA92: 158 | BB92: 49 | BC92: 295 | BD92: 484 | BE92: 46 | BF92: 374 | BG92: 269 | BH92: 227 | BI92: 34 | BJ92: 246 | BK92: 524 | BL92: 180 | BM92: 149 | BN92: 249 | BO92: 9091
A93: 85 | B93: 479 | C93: 560 | D93: 334 | E93: 275 | F93: 1171 | G93: 91 | H93: 443 | I93: 369 | J93: 262 | K93: 289 | L93: 256 | M93: 273 | N93: 335 | O93: 868 | P93: 1231 | Q93: 606 | R93: 238 | S93: 182 | T93: 270 | U93: 75 | V93: 324 | W93: 632 | X93: 57 | Y93: 433 | Z93: 445 | AA93: 309 | AB93: 40 | AC93: 347 | AD93: 768 | AE93: 185 | AF93: 200 | AG93: 331 | AH93: 12678 | AI93: 286 | AJ93: 381 | AK93: 243 | AL93: 156 | AM93: 695 | AN93: 65 | AO93: 303 | AP93: 250 | AQ93: 182 | AR93: 188 | AS93: 155 | AT93: 145 | AU93: 209 | AV93: 499 | AW93: 660 | AX93: 404 | AY93: 110 | AZ93: 131 | BA93: 148 | BB93: 52 | BC93: 228 | BD93: 386 | BE93: 28 | BF93: 324 | BG93: 255 | BH93: 246 | BI93: 40 | BJ93: 255 | BK93: 463 | BL93: 133 | BM93: 97 | BN93: 177 | BO93: 7894
A94: 86 | B94: 480 | C94: 460 | D94: 292 | E94: 226 | F94: 1010 | G94: 112 | H94: 407 | I94: 350 | J94: 244 | K94: 284 | L94: 254 | M94: 231 | N94: 297 | O94: 803 | P94: 1091 | Q94: 513 | R94: 208 | S94: 164 | T94: 191 | U94: 73 | V94: 282 | W94: 570 | X94: 60 | Y94: 394 | Z94: 379 | AA94: 296 | AB94: 35 | AC94: 298 | AD94: 665 | AE94: 178 | AF94: 198 | AG94: 232 | AH94: 11277 | AI94: 222 | AJ94: 318 | AK94: 219 | AL94: 147 | AM94: 506 | AN94: 64 | AO94: 259 | AP94: 176 | AQ94: 146 | AR94: 185 | AS94: 123 | AT94: 140 | AU94: 181 | AV94: 466 | AW94: 514 | AX94: 371 | AY94: 101 | AZ94: 115 | BA94: 141 | BB94: 36 | BC94: 158 | BD94: 313 | BE94: 39 | BF94: 261 | BG94: 229 | BH94: 211 | BI94: 21 | BJ94: 177 | BK94: 374 | BL94: 120 | BM94: 82 | BN94: 158 | BO94: 6573
A95: 87 | B95: 427 | C95: 410 | D95: 261 | E95: 190 | F95: 883 | G95: 94 | H95: 366 | I95: 317 | J95: 190 | K95: 234 | L95: 196 | M95: 232 | N95: 252 | O95: 678 | P95: 905 | Q95: 499 | R95: 174 | S95: 136 | T95: 180 | U95: 77 | V95: 258 | W95: 522 | X95: 46 | Y95: 340 | Z95: 316 | AA95: 246 | AB95: 44 | AC95: 255 | AD95: 606 | AE95: 165 | AF95: 190 | AG95: 208 | AH95: 9897 | AI95: 212 | AJ95: 264 | AK95: 141 | AL95: 123 | AM95: 492 | AN95: 44 | AO95: 207 | AP95: 191 | AQ95: 121 | AR95: 154 | AS95: 128 | AT95: 113 | AU95: 155 | AV95: 422 | AW95: 392 | AX95: 309 | AY95: 108 | AZ95: 89 | BA95: 126 | BB95: 52 | BC95: 143 | BD95: 252 | BE95: 34 | BF95: 200 | BG95: 185 | BH95: 168 | BI95: 26 | BJ95: 155 | BK95: 310 | BL95: 96 | BM95: 86 | BN95: 137 | BO95: 5635
A96: 88 | B96: 344 | C96: 395 | D96: 225 | E96: 173 | F96: 774 | G96: 65 | H96: 303 | I96: 268 | J96: 197 | K96: 198 | L96: 155 | M96: 175 | N96: 224 | O96: 596 | P96: 855 | Q96: 415 | R96: 131 | S96: 122 | T96: 164 | U96: 59 | V96: 226 | W96: 396 | X96: 27 | Y96: 311 | Z96: 220 | AA96: 199 | AB96: 41 | AC96: 218 | AD96: 497 | AE96: 152 | AF96: 133 | AG96: 163 | AH96: 8421 | AI96: 158 | AJ96: 216 | AK96: 131 | AL96: 77 | AM96: 399 | AN96: 46 | AO96: 165 | AP96: 129 | AQ96: 120 | AR96: 125 | AS96: 103 | AT96: 81 | AU96: 102 | AV96: 338 | AW96: 337 | AX96: 209 | AY96: 58 | AZ96: 60 | BA96: 116 | BB96: 44 | BC96: 121 | BD96: 206 | BE96: 20 | BF96: 179 | BG96: 154 | BH96: 151 | BI96: 14 | BJ96: 113 | BK96: 237 | BL96: 72 | BM96: 69 | BN96: 104 | BO96: 4454
A97: 89 | B97: 287 | C97: 338 | D97: 203 | E97: 136 | F97: 757 | G97: 50 | H97: 238 | I97: 222 | J97: 155 | K97: 198 | L97: 169 | M97: 171 | N97: 177 | O97: 528 | P97: 671 | Q97: 382 | R97: 141 | S97: 89 | T97: 149 | U97: 46 | V97: 193 | W97: 358 | X97: 29 | Y97: 320 | Z97: 219 | AA97: 177 | AB97: 29 | AC97: 183 | AD97: 424 | AE97: 111 | AF97: 117 | AG97: 151 | AH97: 7418 | AI97: 168 | AJ97: 169 | AK97: 86 | AL97: 77 | AM97: 319 | AN97: 30 | AO97: 164 | AP97: 106 | AQ97: 74 | AR97: 97 | AS97: 89 | AT97: 82 | AU97: 116 | AV97: 305 | AW97: 259 | AX97: 167 | AY97: 46 | AZ97: 65 | BA97: 68 | BB97: 26 | BC97: 98 | BD97: 169 | BE97: 26 | BF97: 166 | BG97: 107 | BH97: 96 | BI97: 18 | BJ97: 115 | BK97: 203 | BL97: 62 | BM97: 48 | BN97: 110 | BO97: 3731
A98: 90 | B98: 1109 | C98: 1280 | D98: 884 | E98: 634 | F98: 2758 | G98: 225 | H98: 991 | I98: 840 | J98: 608 | K98: 710 | L98: 568 | M98: 667 | N98: 780 | O98: 2124 | P98: 2768 | Q98: 1355 | R98: 525 | S98: 403 | T98: 536 | U98: 240 | V98: 783 | W98: 1168 | X98: 134 | Y98: 1129 | Z98: 882 | AA98: 751 | AB98: 125 | AC98: 862 | AD98: 1611 | AE98: 522 | AF98: 450 | AG98: 628 | AH98: 29050 | AI98: 444 | AJ98: 614 | AK98: 343 | AL98: 232 | AM98: 1165 | AN98: 101 | AO98: 480 | AP98: 354 | AQ98: 249 | AR98: 337 | AS98: 258 | AT98: 261 | AU98: 329 | AV98: 886 | AW98: 952 | AX98: 608 | AY98: 190 | AZ98: 174 | BA98: 252 | BB98: 71 | BC98: 299 | BD98: 520 | BE98: 67 | BF98: 474 | BG98: 414 | BH98: 309 | BI98: 45 | BJ98: 361 | BK98: 604 | BL98: 185 | BM98: 161 | BN98: 278 | BO98: 12017
BQ99: =BO99+AH99 -> 0
BQ100: =BN99+AG99 -> 0

Sheet MYE LA 2016 (hidden)
A1: Rebased Mid-Year Estimates by sex, single year of age group and council area, mid-2016
A2: This worksheet contains one table.
B3: Total | C3: Females | D3: Males
B4: =SUM(B8:BO98)/2 -> 5373600 | C4: =SUM(B8:AG98) -> 2764597 | D4: =SUM(AI8:BN98) -> 2609003
B6: F | AI6: M
B7: Aberdeen City | C7: Aberdeenshire | D7: Angus | E7: Argyll and Bute | F7: City of Edinburgh | G7: Clackmannanshire | H7: Dumfries and Galloway | I7: Dundee City | J7: East Ayrshire | K7: East Dunbartonshire | L7: East Lothian | M7: East Renfrewshire | N7: Falkirk | O7: Fife | P7: Glasgow City | Q7: Highland | R7: Inverclyde | S7: Midlothian | T7: Moray | U7: Na h-Eileanan Siar | V7: North Ayrshire | W7: North Lanarkshire | X7: Orkney Islands | Y7: Perth and Kinross | Z7: Renfrewshire | AA7: Scottish Borders | AB7: Shetland Islands | AC7: South Ayrshire | AD7: South Lanarkshire | AE7: Stirling | AF7: West Dunbartonshire | AG7: West Lothian | AH7: Scotland | AI7: Aberdeen City | AJ7: Aberdeenshire | AK7: Angus | AL7: Argyll and Bute | AM7: City of Edinburgh | AN7: Clackmannanshire | AO7: Dumfries and Galloway | AP7: Dundee City | AQ7: East Ayrshire | AR7: East Dunbartonshire | AS7: East Lothian | AT7: East Renfrewshire | AU7: Falkirk | AV7: Fife | AW7: Glasgow City | AX7: Highland | AY7: Inverclyde | AZ7: Midlothian | BA7: Moray | BB7: Na h-Eileanan Siar | BC7: North Ayrshire | BD7: North Lanarkshire | BE7: Orkney Islands | BF7: Perth and Kinross | BG7: Renfrewshire | BH7: Scottish Borders | BI7: Shetland Islands | BJ7: South Ayrshire | BK7: South Lanarkshire | BL7: Stirling | BM7: West Dunbartonshire | BN7: West Lothian | BO7: Scotland | BQ7: Total
A8: 0 | B8: 1207 | C8: 1451 | D8: 496 | E8: 357 | F8: 2433 | G8: 240 | H8: 634 | I8: 711 | J8: 618 | K8: 491 | L8: 548 | M8: 481 | N8: 724 | O8: 1799 | P8: 3390 | Q8: 1080 | R8: 326 | S8: 521 | T8: 449 | U8: 108 | V8: 606 | W8: 1748 | X8: 89 | Y8: 646 | Z8: 846 | AA8: 535 | AB8: 124 | AC8: 505 | AD8: 1527 | AE8: 416 | AF8: 485 | AG8: 949 | AH8: 26540 | AI8: 1269 | AJ8: 1553 | AK8: 548 | AL8: 364 | AM8: 2682 | AN8: 286 | AO8: 672 | AP8: 774 | AQ8: 688 | AR8: 524 | AS8: 574 | AT8: 458 | AU8: 887 | AV8: 1833 | AW8: 3471 | AX8: 1180 | AY8: 365 | AZ8: 580 | BA8: 512 | BB8: 124 | BC8: 692 | BD8: 1873 | BE8: 80 | BF8: 695 | BG8: 904 | BH8: 535 | BI8: 131 | BJ8: 521 | BK8: 1682 | BL8: 430 | BM8: 481 | BN8: 1023 | BO8: 28391 | BQ8: =AH8+BO8 -> 54931
A9: 1 | B9: 1147 | C9: 1441 | D9: 504 | E9: 376 | F9: 2475 | G9: 264 | H9: 630 | I9: 766 | J9: 627 | K9: 545 | L9: 552 | M9: 433 | N9: 804 | O9: 1957 | P9: 3300 | Q9: 1157 | R9: 360 | S9: 535 | T9: 430 | U9: 113 | V9: 622 | W9: 1844 | X9: 90 | Y9: 680 | Z9: 851 | AA9: 538 | AB9: 129 | AC9: 521 | AD9: 1643 | AE9: 401 | AF9: 457 | AG9: 941 | AH9: 27133 | AI9: 1214 | AJ9: 1497 | AK9: 619 | AL9: 374 | AM9: 2669 | AN9: 289 | AO9: 653 | AP9: 786 | AQ9: 714 | AR9: 513 | AS9: 529 | AT9: 514 | AU9: 881 | AV9: 1981 | AW9: 3446 | AX9: 1183 | AY9: 379 | AZ9: 584 | BA9: 458 | BB9: 106 | BC9: 678 | BD9: 1933 | BE9: 112 | BF9: 737 | BG9: 897 | BH9: 492 | BI9: 111 | BJ9: 531 | BK9: 1737 | BL9: 427 | BM9: 479 | BN9: 1099 | BO9: 28622 | BQ9: =AH9+BO9 -> 55755
A10: 2 | B10: 1130 | C10: 1499 | D10: 587 | E10: 405 | F10: 2550 | G10: 235 | H10: 618 | I10: 730 | J10: 614 | K10: 580 | L10: 559 | M10: 510 | N10: 828 | O10: 1847 | P10: 3223 | Q10: 1080 | R10: 354 | S10: 562 | T10: 469 | U10: 128 | V10: 674 | W10: 1817 | X10: 87 | Y10: 606 | Z10: 908 | AA10: 575 | AB10: 124 | AC10: 471 | AD10: 1612 | AE10: 444 | AF10: 471 | AG10: 1035 | AH10: 27332 | AI10: 1216 | AJ10: 1534 | AK10: 630 | AL10: 395 | AM10: 2629 | AN10: 275 | AO10: 707 | AP10: 789 | AQ10: 616 | AR10: 556 | AS10: 591 | AT10: 565 | AU10: 850 | AV10: 2037 | AW10: 3399 | AX10: 1184 | AY10: 397 | AZ10: 553 | BA10: 470 | BB10: 144 | BC10: 677 | BD10: 1901 | BE10: 104 | BF10: 749 | BG10: 937 | BH10: 606 | BI10: 128 | BJ10: 533 | BK10: 1703 | BL10: 467 | BM10: 472 | BN10: 1109 | BO10: 28923 | BQ10: 56255
A11: 3 | B11: 1108 | C11: 1473 | D11: 626 | E11: 376 | F11: 2441 | G11: 274 | H11: 688 | I11: 797 | J11: 657 | K11: 574 | L11: 548 | M11: 582 | N11: 828 | O11: 1951 | P11: 3257 | Q11: 1170 | R11: 406 | S11: 604 | T11: 483 | U11: 134 | V11: 622 | W11: 1827 | X11: 92 | Y11: 704 | Z11: 918 | AA11: 593 | AB11: 149 | AC11: 472 | AD11: 1689 | AE11: 425 | AF11: 500 | AG11: 1103 | AH11: 28071 | AI11: 1172 | AJ11: 1570 | AK11: 598 | AL11: 399 | AM11: 2641 | AN11: 323 | AO11: 709 | AP11: 829 | AQ11: 669 | AR11: 547 | AS11: 600 | AT11: 545 | AU11: 889 | AV11: 2047 | AW11: 3339 | AX11: 1164 | AY11: 400 | AZ11: 519 | BA11: 538 | BB11: 121 | BC11: 682 | BD11: 1974 | BE11: 124 | BF11: 715 | BG11: 1005 | BH11: 601 | BI11: 144 | BJ11: 574 | BK11: 1775 | BL11: 461 | BM11: 519 | BN11: 1056 | BO11: 29249 | BQ11: 57320
A12: 4 | B12: 1113 | C12: 1546 | D12: 611 | E12: 451 | F12: 2506 | G12: 297 | H12: 687 | I12: 789 | J12: 689 | K12: 546 | L12: 642 | M12: 572 | N12: 902 | O12: 1922 | P12: 3224 | Q12: 1193 | R12: 343 | S12: 552 | T12: 486 | U12: 114 | V12: 737 | W12: 1872 | X12: 92 | Y12: 729 | Z12: 964 | AA12: 585 | AB12: 123 | AC12: 545 | AD12: 1663 | AE12: 469 | AF12: 498 | AG12: 1025 | AH12: 28487 | AI12: 1138 | AJ12: 1645 | AK12: 600 | AL12: 412 | AM12: 2593 | AN12: 322 | AO12: 708 | AP12: 834 | AQ12: 760 | AR12: 588 | AS12: 639 | AT12: 628 | AU12: 952 | AV12: 2048 | AW12: 3297 | AX12: 1297 | AY12: 426 | AZ12: 599 | BA12: 486 | BB12: 152 | BC12: 767 | BD12: 2068 | BE12: 119 | BF12: 768 | BG12: 1022 | BH12: 591 | BI12: 146 | BJ12: 517 | BK12: 1883 | BL12: 473 | BM12: 556 | BN12: 1158 | BO12: 30192 | BQ12: 58679
A13: 5 | B13: 1105 | C13: 1538 | D13: 584 | E13: 397 | F13: 2524 | G13: 287 | H13: 745 | I13: 751 | J13: 664 | K13: 614 | L13: 650 | M13: 587 | N13: 854 | O13: 2113 | P13: 3142 | Q13: 1195 | R13: 378 | S13: 562 | T13: 495 | U13: 120 | V13: 752 | W13: 1946 | X13: 113 | Y13: 738 | Z13: 968 | AA13: 554 | AB13: 141 | AC13: 578 | AD13: 1779 | AE13: 450 | AF13: 498 | AG13: 1090 | AH13: 28912 | AI13: 1160 | AJ13: 1642 | AK13: 611 | AL13: 437 | AM13: 2579 | AN13: 276 | AO13: 744 | AP13: 830 | AQ13: 708 | AR13: 654 | AS13: 649 | AT13: 639 | AU13: 974 | AV13: 2235 | AW13: 3289 | AX13: 1269 | AY13: 412 | AZ13: 523 | BA13: 537 | BB13: 138 | BC13: 745 | BD13: 2036 | BE13: 110 | BF13: 801 | BG13: 914 | BH13: 661 | BI13: 150 | BJ13: 616 | BK13: 1792 | BL13: 474 | BM13: 549 | BN13: 1177 | BO13: 30331 | BQ13: 59243
A14: 6 | B14: 1075 | C14: 1662 | D14: 645 | E14: 452 | F14: 2438 | G14: 305 | H14: 752 | I14: 733 | J14: 647 | K14: 573 | L14: 611 | M14: 604 | N14: 941 | O14: 2035 | P14: 3153 | Q14: 1252 | R14: 409 | S14: 560 | T14: 526 | U14: 117 | V14: 719 | W14: 2054 | X14: 115 | Y14: 734 | Z14: 926 | AA14: 572 | AB14: 130 | AC14: 557 | AD14: 1758 | AE14: 457 | AF14: 503 | AG14: 1099 | AH14: 29114 | AI14: 1136 | AJ14: 1718 | AK14: 574 | AL14: 432 | AM14: 2478 | AN14: 260 | AO14: 793 | AP14: 816 | AQ14: 691 | AR14: 600 | AS14: 637 | AT14: 652 | AU14: 954 | AV14: 2259 | AW14: 3191 | AX14: 1283 | AY14: 442 | AZ14: 560 | BA14: 535 | BB14: 141 | BC14: 723 | BD14: 2089 | BE14: 114 | BF14: 807 | BG14: 1002 | BH14: 584 | BI14: 162 | BJ14: 600 | BK14: 1791 | BL14: 514 | BM14: 543 | BN14: 1127 | BO14: 30208 | BQ14: 59322
A15: 7 | B15: 1051 | C15: 1649 | D15: 600 | E15: 436 | F15: 2498 | G15: 274 | H15: 755 | I15: 751 | J15: 688 | K15: 562 | L15: 621 | M15: 590 | N15: 981 | O15: 2124 | P15: 2993 | Q15: 1213 | R15: 383 | S15: 500 | T15: 499 | U15: 125 | V15: 733 | W15: 2100 | X15: 112 | Y15: 790 | Z15: 890 | AA15: 612 | AB15: 141 | AC15: 570 | AD15: 1733 | AE15: 470 | AF15: 520 | AG15: 1110 | AH15: 29074 | AI15: 1057 | AJ15: 1674 | AK15: 624 | AL15: 426 | AM15: 2518 | AN15: 309 | AO15: 753 | AP15: 860 | AQ15: 689 | AR15: 648 | AS15: 658 | AT15: 578 | AU15: 944 | AV15: 2149 | AW15: 3087 | AX15: 1416 | AY15: 418 | AZ15: 568 | BA15: 557 | BB15: 142 | BC15: 794 | BD15: 2052 | BE15: 137 | BF15: 810 | BG15: 965 | BH15: 629 | BI15: 140 | BJ15: 586 | BK15: 1784 | BL15: 479 | BM15: 536 | BN15: 1207 | BO15: 30194 | BQ15: 59268
A16: 8 | B16: 1078 | C16: 1502 | D16: 634 | E16: 436 | F16: 2441 | G16: 307 | H16: 793 | I16: 767 | J16: 635 | K16: 581 | L16: 646 | M16: 575 | N16: 962 | O16: 2080 | P16: 3002 | Q16: 1278 | R16: 403 | S16: 541 | T16: 566 | U16: 122 | V16: 733 | W16: 1973 | X16: 129 | Y16: 802 | Z16: 1005 | AA16: 650 | AB16: 110 | AC16: 566 | AD16: 1770 | AE16: 466 | AF16: 547 | AG16: 1140 | AH16: 29240 | AI16: 1044 | AJ16: 1684 | AK16: 645 | AL16: 435 | AM16: 2501 | AN16: 317 | AO16: 752 | AP16: 768 | AQ16: 711 | AR16: 609 | AS16: 680 | AT16: 603 | AU16: 919 | AV16: 2172 | AW16: 3078 | AX16: 1348 | AY16: 458 | AZ16: 499 | BA16: 588 | BB16: 167 | BC16: 754 | BD16: 2193 | BE16: 109 | BF16: 792 | BG16: 981 | BH16: 594 | BI16: 141 | BJ16: 597 | BK16: 1826 | BL16: 498 | BM16: 511 | BN16: 1183 | BO16: 30157 | BQ16: 59397
A17: 9 | B17: 1028 | C17: 1495 | D17: 605 | E17: 398 | F17: 2198 | G17: 267 | H17: 755 | I17: 710 | J17: 633 | K17: 565 | L17: 629 | M17: 580 | N17: 910 | O17: 1980 | P17: 2819 | Q17: 1240 | R17: 386 | S17: 470 | T17: 519 | U17: 148 | V17: 729 | W17: 1944 | X17: 109 | Y17: 771 | Z17: 902 | AA17: 630 | AB17: 136 | AC17: 560 | AD17: 1698 | AE17: 513 | AF17: 500 | AG17: 1112 | AH17: 27939 | AI17: 1033 | AJ17: 1619 | AK17: 620 | AL17: 438 | AM17: 2367 | AN17: 299 | AO17: 832 | AP17: 760 | AQ17: 689 | AR17: 564 | AS17: 642 | AT17: 619 | AU17: 963 | AV17: 2049 | AW17: 2880 | AX17: 1306 | AY17: 438 | AZ17: 523 | BA17: 557 | BB17: 155 | BC17: 769 | BD17: 2078 | BE17: 131 | BF17: 813 | BG17: 930 | BH17: 612 | BI17: 151 | BJ17: 581 | BK17: 1802 | BL17: 503 | BM17: 519 | BN17: 1168 | BO17: 29410 | BQ17: 57349
A18: 10 | B18: 927 | C18: 1535 | D18: 589 | E18: 418 | F18: 2081 | G18: 274 | H18: 750 | I18: 654 | J18: 637 | K18: 587 | L18: 615 | M18: 598 | N18: 884 | O18: 2007 | P18: 2673 | Q18: 1246 | R18: 404 | S18: 504 | T18: 474 | U18: 138 | V18: 735 | W18: 1913 | X18: 128 | Y18: 739 | Z18: 948 | AA18: 586 | AB18: 160 | AC18: 578 | AD18: 1791 | AE18: 481 | AF18: 466 | AG18: 1104 | AH18: 27624 | AI18: 971 | AJ18: 1594 | AK18: 624 | AL18: 450 | AM18: 2243 | AN18: 300 | AO18: 827 | AP18: 714 | AQ18: 664 | AR18: 633 | AS18: 692 | AT18: 574 | AU18: 883 | AV18: 2029 | AW18: 2856 | AX18: 1311 | AY18: 406 | AZ18: 531 | BA18: 511 | BB18: 144 | BC18: 781 | BD18: 2067 | BE18: 117 | BF18: 730 | BG18: 938 | BH18: 659 | BI18: 139 | BJ18: 553 | BK18: 1759 | BL18: 492 | BM18: 480 | BN18: 1132 | BO18: 28804 | BQ18: 56428
A19: 11 | B19: 900 | C19: 1432 | D19: 614 | E19: 405 | F19: 1941 | G19: 262 | H19: 756 | I19: 695 | J19: 613 | K19: 559 | L19: 539 | M19: 608 | N19: 846 | O19: 1832 | P19: 2629 | Q19: 1227 | R19: 401 | S19: 478 | T19: 518 | U19: 121 | V19: 713 | W19: 1862 | X19: 118 | Y19: 752 | Z19: 917 | AA19: 605 | AB19: 116 | AC19: 585 | AD19: 1676 | AE19: 492 | AF19: 470 | AG19: 1040 | AH19: 26722 | AI19: 929 | AJ19: 1521 | AK19: 631 | AL19: 458 | AM19: 2169 | AN19: 287 | AO19: 779 | AP19: 732 | AQ19: 660 | AR19: 634 | AS19: 643 | AT19: 613 | AU19: 903 | AV19: 1942 | AW19: 2717 | AX19: 1280 | AY19: 441 | AZ19: 494 | BA19: 456 | BB19: 147 | BC19: 756 | BD19: 1963 | BE19: 105 | BF19: 827 | BG19: 941 | BH19: 630 | BI19: 146 | BJ19: 581 | BK19: 1696 | BL19: 537 | BM19: 500 | BN19: 1147 | BO19: 28265 | BQ19: 54987
A20: 12 | B20: 981 | C20: 1335 | D20: 601 | E20: 409 | F20: 2230 | G20: 260 | H20: 663 | I20: 721 | J20: 625 | K20: 552 | L20: 605 | M20: 558 | N20: 785 | O20: 1805 | P20: 2861 | Q20: 1218 | R20: 401 | S20: 444 | T20: 461 | U20: 149 | V20: 685 | W20: 1958 | X20: 84 | Y20: 716 | Z20: 875 | AA20: 579 | AB20: 112 | AC20: 521 | AD20: 1635 | AE20: 514 | AF20: 434 | AG20: 977 | AH20: 26754 | AI20: 975 | AJ20: 1434 | AK20: 628 | AL20: 417 | AM20: 2377 | AN20: 278 | AO20: 705 | AP20: 792 | AQ20: 693 | AR20: 615 | AS20: 617 | AT20: 586 | AU20: 852 | AV20: 1996 | AW20: 2996 | AX20: 1222 | AY20: 425 | AZ20: 525 | BA20: 478 | BB20: 147 | BC20: 695 | BD20: 2127 | BE20: 119 | BF20: 762 | BG20: 933 | BH20: 617 | BI20: 146 | BJ20: 559 | BK20: 1727 | BL20: 581 | BM20: 486 | BN20: 1009 | BO20: 28519 | BQ20: 55273
A21: 13 | B21: 1130 | C21: 1397 | D21: 592 | E21: 381 | F21: 2403 | G21: 253 | H21: 652 | I21: 737 | J21: 618 | K21: 545 | L21: 573 | M21: 592 | N21: 802 | O21: 1709 | P21: 3113 | Q21: 1197 | R21: 367 | S21: 426 | T21: 459 | U21: 128 | V21: 675 | W21: 1875 | X21: 104 | Y21: 712 | Z21: 903 | AA21: 518 | AB21: 118 | AC21: 498 | AD21: 1602 | AE21: 547 | AF21: 437 | AG21: 960 | AH21: 27023 | AI21: 1149 | AJ21: 1441 | AK21: 584 | AL21: 360 | AM21: 2513 | AN21: 247 | AO21: 718 | AP21: 930 | AQ21: 605 | AR21: 592 | AS21: 491 | AT21: 562 | AU21: 833 | AV21: 1928 | AW21: 3174 | AX21: 1191 | AY21: 409 | AZ21: 488 | BA21: 490 | BB21: 138 | BC21: 728 | BD21: 1906 | BE21: 95 | BF21: 742 | BG21: 945 | BH21: 578 | BI21: 139 | BJ21: 547 | BK21: 1599 | BL21: 595 | BM21: 445 | BN21: 974 | BO21: 28136 | BQ21: 55159
A22: 14 | B22: 941 | C22: 1329 | D22: 584 | E22: 368 | F22: 2457 | G22: 254 | H22: 647 | I22: 757 | J22: 648 | K22: 563 | L22: 542 | M22: 558 | N22: 742 | O22: 1866 | P22: 2839 | Q22: 1183 | R22: 378 | S22: 400 | T22: 435 | U22: 127 | V22: 691 | W22: 1914 | X22: 110 | Y22: 726 | Z22: 890 | AA22: 576 | AB22: 115 | AC22: 492 | AD22: 1648 | AE22: 526 | AF22: 477 | AG22: 1023 | AH22: 26806 | AI22: 1011 | AJ22: 1386 | AK22: 594 | AL22: 392 | AM22: 2552 | AN22: 283 | AO22: 697 | AP22: 819 | AQ22: 586 | AR22: 581 | AS22: 554 | AT22: 567 | AU22: 818 | AV22: 1955 | AW22: 2942 | AX22: 1216 | AY22: 389 | AZ22: 464 | BA22: 519 | BB22: 104 | BC22: 714 | BD22: 1938 | BE22: 99 | BF22: 735 | BG22: 898 | BH22: 569 | BI22: 134 | BJ22: 548 | BK22: 1680 | BL22: 547 | BM22: 444 | BN22: 969 | BO22: 27704 | BQ22: 54510
A23: 15 | B23: 1016 | C23: 1389 | D23: 606 | E23: 391 | F23: 2279 | G23: 299 | H23: 705 | I23: 698 | J23: 615 | K23: 572 | L23: 575 | M23: 534 | N23: 830 | O23: 1818 | P23: 2918 | Q23: 1207 | R23: 407 | S23: 500 | T23: 501 | U23: 150 | V23: 736 | W23: 1922 | X23: 97 | Y23: 836 | Z23: 965 | AA23: 565 | AB23: 126 | AC23: 528 | AD23: 1700 | AE23: 590 | AF23: 438 | AG23: 986 | AH23: 27499 | AI23: 1042 | AJ23: 1423 | AK23: 646 | AL23: 379 | AM23: 2311 | AN23: 264 | AO23: 724 | AP23: 782 | AQ23: 645 | AR23: 641 | AS23: 525 | AT23: 604 | AU23: 842 | AV23: 1970 | AW23: 3040 | AX23: 1300 | AY23: 419 | AZ23: 518 | BA23: 537 | BB23: 110 | BC23: 760 | BD23: 1950 | BE23: 110 | BF23: 840 | BG23: 965 | BH23: 580 | BI23: 114 | BJ23: 581 | BK23: 1696 | BL23: 557 | BM23: 446 | BN23: 1029 | BO23: 28350 | BQ23: 55849
A24: 16 | B24: 1047 | C24: 1391 | D24: 604 | E24: 404 | F24: 2315 | G24: 297 | H24: 728 | I24: 754 | J24: 661 | K24: 542 | L24: 615 | M24: 558 | N24: 808 | O24: 1868 | P24: 3035 | Q24: 1239 | R24: 427 | S24: 522 | T24: 525 | U24: 130 | V24: 737 | W24: 1973 | X24: 121 | Y24: 858 | Z24: 968 | AA24: 643 | AB24: 145 | AC24: 562 | AD24: 1779 | AE24: 545 | AF24: 503 | AG24: 1048 | AH24: 28352 | AI24: 1093 | AJ24: 1568 | AK24: 689 | AL24: 406 | AM24: 2462 | AN24: 302 | AO24: 761 | AP24: 756 | AQ24: 665 | AR24: 635 | AS24: 590 | AT24: 603 | AU24: 880 | AV24: 2009 | AW24: 3166 | AX24: 1320 | AY24: 453 | AZ24: 511 | BA24: 581 | BB24: 132 | BC24: 748 | BD24: 2054 | BE24: 105 | BF24: 889 | BG24: 994 | BH24: 604 | BI24: 155 | BJ24: 623 | BK24: 1845 | BL24: 552 | BM24: 459 | BN24: 1029 | BO24: 29639 | BQ24: 57991
A25: 17 | B25: 1006 | C25: 1473 | D25: 599 | E25: 467 | F25: 2357 | G25: 289 | H25: 741 | I25: 703 | J25: 656 | K25: 619 | L25: 578 | M25: 563 | N25: 892 | O25: 1955 | P25: 3089 | Q25: 1254 | R25: 466 | S25: 561 | T25: 574 | U25: 139 | V25: 743 | W25: 1991 | X25: 108 | Y25: 868 | Z25: 949 | AA25: 583 | AB25: 139 | AC25: 609 | AD25: 1789 | AE25: 504 | AF25: 502 | AG25: 1031 | AH25: 28797 | AI25: 1076 | AJ25: 1507 | AK25: 654 | AL25: 478 | AM25: 2339 | AN25: 322 | AO25: 807 | AP25: 702 | AQ25: 618 | AR25: 626 | AS25: 552 | AT25: 610 | AU25: 858 | AV25: 2099 | AW25: 3033 | AX25: 1385 | AY25: 454 | AZ25: 495 | BA25: 589 | BB25: 149 | BC25: 736 | BD25: 2155 | BE25: 131 | BF25: 873 | BG25: 970 | BH25: 610 | BI25: 123 | BJ25: 604 | BK25: 1790 | BL25: 601 | BM25: 498 | BN25: 1077 | BO25: 29521 | BQ25: 58318
A26: 18 | B26: 1394 | C26: 1301 | D26: 624 | E26: 410 | F26: 2526 | G26: 291 | H26: 773 | I26: 1008 | J26: 658 | K26: 566 | L26: 627 | M26: 561 | N26: 837 | O26: 2250 | P26: 3525 | Q26: 1172 | R26: 384 | S26: 442 | T26: 500 | U26: 122 | V26: 727 | W26: 2053 | X26: 87 | Y26: 791 | Z26: 965 | AA26: 561 | AB26: 124 | AC26: 584 | AD26: 1644 | AE26: 600 | AF26: 488 | AG26: 989 | AH26: 29584 | AI26: 1142 | AJ26: 1409 | AK26: 641 | AL26: 481 | AM26: 2470 | AN26: 285 | AO26: 803 | AP26: 891 | AQ26: 732 | AR26: 670 | AS26: 555 | AT26: 577 | AU26: 950 | AV26: 2033 | AW26: 3533 | AX26: 1334 | AY26: 453 | AZ26: 496 | BA26: 615 | BB26: 114 | BC26: 754 | BD26: 2031 | BE26: 115 | BF26: 844 | BG26: 967 | BH26: 563 | BI26: 144 | BJ26: 593 | BK26: 1748 | BL26: 582 | BM26: 506 | BN26: 1025 | BO26: 30056 | BQ26: 59640
A27: 19 | B27: 2098 | C27: 1196 | D27: 587 | E27: 371 | F27: 3707 | G27: 257 | H27: 705 | I27: 1384 | J27: 606 | K27: 501 | L27: 600 | M27: 508 | N27: 803 | O27: 2582 | P27: 4503 | Q27: 1038 | R27: 460 | S27: 488 | T27: 450 | U27: 104 | V27: 759 | W27: 2053 | X27: 83 | Y27: 678 | Z27: 985 | AA27: 553 | AB27: 115 | AC27: 568 | AD27: 1731 | AE27: 878 | AF27: 501 | AG27: 1015 | AH27: 32867 | AI27: 1573 | AJ27: 1387 | AK27: 655 | AL27: 565 | AM27: 3424 | AN27: 287 | AO27: 719 | AP27: 1113 | AQ27: 694 | AR27: 538 | AS27: 562 | AT27: 534 | AU27: 996 | AV27: 2362 | AW27: 4073 | AX27: 1243 | AY27: 480 | AZ27: 476 | BA27: 575 | BB27: 133 | BC27: 816 | BD27: 2111 | BE27: 123 | BF27: 803 | BG27: 1080 | BH27: 578 | BI27: 121 | BJ27: 569 | BK27: 1853 | BL27: 754 | BM27: 512 | BN27: 997 | BO27: 32706 | BQ27: 65573
A28: 20 | B28: 2155 | C28: 1157 | D28: 607 | E28: 422 | F28: 4484 | G28: 271 | H28: 662 | I28: 1464 | J28: 624 | K28: 520 | L28: 598 | M28: 479 | N28: 809 | O28: 2689 | P28: 4996 | Q28: 1030 | R28: 471 | S28: 451 | T28: 435 | U28: 117 | V28: 732 | W28: 1945 | X28: 82 | Y28: 695 | Z28: 1006 | AA28: 565 | AB28: 110 | AC28: 581 | AD28: 1676 | AE28: 846 | AF28: 498 | AG28: 969 | AH28: 34146 | AI28: 1705 | AJ28: 1353 | AK28: 637 | AL28: 547 | AM28: 3807 | AN28: 286 | AO28: 758 | AP28: 1190 | AQ28: 626 | AR28: 585 | AS28: 613 | AT28: 519 | AU28: 983 | AV28: 2440 | AW28: 4419 | AX28: 1166 | AY28: 450 | AZ28: 505 | BA28: 615 | BB28: 143 | BC28: 736 | BD28: 2067 | BE28: 126 | BF28: 770 | BG28: 1037 | BH28: 589 | BI28: 128 | BJ28: 558 | BK28: 1780 | BL28: 795 | BM28: 520 | BN28: 1062 | BO28: 33515 | BQ28: 67661
A29: 21 | B29: 2310 | C29: 1229 | D29: 610 | E29: 403 | F29: 4698 | G29: 296 | H29: 731 | I29: 1395 | J29: 659 | K29: 479 | L29: 599 | M29: 468 | N29: 903 | O29: 2562 | P29: 4958 | Q29: 1065 | R29: 490 | S29: 489 | T29: 455 | U29: 107 | V29: 770 | W29: 1921 | X29: 111 | Y29: 709 | Z29: 986 | AA29: 554 | AB29: 106 | AC29: 578 | AD29: 1731 | AE29: 852 | AF29: 541 | AG29: 941 | AH29: 34706 | AI29: 1754 | AJ29: 1387 | AK29: 626 | AL29: 576 | AM29: 3975 | AN29: 324 | AO29: 772 | AP29: 1229 | AQ29: 747 | AR29: 596 | AS29: 547 | AT29: 536 | AU29: 937 | AV29: 2364 | AW29: 4659 | AX29: 1231 | AY29: 475 | AZ29: 532 | BA29: 626 | BB29: 124 | BC29: 782 | BD29: 2055 | BE29: 110 | BF29: 774 | BG29: 991 | BH29: 574 | BI29: 119 | BJ29: 566 | BK29: 1731 | BL29: 782 | BM29: 570 | BN29: 1030 | BO29: 34101 | BQ29: 68807
A30: 22 | B30: 2311 | C30: 1319 | D30: 625 | E30: 417 | F30: 5297 | G30: 277 | H30: 772 | I30: 1405 | J30: 716 | K30: 558 | L30: 631 | M30: 451 | N30: 877 | O30: 2422 | P30: 5270 | Q30: 1160 | R30: 470 | S30: 519 | T30: 530 | U30: 127 | V30: 800 | W30: 1933 | X30: 107 | Y30: 753 | Z30: 1106 | AA30: 516 | AB30: 112 | AC30: 614 | AD30: 1875 | AE30: 716 | AF30: 544 | AG30: 1050 | AH30: 36280 | AI30: 2056 | AJ30: 1467 | AK30: 702 | AL30: 637 | AM30: 4298 | AN30: 307 | AO30: 762 | AP30: 1357 | AQ30: 714 | AR30: 616 | AS30: 615 | AT30: 505 | AU30: 837 | AV30: 2265 | AW30: 4770 | AX30: 1232 | AY30: 450 | AZ30: 502 | BA30: 571 | BB30: 141 | BC30: 795 | BD30: 2065 | BE30: 104 | BF30: 825 | BG30: 1138 | BH30: 543 | BI30: 149 | BJ30: 594 | BK30: 1890 | BL30: 714 | BM30: 573 | BN30: 1042 | BO30: 35236 | BQ30: 71516
A31: 23 | B31: 2318 | C31: 1348 | D31: 621 | E31: 396 | F31: 5144 | G31: 281 | H31: 794 | I31: 1415 | J31: 715 | K31: 531 | L31: 612 | M31: 505 | N31: 920 | O31: 2197 | P31: 5897 | Q31: 1184 | R31: 440 | S31: 516 | T31: 491 | U31: 106 | V31: 742 | W31: 2050 | X31: 127 | Y31: 864 | Z31: 1194 | AA31: 607 | AB31: 132 | AC31: 555 | AD31: 1776 | AE31: 681 | AF31: 603 | AG31: 1022 | AH31: 36784 | AI31: 2078 | AJ31: 1412 | AK31: 650 | AL31: 556 | AM31: 4312 | AN31: 321 | AO31: 736 | AP31: 1409 | AQ31: 689 | AR31: 632 | AS31: 587 | AT31: 470 | AU31: 915 | AV31: 2147 | AW31: 5238 | AX31: 1195 | AY31: 455 | AZ31: 480 | BA31: 550 | BB31: 96 | BC31: 774 | BD31: 2105 | BE31: 104 | BF31: 831 | BG31: 1100 | BH31: 561 | BI31: 147 | BJ31: 597 | BK31: 1807 | BL31: 673 | BM31: 546 | BN31: 1086 | BO31: 35259 | BQ31: 72043
A32: 24 | B32: 2270 | C32: 1422 | D32: 587 | E32: 377 | F32: 5025 | G32: 297 | H32: 772 | I32: 1398 | J32: 731 | K32: 595 | L32: 658 | M32: 454 | N32: 977 | O32: 2080 | P32: 6248 | Q32: 1217 | R32: 514 | S32: 556 | T32: 513 | U32: 102 | V32: 785 | W32: 2167 | X32: 122 | Y32: 761 | Z32: 1222 | AA32: 524 | AB32: 117 | AC32: 607 | AD32: 2013 | AE32: 628 | AF32: 611 | AG32: 1040 | AH32: 37390 | AI32: 2268 | AJ32: 1341 | AK32: 606 | AL32: 594 | AM32: 4277 | AN32: 292 | AO32: 727 | AP32: 1398 | AQ32: 700 | AR32: 602 | AS32: 561 | AT32: 535 | AU32: 919 | AV32: 2123 | AW32: 5772 | AX32: 1251 | AY32: 521 | AZ32: 537 | BA32: 609 | BB32: 147 | BC32: 772 | BD32: 2084 | BE32: 114 | BF32: 881 | BG32: 1124 | BH32: 517 | BI32: 148 | BJ32: 580 | BK32: 1952 | BL32: 611 | BM32: 582 | BN32: 1009 | BO32: 36154 | BQ32: 73544
A33: 25 | B33: 2364 | C33: 1352 | D33: 605 | E33: 383 | F33: 5037 | G33: 305 | H33: 783 | I33: 1373 | J33: 782 | K33: 561 | L33: 617 | M33: 427 | N33: 940 | O33: 2164 | P33: 6181 | Q33: 1212 | R33: 484 | S33: 559 | T33: 478 | U33: 108 | V33: 767 | W33: 2176 | X33: 119 | Y33: 750 | Z33: 1173 | AA33: 566 | AB33: 135 | AC33: 558 | AD33: 1911 | AE33: 603 | AF33: 586 | AG33: 1086 | AH33: 37145 | AI33: 2334 | AJ33: 1493 | AK33: 674 | AL33: 569 | AM33: 4664 | AN33: 278 | AO33: 754 | AP33: 1345 | AQ33: 703 | AR33: 604 | AS33: 551 | AT33: 470 | AU33: 961 | AV33: 2121 | AW33: 5668 | AX33: 1253 | AY33: 518 | AZ33: 558 | BA33: 645 | BB33: 99 | BC33: 784 | BD33: 2140 | BE33: 114 | BF33: 877 | BG33: 1190 | BH33: 513 | BI33: 122 | BJ33: 563 | BK33: 1817 | BL33: 595 | BM33: 550 | BN33: 1104 | BO33: 36631 | BQ33: 73776
A34: 26 | B34: 2152 | C34: 1341 | D34: 537 | E34: 438 | F34: 4786 | G34: 301 | H34: 748 | I34: 1308 | J34: 689 | K34: 500 | L34: 569 | M34: 411 | N34: 905 | O34: 2112 | P34: 6000 | Q34: 1187 | R34: 497 | S34: 518 | T34: 516 | U34: 118 | V34: 727 | W34: 2077 | X34: 112 | Y34: 709 | Z34: 1135 | AA34: 540 | AB34: 128 | AC34: 608 | AD34: 1813 | AE34: 526 | AF34: 577 | AG34: 1046 | AH34: 35631 | AI34: 2211 | AJ34: 1424 | AK34: 626 | AL34: 521 | AM34: 4358 | AN34: 277 | AO34: 760 | AP34: 1268 | AQ34: 706 | AR34: 577 | AS34: 529 | AT34: 463 | AU34: 936 | AV34: 2059 | AW34: 5532 | AX34: 1238 | AY34: 454 | AZ34: 514 | BA34: 528 | BB34: 109 | BC34: 682 | BD34: 2082 | BE34: 145 | BF34: 652 | BG34: 1132 | BH34: 531 | BI34: 142 | BJ34: 564 | BK34: 1781 | BL34: 496 | BM34: 567 | BN34: 999 | BO34: 34863 | BQ34: 70494
A35: 27 | B35: 2080 | C35: 1335 | D35: 581 | E35: 427 | F35: 4775 | G35: 254 | H35: 717 | I35: 1137 | J35: 723 | K35: 526 | L35: 570 | M35: 481 | N35: 906 | O35: 2193 | P35: 6083 | Q35: 1220 | R35: 440 | S35: 555 | T35: 535 | U35: 126 | V35: 756 | W35: 2174 | X35: 97 | Y35: 768 | Z35: 1092 | AA35: 515 | AB35: 138 | AC35: 552 | AD35: 1820 | AE35: 469 | AF35: 596 | AG35: 1070 | AH35: 35711 | AI35: 2229 | AJ35: 1410 | AK35: 564 | AL35: 605 | AM35: 4561 | AN35: 254 | AO35: 711 | AP35: 1237 | AQ35: 749 | AR35: 527 | AS35: 486 | AT35: 459 | AU35: 852 | AV35: 2052 | AW35: 5614 | AX35: 1217 | AY35: 429 | AZ35: 536 | BA35: 600 | BB35: 135 | BC35: 724 | BD35: 1959 | BE35: 107 | BF35: 771 | BG35: 1085 | BH35: 501 | BI35: 135 | BJ35: 554 | BK35: 1750 | BL35: 492 | BM35: 513 | BN35: 1037 | BO35: 34855 | BQ35: 70566
A36: 28 | B36: 2099 | C36: 1477 | D36: 631 | E36: 387 | F36: 4484 | G36: 311 | H36: 822 | I36: 1182 | J36: 726 | K36: 537 | L36: 520 | M36: 494 | N36: 1006 | O36: 2273 | P36: 5972 | Q36: 1277 | R36: 475 | S36: 583 | T36: 512 | U36: 133 | V36: 809 | W36: 2174 | X36: 122 | Y36: 793 | Z36: 1181 | AA36: 487 | AB36: 119 | AC36: 579 | AD36: 1876 | AE36: 478 | AF36: 609 | AG36: 1152 | AH36: 36280 | AI36: 2099 | AJ36: 1446 | AK36: 593 | AL36: 505 | AM36: 4334 | AN36: 315 | AO36: 743 | AP36: 1140 | AQ36: 702 | AR36: 555 | AS36: 543 | AT36: 457 | AU36: 920 | AV36: 2156 | AW36: 5797 | AX36: 1253 | AY36: 464 | AZ36: 526 | BA36: 584 | BB36: 126 | BC36: 684 | BD36: 2172 | BE36: 121 | BF36: 794 | BG36: 1121 | BH36: 537 | BI36: 150 | BJ36: 551 | BK36: 1849 | BL36: 449 | BM36: 568 | BN36: 1106 | BO36: 35360 | BQ36: 71640
A37: 29 | B37: 1909 | C37: 1517 | D37: 619 | E37: 402 | F37: 4461 | G37: 283 | H37: 773 | I37: 1130 | J37: 763 | K37: 462 | L37: 559 | M37: 427 | N37: 916 | O37: 2128 | P37: 5679 | Q37: 1282 | R37: 423 | S37: 556 | T37: 555 | U37: 121 | V37: 733 | W37: 2177 | X37: 127 | Y37: 775 | Z37: 1187 | AA37: 510 | AB37: 151 | AC37: 584 | AD37: 1833 | AE37: 472 | AF37: 535 | AG37: 1190 | AH37: 35239 | AI37: 2105 | AJ37: 1441 | AK37: 584 | AL37: 462 | AM37: 4348 | AN37: 306 | AO37: 718 | AP37: 1166 | AQ37: 694 | AR37: 504 | AS37: 554 | AT37: 394 | AU37: 890 | AV37: 1936 | AW37: 5393 | AX37: 1282 | AY37: 457 | AZ37: 464 | BA37: 594 | BB37: 137 | BC37: 676 | BD37: 1889 | BE37: 113 | BF37: 780 | BG37: 1163 | BH37: 476 | BI37: 169 | BJ37: 573 | BK37: 1705 | BL37: 445 | BM37: 616 | BN37: 1117 | BO37: 34151 | BQ37: 69390
A38: 30 | B38: 1961 | C38: 1580 | D38: 655 | E38: 354 | F38: 4310 | G38: 279 | H38: 693 | I38: 1068 | J38: 765 | K38: 474 | L38: 591 | M38: 432 | N38: 971 | O38: 2163 | P38: 5356 | Q38: 1286 | R38: 472 | S38: 584 | T38: 595 | U38: 107 | V38: 780 | W38: 2219 | X38: 121 | Y38: 831 | Z38: 1051 | AA38: 553 | AB38: 125 | AC38: 574 | AD38: 1970 | AE38: 472 | AF38: 634 | AG38: 1166 | AH38: 35192 | AI38: 1999 | AJ38: 1449 | AK38: 648 | AL38: 445 | AM38: 4195 | AN38: 314 | AO38: 701 | AP38: 1021 | AQ38: 714 | AR38: 538 | AS38: 521 | AT38: 384 | AU38: 891 | AV38: 2125 | AW38: 5424 | AX38: 1327 | AY38: 501 | AZ38: 552 | BA38: 561 | BB38: 117 | BC38: 670 | BD38: 2016 | BE38: 106 | BF38: 796 | BG38: 1086 | BH38: 518 | BI38: 143 | BJ38: 528 | BK38: 1771 | BL38: 416 | BM38: 573 | BN38: 1082 | BO38: 34132 | BQ38: 69324
A39: 31 | B39: 1926 | C39: 1626 | D39: 611 | E39: 417 | F39: 4425 | G39: 325 | H39: 726 | I39: 1118 | J39: 728 | K39: 491 | L39: 533 | M39: 420 | N39: 1021 | O39: 2165 | P39: 5327 | Q39: 1344 | R39: 438 | S39: 588 | T39: 597 | U39: 117 | V39: 756 | W39: 2280 | X39: 128 | Y39: 867 | Z39: 1113 | AA39: 543 | AB39: 137 | AC39: 579 | AD39: 1917 | AE39: 504 | AF39: 603 | AG39: 1206 | AH39: 35576 | AI39: 1934 | AJ39: 1550 | AK39: 591 | AL39: 449 | AM39: 4139 | AN39: 262 | AO39: 747 | AP39: 1086 | AQ39: 621 | AR39: 521 | AS39: 536 | AT39: 414 | AU39: 917 | AV39: 2052 | AW39: 5336 | AX39: 1279 | AY39: 412 | AZ39: 501 | BA39: 595 | BB39: 111 | BC39: 658 | BD39: 2009 | BE39: 129 | BF39: 797 | BG39: 1052 | BH39: 469 | BI39: 118 | BJ39: 521 | BK39: 1836 | BL39: 400 | BM39: 574 | BN39: 1081 | BO39: 33697 | BQ39: 69273
A40: 32 | B40: 1698 | C40: 1655 | D40: 654 | E40: 381 | F40: 4326 | G40: 273 | H40: 755 | I40: 1038 | J40: 710 | K40: 533 | L40: 575 | M40: 485 | N40: 969 | O40: 2100 | P40: 4930 | Q40: 1321 | R40: 437 | S40: 546 | T40: 546 | U40: 130 | V40: 717 | W40: 2229 | X40: 115 | Y40: 867 | Z40: 1084 | AA40: 549 | AB40: 123 | AC40: 562 | AD40: 2005 | AE40: 473 | AF40: 563 | AG40: 1126 | AH40: 34475 | AI40: 1864 | AJ40: 1520 | AK40: 622 | AL40: 427 | AM40: 3991 | AN40: 279 | AO40: 664 | AP40: 1033 | AQ40: 648 | AR40: 470 | AS40: 504 | AT40: 396 | AU40: 919 | AV40: 1996 | AW40: 4908 | AX40: 1301 | AY40: 454 | AZ40: 516 | BA40: 576 | BB40: 113 | BC40: 654 | BD40: 2024 | BE40: 88 | BF40: 789 | BG40: 1079 | BH40: 506 | BI40: 120 | BJ40: 535 | BK40: 1802 | BL40: 486 | BM40: 486 | BN40: 1122 | BO40: 32892 | BQ40: 67367
A41: 33 | B41: 1780 | C41: 1656 | D41: 632 | E41: 461 | F41: 4104 | G41: 280 | H41: 762 | I41: 973 | J41: 682 | K41: 558 | L41: 629 | M41: 487 | N41: 1071 | O41: 2198 | P41: 4912 | Q41: 1371 | R41: 462 | S41: 580 | T41: 515 | U41: 128 | V41: 732 | W41: 2281 | X41: 125 | Y41: 842 | Z41: 1203 | AA41: 621 | AB41: 137 | AC41: 575 | AD41: 1984 | AE41: 503 | AF41: 611 | AG41: 1231 | AH41: 35086 | AI41: 1846 | AJ41: 1602 | AK41: 613 | AL41: 375 | AM41: 4194 | AN41: 284 | AO41: 684 | AP41: 955 | AQ41: 679 | AR41: 520 | AS41: 536 | AT41: 404 | AU41: 918 | AV41: 1983 | AW41: 5033 | AX41: 1246 | AY41: 399 | AZ41: 503 | BA41: 483 | BB41: 131 | BC41: 658 | BD41: 2117 | BE41: 111 | BF41: 808 | BG41: 1070 | BH41: 522 | BI41: 127 | BJ41: 488 | BK41: 1780 | BL41: 408 | BM41: 510 | BN41: 1112 | BO41: 33099 | BQ41: 68185
A42: 34 | B42: 1652 | C42: 1772 | D42: 684 | E42: 410 | F42: 4241 | G42: 314 | H42: 803 | I42: 1012 | J42: 715 | K42: 540 | L42: 635 | M42: 520 | N42: 1114 | O42: 2236 | P42: 4752 | Q42: 1451 | R42: 446 | S42: 630 | T42: 556 | U42: 157 | V42: 790 | W42: 2285 | X42: 106 | Y42: 873 | Z42: 1115 | AA42: 592 | AB42: 130 | AC42: 621 | AD42: 2102 | AE42: 521 | AF42: 591 | AG42: 1270 | AH42: 35636 | AI42: 1797 | AJ42: 1620 | AK42: 661 | AL42: 350 | AM42: 4012 | AN42: 277 | AO42: 667 | AP42: 951 | AQ42: 678 | AR42: 568 | AS42: 548 | AT42: 461 | AU42: 983 | AV42: 2167 | AW42: 4688 | AX42: 1284 | AY42: 451 | AZ42: 533 | BA42: 520 | BB42: 129 | BC42: 696 | BD42: 2154 | BE42: 106 | BF42: 807 | BG42: 1052 | BH42: 525 | BI42: 139 | BJ42: 569 | BK42: 1846 | BL42: 461 | BM42: 535 | BN42: 1066 | BO42: 33301 | BQ42: 68937
A43: 35 | B43: 1622 | C43: 1748 | D43: 686 | E43: 453 | F43: 3948 | G43: 312 | H43: 740 | I43: 989 | J43: 748 | K43: 636 | L43: 648 | M43: 554 | N43: 1084 | O43: 2320 | P43: 4612 | Q43: 1438 | R43: 461 | S43: 606 | T43: 532 | U43: 147 | V43: 799 | W43: 2422 | X43: 118 | Y43: 847 | Z43: 1154 | AA43: 588 | AB43: 148 | AC43: 648 | AD43: 2162 | AE43: 449 | AF43: 611 | AG43: 1283 | AH43: 35513 | AI43: 1801 | AJ43: 1717 | AK43: 594 | AL43: 383 | AM43: 3815 | AN43: 306 | AO43: 657 | AP43: 905 | AQ43: 682 | AR43: 591 | AS43: 568 | AT43: 487 | AU43: 981 | AV43: 2139 | AW43: 4734 | AX43: 1431 | AY43: 442 | AZ43: 517 | BA43: 488 | BB43: 127 | BC43: 665 | BD43: 2202 | BE43: 94 | BF43: 906 | BG43: 1164 | BH43: 543 | BI43: 138 | BJ43: 560 | BK43: 2015 | BL43: 446 | BM43: 560 | BN43: 1176 | BO43: 33834 | BQ43: 69347
A44: 36 | B44: 1612 | C44: 1784 | D44: 651 | E44: 419 | F44: 3901 | G44: 305 | H44: 762 | I44: 880 | J44: 765 | K44: 649 | L44: 610 | M44: 565 | N44: 1009 | O44: 2330 | P44: 4392 | Q44: 1391 | R44: 498 | S44: 601 | T44: 531 | U44: 142 | V44: 742 | W44: 2325 | X44: 105 | Y44: 827 | Z44: 1140 | AA44: 588 | AB44: 138 | AC44: 607 | AD44: 2075 | AE44: 501 | AF44: 545 | AG44: 1176 | AH44: 34566 | AI44: 1678 | AJ44: 1675 | AK44: 613 | AL44: 484 | AM44: 3936 | AN44: 299 | AO44: 680 | AP44: 863 | AQ44: 648 | AR44: 518 | AS44: 530 | AT44: 514 | AU44: 1013 | AV44: 2091 | AW44: 4518 | AX44: 1309 | AY44: 407 | AZ44: 559 | BA44: 531 | BB44: 129 | BC44: 676 | BD44: 2244 | BE44: 109 | BF44: 777 | BG44: 1005 | BH44: 570 | BI44: 139 | BJ44: 586 | BK44: 2011 | BL44: 481 | BM44: 492 | BN44: 1149 | BO44: 33234 | BQ44: 67800
A45: 37 | B45: 1403 | C45: 1727 | D45: 633 | E45: 411 | F45: 3614 | G45: 299 | H45: 743 | I45: 859 | J45: 689 | K45: 647 | L45: 672 | M45: 609 | N45: 1054 | O45: 2268 | P45: 4187 | Q45: 1366 | R45: 463 | S45: 602 | T45: 534 | U45: 164 | V45: 742 | W45: 2186 | X45: 145 | Y45: 802 | Z45: 1096 | AA45: 564 | AB45: 129 | AC45: 568 | AD45: 1973 | AE45: 546 | AF45: 519 | AG45: 1178 | AH45: 33392 | AI45: 1630 | AJ45: 1661 | AK45: 650 | AL45: 371 | AM45: 3766 | AN45: 265 | AO45: 634 | AP45: 795 | AQ45: 682 | AR45: 575 | AS45: 585 | AT45: 466 | AU45: 1010 | AV45: 2086 | AW45: 4301 | AX45: 1308 | AY45: 425 | AZ45: 544 | BA45: 549 | BB45: 155 | BC45: 697 | BD45: 2190 | BE45: 105 | BF45: 877 | BG45: 1010 | BH45: 564 | BI45: 155 | BJ45: 577 | BK45: 1843 | BL45: 524 | BM45: 513 | BN45: 1173 | BO45: 32686 | BQ45: 66078
A46: 38 | B46: 1348 | C46: 1671 | D46: 643 | E46: 390 | F46: 3386 | G46: 313 | H46: 701 | I46: 757 | J46: 678 | K46: 606 | L46: 598 | M46: 607 | N46: 979 | O46: 2042 | P46: 3765 | Q46: 1279 | R46: 419 | S46: 528 | T46: 517 | U46: 136 | V46: 733 | W46: 2152 | X46: 110 | Y46: 774 | Z46: 1030 | AA46: 543 | AB46: 127 | AC46: 588 | AD46: 1985 | AE46: 563 | AF46: 488 | AG46: 1114 | AH46: 31570 | AI46: 1476 | AJ46: 1557 | AK46: 569 | AL46: 468 | AM46: 3404 | AN46: 289 | AO46: 648 | AP46: 757 | AQ46: 655 | AR46: 491 | AS46: 529 | AT46: 512 | AU46: 946 | AV46: 1938 | AW46: 3814 | AX46: 1216 | AY46: 393 | AZ46: 510 | BA46: 471 | BB46: 131 | BC46: 639 | BD46: 1988 | BE46: 107 | BF46: 760 | BG46: 893 | BH46: 492 | BI46: 127 | BJ46: 460 | BK46: 1735 | BL46: 455 | BM46: 427 | BN46: 1013 | BO46: 29870 | BQ46: 61440
A47: 39 | B47: 1310 | C47: 1654 | D47: 648 | E47: 425 | F47: 3287 | G47: 283 | H47: 661 | I47: 744 | J47: 642 | K47: 625 | L47: 648 | M47: 587 | N47: 952 | O47: 2004 | P47: 3496 | Q47: 1274 | R47: 417 | S47: 532 | T47: 500 | U47: 154 | V47: 708 | W47: 1998 | X47: 99 | Y47: 761 | Z47: 994 | AA47: 558 | AB47: 169 | AC47: 569 | AD47: 1830 | AE47: 534 | AF47: 493 | AG47: 1055 | AH47: 30611 | AI47: 1452 | AJ47: 1652 | AK47: 553 | AL47: 440 | AM47: 3355 | AN47: 263 | AO47: 610 | AP47: 758 | AQ47: 589 | AR47: 576 | AS47: 581 | AT47: 493 | AU47: 965 | AV47: 2021 | AW47: 3606 | AX47: 1212 | AY47: 411 | AZ47: 504 | BA47: 503 | BB47: 146 | BC47: 629 | BD47: 1846 | BE47: 99 | BF47: 762 | BG47: 915 | BH47: 507 | BI47: 154 | BJ47: 491 | BK47: 1770 | BL47: 462 | BM47: 492 | BN47: 1091 | BO47: 29908 | BQ47: 60519
A48: 40 | B48: 1378 | C48: 1702 | D48: 666 | E48: 465 | F48: 3252 | G48: 309 | H48: 759 | I48: 814 | J48: 721 | K48: 635 | L48: 652 | M48: 624 | N48: 1059 | O48: 2227 | P48: 3696 | Q48: 1378 | R48: 427 | S48: 579 | T48: 574 | U48: 166 | V48: 848 | W48: 2264 | X48: 110 | Y48: 813 | Z48: 973 | AA48: 639 | AB48: 125 | AC48: 612 | AD48: 1969 | AE48: 526 | AF48: 552 | AG48: 1191 | AH48: 32705 | AI48: 1469 | AJ48: 1671 | AK48: 620 | AL48: 460 | AM48: 3326 | AN48: 296 | AO48: 715 | AP48: 756 | AQ48: 665 | AR48: 568 | AS48: 586 | AT48: 547 | AU48: 967 | AV48: 2108 | AW48: 3693 | AX48: 1370 | AY48: 410 | AZ48: 515 | BA48: 536 | BB48: 146 | BC48: 718 | BD48: 2152 | BE48: 124 | BF48: 785 | BG48: 1018 | BH48: 568 | BI48: 139 | BJ48: 519 | BK48: 1876 | BL48: 516 | BM48: 479 | BN48: 1173 | BO48: 31491 | BQ48: 64196
A49: 41 | B49: 1291 | C49: 1758 | D49: 665 | E49: 489 | F49: 3180 | G49: 311 | H49: 810 | I49: 804 | J49: 754 | K49: 642 | L49: 664 | M49: 597 | N49: 1099 | O49: 2281 | P49: 3523 | Q49: 1391 | R49: 518 | S49: 580 | T49: 596 | U49: 157 | V49: 866 | W49: 2194 | X49: 140 | Y49: 848 | Z49: 1099 | AA49: 710 | AB49: 133 | AC49: 692 | AD49: 2068 | AE49: 563 | AF49: 529 | AG49: 1227 | AH49: 33179 | AI49: 1411 | AJ49: 1674 | AK49: 605 | AL49: 494 | AM49: 3264 | AN49: 349 | AO49: 695 | AP49: 731 | AQ49: 708 | AR49: 574 | AS49: 633 | AT49: 525 | AU49: 1068 | AV49: 2099 | AW49: 3653 | AX49: 1338 | AY49: 412 | AZ49: 534 | BA49: 538 | BB49: 157 | BC49: 679 | BD49: 2185 | BE49: 114 | BF49: 797 | BG49: 984 | BH49: 617 | BI49: 153 | BJ49: 566 | BK49: 1920 | BL49: 485 | BM49: 472 | BN49: 1185 | BO49: 31619 | BQ49: 64798
A50: 42 | B50: 1269 | C50: 1852 | D50: 743 | E50: 495 | F50: 3108 | G50: 315 | H50: 834 | I50: 777 | J50: 795 | K50: 647 | L50: 702 | M50: 602 | N50: 1131 | O50: 2243 | P50: 3520 | Q50: 1436 | R50: 472 | S50: 574 | T50: 596 | U50: 153 | V50: 833 | W50: 2258 | X50: 138 | Y50: 953 | Z50: 1116 | AA50: 750 | AB50: 155 | AC50: 622 | AD50: 2052 | AE50: 552 | AF50: 549 | AG50: 1253 | AH50: 33495 | AI50: 1403 | AJ50: 1789 | AK50: 639 | AL50: 483 | AM50: 3253 | AN50: 292 | AO50: 790 | AP50: 732 | AQ50: 699 | AR50: 609 | AS50: 668 | AT50: 566 | AU50: 1082 | AV50: 2215 | AW50: 3680 | AX50: 1268 | AY50: 429 | AZ50: 577 | BA50: 583 | BB50: 155 | BC50: 819 | BD50: 2203 | BE50: 99 | BF50: 805 | BG50: 1051 | BH50: 633 | BI50: 137 | BJ50: 633 | BK50: 1935 | BL50: 515 | BM50: 491 | BN50: 1234 | BO50: 32467 | BQ50: 65962
A51: 43 | B51: 1377 | C51: 1948 | D51: 786 | E51: 544 | F51: 3076 | G51: 388 | H51: 897 | I51: 807 | J51: 814 | K51: 730 | L51: 746 | M51: 669 | N51: 1202 | O51: 2436 | P51: 3719 | Q51: 1560 | R51: 538 | S51: 584 | T51: 650 | U51: 160 | V51: 907 | W51: 2351 | X51: 149 | Y51: 962 | Z51: 1190 | AA51: 761 | AB51: 153 | AC51: 700 | AD51: 2194 | AE51: 661 | AF51: 569 | AG51: 1404 | AH51: 35632 | AI51: 1467 | AJ51: 1920 | AK51: 739 | AL51: 540 | AM51: 3256 | AN51: 339 | AO51: 784 | AP51: 761 | AQ51: 815 | AR51: 668 | AS51: 758 | AT51: 600 | AU51: 1111 | AV51: 2316 | AW51: 3720 | AX51: 1369 | AY51: 489 | AZ51: 560 | BA51: 643 | BB51: 169 | BC51: 797 | BD51: 2299 | BE51: 139 | BF51: 882 | BG51: 1068 | BH51: 679 | BI51: 178 | BJ51: 644 | BK51: 2087 | BL51: 539 | BM51: 555 | BN51: 1246 | BO51: 34137 | BQ51: 69769
A52: 44 | B52: 1448 | C52: 1961 | D52: 798 | E52: 620 | F52: 3342 | G52: 390 | H52: 960 | I52: 875 | J52: 933 | K52: 763 | L52: 797 | M52: 691 | N52: 1269 | O52: 2593 | P52: 3922 | Q52: 1703 | R52: 539 | S52: 645 | T52: 690 | U52: 180 | V52: 984 | W52: 2625 | X52: 139 | Y52: 1071 | Z52: 1324 | AA52: 867 | AB52: 170 | AC52: 808 | AD52: 2372 | AE52: 685 | AF52: 588 | AG52: 1423 | AH52: 38175 | AI52: 1398 | AJ52: 1890 | AK52: 765 | AL52: 543 | AM52: 3332 | AN52: 374 | AO52: 927 | AP52: 811 | AQ52: 860 | AR52: 718 | AS52: 733 | AT52: 644 | AU52: 1171 | AV52: 2407 | AW52: 3877 | AX52: 1500 | AY52: 511 | AZ52: 566 | BA52: 690 | BB52: 191 | BC52: 847 | BD52: 2351 | BE52: 140 | BF52: 981 | BG52: 1094 | BH52: 770 | BI52: 168 | BJ52: 675 | BK52: 2248 | BL52: 574 | BM52: 571 | BN52: 1340 | BO52: 35667 | BQ52: 73842
A53: 45 | B53: 1451 | C53: 2204 | D53: 848 | E53: 609 | F53: 3345 | G53: 375 | H53: 1067 | I53: 928 | J53: 963 | K53: 843 | L53: 869 | M53: 732 | N53: 1253 | O53: 2822 | P53: 4100 | Q53: 1731 | R53: 620 | S53: 723 | T53: 764 | U53: 166 | V53: 1054 | W53: 2679 | X53: 165 | Y53: 1091 | Z53: 1386 | AA53: 897 | AB53: 173 | AC53: 813 | AD53: 2495 | AE53: 732 | AF53: 684 | AG53: 1435 | AH53: 40017 | AI53: 1508 | AJ53: 1973 | AK53: 743 | AL53: 576 | AM53: 3382 | AN53: 383 | AO53: 988 | AP53: 939 | AQ53: 856 | AR53: 700 | AS53: 742 | AT53: 633 | AU53: 1248 | AV53: 2576 | AW53: 3949 | AX53: 1583 | AY53: 507 | AZ53: 631 | BA53: 710 | BB53: 199 | BC53: 908 | BD53: 2514 | BE53: 121 | BF53: 1017 | BG53: 1229 | BH53: 791 | BI53: 155 | BJ53: 717 | BK53: 2407 | BL53: 616 | BM53: 610 | BN53: 1440 | BO53: 37351 | BQ53: 77368
A54: 46 | B54: 1419 | C54: 2060 | D54: 821 | E54: 685 | F54: 3120 | G54: 408 | H54: 1052 | I54: 900 | J54: 937 | K54: 825 | L54: 837 | M54: 712 | N54: 1203 | O54: 2663 | P54: 4101 | Q54: 1786 | R54: 596 | S54: 694 | T54: 692 | U54: 196 | V54: 1044 | W54: 2713 | X54: 156 | Y54: 1088 | Z54: 1466 | AA54: 858 | AB54: 167 | AC54: 842 | AD54: 2494 | AE54: 782 | AF54: 699 | AG54: 1525 | AH54: 39541 | AI54: 1323 | AJ54: 2039 | AK54: 818 | AL54: 570 | AM54: 3153 | AN54: 386 | AO54: 998 | AP54: 883 | AQ54: 896 | AR54: 713 | AS54: 776 | AT54: 618 | AU54: 1270 | AV54: 2592 | AW54: 4015 | AX54: 1595 | AY54: 523 | AZ54: 648 | BA54: 659 | BB54: 200 | BC54: 898 | BD54: 2570 | BE54: 166 | BF54: 992 | BG54: 1252 | BH54: 824 | BI54: 166 | BJ54: 735 | BK54: 2337 | BL54: 656 | BM54: 590 | BN54: 1310 | BO54: 37171 | BQ54: 76712
A55: 47 | B55: 1457 | C55: 2182 | D55: 909 | E55: 630 | F55: 3228 | G55: 444 | H55: 1191 | I55: 926 | J55: 984 | K55: 841 | L55: 862 | M55: 755 | N55: 1282 | O55: 2851 | P55: 4290 | Q55: 1796 | R55: 669 | S55: 713 | T55: 750 | U55: 212 | V55: 1034 | W55: 2762 | X55: 154 | Y55: 1173 | Z55: 1407 | AA55: 950 | AB55: 166 | AC55: 820 | AD55: 2552 | AE55: 702 | AF55: 743 | AG55: 1500 | AH55: 40935 | AI55: 1445 | AJ55: 2017 | AK55: 846 | AL55: 632 | AM55: 3267 | AN55: 438 | AO55: 1011 | AP55: 941 | AQ55: 959 | AR55: 744 | AS55: 738 | AT55: 668 | AU55: 1235 | AV55: 2744 | AW55: 4134 | AX55: 1590 | AY55: 534 | AZ55: 603 | BA55: 754 | BB55: 215 | BC55: 990 | BD55: 2644 | BE55: 161 | BF55: 1037 | BG55: 1321 | BH55: 857 | BI55: 159 | BJ55: 732 | BK55: 2451 | BL55: 668 | BM55: 633 | BN55: 1450 | BO55: 38618 | BQ55: 79553
A56: 48 | B56: 1382 | C56: 2024 | D56: 861 | E56: 669 | F56: 3297 | G56: 423 | H56: 1180 | I56: 990 | J56: 1035 | K56: 838 | L56: 910 | M56: 792 | N56: 1351 | O56: 2889 | P56: 4399 | Q56: 1898 | R56: 694 | S56: 735 | T56: 701 | U56: 221 | V56: 1067 | W56: 2831 | X56: 172 | Y56: 1248 | Z56: 1511 | AA56: 953 | AB56: 178 | AC56: 883 | AD56: 2625 | AE56: 752 | AF56: 736 | AG56: 1530 | AH56: 41775 | AI56: 1490 | AJ56: 2007 | AK56: 802 | AL56: 697 | AM56: 3285 | AN56: 412 | AO56: 1024 | AP56: 924 | AQ56: 907 | AR56: 744 | AS56: 783 | AT56: 641 | AU56: 1253 | AV56: 2759 | AW56: 4095 | AX56: 1772 | AY56: 599 | AZ56: 663 | BA56: 750 | BB56: 218 | BC56: 961 | BD56: 2648 | BE56: 157 | BF56: 1098 | BG56: 1395 | BH56: 913 | BI56: 169 | BJ56: 794 | BK56: 2463 | BL56: 686 | BM56: 655 | BN56: 1475 | BO56: 39239 | BQ56: 81014
A57: 49 | B57: 1378 | C57: 2150 | D57: 895 | E57: 684 | F57: 3282 | G57: 483 | H57: 1222 | I57: 968 | J57: 1051 | K57: 920 | L57: 911 | M57: 795 | N57: 1307 | O57: 2776 | P57: 4135 | Q57: 1830 | R57: 683 | S57: 671 | T57: 730 | U57: 203 | V57: 1146 | W57: 2811 | X57: 180 | Y57: 1207 | Z57: 1512 | AA57: 1002 | AB57: 162 | AC57: 887 | AD57: 2606 | AE57: 695 | AF57: 773 | AG57: 1529 | AH57: 41584 | AI57: 1508 | AJ57: 2068 | AK57: 833 | AL57: 687 | AM57: 3301 | AN57: 431 | AO57: 1087 | AP57: 921 | AQ57: 911 | AR57: 806 | AS57: 808 | AT57: 715 | AU57: 1272 | AV57: 2863 | AW57: 4131 | AX57: 1788 | AY57: 652 | AZ57: 650 | BA57: 768 | BB57: 223 | BC57: 1000 | BD57: 2723 | BE57: 181 | BF57: 1113 | BG57: 1319 | BH57: 906 | BI57: 179 | BJ57: 844 | BK57: 2511 | BL57: 651 | BM57: 688 | BN57: 1421 | BO57: 39959 | BQ57: 81543
A58: 50 | B58: 1452 | C58: 2124 | D58: 899 | E58: 692 | F58: 3265 | G58: 424 | H58: 1139 | I58: 1009 | J58: 1018 | K58: 890 | L58: 810 | M58: 756 | N58: 1298 | O58: 2909 | P58: 4311 | Q58: 1909 | R58: 705 | S58: 713 | T58: 765 | U58: 220 | V58: 1141 | W58: 2760 | X58: 197 | Y58: 1176 | Z58: 1507 | AA58: 986 | AB58: 171 | AC58: 880 | AD58: 2558 | AE58: 773 | AF58: 774 | AG58: 1455 | AH58: 41686 | AI58: 1411 | AJ58: 1996 | AK58: 897 | AL58: 669 | AM58: 3240 | AN58: 396 | AO58: 1153 | AP58: 944 | AQ58: 948 | AR58: 790 | AS58: 803 | AT58: 706 | AU58: 1227 | AV58: 2677 | AW58: 4046 | AX58: 1839 | AY58: 642 | AZ58: 621 | BA58: 712 | BB58: 182 | BC58: 993 | BD58: 2699 | BE58: 180 | BF58: 1176 | BG58: 1381 | BH58: 922 | BI58: 199 | BJ58: 791 | BK58: 2388 | BL58: 688 | BM58: 682 | BN58: 1379 | BO58: 39377 | BQ58: 81063
A59: 51 | B59: 1514 | C59: 2164 | D59: 964 | E59: 775 | F59: 3269 | G59: 431 | H59: 1269 | I59: 1091 | J59: 1079 | K59: 893 | L59: 890 | M59: 775 | N59: 1260 | O59: 2994 | P59: 4431 | Q59: 2029 | R59: 692 | S59: 709 | T59: 761 | U59: 210 | V59: 1170 | W59: 2850 | X59: 191 | Y59: 1256 | Z59: 1523 | AA59: 983 | AB59: 165 | AC59: 932 | AD59: 2616 | AE59: 781 | AF59: 768 | AG59: 1525 | AH59: 42960 | AI59: 1498 | AJ59: 2073 | AK59: 907 | AL59: 696 | AM59: 3331 | AN59: 432 | AO59: 1229 | AP59: 952 | AQ59: 998 | AR59: 891 | AS59: 913 | AT59: 664 | AU59: 1308 | AV59: 2811 | AW59: 4054 | AX59: 1846 | AY59: 657 | AZ59: 665 | BA59: 713 | BB59: 207 | BC59: 1063 | BD59: 2717 | BE59: 173 | BF59: 1194 | BG59: 1483 | BH59: 955 | BI59: 185 | BJ59: 871 | BK59: 2478 | BL59: 776 | BM59: 752 | BN59: 1450 | BO59: 40942 | BQ59: 83902
A60: 52 | B60: 1528 | C60: 2149 | D60: 886 | E60: 744 | F60: 3321 | G60: 427 | H60: 1284 | I60: 1017 | J60: 983 | K60: 953 | L60: 877 | M60: 835 | N60: 1261 | O60: 2931 | P60: 4566 | Q60: 2075 | R60: 730 | S60: 665 | T60: 720 | U60: 196 | V60: 1166 | W60: 2716 | X60: 174 | Y60: 1201 | Z60: 1509 | AA60: 984 | AB60: 200 | AC60: 920 | AD60: 2836 | AE60: 753 | AF60: 805 | AG60: 1426 | AH60: 42838 | AI60: 1451 | AJ60: 2121 | AK60: 937 | AL60: 682 | AM60: 3178 | AN60: 452 | AO60: 1175 | AP60: 977 | AQ60: 942 | AR60: 847 | AS60: 765 | AT60: 728 | AU60: 1248 | AV60: 2768 | AW60: 4132 | AX60: 1824 | AY60: 667 | AZ60: 649 | BA60: 733 | BB60: 211 | BC60: 1087 | BD60: 2624 | BE60: 173 | BF60: 1205 | BG60: 1361 | BH60: 921 | BI60: 181 | BJ60: 874 | BK60: 2485 | BL60: 699 | BM60: 707 | BN60: 1407 | BO60: 40211 | BQ60: 83049
A61: 53 | B61: 1488 | C61: 2155 | D61: 939 | E61: 743 | F61: 3338 | G61: 434 | H61: 1283 | I61: 1083 | J61: 1010 | K61: 932 | L61: 864 | M61: 762 | N61: 1245 | O61: 2915 | P61: 4305 | Q61: 1849 | R61: 737 | S61: 747 | T61: 765 | U61: 218 | V61: 1184 | W61: 2783 | X61: 170 | Y61: 1218 | Z61: 1409 | AA61: 1006 | AB61: 171 | AC61: 963 | AD61: 2644 | AE61: 755 | AF61: 793 | AG61: 1393 | AH61: 42301 | AI61: 1519 | AJ61: 2055 | AK61: 888 | AL61: 706 | AM61: 3310 | AN61: 411 | AO61: 1186 | AP61: 1001 | AQ61: 899 | AR61: 826 | AS61: 844 | AT61: 707 | AU61: 1235 | AV61: 2652 | AW61: 4133 | AX61: 1828 | AY61: 697 | AZ61: 659 | BA61: 730 | BB61: 209 | BC61: 990 | BD61: 2453 | BE61: 198 | BF61: 1201 | BG61: 1379 | BH61: 979 | BI61: 197 | BJ61: 791 | BK61: 2512 | BL61: 689 | BM61: 715 | BN61: 1394 | BO61: 39993 | BQ61: 82294
A62: 54 | B62: 1487 | C62: 1979 | D62: 949 | E62: 692 | F62: 3145 | G62: 409 | H62: 1251 | I62: 1055 | J62: 925 | K62: 939 | L62: 823 | M62: 764 | N62: 1264 | O62: 2823 | P62: 4346 | Q62: 1784 | R62: 692 | S62: 699 | T62: 703 | U62: 225 | V62: 1058 | W62: 2606 | X62: 157 | Y62: 1166 | Z62: 1474 | AA62: 919 | AB62: 168 | AC62: 906 | AD62: 2582 | AE62: 705 | AF62: 731 | AG62: 1388 | AH62: 40814 | AI62: 1506 | AJ62: 2011 | AK62: 935 | AL62: 699 | AM62: 3088 | AN62: 408 | AO62: 1154 | AP62: 950 | AQ62: 926 | AR62: 837 | AS62: 831 | AT62: 689 | AU62: 1193 | AV62: 2675 | AW62: 4129 | AX62: 1807 | AY62: 706 | AZ62: 634 | BA62: 706 | BB62: 230 | BC62: 1070 | BD62: 2617 | BE62: 177 | BF62: 1108 | BG62: 1361 | BH62: 925 | BI62: 163 | BJ62: 832 | BK62: 2409 | BL62: 628 | BM62: 679 | BN62: 1324 | BO62: 39407 | BQ62: 80221
A63: 55 | B63: 1403 | C63: 1910 | D63: 916 | E63: 700 | F63: 3140 | G63: 400 | H63: 1221 | I63: 1104 | J63: 938 | K63: 897 | L63: 836 | M63: 718 | N63: 1174 | O63: 2691 | P63: 4234 | Q63: 1902 | R63: 657 | S63: 666 | T63: 697 | U63: 205 | V63: 1034 | W63: 2483 | X63: 169 | Y63: 1154 | Z63: 1525 | AA63: 910 | AB63: 171 | AC63: 934 | AD63: 2505 | AE63: 694 | AF63: 744 | AG63: 1300 | AH63: 40032 | AI63: 1353 | AJ63: 1945 | AK63: 800 | AL63: 732 | AM63: 3124 | AN63: 399 | AO63: 1144 | AP63: 971 | AQ63: 886 | AR63: 786 | AS63: 786 | AT63: 671 | AU63: 1145 | AV63: 2623 | AW63: 3885 | AX63: 1790 | AY63: 689 | AZ63: 598 | BA63: 689 | BB63: 199 | BC63: 965 | BD63: 2431 | BE63: 178 | BF63: 1114 | BG63: 1365 | BH63: 887 | BI63: 179 | BJ63: 869 | BK63: 2399 | BL63: 639 | BM63: 687 | BN63: 1313 | BO63: 38241 | BQ63: 78273
A64: 56 | B64: 1422 | C64: 1853 | D64: 921 | E64: 714 | F64: 3056 | G64: 376 | H64: 1186 | I64: 1027 | J64: 939 | K64: 837 | L64: 826 | M64: 721 | N64: 1129 | O64: 2712 | P64: 3982 | Q64: 1761 | R64: 696 | S64: 644 | T64: 659 | U64: 208 | V64: 1030 | W64: 2458 | X64: 168 | Y64: 1038 | Z64: 1339 | AA64: 940 | AB64: 153 | AC64: 885 | AD64: 2483 | AE64: 663 | AF64: 704 | AG64: 1226 | AH64: 38756 | AI64: 1403 | AJ64: 1869 | AK64: 876 | AL64: 686 | AM64: 2934 | AN64: 370 | AO64: 1108 | AP64: 951 | AQ64: 834 | AR64: 779 | AS64: 741 | AT64: 650 | AU64: 1113 | AV64: 2732 | AW64: 3771 | AX64: 1791 | AY64: 624 | AZ64: 626 | BA64: 667 | BB64: 209 | BC64: 980 | BD64: 2278 | BE64: 185 | BF64: 1028 | BG64: 1326 | BH64: 890 | BI64: 160 | BJ64: 807 | BK64: 2426 | BL64: 670 | BM64: 667 | BN64: 1263 | BO64: 37414 | BQ64: 76170
A65: 57 | B65: 1413 | C65: 1837 | D65: 872 | E65: 692 | F65: 2977 | G65: 385 | H65: 1171 | I65: 937 | J65: 881 | K65: 898 | L65: 786 | M65: 705 | N65: 1111 | O65: 2726 | P65: 3955 | Q65: 1816 | R65: 693 | S65: 649 | T65: 666 | U65: 192 | V65: 1089 | W65: 2380 | X65: 160 | Y65: 1131 | Z65: 1324 | AA65: 954 | AB65: 142 | AC65: 894 | AD65: 2539 | AE65: 605 | AF65: 715 | AG65: 1272 | AH65: 38567 | AI65: 1426 | AJ65: 1797 | AK65: 815 | AL65: 627 | AM65: 2895 | AN65: 399 | AO65: 1116 | AP65: 923 | AQ65: 896 | AR65: 833 | AS65: 743 | AT65: 698 | AU65: 1081 | AV65: 2567 | AW65: 3683 | AX65: 1742 | AY65: 617 | AZ65: 584 | BA65: 638 | BB65: 227 | BC65: 1009 | BD65: 2206 | BE65: 166 | BF65: 1098 | BG65: 1306 | BH65: 890 | BI65: 177 | BJ65: 837 | BK65: 2268 | BL65: 602 | BM65: 648 | BN65: 1195 | BO65: 36709 | BQ65: 75276
A66: 58 | B66: 1363 | C66: 1794 | D66: 838 | E66: 711 | F66: 2905 | G66: 363 | H66: 1156 | I66: 967 | J66: 879 | K66: 843 | L66: 737 | M66: 684 | N66: 1064 | O66: 2680 | P66: 3783 | Q66: 1822 | R66: 604 | S66: 646 | T66: 666 | U66: 189 | V66: 1089 | W66: 2428 | X66: 148 | Y66: 1092 | Z66: 1351 | AA66: 920 | AB66: 158 | AC66: 926 | AD66: 2353 | AE66: 638 | AF66: 717 | AG66: 1195 | AH66: 37709 | AI66: 1396 | AJ66: 1908 | AK66: 799 | AL66: 640 | AM66: 2796 | AN66: 313 | AO66: 1132 | AP66: 954 | AQ66: 821 | AR66: 757 | AS66: 725 | AT66: 638 | AU66: 1076 | AV66: 2506 | AW66: 3526 | AX66: 1684 | AY66: 556 | AZ66: 588 | BA66: 670 | BB66: 196 | BC66: 943 | BD66: 2188 | BE66: 163 | BF66: 1083 | BG66: 1270 | BH66: 857 | BI66: 163 | BJ66: 819 | BK66: 2258 | BL66: 613 | BM66: 666 | BN66: 1150 | BO66: 35854 | BQ66: 73563
A67: 59 | B67: 1299 | C67: 1759 | D67: 837 | E67: 698 | F67: 2854 | G67: 351 | H67: 1105 | I67: 922 | J67: 871 | K67: 879 | L67: 743 | M67: 673 | N67: 1027 | O67: 2438 | P67: 3536 | Q67: 1695 | R67: 617 | S67: 649 | T67: 678 | U67: 195 | V67: 999 | W67: 2286 | X67: 174 | Y67: 1087 | Z67: 1180 | AA67: 892 | AB67: 154 | AC67: 875 | AD67: 2352 | AE67: 603 | AF67: 668 | AG67: 1097 | AH67: 36193 | AI67: 1324 | AJ67: 1779 | AK67: 780 | AL67: 660 | AM67: 2725 | AN67: 355 | AO67: 1038 | AP67: 925 | AQ67: 842 | AR67: 732 | AS67: 740 | AT67: 639 | AU67: 999 | AV67: 2444 | AW67: 3417 | AX67: 1747 | AY67: 550 | AZ67: 561 | BA67: 617 | BB67: 197 | BC67: 916 | BD67: 2139 | BE67: 167 | BF67: 1011 | BG67: 1181 | BH67: 851 | BI67: 142 | BJ67: 784 | BK67: 2151 | BL67: 602 | BM67: 585 | BN67: 1061 | BO67: 34661 | BQ67: 70854
A68: 60 | B68: 1277 | C68: 1784 | D68: 797 | E68: 673 | F68: 2569 | G68: 343 | H68: 1184 | I68: 831 | J68: 794 | K68: 796 | L68: 688 | M68: 690 | N68: 1054 | O68: 2465 | P68: 3558 | Q68: 1727 | R68: 566 | S68: 549 | T68: 672 | U68: 196 | V68: 1013 | W68: 2188 | X68: 165 | Y68: 1051 | Z68: 1181 | AA68: 852 | AB68: 158 | AC68: 838 | AD68: 2257 | AE68: 568 | AF68: 658 | AG68: 1062 | AH68: 35204 | AI68: 1308 | AJ68: 1793 | AK68: 776 | AL68: 686 | AM68: 2595 | AN68: 301 | AO68: 1062 | AP68: 810 | AQ68: 773 | AR68: 745 | AS68: 698 | AT68: 655 | AU68: 936 | AV68: 2313 | AW68: 3293 | AX68: 1653 | AY68: 539 | AZ68: 568 | BA68: 672 | BB68: 182 | BC68: 934 | BD68: 2022 | BE68: 144 | BF68: 960 | BG68: 1105 | BH68: 824 | BI68: 163 | BJ68: 782 | BK68: 2118 | BL68: 542 | BM68: 648 | BN68: 1042 | BO68: 33642 | BQ68: 68846
A69: 61 | B69: 1238 | C69: 1709 | D69: 783 | E69: 636 | F69: 2509 | G69: 352 | H69: 1127 | I69: 803 | J69: 807 | K69: 749 | L69: 697 | M69: 646 | N69: 989 | O69: 2381 | P69: 3219 | Q69: 1663 | R69: 551 | S69: 569 | T69: 620 | U69: 206 | V69: 946 | W69: 2142 | X69: 151 | Y69: 1032 | Z69: 1144 | AA69: 849 | AB69: 163 | AC69: 845 | AD69: 2246 | AE69: 549 | AF69: 647 | AG69: 992 | AH69: 33960 | AI69: 1248 | AJ69: 1701 | AK69: 733 | AL69: 650 | AM69: 2439 | AN69: 335 | AO69: 1049 | AP69: 809 | AQ69: 752 | AR69: 749 | AS69: 624 | AT69: 578 | AU69: 876 | AV69: 2257 | AW69: 3150 | AX69: 1638 | AY69: 530 | AZ69: 497 | BA69: 584 | BB69: 209 | BC69: 892 | BD69: 1896 | BE69: 148 | BF69: 987 | BG69: 1081 | BH69: 850 | BI69: 164 | BJ69: 757 | BK69: 1971 | BL69: 532 | BM69: 572 | BN69: 950 | BO69: 32208 | BQ69: 66168
A70: 62 | B70: 1135 | C70: 1752 | D70: 793 | E70: 631 | F70: 2486 | G70: 358 | H70: 1091 | I70: 754 | J70: 771 | K70: 752 | L70: 633 | M70: 613 | N70: 936 | O70: 2379 | P70: 3072 | Q70: 1666 | R70: 543 | S70: 542 | T70: 606 | U70: 187 | V70: 988 | W70: 2054 | X70: 136 | Y70: 1003 | Z70: 1164 | AA70: 823 | AB70: 141 | AC70: 856 | AD70: 2140 | AE70: 589 | AF70: 613 | AG70: 1061 | AH70: 33268 | AI70: 1249 | AJ70: 1685 | AK70: 750 | AL70: 619 | AM70: 2436 | AN70: 321 | AO70: 1076 | AP70: 769 | AQ70: 730 | AR70: 669 | AS70: 644 | AT70: 519 | AU70: 876 | AV70: 2248 | AW70: 2863 | AX70: 1651 | AY70: 485 | AZ70: 545 | BA70: 600 | BB70: 191 | BC70: 841 | BD70: 1916 | BE70: 162 | BF70: 978 | BG70: 1037 | BH70: 827 | BI70: 154 | BJ70: 780 | BK70: 2044 | BL70: 515 | BM70: 536 | BN70: 934 | BO70: 31650 | BQ70: 64918
A71: 63 | B71: 1092 | C71: 1636 | D71: 829 | E71: 645 | F71: 2420 | G71: 311 | H71: 1125 | I71: 825 | J71: 807 | K71: 745 | L71: 647 | M71: 592 | N71: 956 | O71: 2316 | P71: 2791 | Q71: 1722 | R71: 531 | S71: 550 | T71: 630 | U71: 177 | V71: 1001 | W71: 2043 | X71: 153 | Y71: 1064 | Z71: 1080 | AA71: 834 | AB71: 142 | AC71: 832 | AD71: 2020 | AE71: 544 | AF71: 542 | AG71: 1042 | AH71: 32644 | AI71: 1138 | AJ71: 1541 | AK71: 803 | AL71: 609 | AM71: 2288 | AN71: 326 | AO71: 1039 | AP71: 744 | AQ71: 783 | AR71: 703 | AS71: 578 | AT71: 544 | AU71: 907 | AV71: 2149 | AW71: 2863 | AX71: 1582 | AY71: 483 | AZ71: 519 | BA71: 594 | BB71: 214 | BC71: 844 | BD71: 1874 | BE71: 172 | BF71: 1051 | BG71: 998 | BH71: 796 | BI71: 128 | BJ71: 798 | BK71: 1981 | BL71: 527 | BM71: 535 | BN71: 898 | BO71: 31009 | BQ71: 63653
A72: 64 | B72: 1091 | C72: 1551 | D72: 748 | E72: 681 | F72: 2378 | G72: 309 | H72: 1098 | I72: 738 | J72: 771 | K72: 691 | L72: 646 | M72: 566 | N72: 905 | O72: 2268 | P72: 2684 | Q72: 1636 | R72: 494 | S72: 521 | T72: 571 | U72: 213 | V72: 916 | W72: 1905 | X72: 146 | Y72: 1014 | Z72: 1007 | AA72: 804 | AB72: 130 | AC72: 824 | AD72: 2004 | AE72: 517 | AF72: 545 | AG72: 965 | AH72: 31337 | AI72: 1095 | AJ72: 1582 | AK72: 710 | AL72: 618 | AM72: 2306 | AN72: 325 | AO72: 1044 | AP72: 705 | AQ72: 708 | AR72: 589 | AS72: 558 | AT72: 530 | AU72: 850 | AV72: 2079 | AW72: 2658 | AX72: 1589 | AY72: 473 | AZ72: 496 | BA72: 555 | BB72: 187 | BC72: 850 | BD72: 1751 | BE72: 139 | BF72: 957 | BG72: 954 | BH72: 799 | BI72: 154 | BJ72: 745 | BK72: 1834 | BL72: 518 | BM72: 499 | BN72: 882 | BO72: 29739 | BQ72: 61076
A73: 65 | B73: 1079 | C73: 1593 | D73: 799 | E73: 684 | F73: 2354 | G73: 355 | H73: 1072 | I73: 738 | J73: 750 | K73: 678 | L73: 668 | M73: 547 | N73: 1009 | O73: 2339 | P73: 2625 | Q73: 1591 | R73: 535 | S73: 566 | T73: 633 | U73: 197 | V73: 920 | W73: 1865 | X73: 156 | Y73: 1016 | Z73: 1146 | AA73: 830 | AB73: 144 | AC73: 808 | AD73: 1899 | AE73: 545 | AF73: 562 | AG73: 990 | AH73: 31693 | AI73: 1088 | AJ73: 1580 | AK73: 792 | AL73: 650 | AM73: 2184 | AN73: 289 | AO73: 1084 | AP73: 725 | AQ73: 727 | AR73: 665 | AS73: 554 | AT73: 477 | AU73: 864 | AV73: 2170 | AW73: 2586 | AX73: 1554 | AY73: 523 | AZ73: 493 | BA73: 557 | BB73: 170 | BC73: 858 | BD73: 1708 | BE73: 155 | BF73: 925 | BG73: 1004 | BH73: 804 | BI73: 143 | BJ73: 742 | BK73: 1812 | BL73: 512 | BM73: 510 | BN73: 918 | BO73: 29823 | BQ73: =AH73+BO73 -> 61516
A74: 66 | B74: 1055 | C74: 1587 | D74: 764 | E74: 659 | F74: 2423 | G74: 345 | H74: 1116 | I74: 800 | J74: 764 | K74: 739 | L74: 653 | M74: 549 | N74: 963 | O74: 2341 | P74: 2599 | Q74: 1576 | R74: 516 | S74: 544 | T74: 621 | U74: 202 | V74: 895 | W74: 1907 | X74: 145 | Y74: 1033 | Z74: 1053 | AA74: 852 | AB74: 144 | AC74: 804 | AD74: 1878 | AE74: 511 | AF74: 531 | AG74: 930 | AH74: 31499 | AI74: 1065 | AJ74: 1554 | AK74: 820 | AL74: 637 | AM74: 2203 | AN74: 329 | AO74: 1106 | AP74: 698 | AQ74: 744 | AR74: 641 | AS74: 572 | AT74: 500 | AU74: 915 | AV74: 2136 | AW74: 2449 | AX74: 1578 | AY74: 473 | AZ74: 529 | BA74: 583 | BB74: 223 | BC74: 850 | BD74: 1806 | BE74: 129 | BF74: 971 | BG74: 932 | BH74: 806 | BI74: 149 | BJ74: 754 | BK74: 1764 | BL74: 516 | BM74: 499 | BN74: 909 | BO74: 29840 | BQ74: 61339
A75: 67 | B75: 1161 | C75: 1595 | D75: 876 | E75: 675 | F75: 2398 | G75: 341 | H75: 1093 | I75: 782 | J75: 767 | K75: 744 | L75: 624 | M75: 588 | N75: 976 | O75: 2465 | P75: 2623 | Q75: 1593 | R75: 523 | S75: 597 | T75: 598 | U75: 203 | V75: 1009 | W75: 1940 | X75: 141 | Y75: 1036 | Z75: 1111 | AA75: 873 | AB75: 136 | AC75: 846 | AD75: 1954 | AE75: 524 | AF75: 541 | AG75: 1004 | AH75: 32337 | AI75: 1111 | AJ75: 1705 | AK75: 784 | AL75: 732 | AM75: 2238 | AN75: 338 | AO75: 1147 | AP75: 739 | AQ75: 734 | AR75: 648 | AS75: 566 | AT75: 495 | AU75: 908 | AV75: 2266 | AW75: 2402 | AX75: 1609 | AY75: 461 | AZ75: 528 | BA75: 573 | BB75: 204 | BC75: 882 | BD75: 1784 | BE75: 165 | BF75: 984 | BG75: 944 | BH75: 835 | BI75: 142 | BJ75: 833 | BK75: 1803 | BL75: 522 | BM75: 475 | BN75: 919 | BO75: 30476 | BQ75: 62813
A76: 68 | B76: 1096 | C76: 1627 | D76: 901 | E76: 726 | F76: 2410 | G76: 351 | H76: 1142 | I76: 871 | J76: 861 | K76: 729 | L76: 719 | M76: 618 | N76: 974 | O76: 2575 | P76: 2643 | Q76: 1700 | R76: 552 | S76: 592 | T76: 618 | U76: 176 | V76: 1010 | W76: 1949 | X76: 157 | Y76: 1054 | Z76: 1074 | AA76: 891 | AB76: 127 | AC76: 836 | AD76: 2055 | AE76: 563 | AF76: 616 | AG76: 1064 | AH76: 33277 | AI76: 1068 | AJ76: 1695 | AK76: 865 | AL76: 661 | AM76: 2203 | AN76: 346 | AO76: 1153 | AP76: 745 | AQ76: 746 | AR76: 672 | AS76: 659 | AT76: 520 | AU76: 907 | AV76: 2315 | AW76: 2470 | AX76: 1691 | AY76: 453 | AZ76: 501 | BA76: 631 | BB76: 223 | BC76: 951 | BD76: 1763 | BE76: 137 | BF76: 1045 | BG76: 956 | BH76: 906 | BI76: 163 | BJ76: 806 | BK76: 1808 | BL76: 523 | BM76: 514 | BN76: 961 | BO76: 31057 | BQ76: 64334
A77: 69 | B77: 1277 | C77: 1765 | D77: 1008 | E77: 818 | F77: 2694 | G77: 397 | H77: 1291 | I77: 917 | J77: 928 | K77: 793 | L77: 705 | M77: 639 | N77: 1021 | O77: 2738 | P77: 2768 | Q77: 1729 | R77: 554 | S77: 655 | T77: 739 | U77: 226 | V77: 1108 | W77: 2009 | X77: 167 | Y77: 1215 | Z77: 1188 | AA77: 1032 | AB77: 135 | AC77: 982 | AD77: 2140 | AE77: 669 | AF77: 571 | AG77: 1075 | AH77: 35953 | AI77: 1155 | AJ77: 1752 | AK77: 895 | AL77: 745 | AM77: 2439 | AN77: 343 | AO77: 1186 | AP77: 867 | AQ77: 836 | AR77: 735 | AS77: 669 | AT77: 552 | AU77: 1055 | AV77: 2623 | AW77: 2546 | AX77: 1636 | AY77: 504 | AZ77: 561 | BA77: 623 | BB77: 223 | BC77: 959 | BD77: 1865 | BE77: 185 | BF77: 1111 | BG77: 1094 | BH77: 997 | BI77: 173 | BJ77: 887 | BK77: 1914 | BL77: 609 | BM77: 487 | BN77: 994 | BO77: 33220 | BQ77: 69173
